{"text_format":"1","workbook":"xlsx","n_sheets":6,"sheets":["Contact Center","Result","Result2","Ordering Information","Reference for Server Selection","Revision History"],"not_rendered":{"charts":0,"images":0,"macros":1,"external_links":0,"defined_names":115,"comments":1,"pivot_tables":0},"unopened":[],"bounds":{"document_bytes":16777216,"sheet_cells":100000,"rows_first":2000,"rows_last":500,"rows_between":2000,"halvings":0,"cell_chars":16384,"cell_head_chars":4096},"cells_cut":0,"cells_raw":0,"read":"whole","date_system":"1900"}

{"sheet":"Contact Center","index":0,"n_rows":182,"n_cols":15,"rows_kept":182,"cut":false,"hidden":false,"merged":[[91,6,94,6],[166,6,179,6],[149,6,151,6],[95,6,108,6],[109,5,123,5],[162,5,179,5],[149,5,161,5],[162,6,165,6],[180,6,180,9],[127,6,131,6],[124,5,148,5],[181,6,181,9],[109,6,118,6],[119,6,123,6],[124,6,126,6],[132,6,147,6],[153,6,154,6],[158,6,160,6],[82,6,83,6],[87,6,89,6],[2,1,7,3],[1,1,1,11],[5,10,5,11],[78,6,80,6],[61,6,76,6],[56,6,60,6],[6,6,9,6],[10,6,13,6],[14,6,17,6],[18,6,21,6],[22,6,25,6],[26,6,29,6],[30,6,33,6],[0,12,0,13],[48,6,52,6],[38,6,47,6],[34,6,37,6],[53,6,55,6]]}
[null,null,null,null,null,null,null,null,null,null,null,null,"Hide"]
[null,"iPECS Contact Center Configuration"]
[null,"1. Fill in your company and customer information that will be displayed in the print form.\n2. Fill in customer requirements below.\n3. Input Config No and Comment.\n4. Generate the Configuration by clicking the \"Generate Print Form\" button and print out.\n5. Save the final configuration by clicking the \"Save Print Form As PDF File\" button or \"Save As File\" button."]
[]
[]
[null,null,null,null,null,null,"Category","Model Name","Unit Price","Quantity","Amount"]
[null,null,null,null,null,null,{"$f":"'Ordering Information'!B16","v":"System License\n(UCP100)"},{"$f":"'Ordering Information'!C16","v":"UCP100-CC-TS4"},{"$f":"'Ordering Information'!H16","v":0},{"$f":"IF(AND(CCS_System=\"iPECS UCP100\", CC_TS4),1,0)","v":0},{"$f":"I7*J7","v":0},{"$f":"Currency","v":"USD"},{"$f":"IF(CCS_System=\"iPECS UCP100\",199,IF(CCS_System=\"iPECS UCP600\",600,IF(OR(CCS_System=\"iPECS UCP2400\",CCS_System=\"iPECS vUCP\"),2400,IF(OR(CCS_System=\"iPECS eMG80\",CCS_System=\"iPECS eMG100\"),140,IF(CCS_System=\"iPECS eMG800\",1200,60000)))))","v":199}]
[null,null,null,null,null,null,null,{"$f":"'Ordering Information'!C17","v":"UCP100-3SIPEXT"},{"$f":"'Ordering Information'!H17","v":1},{"$f":"IF(CCS_System=\"iPECS UCP100\",AddedHMP,0)","v":0},{"$f":"I8*J8","v":0},"USD",{"$f":"IF(CCS_System=\"iPECS UCM\",LMEMaxAgent,IF(AvailAgent>MaxAgent, MaxAgent,AvailAgent))","v":199}]
[null,null,null,null,null,null,null,{"$f":"'Ordering Information'!C18","v":"UCP100-IPCRS"},{"$f":"'Ordering Information'!H18","v":1},{"$f":"IF(AND(CCS_System=\"iPECS UCP100\",IPCRC>0),1,0)","v":0},{"$f":"I9*J9","v":0},"USD"]
[null,"■ Enter your company information (below 4 lines)",null,null,null,null,null,{"$f":"'Ordering Information'!C19","v":"UCP100-IPCRC"},{"$f":"'Ordering Information'!H19","v":1},{"$f":"IF(CCS_System=\"iPECS UCP100\",IPCRC,0)","v":0},0,"USD"]
[null,"Your Company Name",null,null,null,null,{"$f":"'Ordering Information'!B20","v":"System License\n(UCP600)"},{"$f":"'Ordering Information'!C20","v":"UCP600-CC-TS4"},{"$f":"'Ordering Information'!H20","v":0},{"$f":"IF(AND(CCS_System=\"iPECS UCP600\", CC_TS4),1,0)","v":0},0,"USD",{"$f":"IF(CCS_System=\"iPECS UCP100\",199,IF(CCS_System=\"iPECS UCP600\",600,IF(OR(CCS_System=\"iPECS UCP2400\",CCS_System=\"iPECS vUCP\"),998,IF(OR(CCS_System=\"iPECS eMG80\",CCS_System=\"iPECS eMG100\"),30,IF(CCS_System=\"iPECS eMG800\",600)))))","v":199}]
[null,"Address 1",null,null,null,null,null,{"$f":"'Ordering Information'!C21","v":"UCP600-3SIPEXT"},{"$f":"'Ordering Information'!H21","v":1},{"$f":"IF(CCS_System=\"iPECS UCP600\",AddedHMP,0)","v":0},0,"USD",{"$f":"IF(AvailPRI>MaxAvailPRI, MaxAvailPRI, AvailPRI)","v":30},30]
[null,"Address 2",null,null,null,null,null,{"$f":"'Ordering Information'!C22","v":"UCP600-IPCRS"},{"$f":"'Ordering Information'!H22","v":1},{"$f":"IF(AND(CCS_System=\"iPECS UCP600\",IPCRC>0),1,0)","v":0},{"$f":"I13*J13","v":0},"USD"]
[null,"Tel. Number",null,null,null,null,null,{"$f":"'Ordering Information'!C23","v":"UCP600-IPCRC"},{"$f":"'Ordering Information'!H23","v":1},{"$f":"IF(CCS_System=\"iPECS UCP600\",IPCRC,0)","v":0},0,"USD"]
[null,"■ Enter your customer information (below 4 lines)",null,null,null,null,{"$f":"'Ordering Information'!B24","v":"System License\n(UCP2400)"},{"$f":"'Ordering Information'!C24","v":"UCP2400-CC-TS4"},{"$f":"'Ordering Information'!H24","v":0},{"$f":"IF(AND(CCS_System=\"iPECS UCP2400\", CC_TS4),1,0)","v":0},0,"USD",{"$f":"IF(CCS_System=\"iPECS UCP100\",199,IF(CCS_System=\"iPECS UCP600\",600,IF(OR(CCS_System=\"iPECS UCP2400\",CCS_System=\"iPECS vUCP\"),998,IF(OR(CCS_System=\"iPECS eMG80\",CCS_System=\"iPECS eMG100\"),16,IF(CCS_System=\"iPECS eMG800\",600)))))","v":199},{"$f":"COUNTIF(N39:N48,1)","v":0}]
[null,"Your Customer Name",null,null,null,null,null,{"$f":"'Ordering Information'!C25","v":"UCP2400-3SIPEXT"},{"$f":"'Ordering Information'!H25","v":1},{"$f":"IF(CCS_System=\"iPECS UCP2400\",AddedHMP,0)","v":0},0,"USD",{"$f":"IF(AvailSIP>240,240,AvailSIP)","v":199},0]
[null,"Address 1",null,null,null,null,null,{"$f":"'Ordering Information'!C26","v":"UCP2400-IPCRS"},{"$f":"'Ordering Information'!H26","v":1},{"$f":"IF(AND(CCS_System=\"iPECS UCP2400\",IPCRC>0),1,0)","v":0},{"$f":"I17*J17","v":0},"USD"]
[null,"Address 2",null,null,null,null,null,{"$f":"'Ordering Information'!C27","v":"UCP2400-IPCRC"},{"$f":"'Ordering Information'!H27","v":1},{"$f":"IF(CCS_System=\"iPECS UCP2400\",IPCRC,0)","v":0},0,"USD"]
[null,"Tel. Number",null,null,null,null,{"$f":"'Ordering Information'!B28","v":"System License\n(vUCP)"},{"$f":"'Ordering Information'!C28","v":"vUCP-CC-TS4"},{"$f":"'Ordering Information'!H28","v":0},{"$f":"IF(AND(CCS_System=\"iPECS vUCP\", CC_TS4),1,0)","v":0},0,"USD",{"$f":"IF(CCS_System=\"iPECS UCM\",75,IF(RealAvailSIP>50,50,RealAvailSIP))","v":50},64,50]
[null,null,null,null,null,null,null,{"$f":"'Ordering Information'!C29","v":"vUCP-3SIPEXT"},{"$f":"'Ordering Information'!H29","v":1},{"$f":"IF(CCS_System=\"iPECS vUCP\",AddedHMP,0)","v":0},0,"USD",{"$f":"IF(CCS_System=\"iPECS eMG80\", 8, 12)","v":12},50,64]
[null,null,null,null,null,null,null,{"$f":"'Ordering Information'!C30","v":"vUCP-IPCRS"},{"$f":"'Ordering Information'!H30","v":1},{"$f":"IF(AND(CCS_System=\"iPECS vUCP\",IPCRC>0),1,0)","v":0},{"$f":"I21*J21","v":0},"USD"]
[null,null,null,null,null,null,null,{"$f":"'Ordering Information'!C31","v":"vUCP-IPCRC"},{"$f":"'Ordering Information'!H31","v":1},{"$f":"IF(CCS_System=\"iPECS vUCP\",IPCRC,0)","v":0},0,"USD"]
[null,null,null,null,null,null,{"$f":"'Ordering Information'!B32","v":"System License\n(eMG80)"},{"$f":"'Ordering Information'!C32","v":"eMG80N-CC-TS4"},{"$f":"'Ordering Information'!H32","v":0},{"$f":"IF(AND(CCS_System=\"iPECS eMG80\", CC_TS4),1,0)","v":0},0,"USD","If VOIB48, then eMG80 Max SIP=56"]
[null,"■ Which iPECS Call Server do you want to use ?","iPECS UCP100",null,null,null,null,{"$f":"'Ordering Information'!C33","v":"eMG80N-3SIPEXT"},{"$f":"'Ordering Information'!H33","v":1},{"$f":"IF(CCS_System=\"iPECS eMG80\",AddedHMP,0)","v":0},0,"USD","If TDM expansion, then eMG80 Max PRI=60, Max BRI=24"]
[null,null,null,null,null,null,null,{"$f":"'Ordering Information'!C34","v":"eMG80N-IPCRS"},{"$f":"'Ordering Information'!H34","v":1},{"$f":"IF(AND(CCS_System=\"iPECS eMG80\",IPCRC>0),1,0)","v":0},{"$f":"I25*J25","v":0},"USD"]
[null,"■ How many Agent (including supervisor & administrator) do you want to use ?",0,{"$f":"\"0~\"&RealAvailAgent","v":"0~199"},{"$f":"IF(Agent>RealAvailAgent,\"Error!!!\",\"\")","v":""},null,null,{"$f":"'Ordering Information'!C35","v":"eMG80N-IPCRC"},{"$f":"'Ordering Information'!H35","v":1},{"$f":"IF(CCS_System=\"iPECS eMG80\",IPCRC,0)","v":0},0,"USD"]
[null,null,null,null,null,null,{"$f":"'Ordering Information'!B36","v":"System License\n(eMG100)"},{"$f":"'Ordering Information'!C36","v":"eMG100-CC-TS4"},{"$f":"'Ordering Information'!H36","v":0},{"$f":"IF(AND(CCS_System=\"iPECS eMG100\", CC_TS4),1,0)","v":0},{"$f":"I27*J27","v":0},"USD",250,500]
[null,"■ How many Dashboard do you want to use ?",0,{"$f":"\"0~\"&MaxDashboard","v":"0~64"},null,null,null,{"$f":"'Ordering Information'!C37","v":"eMG100-3SIPEXT"},{"$f":"'Ordering Information'!H37","v":1},{"$f":"IF(CCS_System=\"iPECS eMG100\",AddedHMP,0)","v":0},0,"USD",400,{"$f":"IF(MAX_IPCRC < RealAvailAgent,MAX_IPCRC,RealAvailAgent)","v":199}]
[null,null,null,null,null,null,null,{"$f":"'Ordering Information'!C38","v":"eMG100-IPCRS"},{"$f":"'Ordering Information'!H38","v":1},{"$f":"IF(AND(CCS_System=\"iPECS eMG100\",IPCRC>0),1,0)","v":0},{"$f":"I29*J29","v":0},"USD"]
[null,"■ How many SIP channel do you want to use for Announcement ?",0,{"$f":"\"0~\"&MaxHMP","v":"0~50"},{"$f":"IF(HMP>MaxHMP,\"Error!!!\",\"\")","v":""},null,null,{"$f":"'Ordering Information'!C39","v":"eMG100-IPCRC"},{"$f":"'Ordering Information'!H39","v":1},{"$f":"IF(CCS_System=\"iPECS eMG100\",IPCRC,0)","v":0},0,"USD"]
[null,"■ Do you want to use G.729 CODEC for Announcement ?","No",null,null,null,{"$f":"'Ordering Information'!B40","v":"System License\n(eMG800)"},{"$f":"'Ordering Information'!C40","v":"eMG800-CC-TS4"},{"$f":"'Ordering Information'!H40","v":0},{"$f":"IF(AND(CCS_System=\"iPECS eMG800\", CC_TS4),1,0)","v":0},0,"USD"]
[null,null,null,null,null,null,null,{"$f":"'Ordering Information'!C41","v":"eMG800-3SIPEXT"},{"$f":"'Ordering Information'!H41","v":1},{"$f":"IF(CCS_System=\"iPECS eMG800\",AddedHMP,0)","v":0},0,"USD"]
[null,"■ How many ISDN PRI CO do you want to record ?",0,{"$f":"\"0~\"&RealAvailPRI","v":"0~30"},{"$f":"IF(ISDNPRI>RealAvailPRI,\"Error!!!\",\"\")","v":""},null,null,{"$f":"'Ordering Information'!C42","v":"eMG800-IPCRS"},{"$f":"'Ordering Information'!H42","v":1},{"$f":"IF(AND(CCS_System=\"iPECS eMG800\",IPCRC>0),1,0)","v":0},{"$f":"I33*J33","v":0},"USD"]
[null,"■ How many ISDN BRI CO do you want to record ?",0,{"$f":"\"0~\"&RealAvailBRI","v":"0~12"},{"$f":"IF(BRI>RealAvailBRI,\"Error!!!\",\"\")","v":""},null,null,{"$f":"'Ordering Information'!C43","v":"eMG800-IPCRC"},{"$f":"'Ordering Information'!H43","v":1},{"$f":"IF(CCS_System=\"iPECS eMG800\",IPCRC,0)","v":0},0,"USD"]
[null,"■ How many SIP CO do you want to record ?",0,{"$f":"\"0~\"&RealAvailSIP","v":"0~199"},{"$f":"IF(SIPCO>RealAvailSIP,\"Error!!!\",\"\")","v":""},null,{"$f":"'Ordering Information'!B44","v":"System License\n(UCM)"},{"$f":"'Ordering Information'!C44","v":"UCML-CCS-TS4"},{"$f":"'Ordering Information'!H44","v":0},{"$f":"IF(AND(CCS_System=\"iPECS UCM\", CC_TS4),1,0)","v":0},{"$f":"I35*J35","v":0},"USD"]
[null,"■ Do you want to use G.729 CODEC for call recording ?","No",null,null,null,null,{"$f":"'Ordering Information'!C45","v":"UCML-IPEXT"},{"$f":"'Ordering Information'!H45","v":1},{"$f":"IF(CCS_System=\"iPECS UCM\",AddedHMP,0)","v":0},0,"USD"]
[null,null,null,null,null,null,null,{"$f":"'Ordering Information'!C46","v":"UCML-IPCR-S"},{"$f":"'Ordering Information'!H46","v":1},{"$f":"IF(AND(CCS_System=\"iPECS UCM\",IPCRC>0),1,0)","v":0},{"$f":"I37*J37","v":0},"USD"]
[null,"■ How many IPCR Agents recording do you want ?",0,{"$f":"\"0~\"&RealAvailIPCRC","v":"0~199"},null,null,null,{"$f":"'Ordering Information'!C47","v":"UCML-IPCR-A"},{"$f":"'Ordering Information'!H47","v":1},{"$f":"IF(CCS_System=\"iPECS UCM\",IPCRC,0)","v":0},0,"USD"]
[null,null,null,null,null,null,"CCX Package",{"$f":"'Ordering Information'!C48","v":"CCX-PAC-5"},{"$f":"'Ordering Information'!H48","v":1},{"$f":"PAC_5","v":0},{"$f":"I39*J39","v":0},"USD",5,{"$f":"IF(AND(Agent>0,Agent<M40),1,0)","v":0},{"$f":"IF(AND(PAC_5=1,Agent>5),Agent-5,0)","v":0}]
[null,"■ How many user want to access Report Server concurrently ?",0,{"$f":"\"0~\"&MaxSupervisor","v":"0~50"},null,null,null,{"$f":"'Ordering Information'!C49","v":"CCX-PAC-10"},{"$f":"'Ordering Information'!H49","v":1},{"$f":"PAC_10","v":0},{"$f":"I40*J40","v":0},"USD",10,{"$f":"IF(AND(Agent>=M40,Agent<M41),1,0)","v":0},{"$f":"IF(AND(PAC_10=1,Agent>10),Agent-10,0)","v":0}]
[null,null,null,null,null,null,null,{"$f":"'Ordering Information'!C50","v":"CCX-PAC-20"},{"$f":"'Ordering Information'!H50","v":1},{"$f":"PAC_20","v":0},0,"USD",20,0,{"$f":"IF(AND(PAC_20=1,Agent>20),Agent-20,0)","v":0}]
[null,"■ Do you want to use Mail (E-Mail/VoiceMail/FaxMail) Queuing ?","No",null,null,null,null,{"$f":"'Ordering Information'!C51","v":"CCX-PAC-30"},{"$f":"'Ordering Information'!H51","v":1},{"$f":"PAC_30","v":0},0,"USD",30,0,{"$f":"IF(AND(PAC_30=1,Agent>30),Agent-30,0)","v":0}]
[null,null,null,null,null,null,null,{"$f":"'Ordering Information'!C52","v":"CCX-PAC-50"},{"$f":"'Ordering Information'!H52","v":1},{"$f":"PAC_50","v":0},0,"USD",50,0,{"$f":"IF(AND(PAC_50=1,Agent>50),Agent-50,0)","v":0}]
[null,"■ Do you want to use SNS(Facebook) Queuing ?","No",null,null,null,null,{"$f":"'Ordering Information'!C53","v":"CCX-PAC-75"},{"$f":"'Ordering Information'!H53","v":1},{"$f":"PAC_75","v":0},0,"USD",75,0,{"$f":"IF(AND(PAC_75=1,Agent>75),Agent-75,0)","v":0}]
[null,null,null,null,null,null,null,{"$f":"'Ordering Information'!C54","v":"CCX-PAC-100"},{"$f":"'Ordering Information'!H54","v":1},{"$f":"PAC_100","v":0},0,"USD",100,0,{"$f":"IF(AND(PAC_100=1,Agent>100),Agent-100,0)","v":0}]
[null,"■ Do you want to use Mobile SMS Queuing ?","No",null,null,null,null,{"$f":"'Ordering Information'!C55","v":"CCX-PAC-150"},{"$f":"'Ordering Information'!H55","v":1},{"$f":"PAC_150","v":0},0,"USD",150,0,{"$f":"IF(AND(PAC_150=1,Agent>150),Agent-150,0)","v":0}]
[null,null,null,null,{"$f":"IF(WebChat>RealAvailAgent,\"Error!!!\",\"\")","v":""},null,null,{"$f":"'Ordering Information'!C56","v":"CCX-PAC-200"},{"$f":"'Ordering Information'!H56","v":1},{"$f":"PAC_200","v":0},0,"USD",200,0,{"$f":"IF(AND(PAC_200=1,Agent>200),Agent-200,0)","v":0}]
[null,"■ How many CCX Agent wants to use Web Chat ?",0,{"$f":"\"0~\"&RealAvailAgent","v":"0~199"},null,null,null,{"$f":"'Ordering Information'!C57","v":"CCX-PAC-250"},{"$f":"'Ordering Information'!H57","v":1},{"$f":"PAC_250","v":0},0,"USD",250,{"$f":"IF(AND(Agent>=M48),1,0)","v":0},{"$f":"IF(AND(PAC_250=1,Agent>250),Agent-250,0)","v":0}]
[null,null,null,null,null,null,"CCX Pac Add-on",{"$f":"'Ordering Information'!C58","v":"CX-DSK-ADD"},{"$f":"'Ordering Information'!H58","v":1},{"$f":"IF(AdditionalDSK>0,AdditionalDSK,0)","v":0},0,"USD",null,{"$f":"IF(SUM(N39:N48),1,0)","v":0},{"$f":"SUM(O39:O48)","v":0}]
[null,"■ Do you want to use Outbound Telemarking Tool ?","No",null,null,null,null,{"$f":"'Ordering Information'!C59","v":"CX-HMP"},{"$f":"'Ordering Information'!H59","v":1},{"$f":"IF(HMP>4,HMP-4,0)","v":0},{"$f":"I50*J50","v":0},"USD","Max Billing",30000]
[null,null,null,null,null,null,null,{"$f":"'Ordering Information'!C60","v":"CX-HMP-G729"},{"$f":"'Ordering Information'!H60","v":1},{"$f":"IF(AND(HMP>0,HMP_G729=\"Yes\"),HMP,0)","v":0},{"$f":"I51*J51","v":0},"USD","Real Billing",{"$f":"IF(MAX_BILL<AvailAgent,MAX_BILL,AvailAgent)","v":199}]
[null,"■ Do you want to use IVR(Interactive Voice Response) with Call Scenario Scripter ?","No",null,null,null,null,{"$f":"'Ordering Information'!C61","v":"CX-DB"},{"$f":"'Ordering Information'!H61","v":1},{"$f":"IF((Dashboard-2)>0,Dashboard-2,0)","v":0},{"$f":"I52*J52","v":0},"USD"]
[null,null,null,null,null,null,null,{"$f":"'Ordering Information'!C62","v":"CX-CC-LICENSE"},{"$f":"'Ordering Information'!H62","v":1},{"$f":"AdditionalDSK","v":0},0,"USD",null,"Rec ch."]
[null,"■ How many extension do you want to monitor for Traffic & Billing management ?",0,{"$f":"\"0~\"&RealBill","v":"0~199"},null,null,"CCX Record BRI Trunk",{"$f":"'Ordering Information'!C63","v":"CX-REC-B4"},{"$f":"'Ordering Information'!H63","v":1},{"$f":"IF(AND(BRI>0, BRI<M54+1),1,0)","v":0},0,{"$f":"Currency","v":"USD"},4,{"$f":"J54*M54","v":0}]
[null,null,null,null,null,null,null,{"$f":"'Ordering Information'!C64","v":"CX-REC-B8"},{"$f":"'Ordering Information'!H64","v":1},{"$f":"IF(AND(BRI>M54, BRI<M55+1),1,0)","v":0},0,"USD",8,0]
[null,"■ How many PBX are connected to this Reporting Server for Traffic & Billing ?",0,{"$f":"\"0~\"&MaxPBX","v":"0~64"},null,null,null,{"$f":"'Ordering Information'!C65","v":"CX-REC-B12"},{"$f":"'Ordering Information'!H65","v":1},{"$f":"IF(AND(BRI>M55, BRI<M56+1),1,0)","v":0},0,"USD",12,0]
[null,null,null,null,null,null,"CCX Record PRI Trunk",{"$f":"'Ordering Information'!C66","v":"CX-REC-P8"},{"$f":"'Ordering Information'!H66","v":1},{"$f":"IF(AND(PRI>0,PRI<M57+1),1,0)","v":0},0,"USD",8,0]
[null,"■ Do you want to use survey for customer service measurement ?","No",null,null,null,null,{"$f":"'Ordering Information'!C67","v":"CX-REC-P12"},{"$f":"'Ordering Information'!H67","v":1},{"$f":"IF(AND(PRI>M57,PRI<M58+1),1,0)","v":0},0,"USD",12,0]
[null,null,null,null,null,null,null,{"$f":"'Ordering Information'!C68","v":"CX-REC-P16"},{"$f":"'Ordering Information'!H68","v":1},0,0,"USD",16,0]
[null,"■ Do you want to use administrator coach for agent training ?","No",null,null,null,null,{"$f":"'Ordering Information'!C69","v":"CX-REC-P24"},{"$f":"'Ordering Information'!H69","v":1},0,0,"USD",24,0]
[null,"■ How many assessors for agent training ?",0,{"$f":"\"0~\"&MaxAssessor","v":"0~50"},null,null,null,{"$f":"'Ordering Information'!C70","v":"CX-REC-P30"},{"$f":"'Ordering Information'!H70","v":1},0,0,"USD",30,0]
[null,"■ How many CCX Agent wants to use verbatim script guiding during call in coach ?",0,{"$f":"\"0~\"&RealAvailAgent","v":"0~199"},null,null,"CCX Record VoIP Trunk",{"$f":"'Ordering Information'!C80","v":"CX-REC-V4"},{"$f":"'Ordering Information'!H80","v":1},{"$f":"IF(AND(SIP>0,SIP<M62+1),1,0)","v":0},0,"USD",4,0]
[null,null,null,null,null,null,null,{"$f":"'Ordering Information'!C81","v":"CX-REC-V6"},{"$f":"'Ordering Information'!H81","v":1},{"$f":"IF(AND(SIP>M62,SIP<M63+1),1,0)","v":0},0,"USD",6,0]
[null,"■ Do you want to use Personal Information Data Compliance Manager ?","No",null,null,null,null,{"$f":"'Ordering Information'!C82","v":"CX-REC-V8"},{"$f":"'Ordering Information'!H82","v":1},0,0,"USD",8,0]
[null,null,null,null,null,null,null,{"$f":"'Ordering Information'!C83","v":"CX-REC-V12"},{"$f":"'Ordering Information'!H83","v":1},0,0,"USD",12,0]
[null,"■ How many years do you need maintenance for ?",1,"1~6",null,null,null,{"$f":"'Ordering Information'!C84","v":"CX-REC-V16"},{"$f":"'Ordering Information'!H84","v":1},0,0,"USD",16,0]
[null,null,null,null,null,null,null,{"$f":"'Ordering Information'!C85","v":"CX-REC-V24"},{"$f":"'Ordering Information'!H85","v":1},0,0,"USD",24,0]
[null,"Total Amount",{"$f":"TotalAmm","v":0},{"$f":"Currency","v":"USD"},null,null,null,{"$f":"'Ordering Information'!C86","v":"CX-REC-V30"},{"$f":"'Ordering Information'!H86","v":1},0,0,"USD",30,0]
[null,null,null,null,null,null,null,{"$f":"'Ordering Information'!C87","v":"CX-REC-V40"},{"$f":"'Ordering Information'!H87","v":1},0,0,"USD",40,0]
[null,"■ Enter this configuration number",null,null,null,null,null,{"$f":"'Ordering Information'!C88","v":"CX-REC-V50"},{"$f":"'Ordering Information'!H88","v":1},0,0,"USD",50,0]
[null,null,null,null,null,null,null,{"$f":"'Ordering Information'!C89","v":"CX-REC-V60"},{"$f":"'Ordering Information'!H89","v":1},0,0,"USD",60,0]
[null,"■ Enter your Comment (below 4 lines)",null,null,null,null,null,{"$f":"'Ordering Information'!C90","v":"CX-REC-V90"},{"$f":"'Ordering Information'!H90","v":1},0,0,"USD",90,0]
[null,"Comment which you want to be displayed in print from",null,null,null,null,null,{"$f":"'Ordering Information'!C91","v":"CX-REC-V120"},{"$f":"'Ordering Information'!H91","v":1},0,0,"USD",120,0]
[null,"Comment2",null,null,null,null,null,{"$f":"'Ordering Information'!C92","v":"CX-REC-V150"},{"$f":"'Ordering Information'!H92","v":1},0,0,"USD",150,0]
[null,"Comment3",null,null,null,null,null,{"$f":"'Ordering Information'!C93","v":"CX-REC-V180"},{"$f":"'Ordering Information'!H93","v":1},0,0,"USD",180,0]
[null,"Comment4",null,null,null,null,null,{"$f":"'Ordering Information'!C94","v":"CX-REC-V200"},{"$f":"'Ordering Information'!H94","v":1},0,0,"USD",200,0]
[null,null,null,null,null,null,null,{"$f":"'Ordering Information'!C95","v":"CX-REC-V240"},{"$f":"'Ordering Information'!H95","v":1},0,0,{"$f":"Currency","v":"USD"},240,0]
[null,"■ Select Print Form","Default",null,null,null,"CCX Record Options",{"$f":"'Ordering Information'!C96","v":"CX-CODEC-G729"},{"$f":"'Ordering Information'!H96","v":1},{"$f":"IF(AND(SIP>0,REC_G729=\"Yes\"),SIP,0)","v":0},0,"USD",null,{"$f":"SUM(N62:N77)","v":0}]
[null,null,null,null,null,null,"CCX Q Add on",{"$f":"'Ordering Information'!C97","v":"CX-Q-EVF"},{"$f":"'Ordering Information'!H97","v":1},{"$f":"IF(Q_EVF=\"Yes\",1,0)","v":0},0,"USD"]
[null,"■ Do you want to have print form only with maintenance items ?","No",null,null,null,null,{"$f":"'Ordering Information'!C98","v":"CX-Q-SN"},{"$f":"'Ordering Information'!H98","v":1},{"$f":"IF(Q_SN=\"Yes\",1,0)","v":0},0,"USD"]
[null,null,null,null,null,null,null,{"$f":"'Ordering Information'!C99","v":"CX-Q-MSN"},{"$f":"'Ordering Information'!H99","v":1},0,0,"USD"]
[null,null,null,null,null,null,"CCX CHAT",{"$f":"'Ordering Information'!C100","v":"CX-CHAT-5"},{"$f":"'Ordering Information'!H100","v":1},{"$f":"IF(WebChat>3,ROUNDUP((WebChat-3)/5,0),0)","v":0},0,"USD"]
[null,null,null,null,null,null,"CCX Call",{"$f":"'Ordering Information'!C101","v":"CX-CALL"},{"$f":"'Ordering Information'!H101","v":1},{"$f":"IF(OutCall=Progressive,1,0)","v":0},0,"USD","No"]
[null,null,null,null,null,null,null,{"$f":"'Ordering Information'!C102","v":"CX-CALL-U"},{"$f":"'Ordering Information'!H102","v":1},{"$f":"IF(OutCall=Predictive,1,0)","v":0},0,"USD","Preview & Progressive Mode"]
[null,null,null,null,null,null,"CCX SMS",{"$f":"'Ordering Information'!C103","v":"CX-SMS"},{"$f":"'Ordering Information'!H103","v":1},{"$f":"IF(SMS=\"Yes\",1,0)","v":0},0,"USD","Pre-emptive & Predictive Mode"]
[null,null,null,null,null,null,"CCX IVR",{"$f":"'Ordering Information'!C104","v":"CX-IVR"},{"$f":"'Ordering Information'!H104","v":1},{"$f":"IF(IVR=\"Yes\",1,0)","v":0},0,"USD"]
[null,null,null,null,null,null,"CCX Survey",{"$f":"'Ordering Information'!C105","v":"CX-SURVEY"},{"$f":"'Ordering Information'!H105","v":1},{"$f":"IF(Survey=\"Yes\",1,0)","v":0},0,"USD"]
[null,null,null,null,null,null,"CCX Coach",{"$f":"'Ordering Information'!C106","v":"CX-COACH"},{"$f":"'Ordering Information'!H106","v":1},{"$f":"IF(Coach=\"Yes\",1,0)","v":0},0,"USD"]
[null,null,null,null,null,null,null,{"$f":"'Ordering Information'!C107","v":"CX-ASSESSOR"},{"$f":"'Ordering Information'!H107","v":1},{"$f":"IF(AND(Coach=\"Yes\",Assessor>0),Assessor-1,0)","v":0},0,"USD"]
[null,null,null,null,null,null,null,{"$f":"'Ordering Information'!C108","v":"CX-SCRIPT"},{"$f":"'Ordering Information'!H108","v":1},{"$f":"IF(AND(Coach=\"Yes\",Script>19),Script-20,0)","v":0},0,"USD"]
[null,null,null,null,null,null,"CCX CC Options",{"$f":"'Ordering Information'!C109","v":"CX-PIDC-MGR"},{"$f":"'Ordering Information'!H109","v":1},{"$f":"IF(PIDC=\"Yes\",1,0)","v":0},{"$f":"I91*J91","v":0},"USD"]
[null,null,null,null,null,null,"Billing & Traffic",{"$f":"'Ordering Information'!C110","v":"CX-A-REP-D"},{"$f":"'Ordering Information'!H110","v":1},{"$f":"IF(ReportAdmin>2,IF(ReportAdmin-2>DB, ReportAdmin-2-DB,0),0)","v":0},{"$f":"I92*J92","v":0},"USD"]
[null,null,null,null,null,null,null,{"$f":"'Ordering Information'!C111","v":"CX-A-REP-EH"},{"$f":"'Ordering Information'!H111","v":1},{"$f":"IF(Monitor>100,IF(OR(ROUNDUP(MOD(Monitor-100,1000)/100,0)=0,ROUNDUP(MOD(Monitor-100,1000)/100,0)=10),0,ROUNDUP(MOD(Monitor-100,1000)/100,0)),0)","v":0},{"$f":"I93*J93","v":0},"USD"]
[null,null,null,null,null,null,null,{"$f":"'Ordering Information'!C112","v":"CX-A-REP-ES"},{"$f":"'Ordering Information'!H112","v":1},{"$f":"IF(Monitor>1099,ROUNDDOWN((Monitor-99)/1000,0),0)","v":0},0,"USD"]
[null,null,null,null,null,null,null,{"$f":"'Ordering Information'!C113","v":"CX-A-REP-SL"},{"$f":"'Ordering Information'!H113","v":1},{"$f":"IF(Site>1,Site-1,0)","v":0},0,{"$f":"Currency","v":"USD"}]
[null,null,null,null,null,null,"CCX Record\nIPCR Integration",{"$f":"'Ordering Information'!C114","v":"CX-IPCR-INT4"},{"$f":"'Ordering Information'!H114","v":1},{"$f":"IF(AND(IPCRC>0,IPCRC<M97),1,0)","v":0},0,"USD",4,{"$f":"J96*M96","v":0}]
[null,null,null,null,null,null,null,{"$f":"'Ordering Information'!C115","v":"CX-IPCR-INT8"},{"$f":"'Ordering Information'!H115","v":1},{"$f":"IF(AND(IPCRC>=M97,IPCRC<M98),1,0)","v":0},0,"USD",8,{"$f":"J97*M97","v":0}]
[null,null,null,null,null,null,null,{"$f":"'Ordering Information'!C116","v":"CX-IPCR-INT12"},{"$f":"'Ordering Information'!H116","v":1},0,0,"USD",12,0]
[null,null,null,null,null,null,null,{"$f":"'Ordering Information'!C117","v":"CX-IPCR-INT16"},{"$f":"'Ordering Information'!H117","v":1},0,0,"USD",16,0]
[null,null,null,null,null,null,null,{"$f":"'Ordering Information'!C118","v":"CX-IPCR-INT24"},{"$f":"'Ordering Information'!H118","v":1},0,0,"USD",24,0]
[null,null,null,null,null,null,null,{"$f":"'Ordering Information'!C119","v":"CX-IPCR-INT30"},{"$f":"'Ordering Information'!H119","v":1},0,0,"USD",30,0]
[null,null,null,null,null,null,null,{"$f":"'Ordering Information'!C120","v":"CX-IPCR-INT40"},{"$f":"'Ordering Information'!H120","v":1},0,0,"USD",40,0]
[null,null,null,null,null,null,null,{"$f":"'Ordering Information'!C121","v":"CX-IPCR-INT50"},{"$f":"'Ordering Information'!H121","v":1},0,0,"USD",50,0]
[null,null,null,null,null,null,null,{"$f":"'Ordering Information'!C122","v":"CX-IPCR-INT60"},{"$f":"'Ordering Information'!H122","v":1},0,0,"USD",60,0]
[null,null,null,null,null,null,null,{"$f":"'Ordering Information'!C123","v":"CX-IPCR-INT90"},{"$f":"'Ordering Information'!H123","v":1},0,0,"USD",90,0]
[null,null,null,null,null,null,null,{"$f":"'Ordering Information'!C124","v":"CX-IPCR-INT120"},{"$f":"'Ordering Information'!H124","v":1},0,0,"USD",120,0]
[null,null,null,null,null,null,null,{"$f":"'Ordering Information'!C125","v":"CX-IPCR-INT150"},{"$f":"'Ordering Information'!H125","v":1},0,0,"USD",150,0]
[null,null,null,null,null,null,null,{"$f":"'Ordering Information'!C126","v":"CX-IPCR-INT180"},{"$f":"'Ordering Information'!H126","v":1},0,0,"USD",180,0]
[null,null,null,null,null,null,null,{"$f":"'Ordering Information'!C127","v":"CX-IPCR-INT-ADD"},{"$f":"'Ordering Information'!H127","v":1},{"$f":"IF(IPCRC>IPCRC_STEP,IPCRC-IPCRC_STEP,0)","v":0},0,"USD",null,{"$f":"SUM(N96:N108)","v":0}]
[null,null,null,null,null,{"$f":"CONCATENATE(\"   \",Renewal,\" (\",RenewalPerc,\"%)\")","v":"   Renewal discounted (7%)"},"CCX Package",{"$f":"IF(MaintOnly=\"Yes - Expired\",'Ordering Information'!C288,IF(MaintOnly=\"Yes\",'Ordering Information'!C128,'Ordering Information'!C208))","v":"MCX-PAC-5-E"},{"$f":"IF(MaintOnly=\"Yes - Expired\",'Ordering Information'!H288,IF(MaintOnly=\"Yes\",'Ordering Information'!H128,'Ordering Information'!H208))","v":7.0000000000000007E-2},{"$f":"J39*(Maint-1)","v":0},{"$f":"I110*J110","v":0},"USD",{"$f":"IF(MaintOnlyPrint=2,\"Renewal after expiry\",IF(MaintOnlyPrint=1,\"Renewal\",\"Renewal discounted\"))","v":"Renewal discounted"}]
[null,null,null,null,null,null,null,{"$f":"IF(MaintOnly=\"Yes - Expired\",'Ordering Information'!C289,IF(MaintOnly=\"Yes\",'Ordering Information'!C129,'Ordering Information'!C209))","v":"MCX-PAC-10-E"},{"$f":"IF(MaintOnly=\"Yes - Expired\",'Ordering Information'!H289,IF(MaintOnly=\"Yes\",'Ordering Information'!H129,'Ordering Information'!H209))","v":7.0000000000000007E-2},0,{"$f":"I111*J111","v":0},"USD",{"$f":"IF(MaintOnly=\"Yes - Expired\",2,IF(MaintOnly=\"Yes\",1,0))","v":0},"No"]
[null,null,null,null,null,null,null,{"$f":"IF(MaintOnly=\"Yes - Expired\",'Ordering Information'!C290,IF(MaintOnly=\"Yes\",'Ordering Information'!C130,'Ordering Information'!C210))","v":"MCX-PAC-20-E"},{"$f":"IF(MaintOnly=\"Yes - Expired\",'Ordering Information'!H290,IF(MaintOnly=\"Yes\",'Ordering Information'!H130,'Ordering Information'!H210))","v":7.0000000000000007E-2},0,0,"USD",{"$f":"IF(MaintOnly=\"Yes - Expired\",REN_E*100,IF(MaintOnly=\"Yes\",REN_R*100,REN_D*100))","v":7.0000000000000009},"Yes"]
[null,null,null,null,null,null,null,{"$f":"IF(MaintOnly=\"Yes - Expired\",'Ordering Information'!C291,IF(MaintOnly=\"Yes\",'Ordering Information'!C131,'Ordering Information'!C211))","v":"MCX-PAC-30-E"},{"$f":"IF(MaintOnly=\"Yes - Expired\",'Ordering Information'!H291,IF(MaintOnly=\"Yes\",'Ordering Information'!H131,'Ordering Information'!H211))","v":7.0000000000000007E-2},0,0,"USD",null,"Yes - Expired"]
[null,null,null,null,null,null,null,{"$f":"IF(MaintOnly=\"Yes - Expired\",'Ordering Information'!C292,IF(MaintOnly=\"Yes\",'Ordering Information'!C132,'Ordering Information'!C212))","v":"MCX-PAC-50-E"},{"$f":"IF(MaintOnly=\"Yes - Expired\",'Ordering Information'!H292,IF(MaintOnly=\"Yes\",'Ordering Information'!H132,'Ordering Information'!H212))","v":7.0000000000000007E-2},0,0,"USD"]
[null,null,null,null,null,null,null,{"$f":"IF(MaintOnly=\"Yes - Expired\",'Ordering Information'!C293,IF(MaintOnly=\"Yes\",'Ordering Information'!C133,'Ordering Information'!C213))","v":"MCX-PAC-75-E"},{"$f":"IF(MaintOnly=\"Yes - Expired\",'Ordering Information'!H293,IF(MaintOnly=\"Yes\",'Ordering Information'!H133,'Ordering Information'!H213))","v":7.0000000000000007E-2},0,0,"USD","Comment which you want to be displayed in print from"]
[null,null,null,null,null,null,null,{"$f":"IF(MaintOnly=\"Yes - Expired\",'Ordering Information'!C294,IF(MaintOnly=\"Yes\",'Ordering Information'!C134,'Ordering Information'!C214))","v":"MCX-PAC-100-E"},{"$f":"IF(MaintOnly=\"Yes - Expired\",'Ordering Information'!H294,IF(MaintOnly=\"Yes\",'Ordering Information'!H134,'Ordering Information'!H214))","v":7.0000000000000007E-2},0,0,"USD","Comment2"]
[null,null,null,null,null,null,null,{"$f":"IF(MaintOnly=\"Yes - Expired\",'Ordering Information'!C295,IF(MaintOnly=\"Yes\",'Ordering Information'!C135,'Ordering Information'!C215))","v":"MCX-PAC-150-E"},{"$f":"IF(MaintOnly=\"Yes - Expired\",'Ordering Information'!H295,IF(MaintOnly=\"Yes\",'Ordering Information'!H135,'Ordering Information'!H215))","v":7.0000000000000007E-2},0,0,"USD","Comment3"]
[null,null,null,null,null,null,null,{"$f":"IF(MaintOnly=\"Yes - Expired\",'Ordering Information'!C296,IF(MaintOnly=\"Yes\",'Ordering Information'!C136,'Ordering Information'!C216))","v":"MCX-PAC-200-E"},{"$f":"IF(MaintOnly=\"Yes - Expired\",'Ordering Information'!H296,IF(MaintOnly=\"Yes\",'Ordering Information'!H136,'Ordering Information'!H216))","v":7.0000000000000007E-2},0,0,"USD","Comment4"]
[null,null,null,null,null,null,null,{"$f":"IF(MaintOnly=\"Yes - Expired\",'Ordering Information'!C297,IF(MaintOnly=\"Yes\",'Ordering Information'!C137,'Ordering Information'!C217))","v":"MCX-PAC-250-E"},{"$f":"IF(MaintOnly=\"Yes - Expired\",'Ordering Information'!H297,IF(MaintOnly=\"Yes\",'Ordering Information'!H137,'Ordering Information'!H217))","v":7.0000000000000007E-2},0,0,"USD"]
[null,null,null,null,null,null,"CCX Pac Add-on",{"$f":"IF(MaintOnly=\"Yes - Expired\",'Ordering Information'!C298,IF(MaintOnly=\"Yes\",'Ordering Information'!C138,'Ordering Information'!C218))","v":"MX-DSK-ADD-E"},{"$f":"IF(MaintOnly=\"Yes - Expired\",'Ordering Information'!H298,IF(MaintOnly=\"Yes\",'Ordering Information'!H138,'Ordering Information'!H218))","v":7.0000000000000007E-2},0,0,"USD"]
[null,null,null,null,null,null,null,{"$f":"IF(MaintOnly=\"Yes - Expired\",'Ordering Information'!C299,IF(MaintOnly=\"Yes\",'Ordering Information'!C139,'Ordering Information'!C219))","v":"MX-HMP-E"},{"$f":"IF(MaintOnly=\"Yes - Expired\",'Ordering Information'!H299,IF(MaintOnly=\"Yes\",'Ordering Information'!H139,'Ordering Information'!H219))","v":7.0000000000000007E-2},{"$f":"(J50+4*PAC_ANY)*(Maint-1)","v":0},0,"USD"]
[null,null,null,null,null,null,null,{"$f":"IF(MaintOnly=\"Yes - Expired\",'Ordering Information'!C300,IF(MaintOnly=\"Yes\",'Ordering Information'!C140,'Ordering Information'!C220))","v":"MX-HMP-G729-E"},{"$f":"IF(MaintOnly=\"Yes - Expired\",'Ordering Information'!H300,IF(MaintOnly=\"Yes\",'Ordering Information'!H140,'Ordering Information'!H220))","v":7.0000000000000007E-2},0,0,"USD"]
[null,null,null,null,null,null,null,{"$f":"IF(MaintOnly=\"Yes - Expired\",'Ordering Information'!C301,IF(MaintOnly=\"Yes\",'Ordering Information'!C141,'Ordering Information'!C221))","v":"MX-DB-E"},{"$f":"IF(MaintOnly=\"Yes - Expired\",'Ordering Information'!H301,IF(MaintOnly=\"Yes\",'Ordering Information'!H141,'Ordering Information'!H221))","v":7.0000000000000007E-2},0,{"$f":"I123*J123","v":0},"USD"]
[null,null,null,null,null,null,null,{"$f":"IF(MaintOnly=\"Yes - Expired\",'Ordering Information'!C302,IF(MaintOnly=\"Yes\",'Ordering Information'!C142,'Ordering Information'!C222))","v":"MX-CC-LICENSE-E"},{"$f":"IF(MaintOnly=\"Yes - Expired\",'Ordering Information'!H302,IF(MaintOnly=\"Yes\",'Ordering Information'!H142,'Ordering Information'!H222))","v":7.0000000000000007E-2},0,0,"USD"]
[null,null,null,null,null,{"$f":"CONCATENATE(\"   \",Renewal,\" (\",RenewalPerc,\"%)\")","v":"   Renewal discounted (7%)"},"CCX Record BRI Trunk",{"$f":"IF(MaintOnly=\"Yes - Expired\",'Ordering Information'!C303,IF(MaintOnly=\"Yes\",'Ordering Information'!C143,'Ordering Information'!C223))","v":"MX-REC-B4-E"},{"$f":"IF(MaintOnly=\"Yes - Expired\",'Ordering Information'!H303,IF(MaintOnly=\"Yes\",'Ordering Information'!H143,'Ordering Information'!H223))","v":7.0000000000000007E-2},0,0,"USD"]
[null,null,null,null,null,null,null,{"$f":"IF(MaintOnly=\"Yes - Expired\",'Ordering Information'!C304,IF(MaintOnly=\"Yes\",'Ordering Information'!C144,'Ordering Information'!C224))","v":"MX-REC-B8-E"},{"$f":"IF(MaintOnly=\"Yes - Expired\",'Ordering Information'!H304,IF(MaintOnly=\"Yes\",'Ordering Information'!H144,'Ordering Information'!H224))","v":7.0000000000000007E-2},0,0,"USD"]
[null,null,null,null,null,null,null,{"$f":"IF(MaintOnly=\"Yes - Expired\",'Ordering Information'!C305,IF(MaintOnly=\"Yes\",'Ordering Information'!C145,'Ordering Information'!C225))","v":"MX-REC-B12-E"},{"$f":"IF(MaintOnly=\"Yes - Expired\",'Ordering Information'!H305,IF(MaintOnly=\"Yes\",'Ordering Information'!H145,'Ordering Information'!H225))","v":7.0000000000000007E-2},0,0,"USD"]
[null,null,null,null,null,null,"CCX Record PRI Trunk",{"$f":"IF(MaintOnly=\"Yes - Expired\",'Ordering Information'!C306,IF(MaintOnly=\"Yes\",'Ordering Information'!C146,'Ordering Information'!C226))","v":"MX-REC-P8-E"},{"$f":"IF(MaintOnly=\"Yes - Expired\",'Ordering Information'!H306,IF(MaintOnly=\"Yes\",'Ordering Information'!H146,'Ordering Information'!H226))","v":7.0000000000000007E-2},0,0,"USD"]
[null,null,null,null,null,null,null,{"$f":"IF(MaintOnly=\"Yes - Expired\",'Ordering Information'!C307,IF(MaintOnly=\"Yes\",'Ordering Information'!C147,'Ordering Information'!C227))","v":"MX-REC-P12-E"},{"$f":"IF(MaintOnly=\"Yes - Expired\",'Ordering Information'!H307,IF(MaintOnly=\"Yes\",'Ordering Information'!H147,'Ordering Information'!H227))","v":7.0000000000000007E-2},0,0,"USD"]
[null,null,null,null,null,null,null,{"$f":"IF(MaintOnly=\"Yes - Expired\",'Ordering Information'!C308,IF(MaintOnly=\"Yes\",'Ordering Information'!C148,'Ordering Information'!C228))","v":"MX-REC-P16-E"},{"$f":"IF(MaintOnly=\"Yes - Expired\",'Ordering Information'!H308,IF(MaintOnly=\"Yes\",'Ordering Information'!H148,'Ordering Information'!H228))","v":7.0000000000000007E-2},0,0,"USD"]
[null,null,null,null,null,null,null,{"$f":"IF(MaintOnly=\"Yes - Expired\",'Ordering Information'!C309,IF(MaintOnly=\"Yes\",'Ordering Information'!C149,'Ordering Information'!C229))","v":"MX-REC-P24-E"},{"$f":"IF(MaintOnly=\"Yes - Expired\",'Ordering Information'!H309,IF(MaintOnly=\"Yes\",'Ordering Information'!H149,'Ordering Information'!H229))","v":7.0000000000000007E-2},0,0,"USD"]
[null,null,null,null,null,null,null,{"$f":"IF(MaintOnly=\"Yes - Expired\",'Ordering Information'!C310,IF(MaintOnly=\"Yes\",'Ordering Information'!C150,'Ordering Information'!C230))","v":"MX-REC-P30-E"},{"$f":"IF(MaintOnly=\"Yes - Expired\",'Ordering Information'!H310,IF(MaintOnly=\"Yes\",'Ordering Information'!H150,'Ordering Information'!H230))","v":7.0000000000000007E-2},0,0,"USD"]
[null,null,null,null,null,null,"CCX Record VoIP Trunk",{"$f":"IF(MaintOnly=\"Yes - Expired\",'Ordering Information'!C320,IF(MaintOnly=\"Yes\",'Ordering Information'!C160,'Ordering Information'!C240))","v":"MX-REC-V4-E"},{"$f":"IF(MaintOnly=\"Yes - Expired\",'Ordering Information'!H320,IF(MaintOnly=\"Yes\",'Ordering Information'!H160,'Ordering Information'!H240))","v":7.0000000000000007E-2},0,0,"USD"]
[null,null,null,null,null,null,null,{"$f":"IF(MaintOnly=\"Yes - Expired\",'Ordering Information'!C321,IF(MaintOnly=\"Yes\",'Ordering Information'!C161,'Ordering Information'!C241))","v":"MX-REC-V6-E"},{"$f":"IF(MaintOnly=\"Yes - Expired\",'Ordering Information'!H321,IF(MaintOnly=\"Yes\",'Ordering Information'!H161,'Ordering Information'!H241))","v":7.0000000000000007E-2},0,0,"USD"]
[null,null,null,null,null,null,null,{"$f":"IF(MaintOnly=\"Yes - Expired\",'Ordering Information'!C322,IF(MaintOnly=\"Yes\",'Ordering Information'!C162,'Ordering Information'!C242))","v":"MX-REC-V8-E"},{"$f":"IF(MaintOnly=\"Yes - Expired\",'Ordering Information'!H322,IF(MaintOnly=\"Yes\",'Ordering Information'!H162,'Ordering Information'!H242))","v":7.0000000000000007E-2},0,0,{"$f":"Currency","v":"USD"}]
[null,null,null,null,null,null,null,{"$f":"IF(MaintOnly=\"Yes - Expired\",'Ordering Information'!C323,IF(MaintOnly=\"Yes\",'Ordering Information'!C163,'Ordering Information'!C243))","v":"MX-REC-V12-E"},{"$f":"IF(MaintOnly=\"Yes - Expired\",'Ordering Information'!H323,IF(MaintOnly=\"Yes\",'Ordering Information'!H163,'Ordering Information'!H243))","v":7.0000000000000007E-2},0,0,"USD"]
[null,null,null,null,null,null,null,{"$f":"IF(MaintOnly=\"Yes - Expired\",'Ordering Information'!C324,IF(MaintOnly=\"Yes\",'Ordering Information'!C164,'Ordering Information'!C244))","v":"MX-REC-V16-E"},{"$f":"IF(MaintOnly=\"Yes - Expired\",'Ordering Information'!H324,IF(MaintOnly=\"Yes\",'Ordering Information'!H164,'Ordering Information'!H244))","v":7.0000000000000007E-2},0,0,"USD"]
[null,null,null,null,null,null,null,{"$f":"IF(MaintOnly=\"Yes - Expired\",'Ordering Information'!C325,IF(MaintOnly=\"Yes\",'Ordering Information'!C165,'Ordering Information'!C245))","v":"MX-REC-V24-E"},{"$f":"IF(MaintOnly=\"Yes - Expired\",'Ordering Information'!H325,IF(MaintOnly=\"Yes\",'Ordering Information'!H165,'Ordering Information'!H245))","v":7.0000000000000007E-2},0,0,"USD"]
[null,null,null,null,null,null,null,{"$f":"IF(MaintOnly=\"Yes - Expired\",'Ordering Information'!C326,IF(MaintOnly=\"Yes\",'Ordering Information'!C166,'Ordering Information'!C246))","v":"MX-REC-V30-E"},{"$f":"IF(MaintOnly=\"Yes - Expired\",'Ordering Information'!H326,IF(MaintOnly=\"Yes\",'Ordering Information'!H166,'Ordering Information'!H246))","v":7.0000000000000007E-2},0,0,"USD"]
[null,null,null,null,null,null,null,{"$f":"IF(MaintOnly=\"Yes - Expired\",'Ordering Information'!C327,IF(MaintOnly=\"Yes\",'Ordering Information'!C167,'Ordering Information'!C247))","v":"MX-REC-V40-E"},{"$f":"IF(MaintOnly=\"Yes - Expired\",'Ordering Information'!H327,IF(MaintOnly=\"Yes\",'Ordering Information'!H167,'Ordering Information'!H247))","v":7.0000000000000007E-2},0,0,"USD"]
[null,null,null,null,null,null,null,{"$f":"IF(MaintOnly=\"Yes - Expired\",'Ordering Information'!C328,IF(MaintOnly=\"Yes\",'Ordering Information'!C168,'Ordering Information'!C248))","v":"MX-REC-V50-E"},{"$f":"IF(MaintOnly=\"Yes - Expired\",'Ordering Information'!H328,IF(MaintOnly=\"Yes\",'Ordering Information'!H168,'Ordering Information'!H248))","v":7.0000000000000007E-2},0,0,"USD"]
[null,null,null,null,null,null,null,{"$f":"IF(MaintOnly=\"Yes - Expired\",'Ordering Information'!C329,IF(MaintOnly=\"Yes\",'Ordering Information'!C169,'Ordering Information'!C249))","v":"MX-REC-V60-E"},{"$f":"IF(MaintOnly=\"Yes - Expired\",'Ordering Information'!H329,IF(MaintOnly=\"Yes\",'Ordering Information'!H169,'Ordering Information'!H249))","v":7.0000000000000007E-2},{"$f":"J71*(Maint-1)","v":0},0,"USD"]
[null,null,null,null,null,null,null,{"$f":"IF(MaintOnly=\"Yes - Expired\",'Ordering Information'!C330,IF(MaintOnly=\"Yes\",'Ordering Information'!C170,'Ordering Information'!C250))","v":"MX-REC-V90-E"},{"$f":"IF(MaintOnly=\"Yes - Expired\",'Ordering Information'!H330,IF(MaintOnly=\"Yes\",'Ordering Information'!H170,'Ordering Information'!H250))","v":7.0000000000000007E-2},0,0,"USD"]
[null,null,null,null,null,null,null,{"$f":"IF(MaintOnly=\"Yes - Expired\",'Ordering Information'!C331,IF(MaintOnly=\"Yes\",'Ordering Information'!C171,'Ordering Information'!C251))","v":"MX-REC-V120-E"},{"$f":"IF(MaintOnly=\"Yes - Expired\",'Ordering Information'!H331,IF(MaintOnly=\"Yes\",'Ordering Information'!H171,'Ordering Information'!H251))","v":7.0000000000000007E-2},0,0,"USD"]
[null,null,null,null,null,null,null,{"$f":"IF(MaintOnly=\"Yes - Expired\",'Ordering Information'!C332,IF(MaintOnly=\"Yes\",'Ordering Information'!C172,'Ordering Information'!C252))","v":"MX-REC-V150-E"},{"$f":"IF(MaintOnly=\"Yes - Expired\",'Ordering Information'!H332,IF(MaintOnly=\"Yes\",'Ordering Information'!H172,'Ordering Information'!H252))","v":7.0000000000000007E-2},0,0,"USD"]
[null,null,null,null,null,null,null,{"$f":"IF(MaintOnly=\"Yes - Expired\",'Ordering Information'!C333,IF(MaintOnly=\"Yes\",'Ordering Information'!C173,'Ordering Information'!C253))","v":"MX-REC-V180-E"},{"$f":"IF(MaintOnly=\"Yes - Expired\",'Ordering Information'!H333,IF(MaintOnly=\"Yes\",'Ordering Information'!H173,'Ordering Information'!H253))","v":7.0000000000000007E-2},0,0,"USD"]
[null,null,null,null,null,null,null,{"$f":"IF(MaintOnly=\"Yes - Expired\",'Ordering Information'!C334,IF(MaintOnly=\"Yes\",'Ordering Information'!C174,'Ordering Information'!C254))","v":"MX-REC-V200-E"},{"$f":"IF(MaintOnly=\"Yes - Expired\",'Ordering Information'!H334,IF(MaintOnly=\"Yes\",'Ordering Information'!H174,'Ordering Information'!H254))","v":7.0000000000000007E-2},0,0,"USD"]
[null,null,null,null,null,null,null,{"$f":"IF(MaintOnly=\"Yes - Expired\",'Ordering Information'!C335,IF(MaintOnly=\"Yes\",'Ordering Information'!C175,'Ordering Information'!C255))","v":"MX-REC-V240-E"},{"$f":"IF(MaintOnly=\"Yes - Expired\",'Ordering Information'!H335,IF(MaintOnly=\"Yes\",'Ordering Information'!H175,'Ordering Information'!H255))","v":7.0000000000000007E-2},0,0,"USD"]
[null,null,null,null,null,null,"CCX Record Options",{"$f":"IF(MaintOnly=\"Yes - Expired\",'Ordering Information'!C336,IF(MaintOnly=\"Yes\",'Ordering Information'!C176,'Ordering Information'!C256))","v":"MX-CODEC-G729-E"},{"$f":"IF(MaintOnly=\"Yes - Expired\",'Ordering Information'!H336,IF(MaintOnly=\"Yes\",'Ordering Information'!H176,'Ordering Information'!H256))","v":7.0000000000000007E-2},0,0,"USD"]
[null,null,null,null,null,{"$f":"CONCATENATE(\"   \",Renewal,\" (\",RenewalPerc,\"%)\")","v":"   Renewal discounted (7%)"},"CCX Q Add on",{"$f":"IF(MaintOnly=\"Yes - Expired\",'Ordering Information'!C337,IF(MaintOnly=\"Yes\",'Ordering Information'!C177,'Ordering Information'!C257))","v":"MX-Q-EVF-E"},{"$f":"IF(MaintOnly=\"Yes - Expired\",'Ordering Information'!H337,IF(MaintOnly=\"Yes\",'Ordering Information'!H177,'Ordering Information'!H257))","v":7.0000000000000007E-2},0,0,"USD"]
[null,null,null,null,null,null,null,{"$f":"IF(MaintOnly=\"Yes - Expired\",'Ordering Information'!C338,IF(MaintOnly=\"Yes\",'Ordering Information'!C178,'Ordering Information'!C258))","v":"MX-Q-SN-E"},{"$f":"IF(MaintOnly=\"Yes - Expired\",'Ordering Information'!H338,IF(MaintOnly=\"Yes\",'Ordering Information'!H178,'Ordering Information'!H258))","v":7.0000000000000007E-2},0,0,"USD"]
[null,null,null,null,null,null,null,{"$f":"IF(MaintOnly=\"Yes - Expired\",'Ordering Information'!C339,IF(MaintOnly=\"Yes\",'Ordering Information'!C179,'Ordering Information'!C259))","v":"MX-Q-MSN-E"},{"$f":"IF(MaintOnly=\"Yes - Expired\",'Ordering Information'!H339,IF(MaintOnly=\"Yes\",'Ordering Information'!H179,'Ordering Information'!H259))","v":7.0000000000000007E-2},0,0,"USD"]
[null,null,null,null,null,null,"CCX CHAT",{"$f":"IF(MaintOnly=\"Yes - Expired\",'Ordering Information'!C340,IF(MaintOnly=\"Yes\",'Ordering Information'!C180,'Ordering Information'!C260))","v":"MX-CHAT-5-E"},{"$f":"IF(MaintOnly=\"Yes - Expired\",'Ordering Information'!H340,IF(MaintOnly=\"Yes\",'Ordering Information'!H180,'Ordering Information'!H260))","v":7.0000000000000007E-2},0,0,"USD"]
[null,null,null,null,null,null,"CCX Call",{"$f":"IF(MaintOnly=\"Yes - Expired\",'Ordering Information'!C341,IF(MaintOnly=\"Yes\",'Ordering Information'!C181,'Ordering Information'!C261))","v":"MX-CALL-E"},{"$f":"IF(MaintOnly=\"Yes - Expired\",'Ordering Information'!H341,IF(MaintOnly=\"Yes\",'Ordering Information'!H181,'Ordering Information'!H261))","v":7.0000000000000007E-2},0,0,"USD"]
[null,null,null,null,null,null,null,{"$f":"IF(MaintOnly=\"Yes - Expired\",'Ordering Information'!C342,IF(MaintOnly=\"Yes\",'Ordering Information'!C182,'Ordering Information'!C262))","v":"MX-CALL-U-E"},{"$f":"IF(MaintOnly=\"Yes - Expired\",'Ordering Information'!H342,IF(MaintOnly=\"Yes\",'Ordering Information'!H182,'Ordering Information'!H262))","v":7.0000000000000007E-2},0,0,"USD"]
[null,null,null,null,null,null,"CCX SMS",{"$f":"IF(MaintOnly=\"Yes - Expired\",'Ordering Information'!C343,IF(MaintOnly=\"Yes\",'Ordering Information'!C183,'Ordering Information'!C263))","v":"MX-SMS-E"},{"$f":"IF(MaintOnly=\"Yes - Expired\",'Ordering Information'!H343,IF(MaintOnly=\"Yes\",'Ordering Information'!H183,'Ordering Information'!H263))","v":7.0000000000000007E-2},0,0,"USD"]
[null,null,null,null,null,null,"CCX IVR",{"$f":"IF(MaintOnly=\"Yes - Expired\",'Ordering Information'!C344,IF(MaintOnly=\"Yes\",'Ordering Information'!C184,'Ordering Information'!C264))","v":"MX-IVR-E"},{"$f":"IF(MaintOnly=\"Yes - Expired\",'Ordering Information'!H344,IF(MaintOnly=\"Yes\",'Ordering Information'!H184,'Ordering Information'!H264))","v":7.0000000000000007E-2},0,0,"USD"]
[null,null,null,null,null,null,"CCX Survey",{"$f":"IF(MaintOnly=\"Yes - Expired\",'Ordering Information'!C345,IF(MaintOnly=\"Yes\",'Ordering Information'!C185,'Ordering Information'!C265))","v":"MX-SURVEY-E"},{"$f":"IF(MaintOnly=\"Yes - Expired\",'Ordering Information'!H345,IF(MaintOnly=\"Yes\",'Ordering Information'!H185,'Ordering Information'!H265))","v":7.0000000000000007E-2},0,0,"USD"]
[null,null,null,null,null,null,"CCX Coach",{"$f":"IF(MaintOnly=\"Yes - Expired\",'Ordering Information'!C346,IF(MaintOnly=\"Yes\",'Ordering Information'!C186,'Ordering Information'!C266))","v":"MX-COACH-E"},{"$f":"IF(MaintOnly=\"Yes - Expired\",'Ordering Information'!H346,IF(MaintOnly=\"Yes\",'Ordering Information'!H186,'Ordering Information'!H266))","v":7.0000000000000007E-2},0,0,"USD"]
[null,null,null,null,null,null,null,{"$f":"IF(MaintOnly=\"Yes - Expired\",'Ordering Information'!C347,IF(MaintOnly=\"Yes\",'Ordering Information'!C187,'Ordering Information'!C267))","v":"MX-ASSESSOR-E"},{"$f":"IF(MaintOnly=\"Yes - Expired\",'Ordering Information'!H347,IF(MaintOnly=\"Yes\",'Ordering Information'!H187,'Ordering Information'!H267))","v":7.0000000000000007E-2},0,0,"USD"]
[null,null,null,null,null,null,null,{"$f":"IF(MaintOnly=\"Yes - Expired\",'Ordering Information'!C348,IF(MaintOnly=\"Yes\",'Ordering Information'!C188,'Ordering Information'!C268))","v":"MX-SCRIPT-E"},{"$f":"IF(MaintOnly=\"Yes - Expired\",'Ordering Information'!H348,IF(MaintOnly=\"Yes\",'Ordering Information'!H188,'Ordering Information'!H268))","v":7.0000000000000007E-2},0,0,"USD"]
[null,null,null,null,null,null,"CCX CC Options",{"$f":"IF(MaintOnly=\"Yes - Expired\",'Ordering Information'!C349,IF(MaintOnly=\"Yes\",'Ordering Information'!C189,'Ordering Information'!C269))","v":"MX-PIDC-MGR-E"},{"$f":"IF(MaintOnly=\"Yes - Expired\",'Ordering Information'!H349,IF(MaintOnly=\"Yes\",'Ordering Information'!H189,'Ordering Information'!H269))","v":7.0000000000000007E-2},0,{"$f":"I162*J162","v":0},"USD"]
[null,null,null,null,null,{"$f":"CONCATENATE(\"   \",Renewal,\" (\",RenewalPerc,\"%)\")","v":"   Renewal discounted (7%)"},"Billing & Traffic",{"$f":"IF(MaintOnly=\"Yes - Expired\",'Ordering Information'!C350,IF(MaintOnly=\"Yes\",'Ordering Information'!C190,'Ordering Information'!C270))","v":"MX-A-REP-D-E"},{"$f":"IF(MaintOnly=\"Yes - Expired\",'Ordering Information'!H350,IF(MaintOnly=\"Yes\",'Ordering Information'!H190,'Ordering Information'!H270))","v":7.0000000000000007E-2},0,{"$f":"I163*J163","v":0},"USD"]
[null,null,null,null,null,null,null,{"$f":"IF(MaintOnly=\"Yes - Expired\",'Ordering Information'!C351,IF(MaintOnly=\"Yes\",'Ordering Information'!C191,'Ordering Information'!C271))","v":"MX-A-REP-EH-E"},{"$f":"IF(MaintOnly=\"Yes - Expired\",'Ordering Information'!H351,IF(MaintOnly=\"Yes\",'Ordering Information'!H191,'Ordering Information'!H271))","v":7.0000000000000007E-2},0,{"$f":"I164*J164","v":0},"USD"]
[null,null,null,null,null,null,null,{"$f":"IF(MaintOnly=\"Yes - Expired\",'Ordering Information'!C352,IF(MaintOnly=\"Yes\",'Ordering Information'!C192,'Ordering Information'!C272))","v":"MX-A-REP-ES-E"},{"$f":"IF(MaintOnly=\"Yes - Expired\",'Ordering Information'!H352,IF(MaintOnly=\"Yes\",'Ordering Information'!H192,'Ordering Information'!H272))","v":7.0000000000000007E-2},{"$f":"J94*(Maint-1)","v":0},0,"USD"]
[null,null,null,null,null,null,null,{"$f":"IF(MaintOnly=\"Yes - Expired\",'Ordering Information'!C353,IF(MaintOnly=\"Yes\",'Ordering Information'!C193,'Ordering Information'!C273))","v":"MX-A-REP-SL-E"},{"$f":"IF(MaintOnly=\"Yes - Expired\",'Ordering Information'!H353,IF(MaintOnly=\"Yes\",'Ordering Information'!H193,'Ordering Information'!H273))","v":7.0000000000000007E-2},0,0,"USD"]
[null,null,null,null,null,null,"CCX Record IPCR Integration",{"$f":"IF(MaintOnly=\"Yes - Expired\",'Ordering Information'!C354,IF(MaintOnly=\"Yes\",'Ordering Information'!C194,'Ordering Information'!C274))","v":"MX-IPCR-INT4-E"},{"$f":"IF(MaintOnly=\"Yes - Expired\",'Ordering Information'!H354,IF(MaintOnly=\"Yes\",'Ordering Information'!H194,'Ordering Information'!H274))","v":7.0000000000000007E-2},0,0,"USD"]
[null,null,null,null,null,null,null,{"$f":"IF(MaintOnly=\"Yes - Expired\",'Ordering Information'!C355,IF(MaintOnly=\"Yes\",'Ordering Information'!C195,'Ordering Information'!C275))","v":"MX-IPCR-INT8-E"},{"$f":"IF(MaintOnly=\"Yes - Expired\",'Ordering Information'!H355,IF(MaintOnly=\"Yes\",'Ordering Information'!H195,'Ordering Information'!H275))","v":7.0000000000000007E-2},{"$f":"J97*(Maint-1)","v":0},0,"USD"]
[null,null,null,null,null,null,null,{"$f":"IF(MaintOnly=\"Yes - Expired\",'Ordering Information'!C356,IF(MaintOnly=\"Yes\",'Ordering Information'!C196,'Ordering Information'!C276))","v":"MX-IPCR-INT12-E"},{"$f":"IF(MaintOnly=\"Yes - Expired\",'Ordering Information'!H356,IF(MaintOnly=\"Yes\",'Ordering Information'!H196,'Ordering Information'!H276))","v":7.0000000000000007E-2},0,0,"USD"]
[null,null,null,null,null,null,null,{"$f":"IF(MaintOnly=\"Yes - Expired\",'Ordering Information'!C357,IF(MaintOnly=\"Yes\",'Ordering Information'!C197,'Ordering Information'!C277))","v":"MX-IPCR-INT16-E"},{"$f":"IF(MaintOnly=\"Yes - Expired\",'Ordering Information'!H357,IF(MaintOnly=\"Yes\",'Ordering Information'!H197,'Ordering Information'!H277))","v":7.0000000000000007E-2},0,0,"USD"]
[null,null,null,null,null,null,null,{"$f":"IF(MaintOnly=\"Yes - Expired\",'Ordering Information'!C358,IF(MaintOnly=\"Yes\",'Ordering Information'!C198,'Ordering Information'!C278))","v":"MX-IPCR-INT24-E"},{"$f":"IF(MaintOnly=\"Yes - Expired\",'Ordering Information'!H358,IF(MaintOnly=\"Yes\",'Ordering Information'!H198,'Ordering Information'!H278))","v":7.0000000000000007E-2},0,0,"USD"]
[null,null,null,null,null,null,null,{"$f":"IF(MaintOnly=\"Yes - Expired\",'Ordering Information'!C359,IF(MaintOnly=\"Yes\",'Ordering Information'!C199,'Ordering Information'!C279))","v":"MX-IPCR-INT30-E"},{"$f":"IF(MaintOnly=\"Yes - Expired\",'Ordering Information'!H359,IF(MaintOnly=\"Yes\",'Ordering Information'!H199,'Ordering Information'!H279))","v":7.0000000000000007E-2},0,0,"USD"]
[null,null,null,null,null,null,null,{"$f":"IF(MaintOnly=\"Yes - Expired\",'Ordering Information'!C360,IF(MaintOnly=\"Yes\",'Ordering Information'!C200,'Ordering Information'!C280))","v":"MX-IPCR-INT40-E"},{"$f":"IF(MaintOnly=\"Yes - Expired\",'Ordering Information'!H360,IF(MaintOnly=\"Yes\",'Ordering Information'!H200,'Ordering Information'!H280))","v":7.0000000000000007E-2},0,0,"USD"]
[null,null,null,null,null,null,null,{"$f":"IF(MaintOnly=\"Yes - Expired\",'Ordering Information'!C361,IF(MaintOnly=\"Yes\",'Ordering Information'!C201,'Ordering Information'!C281))","v":"MX-IPCR-INT50-E"},{"$f":"IF(MaintOnly=\"Yes - Expired\",'Ordering Information'!H361,IF(MaintOnly=\"Yes\",'Ordering Information'!H201,'Ordering Information'!H281))","v":7.0000000000000007E-2},0,0,"USD"]
[null,null,null,null,null,null,null,{"$f":"IF(MaintOnly=\"Yes - Expired\",'Ordering Information'!C362,IF(MaintOnly=\"Yes\",'Ordering Information'!C202,'Ordering Information'!C282))","v":"MX-IPCR-INT60-E"},{"$f":"IF(MaintOnly=\"Yes - Expired\",'Ordering Information'!H362,IF(MaintOnly=\"Yes\",'Ordering Information'!H202,'Ordering Information'!H282))","v":7.0000000000000007E-2},0,0,"USD"]
[null,null,null,null,null,null,null,{"$f":"IF(MaintOnly=\"Yes - Expired\",'Ordering Information'!C363,IF(MaintOnly=\"Yes\",'Ordering Information'!C203,'Ordering Information'!C283))","v":"MX-IPCR-INT90-E"},{"$f":"IF(MaintOnly=\"Yes - Expired\",'Ordering Information'!H363,IF(MaintOnly=\"Yes\",'Ordering Information'!H203,'Ordering Information'!H283))","v":7.0000000000000007E-2},0,0,"USD"]
[null,null,null,null,null,null,null,{"$f":"IF(MaintOnly=\"Yes - Expired\",'Ordering Information'!C364,IF(MaintOnly=\"Yes\",'Ordering Information'!C204,'Ordering Information'!C284))","v":"MX-IPCR-INT120-E"},{"$f":"IF(MaintOnly=\"Yes - Expired\",'Ordering Information'!H364,IF(MaintOnly=\"Yes\",'Ordering Information'!H204,'Ordering Information'!H284))","v":7.0000000000000007E-2},0,0,"USD"]
[null,null,null,null,null,null,null,{"$f":"IF(MaintOnly=\"Yes - Expired\",'Ordering Information'!C365,IF(MaintOnly=\"Yes\",'Ordering Information'!C205,'Ordering Information'!C285))","v":"MX-IPCR-INT150-E"},{"$f":"IF(MaintOnly=\"Yes - Expired\",'Ordering Information'!H365,IF(MaintOnly=\"Yes\",'Ordering Information'!H205,'Ordering Information'!H285))","v":7.0000000000000007E-2},0,0,"USD"]
[null,null,null,null,null,null,null,{"$f":"IF(MaintOnly=\"Yes - Expired\",'Ordering Information'!C366,IF(MaintOnly=\"Yes\",'Ordering Information'!C206,'Ordering Information'!C286))","v":"MX-IPCR-INT180-E"},{"$f":"IF(MaintOnly=\"Yes - Expired\",'Ordering Information'!H366,IF(MaintOnly=\"Yes\",'Ordering Information'!H206,'Ordering Information'!H286))","v":7.0000000000000007E-2},0,0,"USD"]
[null,null,null,null,null,null,null,{"$f":"IF(MaintOnly=\"Yes - Expired\",'Ordering Information'!C367,IF(MaintOnly=\"Yes\",'Ordering Information'!C207,'Ordering Information'!C287))","v":"MX-IPCR-INT-ADD-E"},{"$f":"IF(MaintOnly=\"Yes - Expired\",'Ordering Information'!H367,IF(MaintOnly=\"Yes\",'Ordering Information'!H207,'Ordering Information'!H287))","v":7.0000000000000007E-2},0,0,"USD"]
[null,null,null,null,null,null,"Total Amount for System License",null,null,null,{"$f":"IF(MaintOnlyPrint,0,SUM(K7:K32))","v":0},"USD"]
[null,null,null,null,null,null,"Total Amount",null,null,null,{"$f":"IF(MaintOnlyPrint,SUM(K110:K180),SUM(K7:K180))","v":0},"USD"]

{"sheet":"Result","index":1,"n_rows":341,"n_cols":6,"rows_kept":341,"cut":false,"hidden":false,"merged":[[330,3,330,4],[331,3,331,4],[333,3,333,4]]}
[]
[null,{"$f":"IF('Contact Center'!B11=0,\"\",'Contact Center'!B11)","v":"Your Company Name"}]
[null,{"$f":"IF('Contact Center'!B12=0,\"\",'Contact Center'!B12)","v":"Address 1"},null,null,"Config. No :",{"$f":"IF(ConfigNo=0,\"\",ConfigNo)","v":""}]
[null,{"$f":"IF('Contact Center'!B13=0,\"\",'Contact Center'!B13)","v":"Address 2"},null,null,"Date :",{"$f":"TODAY()","v":"2021-03-29"}]
[null,{"$f":"IF('Contact Center'!B14=0,\"\",'Contact Center'!B14)","v":"Tel. Number"}]
[]
[null,null,{"$f":"IF('Contact Center'!B16=0,\"\",'Contact Center'!B16)","v":"Your Customer Name"}]
[null,null,{"$f":"IF('Contact Center'!B17=0,\"\",'Contact Center'!B17)","v":"Address 1"}]
[null,null,{"$f":"IF('Contact Center'!B18=0,\"\",'Contact Center'!B18)","v":"Address 2"}]
[null,null,{"$f":"IF('Contact Center'!B19=0,\"\",'Contact Center'!B19)","v":"Tel. Number"}]
[]
[null,"iPECS CCX"]
[null,"Model Name","Description","Quantity","Price","Total"]
[null,{"$f":"'Ordering Information'!C16","v":"UCP100-CC-TS4"},{"$f":"'Ordering Information'!E16","v":"TAPI and 4 SIP Extension license for CCX in UCP100"},{"$f":"IF(MaintOnlyPrint=0,'Contact Center'!J7,0)","v":0},{"$f":"'Ordering Information'!I16","v":0},{"$f":"D14*E14","v":0}]
[null,{"$f":"'Ordering Information'!C17","v":"UCP100-3SIPEXT"},{"$f":"'Ordering Information'!E17","v":"Additional SIP Extension License for Announcement Channel in UCP100"},{"$f":"IF(MaintOnlyPrint=0,'Contact Center'!J8,0)","v":0},{"$f":"'Ordering Information'!I17","v":1},{"$f":"D15*E15","v":0}]
[null,{"$f":"'Ordering Information'!C18","v":"UCP100-IPCRS"},{"$f":"'Ordering Information'!E18","v":"IP Call Recording Server License for UCP100 (per IPCR Server)"},{"$f":"IF(MaintOnlyPrint=0,'Contact Center'!J9,0)","v":0},{"$f":"'Ordering Information'!I18","v":1},{"$f":"D16*E16","v":0}]
[null,{"$f":"'Ordering Information'!C19","v":"UCP100-IPCRC"},{"$f":"'Ordering Information'!E19","v":"IP Call Recording Agent License for UCP100 (per IPCR Agent)"},{"$f":"IF(MaintOnlyPrint=0,'Contact Center'!J10,0)","v":0},{"$f":"'Ordering Information'!I19","v":1},0]
[null,{"$f":"'Ordering Information'!C20","v":"UCP600-CC-TS4"},{"$f":"'Ordering Information'!E20","v":"TAPI and 4 SIP Extension license for CCX in UCP600"},{"$f":"IF(MaintOnlyPrint=0,'Contact Center'!J11,0)","v":0},{"$f":"'Ordering Information'!I20","v":0},{"$f":"D18*E18","v":0}]
[null,{"$f":"'Ordering Information'!C21","v":"UCP600-3SIPEXT"},{"$f":"'Ordering Information'!E21","v":"Additional SIP Extension License for Announcement Channel in UCP600"},{"$f":"IF(MaintOnlyPrint=0,'Contact Center'!J12,0)","v":0},{"$f":"'Ordering Information'!I21","v":1},0]
[null,{"$f":"'Ordering Information'!C22","v":"UCP600-IPCRS"},{"$f":"'Ordering Information'!E22","v":"IP Call Recording Server License for UCP600 (per IPCR Server)"},{"$f":"IF(MaintOnlyPrint=0,'Contact Center'!J13,0)","v":0},{"$f":"'Ordering Information'!I22","v":1},{"$f":"D20*E20","v":0}]
[null,{"$f":"'Ordering Information'!C23","v":"UCP600-IPCRC"},{"$f":"'Ordering Information'!E23","v":"IP Call Recording Agent License for UCP600 (per IPCR Agent)"},{"$f":"IF(MaintOnlyPrint=0,'Contact Center'!J14,0)","v":0},{"$f":"'Ordering Information'!I23","v":1},0]
[null,{"$f":"'Ordering Information'!C24","v":"UCP2400-CC-TS4"},{"$f":"'Ordering Information'!E24","v":"TAPI and 4 SIP Extension license for CCX in UCP2400"},{"$f":"IF(MaintOnlyPrint=0,'Contact Center'!J15,0)","v":0},{"$f":"'Ordering Information'!I24","v":0},0]
[null,{"$f":"'Ordering Information'!C25","v":"UCP2400-3SIPEXT"},{"$f":"'Ordering Information'!E25","v":"Additional SIP Extension License for Announcement Channel in UCP2400"},{"$f":"IF(MaintOnlyPrint=0,'Contact Center'!J16,0)","v":0},{"$f":"'Ordering Information'!I25","v":1},0]
[null,{"$f":"'Ordering Information'!C26","v":"UCP2400-IPCRS"},{"$f":"'Ordering Information'!E26","v":"IP Call Recording Server License for UCP2400 (per IPCR Server)"},{"$f":"IF(MaintOnlyPrint=0,'Contact Center'!J17,0)","v":0},{"$f":"'Ordering Information'!I26","v":1},{"$f":"D24*E24","v":0}]
[null,{"$f":"'Ordering Information'!C27","v":"UCP2400-IPCRC"},{"$f":"'Ordering Information'!E27","v":"IP Call Recording Agent License for UCP2400 (per IPCR Agent)"},{"$f":"IF(MaintOnlyPrint=0,'Contact Center'!J18,0)","v":0},{"$f":"'Ordering Information'!I27","v":1},0]
[null,{"$f":"'Ordering Information'!C28","v":"vUCP-CC-TS4"},{"$f":"'Ordering Information'!E28","v":"TAPI and 4 SIP Extension license for CCX in vUCP"},{"$f":"IF(MaintOnlyPrint=0,'Contact Center'!J19,0)","v":0},{"$f":"'Ordering Information'!I28","v":0},0]
[null,{"$f":"'Ordering Information'!C29","v":"vUCP-3SIPEXT"},{"$f":"'Ordering Information'!E29","v":"Additional SIP Extension License for Announcement Channel in vUCP"},{"$f":"IF(MaintOnlyPrint=0,'Contact Center'!J20,0)","v":0},{"$f":"'Ordering Information'!I29","v":1},0]
[null,{"$f":"'Ordering Information'!C30","v":"vUCP-IPCRS"},{"$f":"'Ordering Information'!E30","v":"IP Call Recording Server License for vUCP (per IPCR Server)"},{"$f":"IF(MaintOnlyPrint=0,'Contact Center'!J21,0)","v":0},{"$f":"'Ordering Information'!I30","v":1},{"$f":"D28*E28","v":0}]
[null,{"$f":"'Ordering Information'!C31","v":"vUCP-IPCRC"},{"$f":"'Ordering Information'!E31","v":"IP Call Recording Agent License for vUCP (per IPCR Agent)"},{"$f":"IF(MaintOnlyPrint=0,'Contact Center'!J22,0)","v":0},{"$f":"'Ordering Information'!I31","v":1},0]
[null,{"$f":"'Ordering Information'!C32","v":"eMG80N-CC-TS4"},{"$f":"'Ordering Information'!E32","v":"TAPI and 4 SIP Extension license for CCX in eMG80"},{"$f":"IF(MaintOnlyPrint=0,'Contact Center'!J23,0)","v":0},{"$f":"'Ordering Information'!I32","v":0},0]
[null,{"$f":"'Ordering Information'!C33","v":"eMG80N-3SIPEXT"},{"$f":"'Ordering Information'!E33","v":"Additional SIP Extension License for Announcement Channel in eMG80"},{"$f":"IF(MaintOnlyPrint=0,'Contact Center'!J24,0)","v":0},{"$f":"'Ordering Information'!I33","v":1},0]
[null,{"$f":"'Ordering Information'!C34","v":"eMG80N-IPCRS"},{"$f":"'Ordering Information'!E34","v":"IP Call Recording Server License for eMG80 (per IPCR Server)"},{"$f":"IF(MaintOnlyPrint=0,'Contact Center'!J25,0)","v":0},{"$f":"'Ordering Information'!I34","v":1},{"$f":"D32*E32","v":0}]
[null,{"$f":"'Ordering Information'!C35","v":"eMG80N-IPCRC"},{"$f":"'Ordering Information'!E35","v":"IP Call Recording Agent License for eMG80 (per IPCR Agent)"},{"$f":"IF(MaintOnlyPrint=0,'Contact Center'!J26,0)","v":0},{"$f":"'Ordering Information'!I35","v":1},0]
[null,{"$f":"'Ordering Information'!C36","v":"eMG100-CC-TS4"},{"$f":"'Ordering Information'!E36","v":"TAPI and 4 SIP Extension license for CCX in eMG100"},{"$f":"IF(MaintOnlyPrint=0,'Contact Center'!J27,0)","v":0},{"$f":"'Ordering Information'!I36","v":0},0]
[null,{"$f":"'Ordering Information'!C37","v":"eMG100-3SIPEXT"},{"$f":"'Ordering Information'!E37","v":"Additional SIP Extension License for Announcement Channel in eMG100"},{"$f":"IF(MaintOnlyPrint=0,'Contact Center'!J28,0)","v":0},{"$f":"'Ordering Information'!I37","v":1},0]
[null,{"$f":"'Ordering Information'!C38","v":"eMG100-IPCRS"},{"$f":"'Ordering Information'!E38","v":"IP Call Recording Server License for eMG100 (per IPCR Server)"},{"$f":"IF(MaintOnlyPrint=0,'Contact Center'!J29,0)","v":0},{"$f":"'Ordering Information'!I38","v":1},{"$f":"D36*E36","v":0}]
[null,{"$f":"'Ordering Information'!C39","v":"eMG100-IPCRC"},{"$f":"'Ordering Information'!E39","v":"IP Call Recording Agent License for eMG100 (per IPCR Agent)"},{"$f":"IF(MaintOnlyPrint=0,'Contact Center'!J30,0)","v":0},{"$f":"'Ordering Information'!I39","v":1},0]
[null,{"$f":"'Ordering Information'!C40","v":"eMG800-CC-TS4"},{"$f":"'Ordering Information'!E40","v":"TAPI and 4 SIP Extension license for CCX in eMG800"},{"$f":"IF(MaintOnlyPrint=0,'Contact Center'!J31,0)","v":0},{"$f":"'Ordering Information'!I40","v":0},0]
[null,{"$f":"'Ordering Information'!C41","v":"eMG800-3SIPEXT"},{"$f":"'Ordering Information'!E41","v":"Additional SIP Extension License for Announcement Channel in eMG800"},{"$f":"IF(MaintOnlyPrint=0,'Contact Center'!J32,0)","v":0},{"$f":"'Ordering Information'!I41","v":1},0]
[null,{"$f":"'Ordering Information'!C42","v":"eMG800-IPCRS"},{"$f":"'Ordering Information'!E42","v":"IP Call Recording Server License for eMG800 (per IPCR Server)"},{"$f":"IF(MaintOnlyPrint=0,'Contact Center'!J33,0)","v":0},{"$f":"'Ordering Information'!I42","v":1},{"$f":"D40*E40","v":0}]
[null,{"$f":"'Ordering Information'!C43","v":"eMG800-IPCRC"},{"$f":"'Ordering Information'!E43","v":"IP Call Recording Agent License for eMG800 (per IPCR Agent)"},{"$f":"IF(MaintOnlyPrint=0,'Contact Center'!J34,0)","v":0},{"$f":"'Ordering Information'!I43","v":1},0]
[null,{"$f":"'Ordering Information'!C44","v":"UCML-CCS-TS4"},{"$f":"'Ordering Information'!E44","v":"TAPI and 4 SIP Extension license for CCX in UCM"},{"$f":"IF(MaintOnlyPrint=0,'Contact Center'!J35,0)","v":0},{"$f":"'Ordering Information'!I44","v":0},{"$f":"D42*E42","v":0}]
[null,{"$f":"'Ordering Information'!C45","v":"UCML-IPEXT"},{"$f":"'Ordering Information'!E45","v":"Additional SIP Extension License for Announcement Channel in UCM"},{"$f":"IF(MaintOnlyPrint=0,'Contact Center'!J36,0)","v":0},{"$f":"'Ordering Information'!I45","v":1},0]
[null,{"$f":"'Ordering Information'!C46","v":"UCML-IPCR-S"},{"$f":"'Ordering Information'!E46","v":"IP Call Recording Server License for UCM (per IPCR Server)"},{"$f":"IF(MaintOnlyPrint=0,'Contact Center'!J37,0)","v":0},{"$f":"'Ordering Information'!I46","v":1},{"$f":"D44*E44","v":0}]
[null,{"$f":"'Ordering Information'!C47","v":"UCML-IPCR-A"},{"$f":"'Ordering Information'!E47","v":"IP Call Recording Agent License for UCM (per IPCR Agent)"},{"$f":"IF(MaintOnlyPrint=0,'Contact Center'!J38,0)","v":0},{"$f":"'Ordering Information'!I47","v":1},0]
[null,{"$f":"'Ordering Information'!C48","v":"CCX-PAC-5"},{"$f":"'Ordering Information'!E48","v":"5 CCX Call Centre Licenses\n1 CCX Desk Telephony Network Manager\n1 CCX Report Plus (included free with CCX CC Package)\n1 CCX Report Plus - Extensions - 100 (included free with CCX CC Package)\n2 CCX Report Plus - Dashboard & User License (included free with CCX CC Package)\n5 CCX Desk\n4 CCX HMP Audio Channel  - 1 channel\n1 CCX Callback in Queue (included free with CCX CC Package)\n1 CCX Web Call-Back (included free with CCX CC Package)\n1 CCX Chat 3 Licenses (included free with CCX CC Package)\n\nNeed system licnese for TAPI and 4xSIP Extension (UCP100-CC-TS4, UCP600-CC-TS4, UCP2400-CC-TS4, eMG80N-CC-TS4, eMG800-CC-TS4, UCML-CCS-TS4)"},{"$f":"IF(MaintOnlyPrint=0,'Contact Center'!J39,0)","v":0},{"$f":"'Ordering Information'!I48","v":1},0]
[null,{"$f":"'Ordering Information'!C49","v":"CCX-PAC-10"},{"$f":"'Ordering Information'!E49","v":"10 CCX Call Centre Licenses\n1 CCX Desk Telephony Network Manager\n1 CCX Report Plus (included free with CCX CC Package)\n1 CCX Report Plus - Extensions - 100 (included free with CCX CC Package)\n2 CCX Report Plus - Dashboard & User License (included free with CCX CC Package)\n10 CCX Desk\n4 CCX HMP Audio Channel  - 1 channel\n1 CCX Callback in Queue (included free with CCX CC Package)\n1 CCX Web Call-Back (included free with CCX CC Package)\n1 CCX Chat 3 Licenses (included free with CCX CC Package)\n\nNeed system licnese for TAPI and 4xSIP Extension (UCP100-CC-TS4, UCP600-CC-TS4, UCP2400-CC-TS4, eMG80N-CC-TS4, eMG800-CC-TS4, UCML-CCS-TS4)"},{"$f":"IF(MaintOnlyPrint=0,'Contact Center'!J40,0)","v":0},{"$f":"'Ordering Information'!I49","v":1},0]
[null,{"$f":"'Ordering Information'!C50","v":"CCX-PAC-20"},{"$f":"'Ordering Information'!E50","v":"20 CCX Call Centre Licenses\n1 CCX Desk Telephony Network Manager\n1 CCX Report Plus (included free with CCX CC Package)\n1 CCX Report Plus - Extensions - 100 (included free with CCX CC Package)\n2 CCX Report Plus - Dashboard & User License (included free with CCX CC Package)\n20 CCX Desk\n4 CCX HMP Audio Channel  - 1 channel\n1 CCX Callback in Queue (included free with CCX CC Package)\n1 CCX Web Call-Back (included free with CCX CC Package)\n1 CCX Chat 3 Licenses (included free with CCX CC Package)\n\nNeed system licnese for TAPI and 4xSIP Extension (UCP100-CC-TS4, UCP600-CC-TS4, UCP2400-CC-TS4, eMG80N-CC-TS4, eMG800-CC-TS4, UCML-CCS-TS4)"},{"$f":"IF(MaintOnlyPrint=0,'Contact Center'!J41,0)","v":0},{"$f":"'Ordering Information'!I50","v":1},0]
[null,{"$f":"'Ordering Information'!C51","v":"CCX-PAC-30"},{"$f":"'Ordering Information'!E51","v":"30 CCX Call Centre Licenses\n1 CCX Desk Telephony Network Manager\n1 CCX Report Plus (included free with CCX CC Package)\n1 CCX Report Plus - Extensions - 100 (included free with CCX CC Package)\n2 CCX Report Plus - Dashboard & User License (included free with CCX CC Package)\n30 CCX Desk\n4 CCX HMP Audio Channel  - 1 channel\n1 CCX Callback in Queue (included free with CCX CC Package)\n1 CCX Web Call-Back (included free with CCX CC Package)\n1 CCX Chat 3 Licenses (included free with CCX CC Package)\n\nNeed system licnese for TAPI and 4xSIP Extension (UCP100-CC-TS4, UCP600-CC-TS4, UCP2400-CC-TS4, eMG80N-CC-TS4, eMG800-CC-TS4, UCML-CCS-TS4)"},{"$f":"IF(MaintOnlyPrint=0,'Contact Center'!J42,0)","v":0},{"$f":"'Ordering Information'!I51","v":1},0]
[null,{"$f":"'Ordering Information'!C52","v":"CCX-PAC-50"},{"$f":"'Ordering Information'!E52","v":"50 CCX Call Centre Licenses\n1 CCX Desk Telephony Network Manager\n1 CCX Report Plus (included free with CCX CC Package)\n1 CCX Report Plus - Extensions - 100 (included free with CCX CC Package)\n2 CCX Report Plus - Dashboard & User License (included free with CCX CC Package)\n50 CCX Desk\n4 CCX HMP Audio Channel  - 1 channel\n1 CCX Callback in Queue (included free with CCX CC Package)\n1 CCX Web Call-Back (included free with CCX CC Package)\n1 CCX Chat 3 Licenses (included free with CCX CC Package)\n\nNeed system licnese for TAPI and 4xSIP Extension (UCP100-CC-TS4, UCP600-CC-TS4, UCP2400-CC-TS4, eMG80N-CC-TS4, eMG800-CC-TS4, UCML-CCS-TS4)"},{"$f":"IF(MaintOnlyPrint=0,'Contact Center'!J43,0)","v":0},{"$f":"'Ordering Information'!I52","v":1},0]
[null,{"$f":"'Ordering Information'!C53","v":"CCX-PAC-75"},{"$f":"'Ordering Information'!E53","v":"75 CCX Call Centre Licenses\n1 CCX Desk Telephony Network Manager\n1 CCX Report Plus (included free with CCX CC Package)\n1 CCX Report Plus - Extensions - 100 (included free with CCX CC Package)\n2 CCX Report Plus - Dashboard & User License (included free with CCX CC Package)\n75 CCX Desk\n4 CCX HMP Audio Channel  - 1 channel\n1 CCX Callback in Queue (included free with CCX CC Package)\n1 CCX Web Call-Back (included free with CCX CC Package)\n1 CCX Chat 3 Licenses (included free with CCX CC Package)\n\nNeed system licnese for TAPI and 4xSIP Extension (UCP100-CC-TS4, UCP600-CC-TS4, UCP2400-CC-TS4, eMG80N-CC-TS4, eMG800-CC-TS4, UCML-CCS-TS4)"},{"$f":"IF(MaintOnlyPrint=0,'Contact Center'!J44,0)","v":0},{"$f":"'Ordering Information'!I53","v":1},0]
[null,{"$f":"'Ordering Information'!C54","v":"CCX-PAC-100"},{"$f":"'Ordering Information'!E54","v":"100 CCX Call Centre Licenses\n1 CCX Desk Telephony Network Manager\n1 CCX Report Plus (included free with CCX CC Package)\n1 CCX Report Plus - Extensions - 100 (included free with CCX CC Package)\n2 CCX Report Plus - Dashboard & User License (included free with CCX CC Package)\n100 CCX Desk\n4 CCX HMP Audio Channel  - 1 channel\n1 CCX Callback in Queue (included free with CCX CC Package)\n1 CCX Web Call-Back (included free with CCX CC Package)\n1 CCX Chat 3 Licenses (included free with CCX CC Package)\n\nNeed system licnese for TAPI and 4xSIP Extension (UCP100-CC-TS4, UCP600-CC-TS4, UCP2400-CC-TS4, eMG80N-CC-TS4, eMG800-CC-TS4, UCML-CCS-TS4)"},{"$f":"IF(MaintOnlyPrint=0,'Contact Center'!J45,0)","v":0},{"$f":"'Ordering Information'!I54","v":1},0]
[null,{"$f":"'Ordering Information'!C55","v":"CCX-PAC-150"},{"$f":"'Ordering Information'!E55","v":"150 CCX Call Centre Licenses\n1 CCX Desk Telephony Network Manager\n1 CCX Report Plus (included free with CCX CC Package)\n1 CCX Report Plus - Extensions - 100 (included free with CCX CC Package)\n2 CCX Report Plus - Dashboard & User License (included free with CCX CC Package)\n150 CCX Desk\n4 CCX HMP Audio Channel  - 1 channel\n1 CCX Callback in Queue (included free with CCX CC Package)\n1 CCX Web Call-Back (included free with CCX CC Package)\n1 CCX Chat 3 Licenses (included free with CCX CC Package)\n\nNeed system licnese for TAPI and 4xSIP Extension (UCP100-CC-TS4, UCP600-CC-TS4, UCP2400-CC-TS4, eMG80N-CC-TS4, eMG800-CC-TS4, UCML-CCS-TS4)"},{"$f":"IF(MaintOnlyPrint=0,'Contact Center'!J46,0)","v":0},{"$f":"'Ordering Information'!I55","v":1},{"$f":"D53*E53","v":0}]
[null,{"$f":"'Ordering Information'!C56","v":"CCX-PAC-200"},{"$f":"'Ordering Information'!E56","v":"200 CCX Call Centre Licenses\n1 CCX Desk Telephony Network Manager\n1 CCX Report Plus (included free with CCX CC Package)\n1 CCX Report Plus - Extensions - 100 (included free with CCX CC Package)\n2 CCX Report Plus - Dashboard & User License (included free with CCX CC Package)\n200 CCX Desk\n4 CCX HMP Audio Channel  - 1 channel\n1 CCX Callback in Queue (included free with CCX CC Package)\n1 CCX Web Call-Back (included free with CCX CC Package)\n1 CCX Chat 3 Licenses (included free with CCX CC Package)\n\nNeed system licnese for TAPI and 4xSIP Extension (UCP100-CC-TS4, UCP600-CC-TS4, UCP2400-CC-TS4, eMG80N-CC-TS4, eMG800-CC-TS4, UCML-CCS-TS4)"},{"$f":"IF(MaintOnlyPrint=0,'Contact Center'!J47,0)","v":0},{"$f":"'Ordering Information'!I56","v":1},0]
[null,{"$f":"'Ordering Information'!C57","v":"CCX-PAC-250"},{"$f":"'Ordering Information'!E57","v":"250 CCX Call Centre Licenses\n1 CCX Desk Telephony Network Manager\n1 CCX Report Plus (included free with CCX CC Package)\n1 CCX Report Plus - Extensions - 100 (included free with CCX CC Package)\n2 CCX Report Plus - Dashboard & User License (included free with CCX CC Package)\n250 CCX Desk\n4 CCX HMP Audio Channel  - 1 channel\n1 CCX Callback in Queue (included free with CCX CC Package)\n1 CCX Web Call-Back (included free with CCX CC Package)\n1 CCX Chat 3 Licenses (included free with CCX CC Package)\n\nNeed system licnese for TAPI and 4xSIP Extension (UCP100-CC-TS4, UCP600-CC-TS4, UCP2400-CC-TS4, eMG80N-CC-TS4, eMG800-CC-TS4, UCML-CCS-TS4)"},{"$f":"IF(MaintOnlyPrint=0,'Contact Center'!J48,0)","v":0},{"$f":"'Ordering Information'!I57","v":1},0]
[null,{"$f":"'Ordering Information'!C58","v":"CX-DSK-ADD"},{"$f":"'Ordering Information'!E58","v":"Additional CCX Desk User"},{"$f":"IF(MaintOnlyPrint=0,'Contact Center'!J49,0)","v":0},{"$f":"'Ordering Information'!I58","v":1},0]
[null,{"$f":"'Ordering Information'!C59","v":"CX-HMP"},{"$f":"'Ordering Information'!E59","v":"Required for queue, call control management and CCX IVR channels\nAdditional SIP license on the iPECS System is required"},{"$f":"IF(MaintOnlyPrint=0,'Contact Center'!J50,0)","v":0},{"$f":"'Ordering Information'!I59","v":1},0]
[null,{"$f":"'Ordering Information'!C60","v":"CX-HMP-G729"},{"$f":"'Ordering Information'!E60","v":"CCX HMP 1 Audio Channel license upgrade for G729 (DMIPS10E30W)"},{"$f":"IF(MaintOnlyPrint=0,'Contact Center'!J51,0)","v":0},{"$f":"'Ordering Information'!I60","v":1},{"$f":"D58*E58","v":0}]
[null,{"$f":"'Ordering Information'!C61","v":"CX-DB"},{"$f":"'Ordering Information'!E61","v":"Dashboard license including 1xSupervisor license"},{"$f":"IF(MaintOnlyPrint=0,'Contact Center'!J52,0)","v":0},{"$f":"'Ordering Information'!I61","v":1},{"$f":"D59*E59","v":0}]
[null,{"$f":"'Ordering Information'!C62","v":"CX-CC-LICENSE"},{"$f":"'Ordering Information'!E62","v":"CCX Call Center license"},{"$f":"IF(MaintOnlyPrint=0,'Contact Center'!J53,0)","v":0},{"$f":"'Ordering Information'!I62","v":1},0]
[null,{"$f":"'Ordering Information'!C63","v":"CX-REC-B4"},{"$f":"'Ordering Information'!E63","v":"CCX Record BRI 4 channel"},{"$f":"IF(MaintOnlyPrint=0,'Contact Center'!J54,0)","v":0},{"$f":"'Ordering Information'!I63","v":1},0]
[null,{"$f":"'Ordering Information'!C64","v":"CX-REC-B8"},{"$f":"'Ordering Information'!E64","v":"CCX Record BRI 8 channel"},{"$f":"IF(MaintOnlyPrint=0,'Contact Center'!J55,0)","v":0},{"$f":"'Ordering Information'!I64","v":1},0]
[null,{"$f":"'Ordering Information'!C65","v":"CX-REC-B12"},{"$f":"'Ordering Information'!E65","v":"CCX Record BRI 12 channel"},{"$f":"IF(MaintOnlyPrint=0,'Contact Center'!J56,0)","v":0},{"$f":"'Ordering Information'!I65","v":1},0]
[null,{"$f":"'Ordering Information'!C66","v":"CX-REC-P8"},{"$f":"'Ordering Information'!E66","v":"CCX Record PRI 8 channel"},{"$f":"IF(MaintOnlyPrint=0,'Contact Center'!J57,0)","v":0},{"$f":"'Ordering Information'!I66","v":1},0]
[null,{"$f":"'Ordering Information'!C67","v":"CX-REC-P12"},{"$f":"'Ordering Information'!E67","v":"CCX Record PRI 12 channel"},{"$f":"IF(MaintOnlyPrint=0,'Contact Center'!J58,0)","v":0},{"$f":"'Ordering Information'!I67","v":1},0]
[null,{"$f":"'Ordering Information'!C68","v":"CX-REC-P16"},{"$f":"'Ordering Information'!E68","v":"CCX Record PRI 16 channel"},{"$f":"IF(MaintOnlyPrint=0,'Contact Center'!J59,0)","v":0},{"$f":"'Ordering Information'!I68","v":1},0]
[null,{"$f":"'Ordering Information'!C69","v":"CX-REC-P24"},{"$f":"'Ordering Information'!E69","v":"CCX Record PRI 24 channel"},{"$f":"IF(MaintOnlyPrint=0,'Contact Center'!J60,0)","v":0},{"$f":"'Ordering Information'!I69","v":1},0]
[null,{"$f":"'Ordering Information'!C70","v":"CX-REC-P30"},{"$f":"'Ordering Information'!E70","v":"CCX Record PRI 30 channel"},{"$f":"IF(MaintOnlyPrint=0,'Contact Center'!J61,0)","v":0},{"$f":"'Ordering Information'!I70","v":1},0]
[null,{"$f":"'Ordering Information'!C80","v":"CX-REC-V4"},{"$f":"'Ordering Information'!E80","v":"CCX Record VOIP 4 channel, a switch supporting port mirroring is required"},{"$f":"IF(MaintOnlyPrint=0,'Contact Center'!J62,0)","v":0},{"$f":"'Ordering Information'!I80","v":1},0]
[null,{"$f":"'Ordering Information'!C81","v":"CX-REC-V6"},{"$f":"'Ordering Information'!E81","v":"CCX Record VOIP 6 channel, a switch supporting port mirroring is required"},{"$f":"IF(MaintOnlyPrint=0,'Contact Center'!J63,0)","v":0},{"$f":"'Ordering Information'!I81","v":1},{"$f":"D70*E70","v":0}]
[null,{"$f":"'Ordering Information'!C82","v":"CX-REC-V8"},{"$f":"'Ordering Information'!E82","v":"CCX Record VOIP 8 channel, a switch supporting port mirroring is required"},{"$f":"IF(MaintOnlyPrint=0,'Contact Center'!J64,0)","v":0},{"$f":"'Ordering Information'!I82","v":1},0]
[null,{"$f":"'Ordering Information'!C83","v":"CX-REC-V12"},{"$f":"'Ordering Information'!E83","v":"CCX Record VOIP 12 channel, a switch supporting port mirroring is required"},{"$f":"IF(MaintOnlyPrint=0,'Contact Center'!J65,0)","v":0},{"$f":"'Ordering Information'!I83","v":1},0]
[null,{"$f":"'Ordering Information'!C84","v":"CX-REC-V16"},{"$f":"'Ordering Information'!E84","v":"CCX Record VOIP 16 channel, a switch supporting port mirroring is required"},{"$f":"IF(MaintOnlyPrint=0,'Contact Center'!J66,0)","v":0},{"$f":"'Ordering Information'!I84","v":1},0]
[null,{"$f":"'Ordering Information'!C85","v":"CX-REC-V24"},{"$f":"'Ordering Information'!E85","v":"CCX Record VOIP 24 channel, a switch supporting port mirroring is required"},{"$f":"IF(MaintOnlyPrint=0,'Contact Center'!J67,0)","v":0},{"$f":"'Ordering Information'!I85","v":1},0]
[null,{"$f":"'Ordering Information'!C86","v":"CX-REC-V30"},{"$f":"'Ordering Information'!E86","v":"CCX Record VOIP 30 channel, a switch supporting port mirroring is required"},{"$f":"IF(MaintOnlyPrint=0,'Contact Center'!J68,0)","v":0},{"$f":"'Ordering Information'!I86","v":1},0]
[null,{"$f":"'Ordering Information'!C87","v":"CX-REC-V40"},{"$f":"'Ordering Information'!E87","v":"CCX Record VOIP 40 channel, a switch supporting port mirroring is required"},{"$f":"IF(MaintOnlyPrint=0,'Contact Center'!J69,0)","v":0},{"$f":"'Ordering Information'!I87","v":1},0]
[null,{"$f":"'Ordering Information'!C88","v":"CX-REC-V50"},{"$f":"'Ordering Information'!E88","v":"CCX Record VOIP 50 channel, a switch supporting port mirroring is required"},{"$f":"IF(MaintOnlyPrint=0,'Contact Center'!J70,0)","v":0},{"$f":"'Ordering Information'!I88","v":1},0]
[null,{"$f":"'Ordering Information'!C89","v":"CX-REC-V60"},{"$f":"'Ordering Information'!E89","v":"CCX Record VOIP 60 channel, a switch supporting port mirroring is required"},{"$f":"IF(MaintOnlyPrint=0,'Contact Center'!J71,0)","v":0},{"$f":"'Ordering Information'!I89","v":1},0]
[null,{"$f":"'Ordering Information'!C90","v":"CX-REC-V90"},{"$f":"'Ordering Information'!E90","v":"CCX Record VOIP 90 channel, a switch supporting port mirroring is required"},{"$f":"IF(MaintOnlyPrint=0,'Contact Center'!J72,0)","v":0},{"$f":"'Ordering Information'!I90","v":1},0]
[null,{"$f":"'Ordering Information'!C91","v":"CX-REC-V120"},{"$f":"'Ordering Information'!E91","v":"CCX Record VOIP 120 channel, a switch supporting port mirroring is required"},{"$f":"IF(MaintOnlyPrint=0,'Contact Center'!J73,0)","v":0},{"$f":"'Ordering Information'!I91","v":1},0]
[null,{"$f":"'Ordering Information'!C92","v":"CX-REC-V150"},{"$f":"'Ordering Information'!E92","v":"CCX Record VOIP 150 channel, a switch supporting port mirroring is required"},{"$f":"IF(MaintOnlyPrint=0,'Contact Center'!J74,0)","v":0},{"$f":"'Ordering Information'!I92","v":1},0]
[null,{"$f":"'Ordering Information'!C93","v":"CX-REC-V180"},{"$f":"'Ordering Information'!E93","v":"CCX Record VOIP 180 channel, a switch supporting port mirroring is required"},{"$f":"IF(MaintOnlyPrint=0,'Contact Center'!J75,0)","v":0},{"$f":"'Ordering Information'!I93","v":1},0]
[null,{"$f":"'Ordering Information'!C94","v":"CX-REC-V200"},{"$f":"'Ordering Information'!E94","v":"CCX Record VOIP 200 channel, a switch supporting port mirroring is required"},{"$f":"IF(MaintOnlyPrint=0,'Contact Center'!J76,0)","v":0},{"$f":"'Ordering Information'!I94","v":1},0]
[null,{"$f":"'Ordering Information'!C95","v":"CX-REC-V240"},{"$f":"'Ordering Information'!E95","v":"CCX Record VOIP 240 channel, a switch supporting port mirroring is required"},{"$f":"IF(MaintOnlyPrint=0,'Contact Center'!J77,0)","v":0},{"$f":"'Ordering Information'!I95","v":1},0]
[null,{"$f":"'Ordering Information'!C96","v":"CX-CODEC-G729"},{"$f":"'Ordering Information'!E96","v":"G.729 Voice Codec for CCX Record (per channel)"},{"$f":"IF(MaintOnlyPrint=0,'Contact Center'!J78,0)","v":0},{"$f":"'Ordering Information'!I96","v":1},{"$f":"D85*E85","v":0}]
[null,{"$f":"'Ordering Information'!C97","v":"CX-Q-EVF"},{"$f":"'Ordering Information'!E97","v":"CCX Q Email, Voice and Fax Queuing "},{"$f":"IF(MaintOnlyPrint=0,'Contact Center'!J79,0)","v":0},{"$f":"'Ordering Information'!I97","v":1},{"$f":"D86*E86","v":0}]
[null,{"$f":"'Ordering Information'!C98","v":"CX-Q-SN"},{"$f":"'Ordering Information'!E98","v":"CCX Q Social Networking Module"},{"$f":"IF(MaintOnlyPrint=0,'Contact Center'!J80,0)","v":0},{"$f":"'Ordering Information'!I98","v":1},0]
[null,{"$f":"'Ordering Information'!C99","v":"CX-Q-MSN"},{"$f":"'Ordering Information'!E99","v":"CCX Q Multi Site Networking Module"},{"$f":"IF(MaintOnlyPrint=0,'Contact Center'!J81,0)","v":0},{"$f":"'Ordering Information'!I99","v":1},0]
[null,{"$f":"'Ordering Information'!C100","v":"CX-CHAT-5"},{"$f":"'Ordering Information'!E100","v":"Web Chat and Instant Messaging Clients"},{"$f":"IF(MaintOnlyPrint=0,'Contact Center'!J82,0)","v":0},{"$f":"'Ordering Information'!I100","v":1},0]
[null,{"$f":"'Ordering Information'!C101","v":"CX-CALL"},{"$f":"'Ordering Information'!E101","v":"Outbound Tele-Marketing module - preview & progressive only"},{"$f":"IF(MaintOnlyPrint=0,'Contact Center'!J83,0)","v":0},{"$f":"'Ordering Information'!I101","v":1},0]
[null,{"$f":"'Ordering Information'!C102","v":"CX-CALL-U"},{"$f":"'Ordering Information'!E102","v":"Outbound Tele-Marketing module - previewprogressive & pre-emptive & Predictive auto dial modes "},{"$f":"IF(MaintOnlyPrint=0,'Contact Center'!J84,0)","v":0},{"$f":"'Ordering Information'!I102","v":1},0]
[null,{"$f":"'Ordering Information'!C103","v":"CX-SMS"},{"$f":"'Ordering Information'!E103","v":"CCX SMS module with commercial service provider"},{"$f":"IF(MaintOnlyPrint=0,'Contact Center'!J85,0)","v":0},{"$f":"'Ordering Information'!I103","v":1},0]
[null,{"$f":"'Ordering Information'!C104","v":"CX-IVR"},{"$f":"'Ordering Information'!E104","v":"Full IVR Module  - requires HMP channels"},{"$f":"IF(MaintOnlyPrint=0,'Contact Center'!J86,0)","v":0},{"$f":"'Ordering Information'!I104","v":1},0]
[null,{"$f":"'Ordering Information'!C105","v":"CX-SURVEY"},{"$f":"'Ordering Information'!E105","v":"CCX survey for customer service measurement "},{"$f":"IF(MaintOnlyPrint=0,'Contact Center'!J87,0)","v":0},{"$f":"'Ordering Information'!I105","v":1},0]
[null,{"$f":"'Ordering Information'!C106","v":"CX-COACH"},{"$f":"'Ordering Information'!E106","v":"CCX Coach for agent training"},{"$f":"IF(MaintOnlyPrint=0,'Contact Center'!J88,0)","v":0},{"$f":"'Ordering Information'!I106","v":1},0]
[null,{"$f":"'Ordering Information'!C107","v":"CX-ASSESSOR"},{"$f":"'Ordering Information'!E107","v":"CCX Coach for additional asssessor"},{"$f":"IF(MaintOnlyPrint=0,'Contact Center'!J89,0)","v":0},{"$f":"'Ordering Information'!I107","v":1},{"$f":"D96*E96","v":0}]
[null,{"$f":"'Ordering Information'!C108","v":"CX-SCRIPT"},{"$f":"'Ordering Information'!E108","v":"Verbatim script guiding agents during call in CCX Coach"},{"$f":"IF(MaintOnlyPrint=0,'Contact Center'!J90,0)","v":0},{"$f":"'Ordering Information'!I108","v":1},0]
[null,{"$f":"'Ordering Information'!C109","v":"CX-PIDC-MGR"},{"$f":"'Ordering Information'!E109","v":"CCX Personal Information Data Compliance Manager"},{"$f":"IF(MaintOnlyPrint=0,'Contact Center'!J91,0)","v":0},{"$f":"'Ordering Information'!I109","v":1},{"$f":"D98*E98","v":0}]
[null,{"$f":"'Ordering Information'!C110","v":"CX-A-REP-D"},{"$f":"'Ordering Information'!E110","v":"supervisor license for accessing report web server"},{"$f":"IF(MaintOnlyPrint=0,'Contact Center'!J92,0)","v":0},{"$f":"'Ordering Information'!I110","v":1},0]
[null,{"$f":"'Ordering Information'!C111","v":"CX-A-REP-EH"},{"$f":"'Ordering Information'!E111","v":"additional Extensions - 100"},{"$f":"IF(MaintOnlyPrint=0,'Contact Center'!J93,0)","v":0},{"$f":"'Ordering Information'!I111","v":1},0]
[null,{"$f":"'Ordering Information'!C112","v":"CX-A-REP-ES"},{"$f":"'Ordering Information'!E112","v":"additional Extensions - 1000"},{"$f":"IF(MaintOnlyPrint=0,'Contact Center'!J94,0)","v":0},{"$f":"'Ordering Information'!I112","v":1},0]
[null,{"$f":"'Ordering Information'!C113","v":"CX-A-REP-SL"},{"$f":"'Ordering Information'!E113","v":"Extra Site License to add additional site managed (only for call Traffic)"},{"$f":"IF(MaintOnlyPrint=0,'Contact Center'!J95,0)","v":0},{"$f":"'Ordering Information'!I113","v":1},0]
[null,{"$f":"'Ordering Information'!C114","v":"CX-IPCR-INT4"},{"$f":"'Ordering Information'!E114","v":"CCX Record IPCR integration 4 channels"},{"$f":"IF(MaintOnlyPrint=0,'Contact Center'!J96,0)","v":0},{"$f":"'Ordering Information'!I114","v":1},0]
[null,{"$f":"'Ordering Information'!C115","v":"CX-IPCR-INT8"},{"$f":"'Ordering Information'!E115","v":"CCX Record IPCR integration 8 channels"},{"$f":"IF(MaintOnlyPrint=0,'Contact Center'!J97,0)","v":0},{"$f":"'Ordering Information'!I115","v":1},0]
[null,{"$f":"'Ordering Information'!C116","v":"CX-IPCR-INT12"},{"$f":"'Ordering Information'!E116","v":"CCX Record IPCR integration 12 channels"},{"$f":"IF(MaintOnlyPrint=0,'Contact Center'!J98,0)","v":0},{"$f":"'Ordering Information'!I116","v":1},0]
[null,{"$f":"'Ordering Information'!C117","v":"CX-IPCR-INT16"},{"$f":"'Ordering Information'!E117","v":"CCX Record IPCR integration 16 channels"},{"$f":"IF(MaintOnlyPrint=0,'Contact Center'!J99,0)","v":0},{"$f":"'Ordering Information'!I117","v":1},0]
[null,{"$f":"'Ordering Information'!C118","v":"CX-IPCR-INT24"},{"$f":"'Ordering Information'!E118","v":"CCX Record IPCR integration 24 channels"},{"$f":"IF(MaintOnlyPrint=0,'Contact Center'!J100,0)","v":0},{"$f":"'Ordering Information'!I118","v":1},0]
[null,{"$f":"'Ordering Information'!C119","v":"CX-IPCR-INT30"},{"$f":"'Ordering Information'!E119","v":"CCX Record IPCR integration 30 channels"},{"$f":"IF(MaintOnlyPrint=0,'Contact Center'!J101,0)","v":0},{"$f":"'Ordering Information'!I119","v":1},0]
[null,{"$f":"'Ordering Information'!C120","v":"CX-IPCR-INT40"},{"$f":"'Ordering Information'!E120","v":"CCX Record IPCR integration 40 channels"},{"$f":"IF(MaintOnlyPrint=0,'Contact Center'!J102,0)","v":0},{"$f":"'Ordering Information'!I120","v":1},0]
[null,{"$f":"'Ordering Information'!C121","v":"CX-IPCR-INT50"},{"$f":"'Ordering Information'!E121","v":"CCX Record IPCR integration 50 channels"},{"$f":"IF(MaintOnlyPrint=0,'Contact Center'!J103,0)","v":0},{"$f":"'Ordering Information'!I121","v":1},0]
[null,{"$f":"'Ordering Information'!C122","v":"CX-IPCR-INT60"},{"$f":"'Ordering Information'!E122","v":"CCX Record IPCR integration 60 channels"},{"$f":"IF(MaintOnlyPrint=0,'Contact Center'!J104,0)","v":0},{"$f":"'Ordering Information'!I122","v":1},0]
[null,{"$f":"'Ordering Information'!C123","v":"CX-IPCR-INT90"},{"$f":"'Ordering Information'!E123","v":"CCX Record IPCR integration 90 channels"},{"$f":"IF(MaintOnlyPrint=0,'Contact Center'!J105,0)","v":0},{"$f":"'Ordering Information'!I123","v":1},0]
[null,{"$f":"'Ordering Information'!C124","v":"CX-IPCR-INT120"},{"$f":"'Ordering Information'!E124","v":"CCX Record IPCR integration 120 channels"},{"$f":"IF(MaintOnlyPrint=0,'Contact Center'!J106,0)","v":0},{"$f":"'Ordering Information'!I124","v":1},0]
[null,{"$f":"'Ordering Information'!C125","v":"CX-IPCR-INT150"},{"$f":"'Ordering Information'!E125","v":"CCX Record IPCR integration 150 channels"},{"$f":"IF(MaintOnlyPrint=0,'Contact Center'!J107,0)","v":0},{"$f":"'Ordering Information'!I125","v":1},0]
[null,{"$f":"'Ordering Information'!C126","v":"CX-IPCR-INT180"},{"$f":"'Ordering Information'!E126","v":"CCX Record IPCR integration 180 channels"},{"$f":"IF(MaintOnlyPrint=0,'Contact Center'!J108,0)","v":0},{"$f":"'Ordering Information'!I126","v":1},0]
[null,{"$f":"'Ordering Information'!C127","v":"CX-IPCR-INT-ADD"},{"$f":"'Ordering Information'!E127","v":"Additional CCX Record IPCR integration 1 channels"},{"$f":"IF(MaintOnlyPrint=0,'Contact Center'!J109,0)","v":0},{"$f":"'Ordering Information'!I127","v":1},0]
[null,{"$f":"'Ordering Information'!C128","v":"MCX-PAC-5"},{"$f":"'Ordering Information'!E128","v":"Normal Renewal for CCX-PAC-5 within warranty"},{"$f":"IF(MaintOnlyPrint=1,'Contact Center'!J110,0)","v":0},{"$f":"'Ordering Information'!I128","v":0.1},0]
[null,{"$f":"'Ordering Information'!C129","v":"MCX-PAC-10"},{"$f":"'Ordering Information'!E129","v":"Normal Renewal for CCX-PAC-10 within warranty"},{"$f":"IF(MaintOnlyPrint=1,'Contact Center'!J111,0)","v":0},{"$f":"'Ordering Information'!I129","v":0.1},0]
[null,{"$f":"'Ordering Information'!C130","v":"MCX-PAC-20"},{"$f":"'Ordering Information'!E130","v":"Normal Renewal for CCX-PAC-20 within warranty"},{"$f":"IF(MaintOnlyPrint=1,'Contact Center'!J112,0)","v":0},{"$f":"'Ordering Information'!I130","v":0.1},0]
[null,{"$f":"'Ordering Information'!C131","v":"MCX-PAC-30"},{"$f":"'Ordering Information'!E131","v":"Normal Renewal for CCX-PAC-30 within warranty"},{"$f":"IF(MaintOnlyPrint=1,'Contact Center'!J113,0)","v":0},{"$f":"'Ordering Information'!I131","v":0.1},0]
[null,{"$f":"'Ordering Information'!C132","v":"MCX-PAC-50"},{"$f":"'Ordering Information'!E132","v":"Normal Renewal for CCX-PAC-50 within warranty"},{"$f":"IF(MaintOnlyPrint=1,'Contact Center'!J114,0)","v":0},{"$f":"'Ordering Information'!I132","v":0.1},0]
[null,{"$f":"'Ordering Information'!C133","v":"MCX-PAC-75"},{"$f":"'Ordering Information'!E133","v":"Normal Renewal for CCX-PAC-75 within warranty"},{"$f":"IF(MaintOnlyPrint=1,'Contact Center'!J115,0)","v":0},{"$f":"'Ordering Information'!I133","v":0.1},0]
[null,{"$f":"'Ordering Information'!C134","v":"MCX-PAC-100"},{"$f":"'Ordering Information'!E134","v":"Normal Renewal for CCX-PAC-100 within warranty"},{"$f":"IF(MaintOnlyPrint=1,'Contact Center'!J116,0)","v":0},{"$f":"'Ordering Information'!I134","v":0.1},0]
[null,{"$f":"'Ordering Information'!C135","v":"MCX-PAC-150"},{"$f":"'Ordering Information'!E135","v":"Normal Renewal for CCX-PAC-150 within warranty"},{"$f":"IF(MaintOnlyPrint=1,'Contact Center'!J117,0)","v":0},{"$f":"'Ordering Information'!I135","v":0.1},{"$f":"D124*E124","v":0}]
[null,{"$f":"'Ordering Information'!C136","v":"MCX-PAC-200"},{"$f":"'Ordering Information'!E136","v":"Normal Renewal for CCX-PAC-200 within warranty"},{"$f":"IF(MaintOnlyPrint=1,'Contact Center'!J118,0)","v":0},{"$f":"'Ordering Information'!I136","v":0.1},0]
[null,{"$f":"'Ordering Information'!C137","v":"MCX-PAC-250"},{"$f":"'Ordering Information'!E137","v":"Normal Renewal for CCX-PAC-250 within warranty"},{"$f":"IF(MaintOnlyPrint=1,'Contact Center'!J119,0)","v":0},{"$f":"'Ordering Information'!I137","v":0.1},0]
[null,{"$f":"'Ordering Information'!C138","v":"MX-DSK-ADD"},{"$f":"'Ordering Information'!E138","v":"Normal Renewal for CX-DSK-ADD within warranty"},{"$f":"IF(MaintOnlyPrint=1,'Contact Center'!J120,0)","v":0},{"$f":"'Ordering Information'!I138","v":0.1},0]
[null,{"$f":"'Ordering Information'!C139","v":"MX-HMP"},{"$f":"'Ordering Information'!E139","v":"Normal Renewal for CX-HMP within warranty"},{"$f":"IF(MaintOnlyPrint=1,'Contact Center'!J121,0)","v":0},{"$f":"'Ordering Information'!I139","v":0.1},0]
[null,{"$f":"'Ordering Information'!C140","v":"MX-HMP-G729"},{"$f":"'Ordering Information'!E140","v":"Normal Renewal for CX-HMP-G729 within warranty"},{"$f":"IF(MaintOnlyPrint=1,'Contact Center'!J122,0)","v":0},{"$f":"'Ordering Information'!I140","v":0.1},{"$f":"D129*E129","v":0}]
[null,{"$f":"'Ordering Information'!C141","v":"MX-DB"},{"$f":"'Ordering Information'!E141","v":"Normal Renewal for CX-DB within warranty"},{"$f":"IF(MaintOnlyPrint=1,'Contact Center'!J123,0)","v":0},{"$f":"'Ordering Information'!I141","v":0.1},{"$f":"D130*E130","v":0}]
[null,{"$f":"'Ordering Information'!C142","v":"MX-CC-LICENSE"},{"$f":"'Ordering Information'!E142","v":"Normal Renewal for CX-CC-LICENSE within warranty"},{"$f":"IF(MaintOnlyPrint=1,'Contact Center'!J124,0)","v":0},{"$f":"'Ordering Information'!I142","v":0.1},{"$f":"D131*E131","v":0}]
[null,{"$f":"'Ordering Information'!C143","v":"MX-REC-B4"},{"$f":"'Ordering Information'!E143","v":"Normal Renewal for CX-REC-B4 within warranty"},{"$f":"IF(MaintOnlyPrint=1,'Contact Center'!J125,0)","v":0},{"$f":"'Ordering Information'!I143","v":0.1},0]
[null,{"$f":"'Ordering Information'!C144","v":"MX-REC-B8"},{"$f":"'Ordering Information'!E144","v":"Normal Renewal for CX-REC-B8 within warranty"},{"$f":"IF(MaintOnlyPrint=1,'Contact Center'!J126,0)","v":0},{"$f":"'Ordering Information'!I144","v":0.1},0]
[null,{"$f":"'Ordering Information'!C145","v":"MX-REC-B12"},{"$f":"'Ordering Information'!E145","v":"Normal Renewal for CX-REC-B12 within warranty"},{"$f":"IF(MaintOnlyPrint=1,'Contact Center'!J127,0)","v":0},{"$f":"'Ordering Information'!I145","v":0.1},0]
[null,{"$f":"'Ordering Information'!C146","v":"MX-REC-P8"},{"$f":"'Ordering Information'!E146","v":"Normal Renewal for CX-REC-P8 within warranty"},{"$f":"IF(MaintOnlyPrint=1,'Contact Center'!J128,0)","v":0},{"$f":"'Ordering Information'!I146","v":0.1},0]
[null,{"$f":"'Ordering Information'!C147","v":"MX-REC-P12"},{"$f":"'Ordering Information'!E147","v":"Normal Renewal for CX-REC-P12 within warranty"},{"$f":"IF(MaintOnlyPrint=1,'Contact Center'!J129,0)","v":0},{"$f":"'Ordering Information'!I147","v":0.1},0]
[null,{"$f":"'Ordering Information'!C148","v":"MX-REC-P16"},{"$f":"'Ordering Information'!E148","v":"Normal Renewal for CX-REC-P16 within warranty"},{"$f":"IF(MaintOnlyPrint=1,'Contact Center'!J130,0)","v":0},{"$f":"'Ordering Information'!I148","v":0.1},0]
[null,{"$f":"'Ordering Information'!C149","v":"MX-REC-P24"},{"$f":"'Ordering Information'!E149","v":"Normal Renewal for CX-REC-P24 within warranty"},{"$f":"IF(MaintOnlyPrint=1,'Contact Center'!J131,0)","v":0},{"$f":"'Ordering Information'!I149","v":0.1},0]
[null,{"$f":"'Ordering Information'!C150","v":"MX-REC-P30"},{"$f":"'Ordering Information'!E150","v":"Normal Renewal for CX-REC-P30 within warranty"},{"$f":"IF(MaintOnlyPrint=1,'Contact Center'!J132,0)","v":0},{"$f":"'Ordering Information'!I150","v":0.1},0]
[null,{"$f":"'Ordering Information'!C160","v":"MX-REC-V4"},{"$f":"'Ordering Information'!E160","v":"Normal Renewal for CX-REC-V4 within warranty"},{"$f":"IF(MaintOnlyPrint=1,'Contact Center'!J133,0)","v":0},{"$f":"'Ordering Information'!I160","v":0.1},0]
[null,{"$f":"'Ordering Information'!C161","v":"MX-REC-V6"},{"$f":"'Ordering Information'!E161","v":"Normal Renewal for CX-REC-V6 within warranty"},{"$f":"IF(MaintOnlyPrint=1,'Contact Center'!J134,0)","v":0},{"$f":"'Ordering Information'!I161","v":0.1},{"$f":"D141*E141","v":0}]
[null,{"$f":"'Ordering Information'!C162","v":"MX-REC-V8"},{"$f":"'Ordering Information'!E162","v":"Normal Renewal for CX-REC-V8 within warranty"},{"$f":"IF(MaintOnlyPrint=1,'Contact Center'!J135,0)","v":0},{"$f":"'Ordering Information'!I162","v":0.1},0]
[null,{"$f":"'Ordering Information'!C163","v":"MX-REC-V12"},{"$f":"'Ordering Information'!E163","v":"Normal Renewal for CX-REC-V12 within warranty"},{"$f":"IF(MaintOnlyPrint=1,'Contact Center'!J136,0)","v":0},{"$f":"'Ordering Information'!I163","v":0.1},0]
[null,{"$f":"'Ordering Information'!C164","v":"MX-REC-V16"},{"$f":"'Ordering Information'!E164","v":"Normal Renewal for CX-REC-V16 within warranty"},{"$f":"IF(MaintOnlyPrint=1,'Contact Center'!J137,0)","v":0},{"$f":"'Ordering Information'!I164","v":0.1},0]
[null,{"$f":"'Ordering Information'!C165","v":"MX-REC-V24"},{"$f":"'Ordering Information'!E165","v":"Normal Renewal for CX-REC-V24 within warranty"},{"$f":"IF(MaintOnlyPrint=1,'Contact Center'!J138,0)","v":0},{"$f":"'Ordering Information'!I165","v":0.1},{"$f":"D145*E145","v":0}]
[null,{"$f":"'Ordering Information'!C166","v":"MX-REC-V30"},{"$f":"'Ordering Information'!E166","v":"Normal Renewal for CX-REC-V30 within warranty"},{"$f":"IF(MaintOnlyPrint=1,'Contact Center'!J139,0)","v":0},{"$f":"'Ordering Information'!I166","v":0.1},0]
[null,{"$f":"'Ordering Information'!C167","v":"MX-REC-V40"},{"$f":"'Ordering Information'!E167","v":"Normal Renewal for CX-REC-V40 within warranty"},{"$f":"IF(MaintOnlyPrint=1,'Contact Center'!J140,0)","v":0},{"$f":"'Ordering Information'!I167","v":0.1},0]
[null,{"$f":"'Ordering Information'!C168","v":"MX-REC-V50"},{"$f":"'Ordering Information'!E168","v":"Normal Renewal for CX-REC-V50 within warranty"},{"$f":"IF(MaintOnlyPrint=1,'Contact Center'!J141,0)","v":0},{"$f":"'Ordering Information'!I168","v":0.1},0]
[null,{"$f":"'Ordering Information'!C169","v":"MX-REC-V60"},{"$f":"'Ordering Information'!E169","v":"Normal Renewal for CX-REC-V60 within warranty"},{"$f":"IF(MaintOnlyPrint=1,'Contact Center'!J142,0)","v":0},{"$f":"'Ordering Information'!I169","v":0.1},0]
[null,{"$f":"'Ordering Information'!C170","v":"MX-REC-V90"},{"$f":"'Ordering Information'!E170","v":"Normal Renewal for CX-REC-V90 within warranty"},{"$f":"IF(MaintOnlyPrint=1,'Contact Center'!J143,0)","v":0},{"$f":"'Ordering Information'!I170","v":0.1},0]
[null,{"$f":"'Ordering Information'!C171","v":"MX-REC-V120"},{"$f":"'Ordering Information'!E171","v":"Normal Renewal for CX-REC-V120 within warranty"},{"$f":"IF(MaintOnlyPrint=1,'Contact Center'!J144,0)","v":0},{"$f":"'Ordering Information'!I171","v":0.1},0]
[null,{"$f":"'Ordering Information'!C172","v":"MX-REC-V150"},{"$f":"'Ordering Information'!E172","v":"Normal Renewal for CX-REC-V150 within warranty"},{"$f":"IF(MaintOnlyPrint=1,'Contact Center'!J145,0)","v":0},{"$f":"'Ordering Information'!I172","v":0.1},0]
[null,{"$f":"'Ordering Information'!C173","v":"MX-REC-V180"},{"$f":"'Ordering Information'!E173","v":"Normal Renewal for CX-REC-V180 within warranty"},{"$f":"IF(MaintOnlyPrint=1,'Contact Center'!J146,0)","v":0},{"$f":"'Ordering Information'!I173","v":0.1},0]
[null,{"$f":"'Ordering Information'!C174","v":"MX-REC-V200"},{"$f":"'Ordering Information'!E174","v":"Normal Renewal for CX-REC-V200 within warranty"},{"$f":"IF(MaintOnlyPrint=1,'Contact Center'!J147,0)","v":0},{"$f":"'Ordering Information'!I174","v":0.1},0]
[null,{"$f":"'Ordering Information'!C175","v":"MX-REC-V240"},{"$f":"'Ordering Information'!E175","v":"Normal Renewal for CX-REC-V240 within warranty"},{"$f":"IF(MaintOnlyPrint=1,'Contact Center'!J148,0)","v":0},{"$f":"'Ordering Information'!I175","v":0.1},0]
[null,{"$f":"'Ordering Information'!C176","v":"MX-CODEC-G729"},{"$f":"'Ordering Information'!E176","v":"Normal Renewal for CX-CODEC-G729 within warranty"},{"$f":"IF(MaintOnlyPrint=1,'Contact Center'!J149,0)","v":0},{"$f":"'Ordering Information'!I176","v":0.1},{"$f":"D156*E156","v":0}]
[null,{"$f":"'Ordering Information'!C177","v":"MX-Q-EVF"},{"$f":"'Ordering Information'!E177","v":"Normal Renewal for CX-Q-EVF within warranty"},{"$f":"IF(MaintOnlyPrint=1,'Contact Center'!J150,0)","v":0},{"$f":"'Ordering Information'!I177","v":0.1},0]
[null,{"$f":"'Ordering Information'!C178","v":"MX-Q-SN"},{"$f":"'Ordering Information'!E178","v":"Normal Renewal for CX-Q-SN within warranty"},{"$f":"IF(MaintOnlyPrint=1,'Contact Center'!J151,0)","v":0},{"$f":"'Ordering Information'!I178","v":0.1},0]
[null,{"$f":"'Ordering Information'!C179","v":"MX-Q-MSN"},{"$f":"'Ordering Information'!E179","v":"Normal Renewal for CX-Q-MSN within warranty"},{"$f":"IF(MaintOnlyPrint=1,'Contact Center'!J152,0)","v":0},{"$f":"'Ordering Information'!I179","v":0.1},0]
[null,{"$f":"'Ordering Information'!C180","v":"MX-CHAT-5"},{"$f":"'Ordering Information'!E180","v":"Normal Renewal for CX-CHAT-5 within warranty"},{"$f":"IF(MaintOnlyPrint=1,'Contact Center'!J153,0)","v":0},{"$f":"'Ordering Information'!I180","v":0.1},0]
[null,{"$f":"'Ordering Information'!C181","v":"MX-CALL"},{"$f":"'Ordering Information'!E181","v":"Normal Renewal for CX-CALL within warranty"},{"$f":"IF(MaintOnlyPrint=1,'Contact Center'!J154,0)","v":0},{"$f":"'Ordering Information'!I181","v":0.1},0]
[null,{"$f":"'Ordering Information'!C182","v":"MX-CALL-U"},{"$f":"'Ordering Information'!E182","v":"Normal Renewal for CX-CALL-U within warranty"},{"$f":"IF(MaintOnlyPrint=1,'Contact Center'!J155,0)","v":0},{"$f":"'Ordering Information'!I182","v":0.1},0]
[null,{"$f":"'Ordering Information'!C183","v":"MX-SMS"},{"$f":"'Ordering Information'!E183","v":"Normal Renewal for CX-SMS within warranty"},{"$f":"IF(MaintOnlyPrint=1,'Contact Center'!J156,0)","v":0},{"$f":"'Ordering Information'!I183","v":0.1},0]
[null,{"$f":"'Ordering Information'!C184","v":"MX-IVR"},{"$f":"'Ordering Information'!E184","v":"Normal Renewal for CX-IVR within warranty"},{"$f":"IF(MaintOnlyPrint=1,'Contact Center'!J157,0)","v":0},{"$f":"'Ordering Information'!I184","v":0.1},0]
[null,{"$f":"'Ordering Information'!C185","v":"MX-SURVEY"},{"$f":"'Ordering Information'!E185","v":"Normal Renewal for CX-SURVEY within warranty"},{"$f":"IF(MaintOnlyPrint=1,'Contact Center'!J158,0)","v":0},{"$f":"'Ordering Information'!I185","v":0.1},0]
[null,{"$f":"'Ordering Information'!C186","v":"MX-COACH"},{"$f":"'Ordering Information'!E186","v":"Normal Renewal for CX-COACH within warranty"},{"$f":"IF(MaintOnlyPrint=1,'Contact Center'!J159,0)","v":0},{"$f":"'Ordering Information'!I186","v":0.1},0]
[null,{"$f":"'Ordering Information'!C187","v":"MX-ASSESSOR"},{"$f":"'Ordering Information'!E187","v":"Normal Renewal for CX-ASSESSOR within warranty"},{"$f":"IF(MaintOnlyPrint=1,'Contact Center'!J160,0)","v":0},{"$f":"'Ordering Information'!I187","v":0.1},{"$f":"D167*E167","v":0}]
[null,{"$f":"'Ordering Information'!C188","v":"MX-SCRIPT"},{"$f":"'Ordering Information'!E188","v":"Normal Renewal for CX-SCRIPT within warranty"},{"$f":"IF(MaintOnlyPrint=1,'Contact Center'!J161,0)","v":0},{"$f":"'Ordering Information'!I188","v":0.1},0]
[null,{"$f":"'Ordering Information'!C189","v":"MX-PIDC-MGR"},{"$f":"'Ordering Information'!E189","v":"Normal Renewal for CX-PIDC-MGR within warranty"},{"$f":"IF(MaintOnlyPrint=1,'Contact Center'!J162,0)","v":0},{"$f":"'Ordering Information'!I189","v":0.1},{"$f":"D169*E169","v":0}]
[null,{"$f":"'Ordering Information'!C190","v":"MX-A-REP-D"},{"$f":"'Ordering Information'!E190","v":"Normal Renewal for CX-A-REP-D within warranty"},{"$f":"IF(MaintOnlyPrint=1,'Contact Center'!J163,0)","v":0},{"$f":"'Ordering Information'!I190","v":0.1},0]
[null,{"$f":"'Ordering Information'!C191","v":"MX-A-REP-EH"},{"$f":"'Ordering Information'!E191","v":"Normal Renewal for CX-A-REP-EH within warranty"},{"$f":"IF(MaintOnlyPrint=1,'Contact Center'!J164,0)","v":0},{"$f":"'Ordering Information'!I191","v":0.1},0]
[null,{"$f":"'Ordering Information'!C192","v":"MX-A-REP-ES"},{"$f":"'Ordering Information'!E192","v":"Normal Renewal for CX-A-REP-ES within warranty"},{"$f":"IF(MaintOnlyPrint=1,'Contact Center'!J165,0)","v":0},{"$f":"'Ordering Information'!I192","v":0.1},0]
[null,{"$f":"'Ordering Information'!C193","v":"MX-A-REP-SL"},{"$f":"'Ordering Information'!E193","v":"Normal Renewal for CX-A-REP-SL within warranty"},{"$f":"IF(MaintOnlyPrint=1,'Contact Center'!J166,0)","v":0},{"$f":"'Ordering Information'!I193","v":0.1},0]
[null,{"$f":"'Ordering Information'!C194","v":"MX-IPCR-INT4"},{"$f":"'Ordering Information'!E194","v":"Normal Renewal for CX-IPCR-INT4 within warranty"},{"$f":"IF(MaintOnlyPrint=1,'Contact Center'!J167,0)","v":0},{"$f":"'Ordering Information'!I194","v":0.1},0]
[null,{"$f":"'Ordering Information'!C195","v":"MX-IPCR-INT8"},{"$f":"'Ordering Information'!E195","v":"Normal Renewal for CX-IPCR-INT8 within warranty"},{"$f":"IF(MaintOnlyPrint=1,'Contact Center'!J168,0)","v":0},{"$f":"'Ordering Information'!I195","v":0.1},0]
[null,{"$f":"'Ordering Information'!C196","v":"MX-IPCR-INT12"},{"$f":"'Ordering Information'!E196","v":"Normal Renewal for CX-IPCR-INT12 within warranty"},{"$f":"IF(MaintOnlyPrint=1,'Contact Center'!J169,0)","v":0},{"$f":"'Ordering Information'!I196","v":0.1},0]
[null,{"$f":"'Ordering Information'!C197","v":"MX-IPCR-INT16"},{"$f":"'Ordering Information'!E197","v":"Normal Renewal for CX-IPCR-INT16 within warranty"},{"$f":"IF(MaintOnlyPrint=1,'Contact Center'!J170,0)","v":0},{"$f":"'Ordering Information'!I197","v":0.1},0]
[null,{"$f":"'Ordering Information'!C198","v":"MX-IPCR-INT24"},{"$f":"'Ordering Information'!E198","v":"Normal Renewal for CX-IPCR-INT24 within warranty"},{"$f":"IF(MaintOnlyPrint=1,'Contact Center'!J171,0)","v":0},{"$f":"'Ordering Information'!I198","v":0.1},0]
[null,{"$f":"'Ordering Information'!C199","v":"MX-IPCR-INT30"},{"$f":"'Ordering Information'!E199","v":"Normal Renewal for CX-IPCR-INT30 within warranty"},{"$f":"IF(MaintOnlyPrint=1,'Contact Center'!J172,0)","v":0},{"$f":"'Ordering Information'!I199","v":0.1},0]
[null,{"$f":"'Ordering Information'!C200","v":"MX-IPCR-INT40"},{"$f":"'Ordering Information'!E200","v":"Normal Renewal for CX-IPCR-INT40 within warranty"},{"$f":"IF(MaintOnlyPrint=1,'Contact Center'!J173,0)","v":0},{"$f":"'Ordering Information'!I200","v":0.1},0]
[null,{"$f":"'Ordering Information'!C201","v":"MX-IPCR-INT50"},{"$f":"'Ordering Information'!E201","v":"Normal Renewal for CX-IPCR-INT50 within warranty"},{"$f":"IF(MaintOnlyPrint=1,'Contact Center'!J174,0)","v":0},{"$f":"'Ordering Information'!I201","v":0.1},0]
[null,{"$f":"'Ordering Information'!C202","v":"MX-IPCR-INT60"},{"$f":"'Ordering Information'!E202","v":"Normal Renewal for CX-IPCR-INT60 within warranty"},{"$f":"IF(MaintOnlyPrint=1,'Contact Center'!J175,0)","v":0},{"$f":"'Ordering Information'!I202","v":0.1},0]
[null,{"$f":"'Ordering Information'!C203","v":"MX-IPCR-INT90"},{"$f":"'Ordering Information'!E203","v":"Normal Renewal for CX-IPCR-INT90 within warranty"},{"$f":"IF(MaintOnlyPrint=1,'Contact Center'!J176,0)","v":0},{"$f":"'Ordering Information'!I203","v":0.1},0]
[null,{"$f":"'Ordering Information'!C204","v":"MX-IPCR-INT120"},{"$f":"'Ordering Information'!E204","v":"Normal Renewal for CX-IPCR-INT120 within warranty"},{"$f":"IF(MaintOnlyPrint=1,'Contact Center'!J177,0)","v":0},{"$f":"'Ordering Information'!I204","v":0.1},0]
[null,{"$f":"'Ordering Information'!C205","v":"MX-IPCR-INT150"},{"$f":"'Ordering Information'!E205","v":"Normal Renewal for CX-IPCR-INT150 within warranty"},{"$f":"IF(MaintOnlyPrint=1,'Contact Center'!J178,0)","v":0},{"$f":"'Ordering Information'!I205","v":0.1},0]
[null,{"$f":"'Ordering Information'!C206","v":"MX-IPCR-INT180"},{"$f":"'Ordering Information'!E206","v":"Normal Renewal for CX-IPCR-INT180 within warranty"},{"$f":"IF(MaintOnlyPrint=1,'Contact Center'!J179,0)","v":0},{"$f":"'Ordering Information'!I206","v":0.1},0]
[null,{"$f":"'Ordering Information'!C207","v":"MX-IPCR-INT-ADD"},{"$f":"'Ordering Information'!E207","v":"Normal Renewal for CX-IPCR-INT-ADD within warranty"},{"$f":"IF(MaintOnlyPrint=1,'Contact Center'!J180,0)","v":0},{"$f":"'Ordering Information'!I207","v":0.1},0]
[null,{"$f":"'Ordering Information'!C208","v":"MCX-PAC-5-E"},{"$f":"'Ordering Information'!E208","v":"Renewal for CCX-PAC-5 at the time of the initial purchase"},{"$f":"IF(MaintOnlyPrint=0,'Contact Center'!J110,0)","v":0},{"$f":"'Ordering Information'!I208","v":7.0000000000000007E-2},0]
[null,{"$f":"'Ordering Information'!C209","v":"MCX-PAC-10-E"},{"$f":"'Ordering Information'!E209","v":"Renewal for CCX-PAC-10 at the time of the initial purchase"},{"$f":"IF(MaintOnlyPrint=0,'Contact Center'!J111,0)","v":0},{"$f":"'Ordering Information'!I209","v":7.0000000000000007E-2},0]
[null,{"$f":"'Ordering Information'!C210","v":"MCX-PAC-20-E"},{"$f":"'Ordering Information'!E210","v":"Renewal for CCX-PAC-20 at the time of the initial purchase"},{"$f":"IF(MaintOnlyPrint=0,'Contact Center'!J112,0)","v":0},{"$f":"'Ordering Information'!I210","v":7.0000000000000007E-2},0]
[null,{"$f":"'Ordering Information'!C211","v":"MCX-PAC-30-E"},{"$f":"'Ordering Information'!E211","v":"Renewal for CCX-PAC-30 at the time of the initial purchase"},{"$f":"IF(MaintOnlyPrint=0,'Contact Center'!J113,0)","v":0},{"$f":"'Ordering Information'!I211","v":7.0000000000000007E-2},0]
[null,{"$f":"'Ordering Information'!C212","v":"MCX-PAC-50-E"},{"$f":"'Ordering Information'!E212","v":"Renewal for CCX-PAC-50 at the time of the initial purchase"},{"$f":"IF(MaintOnlyPrint=0,'Contact Center'!J114,0)","v":0},{"$f":"'Ordering Information'!I212","v":7.0000000000000007E-2},0]
[null,{"$f":"'Ordering Information'!C213","v":"MCX-PAC-75-E"},{"$f":"'Ordering Information'!E213","v":"Renewal for CCX-PAC-75 at the time of the initial purchase"},{"$f":"IF(MaintOnlyPrint=0,'Contact Center'!J115,0)","v":0},{"$f":"'Ordering Information'!I213","v":7.0000000000000007E-2},0]
[null,{"$f":"'Ordering Information'!C214","v":"MCX-PAC-100-E"},{"$f":"'Ordering Information'!E214","v":"Renewal for CCX-PAC-100 at the time of the initial purchase"},{"$f":"IF(MaintOnlyPrint=0,'Contact Center'!J116,0)","v":0},{"$f":"'Ordering Information'!I214","v":7.0000000000000007E-2},0]
[null,{"$f":"'Ordering Information'!C215","v":"MCX-PAC-150-E"},{"$f":"'Ordering Information'!E215","v":"Renewal for CCX-PAC-150 at the time of the initial purchase"},{"$f":"IF(MaintOnlyPrint=0,'Contact Center'!J117,0)","v":0},{"$f":"'Ordering Information'!I215","v":7.0000000000000007E-2},{"$f":"D195*E195","v":0}]
[null,{"$f":"'Ordering Information'!C216","v":"MCX-PAC-200-E"},{"$f":"'Ordering Information'!E216","v":"Renewal for CCX-PAC-200 at the time of the initial purchase"},{"$f":"IF(MaintOnlyPrint=0,'Contact Center'!J118,0)","v":0},{"$f":"'Ordering Information'!I216","v":7.0000000000000007E-2},0]
[null,{"$f":"'Ordering Information'!C217","v":"MCX-PAC-250-E"},{"$f":"'Ordering Information'!E217","v":"Renewal for CCX-PAC-250 at the time of the initial purchase"},{"$f":"IF(MaintOnlyPrint=0,'Contact Center'!J119,0)","v":0},{"$f":"'Ordering Information'!I217","v":7.0000000000000007E-2},0]
[null,{"$f":"'Ordering Information'!C218","v":"MX-DSK-ADD-E"},{"$f":"'Ordering Information'!E218","v":"Renewal for CX-DSK-ADD at the time of the initial purchase"},{"$f":"IF(MaintOnlyPrint=0,'Contact Center'!J120,0)","v":0},{"$f":"'Ordering Information'!I218","v":7.0000000000000007E-2},{"$f":"D198*E198","v":0}]
[null,{"$f":"'Ordering Information'!C219","v":"MX-HMP-E"},{"$f":"'Ordering Information'!E219","v":"Renewal for CX-HMP at the time of the initial purchase"},{"$f":"IF(MaintOnlyPrint=0,'Contact Center'!J121,0)","v":0},{"$f":"'Ordering Information'!I219","v":7.0000000000000007E-2},0]
[null,{"$f":"'Ordering Information'!C220","v":"MX-HMP-G729-E"},{"$f":"'Ordering Information'!E220","v":"Renewal for CX-HMP-G729 at the time of the initial purchase"},{"$f":"IF(MaintOnlyPrint=0,'Contact Center'!J122,0)","v":0},{"$f":"'Ordering Information'!I220","v":7.0000000000000007E-2},{"$f":"D200*E200","v":0}]
[null,{"$f":"'Ordering Information'!C221","v":"MX-DB-E"},{"$f":"'Ordering Information'!E221","v":"Renewal for CX-DB at the time of the initial purchase"},{"$f":"IF(MaintOnlyPrint=0,'Contact Center'!J123,0)","v":0},{"$f":"'Ordering Information'!I221","v":7.0000000000000007E-2},{"$f":"D201*E201","v":0}]
[null,{"$f":"'Ordering Information'!C222","v":"MX-CC-LICENSE-E"},{"$f":"'Ordering Information'!E222","v":"Renewal for CX-CC-LICENSE at the time of the initial purchase"},{"$f":"IF(MaintOnlyPrint=0,'Contact Center'!J124,0)","v":0},{"$f":"'Ordering Information'!I222","v":7.0000000000000007E-2},{"$f":"D202*E202","v":0}]
[null,{"$f":"'Ordering Information'!C223","v":"MX-REC-B4-E"},{"$f":"'Ordering Information'!E223","v":"Renewal for CX-REC-B4 at the time of the initial purchase"},{"$f":"IF(MaintOnlyPrint=0,'Contact Center'!J125,0)","v":0},{"$f":"'Ordering Information'!I223","v":7.0000000000000007E-2},0]
[null,{"$f":"'Ordering Information'!C224","v":"MX-REC-B8-E"},{"$f":"'Ordering Information'!E224","v":"Renewal for CX-REC-B8 at the time of the initial purchase"},{"$f":"IF(MaintOnlyPrint=0,'Contact Center'!J126,0)","v":0},{"$f":"'Ordering Information'!I224","v":7.0000000000000007E-2},0]
[null,{"$f":"'Ordering Information'!C225","v":"MX-REC-B12-E"},{"$f":"'Ordering Information'!E225","v":"Renewal for CX-REC-B12 at the time of the initial purchase"},{"$f":"IF(MaintOnlyPrint=0,'Contact Center'!J127,0)","v":0},{"$f":"'Ordering Information'!I225","v":7.0000000000000007E-2},0]
[null,{"$f":"'Ordering Information'!C226","v":"MX-REC-P8-E"},{"$f":"'Ordering Information'!E226","v":"Renewal for CX-REC-P8 at the time of the initial purchase"},{"$f":"IF(MaintOnlyPrint=0,'Contact Center'!J128,0)","v":0},{"$f":"'Ordering Information'!I226","v":7.0000000000000007E-2},0]
[null,{"$f":"'Ordering Information'!C227","v":"MX-REC-P12-E"},{"$f":"'Ordering Information'!E227","v":"Renewal for CX-REC-P12 at the time of the initial purchase"},{"$f":"IF(MaintOnlyPrint=0,'Contact Center'!J129,0)","v":0},{"$f":"'Ordering Information'!I227","v":7.0000000000000007E-2},0]
[null,{"$f":"'Ordering Information'!C228","v":"MX-REC-P16-E"},{"$f":"'Ordering Information'!E228","v":"Renewal for CX-REC-P16 at the time of the initial purchase"},{"$f":"IF(MaintOnlyPrint=0,'Contact Center'!J130,0)","v":0},{"$f":"'Ordering Information'!I228","v":7.0000000000000007E-2},0]
[null,{"$f":"'Ordering Information'!C229","v":"MX-REC-P24-E"},{"$f":"'Ordering Information'!E229","v":"Renewal for CX-REC-P24 at the time of the initial purchase"},{"$f":"IF(MaintOnlyPrint=0,'Contact Center'!J131,0)","v":0},{"$f":"'Ordering Information'!I229","v":7.0000000000000007E-2},0]
[null,{"$f":"'Ordering Information'!C230","v":"MX-REC-P30-E"},{"$f":"'Ordering Information'!E230","v":"Renewal for CX-REC-P30 at the time of the initial purchase"},{"$f":"IF(MaintOnlyPrint=0,'Contact Center'!J132,0)","v":0},{"$f":"'Ordering Information'!I230","v":7.0000000000000007E-2},0]
[null,{"$f":"'Ordering Information'!C240","v":"MX-REC-V4-E"},{"$f":"'Ordering Information'!E240","v":"Renewal for CX-REC-V4 at the time of the initial purchase"},{"$f":"IF(MaintOnlyPrint=0,'Contact Center'!J133,0)","v":0},{"$f":"'Ordering Information'!I240","v":7.0000000000000007E-2},{"$f":"D211*E211","v":0}]
[null,{"$f":"'Ordering Information'!C241","v":"MX-REC-V6-E"},{"$f":"'Ordering Information'!E241","v":"Renewal for CX-REC-V6 at the time of the initial purchase"},{"$f":"IF(MaintOnlyPrint=0,'Contact Center'!J134,0)","v":0},{"$f":"'Ordering Information'!I241","v":7.0000000000000007E-2},{"$f":"D212*E212","v":0}]
[null,{"$f":"'Ordering Information'!C242","v":"MX-REC-V8-E"},{"$f":"'Ordering Information'!E242","v":"Renewal for CX-REC-V8 at the time of the initial purchase"},{"$f":"IF(MaintOnlyPrint=0,'Contact Center'!J135,0)","v":0},{"$f":"'Ordering Information'!I242","v":7.0000000000000007E-2},0]
[null,{"$f":"'Ordering Information'!C243","v":"MX-REC-V12-E"},{"$f":"'Ordering Information'!E243","v":"Renewal for CX-REC-V12 at the time of the initial purchase"},{"$f":"IF(MaintOnlyPrint=0,'Contact Center'!J136,0)","v":0},{"$f":"'Ordering Information'!I243","v":7.0000000000000007E-2},0]
[null,{"$f":"'Ordering Information'!C244","v":"MX-REC-V16-E"},{"$f":"'Ordering Information'!E244","v":"Renewal for CX-REC-V16 at the time of the initial purchase"},{"$f":"IF(MaintOnlyPrint=0,'Contact Center'!J137,0)","v":0},{"$f":"'Ordering Information'!I244","v":7.0000000000000007E-2},0]
[null,{"$f":"'Ordering Information'!C245","v":"MX-REC-V24-E"},{"$f":"'Ordering Information'!E245","v":"Renewal for CX-REC-V24 at the time of the initial purchase"},{"$f":"IF(MaintOnlyPrint=0,'Contact Center'!J138,0)","v":0},{"$f":"'Ordering Information'!I245","v":7.0000000000000007E-2},0]
[null,{"$f":"'Ordering Information'!C246","v":"MX-REC-V30-E"},{"$f":"'Ordering Information'!E246","v":"Renewal for CX-REC-V30 at the time of the initial purchase"},{"$f":"IF(MaintOnlyPrint=0,'Contact Center'!J139,0)","v":0},{"$f":"'Ordering Information'!I246","v":7.0000000000000007E-2},0]
[null,{"$f":"'Ordering Information'!C247","v":"MX-REC-V40-E"},{"$f":"'Ordering Information'!E247","v":"Renewal for CX-REC-V40 at the time of the initial purchase"},{"$f":"IF(MaintOnlyPrint=0,'Contact Center'!J140,0)","v":0},{"$f":"'Ordering Information'!I247","v":7.0000000000000007E-2},0]
[null,{"$f":"'Ordering Information'!C248","v":"MX-REC-V50-E"},{"$f":"'Ordering Information'!E248","v":"Renewal for CX-REC-V50 at the time of the initial purchase"},{"$f":"IF(MaintOnlyPrint=0,'Contact Center'!J141,0)","v":0},{"$f":"'Ordering Information'!I248","v":7.0000000000000007E-2},0]
[null,{"$f":"'Ordering Information'!C249","v":"MX-REC-V60-E"},{"$f":"'Ordering Information'!E249","v":"Renewal for CX-REC-V60 at the time of the initial purchase"},{"$f":"IF(MaintOnlyPrint=0,'Contact Center'!J142,0)","v":0},{"$f":"'Ordering Information'!I249","v":7.0000000000000007E-2},0]
[null,{"$f":"'Ordering Information'!C250","v":"MX-REC-V90-E"},{"$f":"'Ordering Information'!E250","v":"Renewal for CX-REC-V90 at the time of the initial purchase"},{"$f":"IF(MaintOnlyPrint=0,'Contact Center'!J143,0)","v":0},{"$f":"'Ordering Information'!I250","v":7.0000000000000007E-2},0]
[null,{"$f":"'Ordering Information'!C251","v":"MX-REC-V120-E"},{"$f":"'Ordering Information'!E251","v":"Renewal for CX-REC-V120 at the time of the initial purchase"},{"$f":"IF(MaintOnlyPrint=0,'Contact Center'!J144,0)","v":0},{"$f":"'Ordering Information'!I251","v":7.0000000000000007E-2},0]
[null,{"$f":"'Ordering Information'!C252","v":"MX-REC-V150-E"},{"$f":"'Ordering Information'!E252","v":"Renewal for CX-REC-V150 at the time of the initial purchase"},{"$f":"IF(MaintOnlyPrint=0,'Contact Center'!J145,0)","v":0},{"$f":"'Ordering Information'!I252","v":7.0000000000000007E-2},0]
[null,{"$f":"'Ordering Information'!C253","v":"MX-REC-V180-E"},{"$f":"'Ordering Information'!E253","v":"Renewal for CX-REC-V180 at the time of the initial purchase"},{"$f":"IF(MaintOnlyPrint=0,'Contact Center'!J146,0)","v":0},{"$f":"'Ordering Information'!I253","v":7.0000000000000007E-2},0]
[null,{"$f":"'Ordering Information'!C254","v":"MX-REC-V200-E"},{"$f":"'Ordering Information'!E254","v":"Renewal for CX-REC-V200 at the time of the initial purchase"},{"$f":"IF(MaintOnlyPrint=0,'Contact Center'!J147,0)","v":0},{"$f":"'Ordering Information'!I254","v":7.0000000000000007E-2},0]
[null,{"$f":"'Ordering Information'!C255","v":"MX-REC-V240-E"},{"$f":"'Ordering Information'!E255","v":"Renewal for CX-REC-V240 at the time of the initial purchase"},{"$f":"IF(MaintOnlyPrint=0,'Contact Center'!J148,0)","v":0},{"$f":"'Ordering Information'!I255","v":7.0000000000000007E-2},0]
[null,{"$f":"'Ordering Information'!C256","v":"MX-CODEC-G729-E"},{"$f":"'Ordering Information'!E256","v":"Renewal for CX-CODEC-G729 at the time of the initial purchase"},{"$f":"IF(MaintOnlyPrint=0,'Contact Center'!J149,0)","v":0},{"$f":"'Ordering Information'!I256","v":7.0000000000000007E-2},{"$f":"D227*E227","v":0}]
[null,{"$f":"'Ordering Information'!C257","v":"MX-Q-EVF-E"},{"$f":"'Ordering Information'!E257","v":"Renewal for CX-Q-EVF at the time of the initial purchase"},{"$f":"IF(MaintOnlyPrint=0,'Contact Center'!J150,0)","v":0},{"$f":"'Ordering Information'!I257","v":7.0000000000000007E-2},0]
[null,{"$f":"'Ordering Information'!C258","v":"MX-Q-SN-E"},{"$f":"'Ordering Information'!E258","v":"Renewal for CX-Q-SN at the time of the initial purchase"},{"$f":"IF(MaintOnlyPrint=0,'Contact Center'!J151,0)","v":0},{"$f":"'Ordering Information'!I258","v":7.0000000000000007E-2},0]
[null,{"$f":"'Ordering Information'!C259","v":"MX-Q-MSN-E"},{"$f":"'Ordering Information'!E259","v":"Renewal for CX-Q-MSN at the time of the initial purchase"},{"$f":"IF(MaintOnlyPrint=0,'Contact Center'!J152,0)","v":0},{"$f":"'Ordering Information'!I259","v":7.0000000000000007E-2},0]
[null,{"$f":"'Ordering Information'!C260","v":"MX-CHAT-5-E"},{"$f":"'Ordering Information'!E260","v":"Renewal for CX-CHAT-5 at the time of the initial purchase"},{"$f":"IF(MaintOnlyPrint=0,'Contact Center'!J153,0)","v":0},{"$f":"'Ordering Information'!I260","v":7.0000000000000007E-2},0]
[null,{"$f":"'Ordering Information'!C261","v":"MX-CALL-E"},{"$f":"'Ordering Information'!E261","v":"Renewal for CX-CALL at the time of the initial purchase"},{"$f":"IF(MaintOnlyPrint=0,'Contact Center'!J154,0)","v":0},{"$f":"'Ordering Information'!I261","v":7.0000000000000007E-2},0]
[null,{"$f":"'Ordering Information'!C262","v":"MX-CALL-U-E"},{"$f":"'Ordering Information'!E262","v":"Renewal for CX-CALL-U at the time of the initial purchase"},{"$f":"IF(MaintOnlyPrint=0,'Contact Center'!J155,0)","v":0},{"$f":"'Ordering Information'!I262","v":7.0000000000000007E-2},0]
[null,{"$f":"'Ordering Information'!C263","v":"MX-SMS-E"},{"$f":"'Ordering Information'!E263","v":"Renewal for CX-SMS at the time of the initial purchase"},{"$f":"IF(MaintOnlyPrint=0,'Contact Center'!J156,0)","v":0},{"$f":"'Ordering Information'!I263","v":7.0000000000000007E-2},0]
[null,{"$f":"'Ordering Information'!C264","v":"MX-IVR-E"},{"$f":"'Ordering Information'!E264","v":"Renewal for CX-IVR at the time of the initial purchase"},{"$f":"IF(MaintOnlyPrint=0,'Contact Center'!J157,0)","v":0},{"$f":"'Ordering Information'!I264","v":7.0000000000000007E-2},0]
[null,{"$f":"'Ordering Information'!C265","v":"MX-SURVEY-E"},{"$f":"'Ordering Information'!E265","v":"Renewal for CX-SURVEY at the time of the initial purchase"},{"$f":"IF(MaintOnlyPrint=0,'Contact Center'!J158,0)","v":0},{"$f":"'Ordering Information'!I265","v":7.0000000000000007E-2},0]
[null,{"$f":"'Ordering Information'!C266","v":"MX-COACH-E"},{"$f":"'Ordering Information'!E266","v":"Renewal for CX-COACH at the time of the initial purchase"},{"$f":"IF(MaintOnlyPrint=0,'Contact Center'!J159,0)","v":0},{"$f":"'Ordering Information'!I266","v":7.0000000000000007E-2},0]
[null,{"$f":"'Ordering Information'!C267","v":"MX-ASSESSOR-E"},{"$f":"'Ordering Information'!E267","v":"Renewal for CX-ASSESSOR at the time of the initial purchase"},{"$f":"IF(MaintOnlyPrint=0,'Contact Center'!J160,0)","v":0},{"$f":"'Ordering Information'!I267","v":7.0000000000000007E-2},{"$f":"D238*E238","v":0}]
[null,{"$f":"'Ordering Information'!C268","v":"MX-SCRIPT-E"},{"$f":"'Ordering Information'!E268","v":"Renewal for CX-SCRIPT at the time of the initial purchase"},{"$f":"IF(MaintOnlyPrint=0,'Contact Center'!J161,0)","v":0},{"$f":"'Ordering Information'!I268","v":7.0000000000000007E-2},0]
[null,{"$f":"'Ordering Information'!C269","v":"MX-PIDC-MGR-E"},{"$f":"'Ordering Information'!E269","v":"Renewal for CX-PIDC-MGR at the time of the initial purchase"},{"$f":"IF(MaintOnlyPrint=0,'Contact Center'!J162,0)","v":0},{"$f":"'Ordering Information'!I269","v":7.0000000000000007E-2},{"$f":"D240*E240","v":0}]
[null,{"$f":"'Ordering Information'!C270","v":"MX-A-REP-D-E"},{"$f":"'Ordering Information'!E270","v":"Renewal for CX-A-REP-D at the time of the initial purchase"},{"$f":"IF(MaintOnlyPrint=0,'Contact Center'!J163,0)","v":0},{"$f":"'Ordering Information'!I270","v":7.0000000000000007E-2},0]
[null,{"$f":"'Ordering Information'!C271","v":"MX-A-REP-EH-E"},{"$f":"'Ordering Information'!E271","v":"Renewal for CX-A-REP-EH at the time of the initial purchase"},{"$f":"IF(MaintOnlyPrint=0,'Contact Center'!J164,0)","v":0},{"$f":"'Ordering Information'!I271","v":7.0000000000000007E-2},0]
[null,{"$f":"'Ordering Information'!C272","v":"MX-A-REP-ES-E"},{"$f":"'Ordering Information'!E272","v":"Renewal for CX-A-REP-ES at the time of the initial purchase"},{"$f":"IF(MaintOnlyPrint=0,'Contact Center'!J165,0)","v":0},{"$f":"'Ordering Information'!I272","v":7.0000000000000007E-2},0]
[null,{"$f":"'Ordering Information'!C273","v":"MX-A-REP-SL-E"},{"$f":"'Ordering Information'!E273","v":"Renewal for CX-A-REP-SL at the time of the initial purchase"},{"$f":"IF(MaintOnlyPrint=0,'Contact Center'!J166,0)","v":0},{"$f":"'Ordering Information'!I273","v":7.0000000000000007E-2},0]
[null,{"$f":"'Ordering Information'!C274","v":"MX-IPCR-INT4-E"},{"$f":"'Ordering Information'!E274","v":"Renewal for CX-IPCR-INT4 at the time of the initial purchase"},{"$f":"IF(MaintOnlyPrint=0,'Contact Center'!J167,0)","v":0},{"$f":"'Ordering Information'!I274","v":7.0000000000000007E-2},0]
[null,{"$f":"'Ordering Information'!C275","v":"MX-IPCR-INT8-E"},{"$f":"'Ordering Information'!E275","v":"Renewal for CX-IPCR-INT8 at the time of the initial purchase"},{"$f":"IF(MaintOnlyPrint=0,'Contact Center'!J168,0)","v":0},{"$f":"'Ordering Information'!I275","v":7.0000000000000007E-2},0]
[null,{"$f":"'Ordering Information'!C276","v":"MX-IPCR-INT12-E"},{"$f":"'Ordering Information'!E276","v":"Renewal for CX-IPCR-INT12 at the time of the initial purchase"},{"$f":"IF(MaintOnlyPrint=0,'Contact Center'!J169,0)","v":0},{"$f":"'Ordering Information'!I276","v":7.0000000000000007E-2},0]
[null,{"$f":"'Ordering Information'!C277","v":"MX-IPCR-INT16-E"},{"$f":"'Ordering Information'!E277","v":"Renewal for CX-IPCR-INT16 at the time of the initial purchase"},{"$f":"IF(MaintOnlyPrint=0,'Contact Center'!J170,0)","v":0},{"$f":"'Ordering Information'!I277","v":7.0000000000000007E-2},0]
[null,{"$f":"'Ordering Information'!C278","v":"MX-IPCR-INT24-E"},{"$f":"'Ordering Information'!E278","v":"Renewal for CX-IPCR-INT24 at the time of the initial purchase"},{"$f":"IF(MaintOnlyPrint=0,'Contact Center'!J171,0)","v":0},{"$f":"'Ordering Information'!I278","v":7.0000000000000007E-2},0]
[null,{"$f":"'Ordering Information'!C279","v":"MX-IPCR-INT30-E"},{"$f":"'Ordering Information'!E279","v":"Renewal for CX-IPCR-INT30 at the time of the initial purchase"},{"$f":"IF(MaintOnlyPrint=0,'Contact Center'!J172,0)","v":0},{"$f":"'Ordering Information'!I279","v":7.0000000000000007E-2},0]
[null,{"$f":"'Ordering Information'!C280","v":"MX-IPCR-INT40-E"},{"$f":"'Ordering Information'!E280","v":"Renewal for CX-IPCR-INT40 at the time of the initial purchase"},{"$f":"IF(MaintOnlyPrint=0,'Contact Center'!J173,0)","v":0},{"$f":"'Ordering Information'!I280","v":7.0000000000000007E-2},0]
[null,{"$f":"'Ordering Information'!C281","v":"MX-IPCR-INT50-E"},{"$f":"'Ordering Information'!E281","v":"Renewal for CX-IPCR-INT50 at the time of the initial purchase"},{"$f":"IF(MaintOnlyPrint=0,'Contact Center'!J174,0)","v":0},{"$f":"'Ordering Information'!I281","v":7.0000000000000007E-2},0]
[null,{"$f":"'Ordering Information'!C282","v":"MX-IPCR-INT60-E"},{"$f":"'Ordering Information'!E282","v":"Renewal for CX-IPCR-INT60 at the time of the initial purchase"},{"$f":"IF(MaintOnlyPrint=0,'Contact Center'!J175,0)","v":0},{"$f":"'Ordering Information'!I282","v":7.0000000000000007E-2},0]
[null,{"$f":"'Ordering Information'!C283","v":"MX-IPCR-INT90-E"},{"$f":"'Ordering Information'!E283","v":"Renewal for CX-IPCR-INT90 at the time of the initial purchase"},{"$f":"IF(MaintOnlyPrint=0,'Contact Center'!J176,0)","v":0},{"$f":"'Ordering Information'!I283","v":7.0000000000000007E-2},0]
[null,{"$f":"'Ordering Information'!C284","v":"MX-IPCR-INT120-E"},{"$f":"'Ordering Information'!E284","v":"Renewal for CX-IPCR-INT120 at the time of the initial purchase"},{"$f":"IF(MaintOnlyPrint=0,'Contact Center'!J177,0)","v":0},{"$f":"'Ordering Information'!I284","v":7.0000000000000007E-2},0]
[null,{"$f":"'Ordering Information'!C285","v":"MX-IPCR-INT150-E"},{"$f":"'Ordering Information'!E285","v":"Renewal for CX-IPCR-INT150 at the time of the initial purchase"},{"$f":"IF(MaintOnlyPrint=0,'Contact Center'!J178,0)","v":0},{"$f":"'Ordering Information'!I285","v":7.0000000000000007E-2},0]
[null,{"$f":"'Ordering Information'!C286","v":"MX-IPCR-INT180-E"},{"$f":"'Ordering Information'!E286","v":"Renewal for CX-IPCR-INT180 at the time of the initial purchase"},{"$f":"IF(MaintOnlyPrint=0,'Contact Center'!J179,0)","v":0},{"$f":"'Ordering Information'!I286","v":7.0000000000000007E-2},0]
[null,{"$f":"'Ordering Information'!C287","v":"MX-IPCR-INT-ADD-E"},{"$f":"'Ordering Information'!E287","v":"Renewal for CX-IPCR-INT-ADD at the time of the initial purchase"},{"$f":"IF(MaintOnlyPrint=0,'Contact Center'!J180,0)","v":0},{"$f":"'Ordering Information'!I287","v":7.0000000000000007E-2},0]
[null,{"$f":"'Ordering Information'!C288","v":"MCX-PAC-5-L"},{"$f":"'Ordering Information'!E288","v":"Renewal for CCX-PAC-5 out of warranty"},{"$f":"IF(MaintOnlyPrint=2,'Contact Center'!J110,0)","v":0},{"$f":"'Ordering Information'!I288","v":0.3},{"$f":"D259*E259","v":0}]
[null,{"$f":"'Ordering Information'!C289","v":"MCX-PAC-10-L"},{"$f":"'Ordering Information'!E289","v":"Renewal for CCX-PAC-10 out of warranty"},{"$f":"IF(MaintOnlyPrint=2,'Contact Center'!J111,0)","v":0},{"$f":"'Ordering Information'!I289","v":0.3},0]
[null,{"$f":"'Ordering Information'!C290","v":"MCX-PAC-20-L"},{"$f":"'Ordering Information'!E290","v":"Renewal for CCX-PAC-20 out of warranty"},{"$f":"IF(MaintOnlyPrint=2,'Contact Center'!J112,0)","v":0},{"$f":"'Ordering Information'!I290","v":0.3},0]
[null,{"$f":"'Ordering Information'!C291","v":"MCX-PAC-30-L"},{"$f":"'Ordering Information'!E291","v":"Renewal for CCX-PAC-30 out of warranty"},{"$f":"IF(MaintOnlyPrint=2,'Contact Center'!J113,0)","v":0},{"$f":"'Ordering Information'!I291","v":0.3},0]
[null,{"$f":"'Ordering Information'!C292","v":"MCX-PAC-50-L"},{"$f":"'Ordering Information'!E292","v":"Renewal for CCX-PAC-50 out of warranty"},{"$f":"IF(MaintOnlyPrint=2,'Contact Center'!J114,0)","v":0},{"$f":"'Ordering Information'!I292","v":0.3},0]
[null,{"$f":"'Ordering Information'!C293","v":"MCX-PAC-75-L"},{"$f":"'Ordering Information'!E293","v":"Renewal for CCX-PAC-75 out of warranty"},{"$f":"IF(MaintOnlyPrint=2,'Contact Center'!J115,0)","v":0},{"$f":"'Ordering Information'!I293","v":0.3},0]
[null,{"$f":"'Ordering Information'!C294","v":"MCX-PAC-100-L"},{"$f":"'Ordering Information'!E294","v":"Renewal for CCX-PAC-100 out of warranty"},{"$f":"IF(MaintOnlyPrint=2,'Contact Center'!J116,0)","v":0},{"$f":"'Ordering Information'!I294","v":0.3},0]
[null,{"$f":"'Ordering Information'!C295","v":"MCX-PAC-150-L"},{"$f":"'Ordering Information'!E295","v":"Renewal for CCX-PAC-150 out of warranty"},{"$f":"IF(MaintOnlyPrint=2,'Contact Center'!J117,0)","v":0},{"$f":"'Ordering Information'!I295","v":0.3},{"$f":"D266*E266","v":0}]
[null,{"$f":"'Ordering Information'!C296","v":"MCX-PAC-200-L"},{"$f":"'Ordering Information'!E296","v":"Renewal for CCX-PAC-200 out of warranty"},{"$f":"IF(MaintOnlyPrint=2,'Contact Center'!J118,0)","v":0},{"$f":"'Ordering Information'!I296","v":0.3},0]
[null,{"$f":"'Ordering Information'!C297","v":"MCX-PAC-250-L"},{"$f":"'Ordering Information'!E297","v":"Renewal for CCX-PAC-250 out of warranty"},{"$f":"IF(MaintOnlyPrint=2,'Contact Center'!J119,0)","v":0},{"$f":"'Ordering Information'!I297","v":0.3},0]
[null,{"$f":"'Ordering Information'!C298","v":"MX-DSK-ADD-L"},{"$f":"'Ordering Information'!E298","v":"Renewal for CX-DSK-ADD out of warranty"},{"$f":"IF(MaintOnlyPrint=2,'Contact Center'!J120,0)","v":0},{"$f":"'Ordering Information'!I298","v":0.3},{"$f":"D269*E269","v":0}]
[null,{"$f":"'Ordering Information'!C299","v":"MX-HMP-L"},{"$f":"'Ordering Information'!E299","v":"Renewal for CX-HMP out of warranty"},{"$f":"IF(MaintOnlyPrint=2,'Contact Center'!J121,0)","v":0},{"$f":"'Ordering Information'!I299","v":0.3},{"$f":"D270*E270","v":0}]
[null,{"$f":"'Ordering Information'!C300","v":"MX-HMP-G729-L"},{"$f":"'Ordering Information'!E300","v":"Renewal for CX-HMP-G729 out of warranty"},{"$f":"IF(MaintOnlyPrint=2,'Contact Center'!J122,0)","v":0},{"$f":"'Ordering Information'!I300","v":0.3},{"$f":"D271*E271","v":0}]
[null,{"$f":"'Ordering Information'!C301","v":"MX-DB-L"},{"$f":"'Ordering Information'!E301","v":"Renewal for CX-DB out of warranty"},{"$f":"IF(MaintOnlyPrint=2,'Contact Center'!J123,0)","v":0},{"$f":"'Ordering Information'!I301","v":0.3},{"$f":"D272*E272","v":0}]
[null,{"$f":"'Ordering Information'!C302","v":"MX-CC-LICENSE-L"},{"$f":"'Ordering Information'!E302","v":"Renewal for CX-CC-LICENSE out of warranty"},{"$f":"IF(MaintOnlyPrint=2,'Contact Center'!J124,0)","v":0},{"$f":"'Ordering Information'!I302","v":0.3},{"$f":"D273*E273","v":0}]
[null,{"$f":"'Ordering Information'!C303","v":"MX-REC-B4-L"},{"$f":"'Ordering Information'!E303","v":"Renewal for CX-REC-B4 out of warranty"},{"$f":"IF(MaintOnlyPrint=2,'Contact Center'!J125,0)","v":0},{"$f":"'Ordering Information'!I303","v":0.3},0]
[null,{"$f":"'Ordering Information'!C304","v":"MX-REC-B8-L"},{"$f":"'Ordering Information'!E304","v":"Renewal for CX-REC-B8 out of warranty"},{"$f":"IF(MaintOnlyPrint=2,'Contact Center'!J126,0)","v":0},{"$f":"'Ordering Information'!I304","v":0.3},0]
[null,{"$f":"'Ordering Information'!C305","v":"MX-REC-B12-L"},{"$f":"'Ordering Information'!E305","v":"Renewal for CX-REC-B12 out of warranty"},{"$f":"IF(MaintOnlyPrint=2,'Contact Center'!J127,0)","v":0},{"$f":"'Ordering Information'!I305","v":0.3},0]
[null,{"$f":"'Ordering Information'!C306","v":"MX-REC-P8-L"},{"$f":"'Ordering Information'!E306","v":"Renewal for CX-REC-P8 out of warranty"},{"$f":"IF(MaintOnlyPrint=2,'Contact Center'!J128,0)","v":0},{"$f":"'Ordering Information'!I306","v":0.3},0]
[null,{"$f":"'Ordering Information'!C307","v":"MX-REC-P12-L"},{"$f":"'Ordering Information'!E307","v":"Renewal for CX-REC-P12 out of warranty"},{"$f":"IF(MaintOnlyPrint=2,'Contact Center'!J129,0)","v":0},{"$f":"'Ordering Information'!I307","v":0.3},0]
[null,{"$f":"'Ordering Information'!C308","v":"MX-REC-P16-L"},{"$f":"'Ordering Information'!E308","v":"Renewal for CX-REC-P16 out of warranty"},{"$f":"IF(MaintOnlyPrint=2,'Contact Center'!J130,0)","v":0},{"$f":"'Ordering Information'!I308","v":0.3},0]
[null,{"$f":"'Ordering Information'!C309","v":"MX-REC-P24-L"},{"$f":"'Ordering Information'!E309","v":"Renewal for CX-REC-P24 out of warranty"},{"$f":"IF(MaintOnlyPrint=2,'Contact Center'!J131,0)","v":0},{"$f":"'Ordering Information'!I309","v":0.3},0]
[null,{"$f":"'Ordering Information'!C310","v":"MX-REC-P30-L"},{"$f":"'Ordering Information'!E310","v":"Renewal for CX-REC-P30 out of warranty"},{"$f":"IF(MaintOnlyPrint=2,'Contact Center'!J132,0)","v":0},{"$f":"'Ordering Information'!I310","v":0.3},0]
[null,{"$f":"'Ordering Information'!C320","v":"MX-REC-V4-L"},{"$f":"'Ordering Information'!E320","v":"Renewal for CX-REC-V4 out of warranty"},{"$f":"IF(MaintOnlyPrint=2,'Contact Center'!J133,0)","v":0},{"$f":"'Ordering Information'!I320","v":0.3},0]
[null,{"$f":"'Ordering Information'!C321","v":"MX-REC-V6-L"},{"$f":"'Ordering Information'!E321","v":"Renewal for CX-REC-V6 out of warranty"},{"$f":"IF(MaintOnlyPrint=2,'Contact Center'!J134,0)","v":0},{"$f":"'Ordering Information'!I321","v":0.3},{"$f":"D283*E283","v":0}]
[null,{"$f":"'Ordering Information'!C322","v":"MX-REC-V8-L"},{"$f":"'Ordering Information'!E322","v":"Renewal for CX-REC-V8 out of warranty"},{"$f":"IF(MaintOnlyPrint=2,'Contact Center'!J135,0)","v":0},{"$f":"'Ordering Information'!I322","v":0.3},0]
[null,{"$f":"'Ordering Information'!C323","v":"MX-REC-V12-L"},{"$f":"'Ordering Information'!E323","v":"Renewal for CX-REC-V12 out of warranty"},{"$f":"IF(MaintOnlyPrint=2,'Contact Center'!J136,0)","v":0},{"$f":"'Ordering Information'!I323","v":0.3},0]
[null,{"$f":"'Ordering Information'!C324","v":"MX-REC-V16-L"},{"$f":"'Ordering Information'!E324","v":"Renewal for CX-REC-V16 out of warranty"},{"$f":"IF(MaintOnlyPrint=2,'Contact Center'!J137,0)","v":0},{"$f":"'Ordering Information'!I324","v":0.3},0]
[null,{"$f":"'Ordering Information'!C325","v":"MX-REC-V24-L"},{"$f":"'Ordering Information'!E325","v":"Renewal for CX-REC-V24 out of warranty"},{"$f":"IF(MaintOnlyPrint=2,'Contact Center'!J138,0)","v":0},{"$f":"'Ordering Information'!I325","v":0.3},0]
[null,{"$f":"'Ordering Information'!C326","v":"MX-REC-V30-L"},{"$f":"'Ordering Information'!E326","v":"Renewal for CX-REC-V30 out of warranty"},{"$f":"IF(MaintOnlyPrint=2,'Contact Center'!J139,0)","v":0},{"$f":"'Ordering Information'!I326","v":0.3},0]
[null,{"$f":"'Ordering Information'!C327","v":"MX-REC-V40-L"},{"$f":"'Ordering Information'!E327","v":"Renewal for CX-REC-V40 out of warranty"},{"$f":"IF(MaintOnlyPrint=2,'Contact Center'!J140,0)","v":0},{"$f":"'Ordering Information'!I327","v":0.3},0]
[null,{"$f":"'Ordering Information'!C328","v":"MX-REC-V50-L"},{"$f":"'Ordering Information'!E328","v":"Renewal for CX-REC-V50 out of warranty"},{"$f":"IF(MaintOnlyPrint=2,'Contact Center'!J141,0)","v":0},{"$f":"'Ordering Information'!I328","v":0.3},0]
[null,{"$f":"'Ordering Information'!C329","v":"MX-REC-V60-L"},{"$f":"'Ordering Information'!E329","v":"Renewal for CX-REC-V60 out of warranty"},{"$f":"IF(MaintOnlyPrint=2,'Contact Center'!J142,0)","v":0},{"$f":"'Ordering Information'!I329","v":0.3},0]
[null,{"$f":"'Ordering Information'!C330","v":"MX-REC-V90-L"},{"$f":"'Ordering Information'!E330","v":"Renewal for CX-REC-V90 out of warranty"},{"$f":"IF(MaintOnlyPrint=2,'Contact Center'!J143,0)","v":0},{"$f":"'Ordering Information'!I330","v":0.3},0]
[null,{"$f":"'Ordering Information'!C331","v":"MX-REC-V120-L"},{"$f":"'Ordering Information'!E331","v":"Renewal for CX-REC-V120 out of warranty"},{"$f":"IF(MaintOnlyPrint=2,'Contact Center'!J144,0)","v":0},{"$f":"'Ordering Information'!I331","v":0.3},0]
[null,{"$f":"'Ordering Information'!C332","v":"MX-REC-V150-L"},{"$f":"'Ordering Information'!E332","v":"Renewal for CX-REC-V150 out of warranty"},{"$f":"IF(MaintOnlyPrint=2,'Contact Center'!J145,0)","v":0},{"$f":"'Ordering Information'!I332","v":0.3},0]
[null,{"$f":"'Ordering Information'!C333","v":"MX-REC-V180-L"},{"$f":"'Ordering Information'!E333","v":"Renewal for CX-REC-V180 out of warranty"},{"$f":"IF(MaintOnlyPrint=2,'Contact Center'!J146,0)","v":0},{"$f":"'Ordering Information'!I333","v":0.3},0]
[null,{"$f":"'Ordering Information'!C334","v":"MX-REC-V200-L"},{"$f":"'Ordering Information'!E334","v":"Renewal for CX-REC-V200 out of warranty"},{"$f":"IF(MaintOnlyPrint=2,'Contact Center'!J147,0)","v":0},{"$f":"'Ordering Information'!I334","v":0.3},0]
[null,{"$f":"'Ordering Information'!C335","v":"MX-REC-V240-L"},{"$f":"'Ordering Information'!E335","v":"Renewal for CX-REC-V240 out of warranty"},{"$f":"IF(MaintOnlyPrint=2,'Contact Center'!J148,0)","v":0},{"$f":"'Ordering Information'!I335","v":0.3},0]
[null,{"$f":"'Ordering Information'!C336","v":"MX-CODEC-G729-L"},{"$f":"'Ordering Information'!E336","v":"Renewal for CX-CODEC-G729 out of warranty"},{"$f":"IF(MaintOnlyPrint=2,'Contact Center'!J149,0)","v":0},{"$f":"'Ordering Information'!I336","v":0.3},{"$f":"D298*E298","v":0}]
[null,{"$f":"'Ordering Information'!C337","v":"MX-Q-EVF-L"},{"$f":"'Ordering Information'!E337","v":"Renewal for CX-Q-EVF out of warranty"},{"$f":"IF(MaintOnlyPrint=2,'Contact Center'!J150,0)","v":0},{"$f":"'Ordering Information'!I337","v":0.3},0]
[null,{"$f":"'Ordering Information'!C338","v":"MX-Q-SN-L"},{"$f":"'Ordering Information'!E338","v":"Renewal for CX-Q-SN out of warranty"},{"$f":"IF(MaintOnlyPrint=2,'Contact Center'!J151,0)","v":0},{"$f":"'Ordering Information'!I338","v":0.3},0]
[null,{"$f":"'Ordering Information'!C339","v":"MX-Q-MSN-L"},{"$f":"'Ordering Information'!E339","v":"Renewal for CX-Q-MSN out of warranty"},{"$f":"IF(MaintOnlyPrint=2,'Contact Center'!J152,0)","v":0},{"$f":"'Ordering Information'!I339","v":0.3},0]
[null,{"$f":"'Ordering Information'!C340","v":"MX-CHAT-5-L"},{"$f":"'Ordering Information'!E340","v":"Renewal for CX-CHAT-5 out of warranty"},{"$f":"IF(MaintOnlyPrint=2,'Contact Center'!J153,0)","v":0},{"$f":"'Ordering Information'!I340","v":0.3},0]
[null,{"$f":"'Ordering Information'!C341","v":"MX-CALL-L"},{"$f":"'Ordering Information'!E341","v":"Renewal for CX-CALL out of warranty"},{"$f":"IF(MaintOnlyPrint=2,'Contact Center'!J154,0)","v":0},{"$f":"'Ordering Information'!I341","v":0.3},0]
[null,{"$f":"'Ordering Information'!C342","v":"MX-CALL-U-L"},{"$f":"'Ordering Information'!E342","v":"Renewal for CX-CALL-U out of warranty"},{"$f":"IF(MaintOnlyPrint=2,'Contact Center'!J155,0)","v":0},{"$f":"'Ordering Information'!I342","v":0.3},0]
[null,{"$f":"'Ordering Information'!C343","v":"MX-SMS-L"},{"$f":"'Ordering Information'!E343","v":"Renewal for CX-SMS out of warranty"},{"$f":"IF(MaintOnlyPrint=2,'Contact Center'!J156,0)","v":0},{"$f":"'Ordering Information'!I343","v":0.3},0]
[null,{"$f":"'Ordering Information'!C344","v":"MX-IVR-L"},{"$f":"'Ordering Information'!E344","v":"Renewal for CX-IVR out of warranty"},{"$f":"IF(MaintOnlyPrint=2,'Contact Center'!J157,0)","v":0},{"$f":"'Ordering Information'!I344","v":0.3},0]
[null,{"$f":"'Ordering Information'!C345","v":"MX-SURVEY-L"},{"$f":"'Ordering Information'!E345","v":"Renewal for CX-SURVEY out of warranty"},{"$f":"IF(MaintOnlyPrint=2,'Contact Center'!J158,0)","v":0},{"$f":"'Ordering Information'!I345","v":0.3},0]
[null,{"$f":"'Ordering Information'!C346","v":"MX-COACH-L"},{"$f":"'Ordering Information'!E346","v":"Renewal for CX-COACH out of warranty"},{"$f":"IF(MaintOnlyPrint=2,'Contact Center'!J159,0)","v":0},{"$f":"'Ordering Information'!I346","v":0.3},0]
[null,{"$f":"'Ordering Information'!C347","v":"MX-ASSESSOR-L"},{"$f":"'Ordering Information'!E347","v":"Renewal for CX-ASSESSOR out of warranty"},{"$f":"IF(MaintOnlyPrint=2,'Contact Center'!J160,0)","v":0},{"$f":"'Ordering Information'!I347","v":0.3},{"$f":"D309*E309","v":0}]
[null,{"$f":"'Ordering Information'!C348","v":"MX-SCRIPT-L"},{"$f":"'Ordering Information'!E348","v":"Renewal for CX-SCRIPT out of warranty"},{"$f":"IF(MaintOnlyPrint=2,'Contact Center'!J161,0)","v":0},{"$f":"'Ordering Information'!I348","v":0.3},0]
[null,{"$f":"'Ordering Information'!C349","v":"MX-PIDC-MGR-L"},{"$f":"'Ordering Information'!E349","v":"Renewal for CX-PIDC-MGR out of warranty"},{"$f":"IF(MaintOnlyPrint=2,'Contact Center'!J162,0)","v":0},{"$f":"'Ordering Information'!I349","v":0.3},{"$f":"D311*E311","v":0}]
[null,{"$f":"'Ordering Information'!C350","v":"MX-A-REP-D-L"},{"$f":"'Ordering Information'!E350","v":"Renewal for CX-A-REP-D out of warranty"},{"$f":"IF(MaintOnlyPrint=2,'Contact Center'!J163,0)","v":0},{"$f":"'Ordering Information'!I350","v":0.3},0]
[null,{"$f":"'Ordering Information'!C351","v":"MX-A-REP-EH-L"},{"$f":"'Ordering Information'!E351","v":"Renewal for CX-A-REP-EH out of warranty"},{"$f":"IF(MaintOnlyPrint=2,'Contact Center'!J164,0)","v":0},{"$f":"'Ordering Information'!I351","v":0.3},0]
[null,{"$f":"'Ordering Information'!C352","v":"MX-A-REP-ES-L"},{"$f":"'Ordering Information'!E352","v":"Renewal for CX-A-REP-ES out of warranty"},{"$f":"IF(MaintOnlyPrint=2,'Contact Center'!J165,0)","v":0},{"$f":"'Ordering Information'!I352","v":0.3},0]
[null,{"$f":"'Ordering Information'!C353","v":"MX-A-REP-SL-L"},{"$f":"'Ordering Information'!E353","v":"Renewal for CX-A-REP-SL out of warranty"},{"$f":"IF(MaintOnlyPrint=2,'Contact Center'!J166,0)","v":0},{"$f":"'Ordering Information'!I353","v":0.3},0]
[null,{"$f":"'Ordering Information'!C354","v":"MX-IPCR-INT4-L"},{"$f":"'Ordering Information'!E354","v":"Renewal for CX-IPCR-INT4 out of warranty"},{"$f":"IF(MaintOnlyPrint=2,'Contact Center'!J167,0)","v":0},{"$f":"'Ordering Information'!I354","v":0.3},0]
[null,{"$f":"'Ordering Information'!C355","v":"MX-IPCR-INT8-L"},{"$f":"'Ordering Information'!E355","v":"Renewal for CX-IPCR-INT8 out of warranty"},{"$f":"IF(MaintOnlyPrint=2,'Contact Center'!J168,0)","v":0},{"$f":"'Ordering Information'!I355","v":0.3},0]
[null,{"$f":"'Ordering Information'!C356","v":"MX-IPCR-INT12-L"},{"$f":"'Ordering Information'!E356","v":"Renewal for CX-IPCR-INT12 out of warranty"},{"$f":"IF(MaintOnlyPrint=2,'Contact Center'!J169,0)","v":0},{"$f":"'Ordering Information'!I356","v":0.3},0]
[null,{"$f":"'Ordering Information'!C357","v":"MX-IPCR-INT16-L"},{"$f":"'Ordering Information'!E357","v":"Renewal for CX-IPCR-INT16 out of warranty"},{"$f":"IF(MaintOnlyPrint=2,'Contact Center'!J170,0)","v":0},{"$f":"'Ordering Information'!I357","v":0.3},0]
[null,{"$f":"'Ordering Information'!C358","v":"MX-IPCR-INT24-L"},{"$f":"'Ordering Information'!E358","v":"Renewal for CX-IPCR-INT24 out of warranty"},{"$f":"IF(MaintOnlyPrint=2,'Contact Center'!J171,0)","v":0},{"$f":"'Ordering Information'!I358","v":0.3},0]
[null,{"$f":"'Ordering Information'!C359","v":"MX-IPCR-INT30-L"},{"$f":"'Ordering Information'!E359","v":"Renewal for CX-IPCR-INT30 out of warranty"},{"$f":"IF(MaintOnlyPrint=2,'Contact Center'!J172,0)","v":0},{"$f":"'Ordering Information'!I359","v":0.3},0]
[null,{"$f":"'Ordering Information'!C360","v":"MX-IPCR-INT40-L"},{"$f":"'Ordering Information'!E360","v":"Renewal for CX-IPCR-INT40 out of warranty"},{"$f":"IF(MaintOnlyPrint=2,'Contact Center'!J173,0)","v":0},{"$f":"'Ordering Information'!I360","v":0.3},0]
[null,{"$f":"'Ordering Information'!C361","v":"MX-IPCR-INT50-L"},{"$f":"'Ordering Information'!E361","v":"Renewal for CX-IPCR-INT50 out of warranty"},{"$f":"IF(MaintOnlyPrint=2,'Contact Center'!J174,0)","v":0},{"$f":"'Ordering Information'!I361","v":0.3},0]
[null,{"$f":"'Ordering Information'!C362","v":"MX-IPCR-INT60-L"},{"$f":"'Ordering Information'!E362","v":"Renewal for CX-IPCR-INT60 out of warranty"},{"$f":"IF(MaintOnlyPrint=2,'Contact Center'!J175,0)","v":0},{"$f":"'Ordering Information'!I362","v":0.3},0]
[null,{"$f":"'Ordering Information'!C363","v":"MX-IPCR-INT90-L"},{"$f":"'Ordering Information'!E363","v":"Renewal for CX-IPCR-INT90 out of warranty"},{"$f":"IF(MaintOnlyPrint=2,'Contact Center'!J176,0)","v":0},{"$f":"'Ordering Information'!I363","v":0.3},{"$f":"D325*E325","v":0}]
[null,{"$f":"'Ordering Information'!C364","v":"MX-IPCR-INT120-L"},{"$f":"'Ordering Information'!E364","v":"Renewal for CX-IPCR-INT120 out of warranty"},{"$f":"IF(MaintOnlyPrint=2,'Contact Center'!J177,0)","v":0},{"$f":"'Ordering Information'!I364","v":0.3},0]
[null,{"$f":"'Ordering Information'!C365","v":"MX-IPCR-INT150-L"},{"$f":"'Ordering Information'!E365","v":"Renewal for CX-IPCR-INT150 out of warranty"},{"$f":"IF(MaintOnlyPrint=2,'Contact Center'!J178,0)","v":0},{"$f":"'Ordering Information'!I365","v":0.3},0]
[null,{"$f":"'Ordering Information'!C366","v":"MX-IPCR-INT180-L"},{"$f":"'Ordering Information'!E366","v":"Renewal for CX-IPCR-INT180 out of warranty"},{"$f":"IF(MaintOnlyPrint=2,'Contact Center'!J179,0)","v":0},{"$f":"'Ordering Information'!I366","v":0.3},0]
[null,{"$f":"'Ordering Information'!C367","v":"MX-IPCR-INT-ADD-L"},{"$f":"'Ordering Information'!E367","v":"Renewal for CX-IPCR-INT-ADD out of warranty"},{"$f":"IF(MaintOnlyPrint=2,'Contact Center'!J180,0)","v":0},{"$f":"'Ordering Information'!I367","v":0.3},0]
[]
[null,null,"Sub Total:",{"$f":"SUM(F14:F329)","v":0},null,{"$f":"IF(Currency=\"\", \"\", Currency)","v":"USD"}]
[null,null,"VAT:",{"$f":"SubTotal*VAT","v":0},null,{"$f":"IF(Currency=\"\", \"\", Currency)","v":"USD"}]
[]
[null,null,"Total:",{"$f":"SubTotal*(1+VAT)","v":0},null,{"$f":"IF(Currency=\"\", \"\", Currency)","v":"USD"}]
[]
[]
[null,"Comment:"]
[null,{"$f":"IF('Contact Center'!B73=Default_CMT1,\"\",'Contact Center'!B73)","v":""}]
[null,{"$f":"IF('Contact Center'!B74=Default_CMT2,\"\",'Contact Center'!B74)","v":""}]
[null,{"$f":"IF('Contact Center'!B75=Default_CMT3,\"\",'Contact Center'!B75)","v":""}]
[null,{"$f":"IF('Contact Center'!B76=Default_CMT4,\"\",'Contact Center'!B76)","v":""}]

{"sheet":"Result2","index":2,"n_rows":341,"n_cols":7,"rows_kept":341,"cut":false,"hidden":false,"merged":[[330,4,330,5],[331,4,331,5],[333,4,333,5]]}
[]
[null,{"$f":"IF('Contact Center'!B11=0,\"\",'Contact Center'!B11)","v":"Your Company Name"}]
[null,{"$f":"IF('Contact Center'!B12=0,\"\",'Contact Center'!B12)","v":"Address 1"},null,null,null,"Config. No :",{"$f":"IF(ConfigNo=0,\"\",ConfigNo)","v":""}]
[null,{"$f":"IF('Contact Center'!B13=0,\"\",'Contact Center'!B13)","v":"Address 2"},null,null,null,"Date :",{"$f":"TODAY()","v":"2021-03-29"}]
[null,{"$f":"IF('Contact Center'!B14=0,\"\",'Contact Center'!B14)","v":"Tel. Number"}]
[]
[null,null,null,{"$f":"IF('Contact Center'!B16=0,\"\",'Contact Center'!B16)","v":"Your Customer Name"}]
[null,null,null,{"$f":"IF('Contact Center'!B17=0,\"\",'Contact Center'!B17)","v":"Address 1"}]
[null,null,null,{"$f":"IF('Contact Center'!B18=0,\"\",'Contact Center'!B18)","v":"Address 2"}]
[null,null,null,{"$f":"IF('Contact Center'!B19=0,\"\",'Contact Center'!B19)","v":"Tel. Number"}]
[]
[null,"iPECS CCX"]
[null,"Model Name","Part Number","Description","Quantity","Price","Total"]
[null,{"$f":"'Ordering Information'!C16","v":"UCP100-CC-TS4"},{"$f":"'Ordering Information'!D16","v":"TSWA9092201"},{"$f":"'Ordering Information'!E16","v":"TAPI and 4 SIP Extension license for CCX in UCP100"},{"$f":"IF(MaintOnlyPrint=0,'Contact Center'!J7,0)","v":0},{"$f":"'Ordering Information'!I16","v":0},{"$f":"E14*F14","v":0}]
[null,{"$f":"'Ordering Information'!C17","v":"UCP100-3SIPEXT"},{"$f":"'Ordering Information'!D17","v":"TSWA9087501"},{"$f":"'Ordering Information'!E17","v":"Additional SIP Extension License for Announcement Channel in UCP100"},{"$f":"IF(MaintOnlyPrint=0,'Contact Center'!J8,0)","v":0},{"$f":"'Ordering Information'!I17","v":1},{"$f":"E15*F15","v":0}]
[null,{"$f":"'Ordering Information'!C18","v":"UCP100-IPCRS"},{"$f":"'Ordering Information'!D18","v":"TSWA9091601"},{"$f":"'Ordering Information'!E18","v":"IP Call Recording Server License for UCP100 (per IPCR Server)"},{"$f":"IF(MaintOnlyPrint=0,'Contact Center'!J9,0)","v":0},{"$f":"'Ordering Information'!I18","v":1},{"$f":"E16*F16","v":0}]
[null,{"$f":"'Ordering Information'!C19","v":"UCP100-IPCRC"},{"$f":"'Ordering Information'!D19","v":"TSWA9091701"},{"$f":"'Ordering Information'!E19","v":"IP Call Recording Agent License for UCP100 (per IPCR Agent)"},{"$f":"IF(MaintOnlyPrint=0,'Contact Center'!J10,0)","v":0},{"$f":"'Ordering Information'!I19","v":1},0]
[null,{"$f":"'Ordering Information'!C20","v":"UCP600-CC-TS4"},{"$f":"'Ordering Information'!D20","v":"TSWA9097101"},{"$f":"'Ordering Information'!E20","v":"TAPI and 4 SIP Extension license for CCX in UCP600"},{"$f":"IF(MaintOnlyPrint=0,'Contact Center'!J11,0)","v":0},{"$f":"'Ordering Information'!I20","v":0},{"$f":"E18*F18","v":0}]
[null,{"$f":"'Ordering Information'!C21","v":"UCP600-3SIPEXT"},{"$f":"'Ordering Information'!D21","v":"TSWA9094001"},{"$f":"'Ordering Information'!E21","v":"Additional SIP Extension License for Announcement Channel in UCP600"},{"$f":"IF(MaintOnlyPrint=0,'Contact Center'!J12,0)","v":0},{"$f":"'Ordering Information'!I21","v":1},0]
[null,{"$f":"'Ordering Information'!C22","v":"UCP600-IPCRS"},{"$f":"'Ordering Information'!D22","v":"TSWA9096801"},{"$f":"'Ordering Information'!E22","v":"IP Call Recording Server License for UCP600 (per IPCR Server)"},{"$f":"IF(MaintOnlyPrint=0,'Contact Center'!J13,0)","v":0},{"$f":"'Ordering Information'!I22","v":1},{"$f":"E20*F20","v":0}]
[null,{"$f":"'Ordering Information'!C23","v":"UCP600-IPCRC"},{"$f":"'Ordering Information'!D23","v":"TSWA9096802"},{"$f":"'Ordering Information'!E23","v":"IP Call Recording Agent License for UCP600 (per IPCR Agent)"},{"$f":"IF(MaintOnlyPrint=0,'Contact Center'!J14,0)","v":0},{"$f":"'Ordering Information'!I23","v":1},0]
[null,{"$f":"'Ordering Information'!C24","v":"UCP2400-CC-TS4"},{"$f":"'Ordering Information'!D24","v":"TSWA9100801"},{"$f":"'Ordering Information'!E24","v":"TAPI and 4 SIP Extension license for CCX in UCP2400"},{"$f":"IF(MaintOnlyPrint=0,'Contact Center'!J15,0)","v":0},{"$f":"'Ordering Information'!I24","v":0},0]
[null,{"$f":"'Ordering Information'!C25","v":"UCP2400-3SIPEXT"},{"$f":"'Ordering Information'!D25","v":"TSWA9097801"},{"$f":"'Ordering Information'!E25","v":"Additional SIP Extension License for Announcement Channel in UCP2400"},{"$f":"IF(MaintOnlyPrint=0,'Contact Center'!J16,0)","v":0},{"$f":"'Ordering Information'!I25","v":1},0]
[null,{"$f":"'Ordering Information'!C26","v":"UCP2400-IPCRS"},{"$f":"'Ordering Information'!D26","v":"TSWA9100601"},{"$f":"'Ordering Information'!E26","v":"IP Call Recording Server License for UCP2400 (per IPCR Server)"},{"$f":"IF(MaintOnlyPrint=0,'Contact Center'!J17,0)","v":0},{"$f":"'Ordering Information'!I26","v":1},{"$f":"E24*F24","v":0}]
[null,{"$f":"'Ordering Information'!C27","v":"UCP2400-IPCRC"},{"$f":"'Ordering Information'!D27","v":"TSWA9100602"},{"$f":"'Ordering Information'!E27","v":"IP Call Recording Agent License for UCP2400 (per IPCR Agent)"},{"$f":"IF(MaintOnlyPrint=0,'Contact Center'!J18,0)","v":0},{"$f":"'Ordering Information'!I27","v":1},0]
[null,{"$f":"'Ordering Information'!C28","v":"vUCP-CC-TS4"},{"$f":"'Ordering Information'!D28","v":"TSWA9209810"},{"$f":"'Ordering Information'!E28","v":"TAPI and 4 SIP Extension license for CCX in vUCP"},{"$f":"IF(MaintOnlyPrint=0,'Contact Center'!J19,0)","v":0},{"$f":"'Ordering Information'!I28","v":0},0]
[null,{"$f":"'Ordering Information'!C29","v":"vUCP-3SIPEXT"},{"$f":"'Ordering Information'!D29","v":"TSWA9209704"},{"$f":"'Ordering Information'!E29","v":"Additional SIP Extension License for Announcement Channel in vUCP"},{"$f":"IF(MaintOnlyPrint=0,'Contact Center'!J20,0)","v":0},{"$f":"'Ordering Information'!I29","v":1},0]
[null,{"$f":"'Ordering Information'!C30","v":"vUCP-IPCRS"},{"$f":"'Ordering Information'!D30","v":"TSWA9210501"},{"$f":"'Ordering Information'!E30","v":"IP Call Recording Server License for vUCP (per IPCR Server)"},{"$f":"IF(MaintOnlyPrint=0,'Contact Center'!J21,0)","v":0},{"$f":"'Ordering Information'!I30","v":1},{"$f":"E28*F28","v":0}]
[null,{"$f":"'Ordering Information'!C31","v":"vUCP-IPCRC"},{"$f":"'Ordering Information'!D31","v":"TSWA9210502"},{"$f":"'Ordering Information'!E31","v":"IP Call Recording Agent License for vUCP (per IPCR Agent)"},{"$f":"IF(MaintOnlyPrint=0,'Contact Center'!J22,0)","v":0},{"$f":"'Ordering Information'!I31","v":1},0]
[null,{"$f":"'Ordering Information'!C32","v":"eMG80N-CC-TS4"},{"$f":"'Ordering Information'!D32","v":"TSWA9092202"},{"$f":"'Ordering Information'!E32","v":"TAPI and 4 SIP Extension license for CCX in eMG80"},{"$f":"IF(MaintOnlyPrint=0,'Contact Center'!J23,0)","v":0},{"$f":"'Ordering Information'!I32","v":0},0]
[null,{"$f":"'Ordering Information'!C33","v":"eMG80N-3SIPEXT"},{"$f":"'Ordering Information'!D33","v":"TSWA9087502"},{"$f":"'Ordering Information'!E33","v":"Additional SIP Extension License for Announcement Channel in eMG80"},{"$f":"IF(MaintOnlyPrint=0,'Contact Center'!J24,0)","v":0},{"$f":"'Ordering Information'!I33","v":1},0]
[null,{"$f":"'Ordering Information'!C34","v":"eMG80N-IPCRS"},{"$f":"'Ordering Information'!D34","v":"TSWA9074302"},{"$f":"'Ordering Information'!E34","v":"IP Call Recording Server License for eMG80 (per IPCR Server)"},{"$f":"IF(MaintOnlyPrint=0,'Contact Center'!J25,0)","v":0},{"$f":"'Ordering Information'!I34","v":1},{"$f":"E32*F32","v":0}]
[null,{"$f":"'Ordering Information'!C35","v":"eMG80N-IPCRC"},{"$f":"'Ordering Information'!D35","v":"TSWA9074402"},{"$f":"'Ordering Information'!E35","v":"IP Call Recording Agent License for eMG80 (per IPCR Agent)"},{"$f":"IF(MaintOnlyPrint=0,'Contact Center'!J26,0)","v":0},{"$f":"'Ordering Information'!I35","v":1},0]
[null,{"$f":"'Ordering Information'!C36","v":"eMG100-CC-TS4"},{"$f":"'Ordering Information'!D36","v":"TSWA9243541"},{"$f":"'Ordering Information'!E36","v":"TAPI and 4 SIP Extension license for CCX in eMG100"},{"$f":"IF(MaintOnlyPrint=0,'Contact Center'!J27,0)","v":0},{"$f":"'Ordering Information'!I36","v":0},0]
[null,{"$f":"'Ordering Information'!C37","v":"eMG100-3SIPEXT"},{"$f":"'Ordering Information'!D37","v":"TSWA9243503"},{"$f":"'Ordering Information'!E37","v":"Additional SIP Extension License for Announcement Channel in eMG100"},{"$f":"IF(MaintOnlyPrint=0,'Contact Center'!J28,0)","v":0},{"$f":"'Ordering Information'!I37","v":1},0]
[null,{"$f":"'Ordering Information'!C38","v":"eMG100-IPCRS"},{"$f":"'Ordering Information'!D38","v":"TSWA9243526"},{"$f":"'Ordering Information'!E38","v":"IP Call Recording Server License for eMG100 (per IPCR Server)"},{"$f":"IF(MaintOnlyPrint=0,'Contact Center'!J29,0)","v":0},{"$f":"'Ordering Information'!I38","v":1},{"$f":"E36*F36","v":0}]
[null,{"$f":"'Ordering Information'!C39","v":"eMG100-IPCRC"},{"$f":"'Ordering Information'!D39","v":"TSWA9243527"},{"$f":"'Ordering Information'!E39","v":"IP Call Recording Agent License for eMG100 (per IPCR Agent)"},{"$f":"IF(MaintOnlyPrint=0,'Contact Center'!J30,0)","v":0},{"$f":"'Ordering Information'!I39","v":1},0]
[null,{"$f":"'Ordering Information'!C40","v":"eMG800-CC-TS4"},{"$f":"'Ordering Information'!D40","v":"TSWA9117601"},{"$f":"'Ordering Information'!E40","v":"TAPI and 4 SIP Extension license for CCX in eMG800"},{"$f":"IF(MaintOnlyPrint=0,'Contact Center'!J31,0)","v":0},{"$f":"'Ordering Information'!I40","v":0},0]
[null,{"$f":"'Ordering Information'!C41","v":"eMG800-3SIPEXT"},{"$f":"'Ordering Information'!D41","v":"TSWA9113501"},{"$f":"'Ordering Information'!E41","v":"Additional SIP Extension License for Announcement Channel in eMG800"},{"$f":"IF(MaintOnlyPrint=0,'Contact Center'!J32,0)","v":0},{"$f":"'Ordering Information'!I41","v":1},0]
[null,{"$f":"'Ordering Information'!C42","v":"eMG800-IPCRS"},{"$f":"'Ordering Information'!D42","v":"TSWA9117001"},{"$f":"'Ordering Information'!E42","v":"IP Call Recording Server License for eMG800 (per IPCR Server)"},{"$f":"IF(MaintOnlyPrint=0,'Contact Center'!J33,0)","v":0},{"$f":"'Ordering Information'!I42","v":1},{"$f":"E40*F40","v":0}]
[null,{"$f":"'Ordering Information'!C43","v":"eMG800-IPCRC"},{"$f":"'Ordering Information'!D43","v":"TSWA9117101"},{"$f":"'Ordering Information'!E43","v":"IP Call Recording Agent License for eMG800 (per IPCR Agent)"},{"$f":"IF(MaintOnlyPrint=0,'Contact Center'!J34,0)","v":0},{"$f":"'Ordering Information'!I43","v":1},0]
[null,{"$f":"'Ordering Information'!C44","v":"UCML-CCS-TS4"},{"$f":"'Ordering Information'!D44","v":"TSWA9160901"},{"$f":"'Ordering Information'!E44","v":"TAPI and 4 SIP Extension license for CCX in UCM"},{"$f":"IF(MaintOnlyPrint=0,'Contact Center'!J35,0)","v":0},{"$f":"'Ordering Information'!I44","v":0},{"$f":"E42*F42","v":0}]
[null,{"$f":"'Ordering Information'!C45","v":"UCML-IPEXT"},{"$f":"'Ordering Information'!D45","v":"TSWA9156401"},{"$f":"'Ordering Information'!E45","v":"Additional SIP Extension License for Announcement Channel in UCM"},{"$f":"IF(MaintOnlyPrint=0,'Contact Center'!J36,0)","v":0},{"$f":"'Ordering Information'!I45","v":1},0]
[null,{"$f":"'Ordering Information'!C46","v":"UCML-IPCR-S"},{"$f":"'Ordering Information'!D46","v":"TSWA9157201"},{"$f":"'Ordering Information'!E46","v":"IP Call Recording Server License for UCM (per IPCR Server)"},{"$f":"IF(MaintOnlyPrint=0,'Contact Center'!J37,0)","v":0},{"$f":"'Ordering Information'!I46","v":1},{"$f":"E44*F44","v":0}]
[null,{"$f":"'Ordering Information'!C47","v":"UCML-IPCR-A"},{"$f":"'Ordering Information'!D47","v":"TSWA9156901"},{"$f":"'Ordering Information'!E47","v":"IP Call Recording Agent License for UCM (per IPCR Agent)"},{"$f":"IF(MaintOnlyPrint=0,'Contact Center'!J38,0)","v":0},{"$f":"'Ordering Information'!I47","v":1},0]
[null,{"$f":"'Ordering Information'!C48","v":"CCX-PAC-5"},{"$f":"'Ordering Information'!D48","v":"TSWA9262501"},{"$f":"'Ordering Information'!E48","v":"5 CCX Call Centre Licenses\n1 CCX Desk Telephony Network Manager\n1 CCX Report Plus (included free with CCX CC Package)\n1 CCX Report Plus - Extensions - 100 (included free with CCX CC Package)\n2 CCX Report Plus - Dashboard & User License (included free with CCX CC Package)\n5 CCX Desk\n4 CCX HMP Audio Channel  - 1 channel\n1 CCX Callback in Queue (included free with CCX CC Package)\n1 CCX Web Call-Back (included free with CCX CC Package)\n1 CCX Chat 3 Licenses (included free with CCX CC Package)\n\nNeed system licnese for TAPI and 4xSIP Extension (UCP100-CC-TS4, UCP600-CC-TS4, UCP2400-CC-TS4, eMG80N-CC-TS4, eMG800-CC-TS4, UCML-CCS-TS4)"},{"$f":"IF(MaintOnlyPrint=0,'Contact Center'!J39,0)","v":0},{"$f":"'Ordering Information'!I48","v":1},0]
[null,{"$f":"'Ordering Information'!C49","v":"CCX-PAC-10"},{"$f":"'Ordering Information'!D49","v":"TSWA9262701"},{"$f":"'Ordering Information'!E49","v":"10 CCX Call Centre Licenses\n1 CCX Desk Telephony Network Manager\n1 CCX Report Plus (included free with CCX CC Package)\n1 CCX Report Plus - Extensions - 100 (included free with CCX CC Package)\n2 CCX Report Plus - Dashboard & User License (included free with CCX CC Package)\n10 CCX Desk\n4 CCX HMP Audio Channel  - 1 channel\n1 CCX Callback in Queue (included free with CCX CC Package)\n1 CCX Web Call-Back (included free with CCX CC Package)\n1 CCX Chat 3 Licenses (included free with CCX CC Package)\n\nNeed system licnese for TAPI and 4xSIP Extension (UCP100-CC-TS4, UCP600-CC-TS4, UCP2400-CC-TS4, eMG80N-CC-TS4, eMG800-CC-TS4, UCML-CCS-TS4)"},{"$f":"IF(MaintOnlyPrint=0,'Contact Center'!J40,0)","v":0},{"$f":"'Ordering Information'!I49","v":1},0]
[null,{"$f":"'Ordering Information'!C50","v":"CCX-PAC-20"},{"$f":"'Ordering Information'!D50","v":"TSWA9262801"},{"$f":"'Ordering Information'!E50","v":"20 CCX Call Centre Licenses\n1 CCX Desk Telephony Network Manager\n1 CCX Report Plus (included free with CCX CC Package)\n1 CCX Report Plus - Extensions - 100 (included free with CCX CC Package)\n2 CCX Report Plus - Dashboard & User License (included free with CCX CC Package)\n20 CCX Desk\n4 CCX HMP Audio Channel  - 1 channel\n1 CCX Callback in Queue (included free with CCX CC Package)\n1 CCX Web Call-Back (included free with CCX CC Package)\n1 CCX Chat 3 Licenses (included free with CCX CC Package)\n\nNeed system licnese for TAPI and 4xSIP Extension (UCP100-CC-TS4, UCP600-CC-TS4, UCP2400-CC-TS4, eMG80N-CC-TS4, eMG800-CC-TS4, UCML-CCS-TS4)"},{"$f":"IF(MaintOnlyPrint=0,'Contact Center'!J41,0)","v":0},{"$f":"'Ordering Information'!I50","v":1},0]
[null,{"$f":"'Ordering Information'!C51","v":"CCX-PAC-30"},{"$f":"'Ordering Information'!D51","v":"TSWA9262901"},{"$f":"'Ordering Information'!E51","v":"30 CCX Call Centre Licenses\n1 CCX Desk Telephony Network Manager\n1 CCX Report Plus (included free with CCX CC Package)\n1 CCX Report Plus - Extensions - 100 (included free with CCX CC Package)\n2 CCX Report Plus - Dashboard & User License (included free with CCX CC Package)\n30 CCX Desk\n4 CCX HMP Audio Channel  - 1 channel\n1 CCX Callback in Queue (included free with CCX CC Package)\n1 CCX Web Call-Back (included free with CCX CC Package)\n1 CCX Chat 3 Licenses (included free with CCX CC Package)\n\nNeed system licnese for TAPI and 4xSIP Extension (UCP100-CC-TS4, UCP600-CC-TS4, UCP2400-CC-TS4, eMG80N-CC-TS4, eMG800-CC-TS4, UCML-CCS-TS4)"},{"$f":"IF(MaintOnlyPrint=0,'Contact Center'!J42,0)","v":0},{"$f":"'Ordering Information'!I51","v":1},0]
[null,{"$f":"'Ordering Information'!C52","v":"CCX-PAC-50"},{"$f":"'Ordering Information'!D52","v":"TSWA9263001"},{"$f":"'Ordering Information'!E52","v":"50 CCX Call Centre Licenses\n1 CCX Desk Telephony Network Manager\n1 CCX Report Plus (included free with CCX CC Package)\n1 CCX Report Plus - Extensions - 100 (included free with CCX CC Package)\n2 CCX Report Plus - Dashboard & User License (included free with CCX CC Package)\n50 CCX Desk\n4 CCX HMP Audio Channel  - 1 channel\n1 CCX Callback in Queue (included free with CCX CC Package)\n1 CCX Web Call-Back (included free with CCX CC Package)\n1 CCX Chat 3 Licenses (included free with CCX CC Package)\n\nNeed system licnese for TAPI and 4xSIP Extension (UCP100-CC-TS4, UCP600-CC-TS4, UCP2400-CC-TS4, eMG80N-CC-TS4, eMG800-CC-TS4, UCML-CCS-TS4)"},{"$f":"IF(MaintOnlyPrint=0,'Contact Center'!J43,0)","v":0},{"$f":"'Ordering Information'!I52","v":1},0]
[null,{"$f":"'Ordering Information'!C53","v":"CCX-PAC-75"},{"$f":"'Ordering Information'!D53","v":"TSWA9263101"},{"$f":"'Ordering Information'!E53","v":"75 CCX Call Centre Licenses\n1 CCX Desk Telephony Network Manager\n1 CCX Report Plus (included free with CCX CC Package)\n1 CCX Report Plus - Extensions - 100 (included free with CCX CC Package)\n2 CCX Report Plus - Dashboard & User License (included free with CCX CC Package)\n75 CCX Desk\n4 CCX HMP Audio Channel  - 1 channel\n1 CCX Callback in Queue (included free with CCX CC Package)\n1 CCX Web Call-Back (included free with CCX CC Package)\n1 CCX Chat 3 Licenses (included free with CCX CC Package)\n\nNeed system licnese for TAPI and 4xSIP Extension (UCP100-CC-TS4, UCP600-CC-TS4, UCP2400-CC-TS4, eMG80N-CC-TS4, eMG800-CC-TS4, UCML-CCS-TS4)"},{"$f":"IF(MaintOnlyPrint=0,'Contact Center'!J44,0)","v":0},{"$f":"'Ordering Information'!I53","v":1},0]
[null,{"$f":"'Ordering Information'!C54","v":"CCX-PAC-100"},{"$f":"'Ordering Information'!D54","v":"TSWA9263201"},{"$f":"'Ordering Information'!E54","v":"100 CCX Call Centre Licenses\n1 CCX Desk Telephony Network Manager\n1 CCX Report Plus (included free with CCX CC Package)\n1 CCX Report Plus - Extensions - 100 (included free with CCX CC Package)\n2 CCX Report Plus - Dashboard & User License (included free with CCX CC Package)\n100 CCX Desk\n4 CCX HMP Audio Channel  - 1 channel\n1 CCX Callback in Queue (included free with CCX CC Package)\n1 CCX Web Call-Back (included free with CCX CC Package)\n1 CCX Chat 3 Licenses (included free with CCX CC Package)\n\nNeed system licnese for TAPI and 4xSIP Extension (UCP100-CC-TS4, UCP600-CC-TS4, UCP2400-CC-TS4, eMG80N-CC-TS4, eMG800-CC-TS4, UCML-CCS-TS4)"},{"$f":"IF(MaintOnlyPrint=0,'Contact Center'!J45,0)","v":0},{"$f":"'Ordering Information'!I54","v":1},0]
[null,{"$f":"'Ordering Information'!C55","v":"CCX-PAC-150"},{"$f":"'Ordering Information'!D55","v":"TSWA9248601"},{"$f":"'Ordering Information'!E55","v":"150 CCX Call Centre Licenses\n1 CCX Desk Telephony Network Manager\n1 CCX Report Plus (included free with CCX CC Package)\n1 CCX Report Plus - Extensions - 100 (included free with CCX CC Package)\n2 CCX Report Plus - Dashboard & User License (included free with CCX CC Package)\n150 CCX Desk\n4 CCX HMP Audio Channel  - 1 channel\n1 CCX Callback in Queue (included free with CCX CC Package)\n1 CCX Web Call-Back (included free with CCX CC Package)\n1 CCX Chat 3 Licenses (included free with CCX CC Package)\n\nNeed system licnese for TAPI and 4xSIP Extension (UCP100-CC-TS4, UCP600-CC-TS4, UCP2400-CC-TS4, eMG80N-CC-TS4, eMG800-CC-TS4, UCML-CCS-TS4)"},{"$f":"IF(MaintOnlyPrint=0,'Contact Center'!J46,0)","v":0},{"$f":"'Ordering Information'!I55","v":1},0]
[null,{"$f":"'Ordering Information'!C56","v":"CCX-PAC-200"},{"$f":"'Ordering Information'!D56","v":"TSWA9248701"},{"$f":"'Ordering Information'!E56","v":"200 CCX Call Centre Licenses\n1 CCX Desk Telephony Network Manager\n1 CCX Report Plus (included free with CCX CC Package)\n1 CCX Report Plus - Extensions - 100 (included free with CCX CC Package)\n2 CCX Report Plus - Dashboard & User License (included free with CCX CC Package)\n200 CCX Desk\n4 CCX HMP Audio Channel  - 1 channel\n1 CCX Callback in Queue (included free with CCX CC Package)\n1 CCX Web Call-Back (included free with CCX CC Package)\n1 CCX Chat 3 Licenses (included free with CCX CC Package)\n\nNeed system licnese for TAPI and 4xSIP Extension (UCP100-CC-TS4, UCP600-CC-TS4, UCP2400-CC-TS4, eMG80N-CC-TS4, eMG800-CC-TS4, UCML-CCS-TS4)"},{"$f":"IF(MaintOnlyPrint=0,'Contact Center'!J47,0)","v":0},{"$f":"'Ordering Information'!I56","v":1},0]
[null,{"$f":"'Ordering Information'!C57","v":"CCX-PAC-250"},{"$f":"'Ordering Information'!D57","v":"TSWA9248801"},{"$f":"'Ordering Information'!E57","v":"250 CCX Call Centre Licenses\n1 CCX Desk Telephony Network Manager\n1 CCX Report Plus (included free with CCX CC Package)\n1 CCX Report Plus - Extensions - 100 (included free with CCX CC Package)\n2 CCX Report Plus - Dashboard & User License (included free with CCX CC Package)\n250 CCX Desk\n4 CCX HMP Audio Channel  - 1 channel\n1 CCX Callback in Queue (included free with CCX CC Package)\n1 CCX Web Call-Back (included free with CCX CC Package)\n1 CCX Chat 3 Licenses (included free with CCX CC Package)\n\nNeed system licnese for TAPI and 4xSIP Extension (UCP100-CC-TS4, UCP600-CC-TS4, UCP2400-CC-TS4, eMG80N-CC-TS4, eMG800-CC-TS4, UCML-CCS-TS4)"},{"$f":"IF(MaintOnlyPrint=0,'Contact Center'!J48,0)","v":0},{"$f":"'Ordering Information'!I57","v":1},0]
[null,{"$f":"'Ordering Information'!C58","v":"CX-DSK-ADD"},{"$f":"'Ordering Information'!D58","v":"TSWA9263301"},{"$f":"'Ordering Information'!E58","v":"Additional CCX Desk User"},{"$f":"IF(MaintOnlyPrint=0,'Contact Center'!J49,0)","v":0},{"$f":"'Ordering Information'!I58","v":1},0]
[null,{"$f":"'Ordering Information'!C59","v":"CX-HMP"},{"$f":"'Ordering Information'!D59","v":"TSWA9263401"},{"$f":"'Ordering Information'!E59","v":"Required for queue, call control management and CCX IVR channels\nAdditional SIP license on the iPECS System is required"},{"$f":"IF(MaintOnlyPrint=0,'Contact Center'!J50,0)","v":0},{"$f":"'Ordering Information'!I59","v":1},0]
[null,{"$f":"'Ordering Information'!C60","v":"CX-HMP-G729"},{"$f":"'Ordering Information'!D60","v":"TSWA9248901"},{"$f":"'Ordering Information'!E60","v":"CCX HMP 1 Audio Channel license upgrade for G729 (DMIPS10E30W)"},{"$f":"IF(MaintOnlyPrint=0,'Contact Center'!J51,0)","v":0},{"$f":"'Ordering Information'!I60","v":1},0]
[null,{"$f":"'Ordering Information'!C61","v":"CX-DB"},{"$f":"'Ordering Information'!D61","v":"TSWA9306301"},{"$f":"'Ordering Information'!E61","v":"Dashboard license including 1xSupervisor license"},{"$f":"IF(MaintOnlyPrint=0,'Contact Center'!J52,0)","v":0},{"$f":"'Ordering Information'!I61","v":1},{"$f":"E59*F59","v":0}]
[null,{"$f":"'Ordering Information'!C62","v":"CX-CC-LICENSE"},{"$f":"'Ordering Information'!D62","v":"TSWA9249001"},{"$f":"'Ordering Information'!E62","v":"CCX Call Center license"},{"$f":"IF(MaintOnlyPrint=0,'Contact Center'!J53,0)","v":0},{"$f":"'Ordering Information'!I62","v":1},0]
[null,{"$f":"'Ordering Information'!C63","v":"CX-REC-B4"},{"$f":"'Ordering Information'!D63","v":"TSWA9278201"},{"$f":"'Ordering Information'!E63","v":"CCX Record BRI 4 channel"},{"$f":"IF(MaintOnlyPrint=0,'Contact Center'!J54,0)","v":0},{"$f":"'Ordering Information'!I63","v":1},0]
[null,{"$f":"'Ordering Information'!C64","v":"CX-REC-B8"},{"$f":"'Ordering Information'!D64","v":"TSWA9265001"},{"$f":"'Ordering Information'!E64","v":"CCX Record BRI 8 channel"},{"$f":"IF(MaintOnlyPrint=0,'Contact Center'!J55,0)","v":0},{"$f":"'Ordering Information'!I64","v":1},0]
[null,{"$f":"'Ordering Information'!C65","v":"CX-REC-B12"},{"$f":"'Ordering Information'!D65","v":"TSWA9265101"},{"$f":"'Ordering Information'!E65","v":"CCX Record BRI 12 channel"},{"$f":"IF(MaintOnlyPrint=0,'Contact Center'!J56,0)","v":0},{"$f":"'Ordering Information'!I65","v":1},0]
[null,{"$f":"'Ordering Information'!C66","v":"CX-REC-P8"},{"$f":"'Ordering Information'!D66","v":"TSWA9265201"},{"$f":"'Ordering Information'!E66","v":"CCX Record PRI 8 channel"},{"$f":"IF(MaintOnlyPrint=0,'Contact Center'!J57,0)","v":0},{"$f":"'Ordering Information'!I66","v":1},0]
[null,{"$f":"'Ordering Information'!C67","v":"CX-REC-P12"},{"$f":"'Ordering Information'!D67","v":"TSWA9265301"},{"$f":"'Ordering Information'!E67","v":"CCX Record PRI 12 channel"},{"$f":"IF(MaintOnlyPrint=0,'Contact Center'!J58,0)","v":0},{"$f":"'Ordering Information'!I67","v":1},0]
[null,{"$f":"'Ordering Information'!C68","v":"CX-REC-P16"},{"$f":"'Ordering Information'!D68","v":"TSWA9265401"},{"$f":"'Ordering Information'!E68","v":"CCX Record PRI 16 channel"},{"$f":"IF(MaintOnlyPrint=0,'Contact Center'!J59,0)","v":0},{"$f":"'Ordering Information'!I68","v":1},0]
[null,{"$f":"'Ordering Information'!C69","v":"CX-REC-P24"},{"$f":"'Ordering Information'!D69","v":"TSWA9265501"},{"$f":"'Ordering Information'!E69","v":"CCX Record PRI 24 channel"},{"$f":"IF(MaintOnlyPrint=0,'Contact Center'!J60,0)","v":0},{"$f":"'Ordering Information'!I69","v":1},0]
[null,{"$f":"'Ordering Information'!C70","v":"CX-REC-P30"},{"$f":"'Ordering Information'!D70","v":"TSWA9265601"},{"$f":"'Ordering Information'!E70","v":"CCX Record PRI 30 channel"},{"$f":"IF(MaintOnlyPrint=0,'Contact Center'!J61,0)","v":0},{"$f":"'Ordering Information'!I70","v":1},0]
[null,{"$f":"'Ordering Information'!C80","v":"CX-REC-V4"},{"$f":"'Ordering Information'!D80","v":"TSWA9267001"},{"$f":"'Ordering Information'!E80","v":"CCX Record VOIP 4 channel, a switch supporting port mirroring is required"},{"$f":"IF(MaintOnlyPrint=0,'Contact Center'!J62,0)","v":0},{"$f":"'Ordering Information'!I80","v":1},0]
[null,{"$f":"'Ordering Information'!C81","v":"CX-REC-V6"},{"$f":"'Ordering Information'!D81","v":"TSWA9250901"},{"$f":"'Ordering Information'!E81","v":"CCX Record VOIP 6 channel, a switch supporting port mirroring is required"},{"$f":"IF(MaintOnlyPrint=0,'Contact Center'!J63,0)","v":0},{"$f":"'Ordering Information'!I81","v":1},0]
[null,{"$f":"'Ordering Information'!C82","v":"CX-REC-V8"},{"$f":"'Ordering Information'!D82","v":"TSWA9267101"},{"$f":"'Ordering Information'!E82","v":"CCX Record VOIP 8 channel, a switch supporting port mirroring is required"},{"$f":"IF(MaintOnlyPrint=0,'Contact Center'!J64,0)","v":0},{"$f":"'Ordering Information'!I82","v":1},0]
[null,{"$f":"'Ordering Information'!C83","v":"CX-REC-V12"},{"$f":"'Ordering Information'!D83","v":"TSWA9267201"},{"$f":"'Ordering Information'!E83","v":"CCX Record VOIP 12 channel, a switch supporting port mirroring is required"},{"$f":"IF(MaintOnlyPrint=0,'Contact Center'!J65,0)","v":0},{"$f":"'Ordering Information'!I83","v":1},0]
[null,{"$f":"'Ordering Information'!C84","v":"CX-REC-V16"},{"$f":"'Ordering Information'!D84","v":"TSWA9267401"},{"$f":"'Ordering Information'!E84","v":"CCX Record VOIP 16 channel, a switch supporting port mirroring is required"},{"$f":"IF(MaintOnlyPrint=0,'Contact Center'!J66,0)","v":0},{"$f":"'Ordering Information'!I84","v":1},0]
[null,{"$f":"'Ordering Information'!C85","v":"CX-REC-V24"},{"$f":"'Ordering Information'!D85","v":"TSWA9267501"},{"$f":"'Ordering Information'!E85","v":"CCX Record VOIP 24 channel, a switch supporting port mirroring is required"},{"$f":"IF(MaintOnlyPrint=0,'Contact Center'!J67,0)","v":0},{"$f":"'Ordering Information'!I85","v":1},0]
[null,{"$f":"'Ordering Information'!C86","v":"CX-REC-V30"},{"$f":"'Ordering Information'!D86","v":"TSWA9267601"},{"$f":"'Ordering Information'!E86","v":"CCX Record VOIP 30 channel, a switch supporting port mirroring is required"},{"$f":"IF(MaintOnlyPrint=0,'Contact Center'!J68,0)","v":0},{"$f":"'Ordering Information'!I86","v":1},0]
[null,{"$f":"'Ordering Information'!C87","v":"CX-REC-V40"},{"$f":"'Ordering Information'!D87","v":"TSWA9267801"},{"$f":"'Ordering Information'!E87","v":"CCX Record VOIP 40 channel, a switch supporting port mirroring is required"},{"$f":"IF(MaintOnlyPrint=0,'Contact Center'!J69,0)","v":0},{"$f":"'Ordering Information'!I87","v":1},0]
[null,{"$f":"'Ordering Information'!C88","v":"CX-REC-V50"},{"$f":"'Ordering Information'!D88","v":"TSWA9267901"},{"$f":"'Ordering Information'!E88","v":"CCX Record VOIP 50 channel, a switch supporting port mirroring is required"},{"$f":"IF(MaintOnlyPrint=0,'Contact Center'!J70,0)","v":0},{"$f":"'Ordering Information'!I88","v":1},0]
[null,{"$f":"'Ordering Information'!C89","v":"CX-REC-V60"},{"$f":"'Ordering Information'!D89","v":"TSWA9268101"},{"$f":"'Ordering Information'!E89","v":"CCX Record VOIP 60 channel, a switch supporting port mirroring is required"},{"$f":"IF(MaintOnlyPrint=0,'Contact Center'!J71,0)","v":0},{"$f":"'Ordering Information'!I89","v":1},0]
[null,{"$f":"'Ordering Information'!C90","v":"CX-REC-V90"},{"$f":"'Ordering Information'!D90","v":"TSWA9268201"},{"$f":"'Ordering Information'!E90","v":"CCX Record VOIP 90 channel, a switch supporting port mirroring is required"},{"$f":"IF(MaintOnlyPrint=0,'Contact Center'!J72,0)","v":0},{"$f":"'Ordering Information'!I90","v":1},0]
[null,{"$f":"'Ordering Information'!C91","v":"CX-REC-V120"},{"$f":"'Ordering Information'!D91","v":"TSWA9268401"},{"$f":"'Ordering Information'!E91","v":"CCX Record VOIP 120 channel, a switch supporting port mirroring is required"},{"$f":"IF(MaintOnlyPrint=0,'Contact Center'!J73,0)","v":0},{"$f":"'Ordering Information'!I91","v":1},{"$f":"E80*F80","v":0}]
[null,{"$f":"'Ordering Information'!C92","v":"CX-REC-V150"},{"$f":"'Ordering Information'!D92","v":"TSWA9268601"},{"$f":"'Ordering Information'!E92","v":"CCX Record VOIP 150 channel, a switch supporting port mirroring is required"},{"$f":"IF(MaintOnlyPrint=0,'Contact Center'!J74,0)","v":0},{"$f":"'Ordering Information'!I92","v":1},0]
[null,{"$f":"'Ordering Information'!C93","v":"CX-REC-V180"},{"$f":"'Ordering Information'!D93","v":"TSWA9268701"},{"$f":"'Ordering Information'!E93","v":"CCX Record VOIP 180 channel, a switch supporting port mirroring is required"},{"$f":"IF(MaintOnlyPrint=0,'Contact Center'!J75,0)","v":0},{"$f":"'Ordering Information'!I93","v":1},0]
[null,{"$f":"'Ordering Information'!C94","v":"CX-REC-V200"},{"$f":"'Ordering Information'!D94","v":"TSWA9268801"},{"$f":"'Ordering Information'!E94","v":"CCX Record VOIP 200 channel, a switch supporting port mirroring is required"},{"$f":"IF(MaintOnlyPrint=0,'Contact Center'!J76,0)","v":0},{"$f":"'Ordering Information'!I94","v":1},0]
[null,{"$f":"'Ordering Information'!C95","v":"CX-REC-V240"},{"$f":"'Ordering Information'!D95","v":"TSWA9269001"},{"$f":"'Ordering Information'!E95","v":"CCX Record VOIP 240 channel, a switch supporting port mirroring is required"},{"$f":"IF(MaintOnlyPrint=0,'Contact Center'!J77,0)","v":0},{"$f":"'Ordering Information'!I95","v":1},0]
[null,{"$f":"'Ordering Information'!C96","v":"CX-CODEC-G729"},{"$f":"'Ordering Information'!D96","v":"TSWA9251001"},{"$f":"'Ordering Information'!E96","v":"G.729 Voice Codec for CCX Record (per channel)"},{"$f":"IF(MaintOnlyPrint=0,'Contact Center'!J78,0)","v":0},{"$f":"'Ordering Information'!I96","v":1},0]
[null,{"$f":"'Ordering Information'!C97","v":"CX-Q-EVF"},{"$f":"'Ordering Information'!D97","v":"TSWA9269701"},{"$f":"'Ordering Information'!E97","v":"CCX Q Email, Voice and Fax Queuing "},{"$f":"IF(MaintOnlyPrint=0,'Contact Center'!J79,0)","v":0},{"$f":"'Ordering Information'!I97","v":1},{"$f":"E86*F86","v":0}]
[null,{"$f":"'Ordering Information'!C98","v":"CX-Q-SN"},{"$f":"'Ordering Information'!D98","v":"TSWA9269801"},{"$f":"'Ordering Information'!E98","v":"CCX Q Social Networking Module"},{"$f":"IF(MaintOnlyPrint=0,'Contact Center'!J80,0)","v":0},{"$f":"'Ordering Information'!I98","v":1},0]
[null,{"$f":"'Ordering Information'!C99","v":"CX-Q-MSN"},{"$f":"'Ordering Information'!D99","v":"TSWA9269901"},{"$f":"'Ordering Information'!E99","v":"CCX Q Multi Site Networking Module"},{"$f":"IF(MaintOnlyPrint=0,'Contact Center'!J81,0)","v":0},{"$f":"'Ordering Information'!I99","v":1},0]
[null,{"$f":"'Ordering Information'!C100","v":"CX-CHAT-5"},{"$f":"'Ordering Information'!D100","v":"TSWA9270001"},{"$f":"'Ordering Information'!E100","v":"Web Chat and Instant Messaging Clients"},{"$f":"IF(MaintOnlyPrint=0,'Contact Center'!J82,0)","v":0},{"$f":"'Ordering Information'!I100","v":1},0]
[null,{"$f":"'Ordering Information'!C101","v":"CX-CALL"},{"$f":"'Ordering Information'!D101","v":"TSWA9270101"},{"$f":"'Ordering Information'!E101","v":"Outbound Tele-Marketing module - preview & progressive only"},{"$f":"IF(MaintOnlyPrint=0,'Contact Center'!J83,0)","v":0},{"$f":"'Ordering Information'!I101","v":1},0]
[null,{"$f":"'Ordering Information'!C102","v":"CX-CALL-U"},{"$f":"'Ordering Information'!D102","v":"TSWA9270301"},{"$f":"'Ordering Information'!E102","v":"Outbound Tele-Marketing module - previewprogressive & pre-emptive & Predictive auto dial modes "},{"$f":"IF(MaintOnlyPrint=0,'Contact Center'!J84,0)","v":0},{"$f":"'Ordering Information'!I102","v":1},0]
[null,{"$f":"'Ordering Information'!C103","v":"CX-SMS"},{"$f":"'Ordering Information'!D103","v":"TSWA9270401"},{"$f":"'Ordering Information'!E103","v":"CCX SMS module with commercial service provider"},{"$f":"IF(MaintOnlyPrint=0,'Contact Center'!J85,0)","v":0},{"$f":"'Ordering Information'!I103","v":1},0]
[null,{"$f":"'Ordering Information'!C104","v":"CX-IVR"},{"$f":"'Ordering Information'!D104","v":"TSWA9270501"},{"$f":"'Ordering Information'!E104","v":"Full IVR Module  - requires HMP channels"},{"$f":"IF(MaintOnlyPrint=0,'Contact Center'!J86,0)","v":0},{"$f":"'Ordering Information'!I104","v":1},0]
[null,{"$f":"'Ordering Information'!C105","v":"CX-SURVEY"},{"$f":"'Ordering Information'!D105","v":"TSWA9270601"},{"$f":"'Ordering Information'!E105","v":"CCX survey for customer service measurement "},{"$f":"IF(MaintOnlyPrint=0,'Contact Center'!J87,0)","v":0},{"$f":"'Ordering Information'!I105","v":1},0]
[null,{"$f":"'Ordering Information'!C106","v":"CX-COACH"},{"$f":"'Ordering Information'!D106","v":"TSWA9270701"},{"$f":"'Ordering Information'!E106","v":"CCX Coach for agent training"},{"$f":"IF(MaintOnlyPrint=0,'Contact Center'!J88,0)","v":0},{"$f":"'Ordering Information'!I106","v":1},0]
[null,{"$f":"'Ordering Information'!C107","v":"CX-ASSESSOR"},{"$f":"'Ordering Information'!D107","v":"TSWA9251101"},{"$f":"'Ordering Information'!E107","v":"CCX Coach for additional asssessor"},{"$f":"IF(MaintOnlyPrint=0,'Contact Center'!J89,0)","v":0},{"$f":"'Ordering Information'!I107","v":1},0]
[null,{"$f":"'Ordering Information'!C108","v":"CX-SCRIPT"},{"$f":"'Ordering Information'!D108","v":"TSWA9270801"},{"$f":"'Ordering Information'!E108","v":"Verbatim script guiding agents during call in CCX Coach"},{"$f":"IF(MaintOnlyPrint=0,'Contact Center'!J90,0)","v":0},{"$f":"'Ordering Information'!I108","v":1},0]
[null,{"$f":"'Ordering Information'!C109","v":"CX-PIDC-MGR"},{"$f":"'Ordering Information'!D109","v":"TSWA9251201"},{"$f":"'Ordering Information'!E109","v":"CCX Personal Information Data Compliance Manager"},{"$f":"IF(MaintOnlyPrint=0,'Contact Center'!J91,0)","v":0},{"$f":"'Ordering Information'!I109","v":1},0]
[null,{"$f":"'Ordering Information'!C110","v":"CX-A-REP-D"},{"$f":"'Ordering Information'!D110","v":"TSWA9306201"},{"$f":"'Ordering Information'!E110","v":"supervisor license for accessing report web server"},{"$f":"IF(MaintOnlyPrint=0,'Contact Center'!J92,0)","v":0},{"$f":"'Ordering Information'!I110","v":1},0]
[null,{"$f":"'Ordering Information'!C111","v":"CX-A-REP-EH"},{"$f":"'Ordering Information'!D111","v":"TSWA9306401"},{"$f":"'Ordering Information'!E111","v":"additional Extensions - 100"},{"$f":"IF(MaintOnlyPrint=0,'Contact Center'!J93,0)","v":0},{"$f":"'Ordering Information'!I111","v":1},0]
[null,{"$f":"'Ordering Information'!C112","v":"CX-A-REP-ES"},{"$f":"'Ordering Information'!D112","v":"TSWA9306501"},{"$f":"'Ordering Information'!E112","v":"additional Extensions - 1000"},{"$f":"IF(MaintOnlyPrint=0,'Contact Center'!J94,0)","v":0},{"$f":"'Ordering Information'!I112","v":1},0]
[null,{"$f":"'Ordering Information'!C113","v":"CX-A-REP-SL"},{"$f":"'Ordering Information'!D113","v":"TSWA9306601"},{"$f":"'Ordering Information'!E113","v":"Extra Site License to add additional site managed (only for call Traffic)"},{"$f":"IF(MaintOnlyPrint=0,'Contact Center'!J95,0)","v":0},{"$f":"'Ordering Information'!I113","v":1},0]
[null,{"$f":"'Ordering Information'!C114","v":"CX-IPCR-INT4"},{"$f":"'Ordering Information'!D114","v":"TSWA9263501"},{"$f":"'Ordering Information'!E114","v":"CCX Record IPCR integration 4 channels"},{"$f":"IF(MaintOnlyPrint=0,'Contact Center'!J96,0)","v":0},{"$f":"'Ordering Information'!I114","v":1},0]
[null,{"$f":"'Ordering Information'!C115","v":"CX-IPCR-INT8"},{"$f":"'Ordering Information'!D115","v":"TSWA9263601"},{"$f":"'Ordering Information'!E115","v":"CCX Record IPCR integration 8 channels"},{"$f":"IF(MaintOnlyPrint=0,'Contact Center'!J97,0)","v":0},{"$f":"'Ordering Information'!I115","v":1},0]
[null,{"$f":"'Ordering Information'!C116","v":"CX-IPCR-INT12"},{"$f":"'Ordering Information'!D116","v":"TSWA9263701"},{"$f":"'Ordering Information'!E116","v":"CCX Record IPCR integration 12 channels"},{"$f":"IF(MaintOnlyPrint=0,'Contact Center'!J98,0)","v":0},{"$f":"'Ordering Information'!I116","v":1},0]
[null,{"$f":"'Ordering Information'!C117","v":"CX-IPCR-INT16"},{"$f":"'Ordering Information'!D117","v":"TSWA9263801"},{"$f":"'Ordering Information'!E117","v":"CCX Record IPCR integration 16 channels"},{"$f":"IF(MaintOnlyPrint=0,'Contact Center'!J99,0)","v":0},{"$f":"'Ordering Information'!I117","v":1},0]
[null,{"$f":"'Ordering Information'!C118","v":"CX-IPCR-INT24"},{"$f":"'Ordering Information'!D118","v":"TSWA9263901"},{"$f":"'Ordering Information'!E118","v":"CCX Record IPCR integration 24 channels"},{"$f":"IF(MaintOnlyPrint=0,'Contact Center'!J100,0)","v":0},{"$f":"'Ordering Information'!I118","v":1},0]
[null,{"$f":"'Ordering Information'!C119","v":"CX-IPCR-INT30"},{"$f":"'Ordering Information'!D119","v":"TSWA9264001"},{"$f":"'Ordering Information'!E119","v":"CCX Record IPCR integration 30 channels"},{"$f":"IF(MaintOnlyPrint=0,'Contact Center'!J101,0)","v":0},{"$f":"'Ordering Information'!I119","v":1},0]
[null,{"$f":"'Ordering Information'!C120","v":"CX-IPCR-INT40"},{"$f":"'Ordering Information'!D120","v":"TSWA9264101"},{"$f":"'Ordering Information'!E120","v":"CCX Record IPCR integration 40 channels"},{"$f":"IF(MaintOnlyPrint=0,'Contact Center'!J102,0)","v":0},{"$f":"'Ordering Information'!I120","v":1},0]
[null,{"$f":"'Ordering Information'!C121","v":"CX-IPCR-INT50"},{"$f":"'Ordering Information'!D121","v":"TSWA9264201"},{"$f":"'Ordering Information'!E121","v":"CCX Record IPCR integration 50 channels"},{"$f":"IF(MaintOnlyPrint=0,'Contact Center'!J103,0)","v":0},{"$f":"'Ordering Information'!I121","v":1},0]
[null,{"$f":"'Ordering Information'!C122","v":"CX-IPCR-INT60"},{"$f":"'Ordering Information'!D122","v":"TSWA9264301"},{"$f":"'Ordering Information'!E122","v":"CCX Record IPCR integration 60 channels"},{"$f":"IF(MaintOnlyPrint=0,'Contact Center'!J104,0)","v":0},{"$f":"'Ordering Information'!I122","v":1},0]
[null,{"$f":"'Ordering Information'!C123","v":"CX-IPCR-INT90"},{"$f":"'Ordering Information'!D123","v":"TSWA9264401"},{"$f":"'Ordering Information'!E123","v":"CCX Record IPCR integration 90 channels"},{"$f":"IF(MaintOnlyPrint=0,'Contact Center'!J105,0)","v":0},{"$f":"'Ordering Information'!I123","v":1},0]
[null,{"$f":"'Ordering Information'!C124","v":"CX-IPCR-INT120"},{"$f":"'Ordering Information'!D124","v":"TSWA9264501"},{"$f":"'Ordering Information'!E124","v":"CCX Record IPCR integration 120 channels"},{"$f":"IF(MaintOnlyPrint=0,'Contact Center'!J106,0)","v":0},{"$f":"'Ordering Information'!I124","v":1},0]
[null,{"$f":"'Ordering Information'!C125","v":"CX-IPCR-INT150"},{"$f":"'Ordering Information'!D125","v":"TSWA9264601"},{"$f":"'Ordering Information'!E125","v":"CCX Record IPCR integration 150 channels"},{"$f":"IF(MaintOnlyPrint=0,'Contact Center'!J107,0)","v":0},{"$f":"'Ordering Information'!I125","v":1},0]
[null,{"$f":"'Ordering Information'!C126","v":"CX-IPCR-INT180"},{"$f":"'Ordering Information'!D126","v":"TSWA9264701"},{"$f":"'Ordering Information'!E126","v":"CCX Record IPCR integration 180 channels"},{"$f":"IF(MaintOnlyPrint=0,'Contact Center'!J108,0)","v":0},{"$f":"'Ordering Information'!I126","v":1},0]
[null,{"$f":"'Ordering Information'!C127","v":"CX-IPCR-INT-ADD"},{"$f":"'Ordering Information'!D127","v":"TSWA9264801"},{"$f":"'Ordering Information'!E127","v":"Additional CCX Record IPCR integration 1 channels"},{"$f":"IF(MaintOnlyPrint=0,'Contact Center'!J109,0)","v":0},{"$f":"'Ordering Information'!I127","v":1},0]
[null,{"$f":"'Ordering Information'!C128","v":"MCX-PAC-5"},{"$f":"'Ordering Information'!D128","v":"TSWA9271001"},{"$f":"'Ordering Information'!E128","v":"Normal Renewal for CCX-PAC-5 within warranty"},{"$f":"IF(MaintOnlyPrint=1,'Contact Center'!J110,0)","v":0},{"$f":"'Ordering Information'!I128","v":0.1},0]
[null,{"$f":"'Ordering Information'!C129","v":"MCX-PAC-10"},{"$f":"'Ordering Information'!D129","v":"TSWA9271101"},{"$f":"'Ordering Information'!E129","v":"Normal Renewal for CCX-PAC-10 within warranty"},{"$f":"IF(MaintOnlyPrint=1,'Contact Center'!J111,0)","v":0},{"$f":"'Ordering Information'!I129","v":0.1},{"$f":"E118*F118","v":0}]
[null,{"$f":"'Ordering Information'!C130","v":"MCX-PAC-20"},{"$f":"'Ordering Information'!D130","v":"TSWA9271201"},{"$f":"'Ordering Information'!E130","v":"Normal Renewal for CCX-PAC-20 within warranty"},{"$f":"IF(MaintOnlyPrint=1,'Contact Center'!J112,0)","v":0},{"$f":"'Ordering Information'!I130","v":0.1},0]
[null,{"$f":"'Ordering Information'!C131","v":"MCX-PAC-30"},{"$f":"'Ordering Information'!D131","v":"TSWA9271301"},{"$f":"'Ordering Information'!E131","v":"Normal Renewal for CCX-PAC-30 within warranty"},{"$f":"IF(MaintOnlyPrint=1,'Contact Center'!J113,0)","v":0},{"$f":"'Ordering Information'!I131","v":0.1},0]
[null,{"$f":"'Ordering Information'!C132","v":"MCX-PAC-50"},{"$f":"'Ordering Information'!D132","v":"TSWA9271401"},{"$f":"'Ordering Information'!E132","v":"Normal Renewal for CCX-PAC-50 within warranty"},{"$f":"IF(MaintOnlyPrint=1,'Contact Center'!J114,0)","v":0},{"$f":"'Ordering Information'!I132","v":0.1},0]
[null,{"$f":"'Ordering Information'!C133","v":"MCX-PAC-75"},{"$f":"'Ordering Information'!D133","v":"TSWA9271501"},{"$f":"'Ordering Information'!E133","v":"Normal Renewal for CCX-PAC-75 within warranty"},{"$f":"IF(MaintOnlyPrint=1,'Contact Center'!J115,0)","v":0},{"$f":"'Ordering Information'!I133","v":0.1},0]
[null,{"$f":"'Ordering Information'!C134","v":"MCX-PAC-100"},{"$f":"'Ordering Information'!D134","v":"TSWA9271601"},{"$f":"'Ordering Information'!E134","v":"Normal Renewal for CCX-PAC-100 within warranty"},{"$f":"IF(MaintOnlyPrint=1,'Contact Center'!J116,0)","v":0},{"$f":"'Ordering Information'!I134","v":0.1},0]
[null,{"$f":"'Ordering Information'!C135","v":"MCX-PAC-150"},{"$f":"'Ordering Information'!D135","v":"TSWA9251301"},{"$f":"'Ordering Information'!E135","v":"Normal Renewal for CCX-PAC-150 within warranty"},{"$f":"IF(MaintOnlyPrint=1,'Contact Center'!J117,0)","v":0},{"$f":"'Ordering Information'!I135","v":0.1},0]
[null,{"$f":"'Ordering Information'!C136","v":"MCX-PAC-200"},{"$f":"'Ordering Information'!D136","v":"TSWA9251401"},{"$f":"'Ordering Information'!E136","v":"Normal Renewal for CCX-PAC-200 within warranty"},{"$f":"IF(MaintOnlyPrint=1,'Contact Center'!J118,0)","v":0},{"$f":"'Ordering Information'!I136","v":0.1},0]
[null,{"$f":"'Ordering Information'!C137","v":"MCX-PAC-250"},{"$f":"'Ordering Information'!D137","v":"TSWA9251501"},{"$f":"'Ordering Information'!E137","v":"Normal Renewal for CCX-PAC-250 within warranty"},{"$f":"IF(MaintOnlyPrint=1,'Contact Center'!J119,0)","v":0},{"$f":"'Ordering Information'!I137","v":0.1},0]
[null,{"$f":"'Ordering Information'!C138","v":"MX-DSK-ADD"},{"$f":"'Ordering Information'!D138","v":"TSWA9271701"},{"$f":"'Ordering Information'!E138","v":"Normal Renewal for CX-DSK-ADD within warranty"},{"$f":"IF(MaintOnlyPrint=1,'Contact Center'!J120,0)","v":0},{"$f":"'Ordering Information'!I138","v":0.1},0]
[null,{"$f":"'Ordering Information'!C139","v":"MX-HMP"},{"$f":"'Ordering Information'!D139","v":"TSWA9271801"},{"$f":"'Ordering Information'!E139","v":"Normal Renewal for CX-HMP within warranty"},{"$f":"IF(MaintOnlyPrint=1,'Contact Center'!J121,0)","v":0},{"$f":"'Ordering Information'!I139","v":0.1},0]
[null,{"$f":"'Ordering Information'!C140","v":"MX-HMP-G729"},{"$f":"'Ordering Information'!D140","v":"TSWA9251601"},{"$f":"'Ordering Information'!E140","v":"Normal Renewal for CX-HMP-G729 within warranty"},{"$f":"IF(MaintOnlyPrint=1,'Contact Center'!J122,0)","v":0},{"$f":"'Ordering Information'!I140","v":0.1},0]
[null,{"$f":"'Ordering Information'!C141","v":"MX-DB"},{"$f":"'Ordering Information'!D141","v":"TSWA9307001"},{"$f":"'Ordering Information'!E141","v":"Normal Renewal for CX-DB within warranty"},{"$f":"IF(MaintOnlyPrint=1,'Contact Center'!J123,0)","v":0},{"$f":"'Ordering Information'!I141","v":0.1},{"$f":"E130*F130","v":0}]
[null,{"$f":"'Ordering Information'!C142","v":"MX-CC-LICENSE"},{"$f":"'Ordering Information'!D142","v":"TSWA9251701"},{"$f":"'Ordering Information'!E142","v":"Normal Renewal for CX-CC-LICENSE within warranty"},{"$f":"IF(MaintOnlyPrint=1,'Contact Center'!J124,0)","v":0},{"$f":"'Ordering Information'!I142","v":0.1},0]
[null,{"$f":"'Ordering Information'!C143","v":"MX-REC-B4"},{"$f":"'Ordering Information'!D143","v":"TSWA9273301"},{"$f":"'Ordering Information'!E143","v":"Normal Renewal for CX-REC-B4 within warranty"},{"$f":"IF(MaintOnlyPrint=1,'Contact Center'!J125,0)","v":0},{"$f":"'Ordering Information'!I143","v":0.1},0]
[null,{"$f":"'Ordering Information'!C144","v":"MX-REC-B8"},{"$f":"'Ordering Information'!D144","v":"TSWA9273401"},{"$f":"'Ordering Information'!E144","v":"Normal Renewal for CX-REC-B8 within warranty"},{"$f":"IF(MaintOnlyPrint=1,'Contact Center'!J126,0)","v":0},{"$f":"'Ordering Information'!I144","v":0.1},0]
[null,{"$f":"'Ordering Information'!C145","v":"MX-REC-B12"},{"$f":"'Ordering Information'!D145","v":"TSWA9273501"},{"$f":"'Ordering Information'!E145","v":"Normal Renewal for CX-REC-B12 within warranty"},{"$f":"IF(MaintOnlyPrint=1,'Contact Center'!J127,0)","v":0},{"$f":"'Ordering Information'!I145","v":0.1},0]
[null,{"$f":"'Ordering Information'!C146","v":"MX-REC-P8"},{"$f":"'Ordering Information'!D146","v":"TSWA9273601"},{"$f":"'Ordering Information'!E146","v":"Normal Renewal for CX-REC-P8 within warranty"},{"$f":"IF(MaintOnlyPrint=1,'Contact Center'!J128,0)","v":0},{"$f":"'Ordering Information'!I146","v":0.1},0]
[null,{"$f":"'Ordering Information'!C147","v":"MX-REC-P12"},{"$f":"'Ordering Information'!D147","v":"TSWA9273701"},{"$f":"'Ordering Information'!E147","v":"Normal Renewal for CX-REC-P12 within warranty"},{"$f":"IF(MaintOnlyPrint=1,'Contact Center'!J129,0)","v":0},{"$f":"'Ordering Information'!I147","v":0.1},0]
[null,{"$f":"'Ordering Information'!C148","v":"MX-REC-P16"},{"$f":"'Ordering Information'!D148","v":"TSWA9273801"},{"$f":"'Ordering Information'!E148","v":"Normal Renewal for CX-REC-P16 within warranty"},{"$f":"IF(MaintOnlyPrint=1,'Contact Center'!J130,0)","v":0},{"$f":"'Ordering Information'!I148","v":0.1},0]
[null,{"$f":"'Ordering Information'!C149","v":"MX-REC-P24"},{"$f":"'Ordering Information'!D149","v":"TSWA9273901"},{"$f":"'Ordering Information'!E149","v":"Normal Renewal for CX-REC-P24 within warranty"},{"$f":"IF(MaintOnlyPrint=1,'Contact Center'!J131,0)","v":0},{"$f":"'Ordering Information'!I149","v":0.1},0]
[null,{"$f":"'Ordering Information'!C150","v":"MX-REC-P30"},{"$f":"'Ordering Information'!D150","v":"TSWA9274001"},{"$f":"'Ordering Information'!E150","v":"Normal Renewal for CX-REC-P30 within warranty"},{"$f":"IF(MaintOnlyPrint=1,'Contact Center'!J132,0)","v":0},{"$f":"'Ordering Information'!I150","v":0.1},0]
[null,{"$f":"'Ordering Information'!C160","v":"MX-REC-V4"},{"$f":"'Ordering Information'!D160","v":"TSWA9275001"},{"$f":"'Ordering Information'!E160","v":"Normal Renewal for CX-REC-V4 within warranty"},{"$f":"IF(MaintOnlyPrint=1,'Contact Center'!J133,0)","v":0},{"$f":"'Ordering Information'!I160","v":0.1},0]
[null,{"$f":"'Ordering Information'!C161","v":"MX-REC-V6"},{"$f":"'Ordering Information'!D161","v":"TSWA9253501"},{"$f":"'Ordering Information'!E161","v":"Normal Renewal for CX-REC-V6 within warranty"},{"$f":"IF(MaintOnlyPrint=1,'Contact Center'!J134,0)","v":0},{"$f":"'Ordering Information'!I161","v":0.1},0]
[null,{"$f":"'Ordering Information'!C162","v":"MX-REC-V8"},{"$f":"'Ordering Information'!D162","v":"TSWA9275101"},{"$f":"'Ordering Information'!E162","v":"Normal Renewal for CX-REC-V8 within warranty"},{"$f":"IF(MaintOnlyPrint=1,'Contact Center'!J135,0)","v":0},{"$f":"'Ordering Information'!I162","v":0.1},0]
[null,{"$f":"'Ordering Information'!C163","v":"MX-REC-V12"},{"$f":"'Ordering Information'!D163","v":"TSWA9275201"},{"$f":"'Ordering Information'!E163","v":"Normal Renewal for CX-REC-V12 within warranty"},{"$f":"IF(MaintOnlyPrint=1,'Contact Center'!J136,0)","v":0},{"$f":"'Ordering Information'!I163","v":0.1},0]
[null,{"$f":"'Ordering Information'!C164","v":"MX-REC-V16"},{"$f":"'Ordering Information'!D164","v":"TSWA9275301"},{"$f":"'Ordering Information'!E164","v":"Normal Renewal for CX-REC-V16 within warranty"},{"$f":"IF(MaintOnlyPrint=1,'Contact Center'!J137,0)","v":0},{"$f":"'Ordering Information'!I164","v":0.1},0]
[null,{"$f":"'Ordering Information'!C165","v":"MX-REC-V24"},{"$f":"'Ordering Information'!D165","v":"TSWA9275401"},{"$f":"'Ordering Information'!E165","v":"Normal Renewal for CX-REC-V24 within warranty"},{"$f":"IF(MaintOnlyPrint=1,'Contact Center'!J138,0)","v":0},{"$f":"'Ordering Information'!I165","v":0.1},0]
[null,{"$f":"'Ordering Information'!C166","v":"MX-REC-V30"},{"$f":"'Ordering Information'!D166","v":"TSWA9275501"},{"$f":"'Ordering Information'!E166","v":"Normal Renewal for CX-REC-V30 within warranty"},{"$f":"IF(MaintOnlyPrint=1,'Contact Center'!J139,0)","v":0},{"$f":"'Ordering Information'!I166","v":0.1},0]
[null,{"$f":"'Ordering Information'!C167","v":"MX-REC-V40"},{"$f":"'Ordering Information'!D167","v":"TSWA9275601"},{"$f":"'Ordering Information'!E167","v":"Normal Renewal for CX-REC-V40 within warranty"},{"$f":"IF(MaintOnlyPrint=1,'Contact Center'!J140,0)","v":0},{"$f":"'Ordering Information'!I167","v":0.1},0]
[null,{"$f":"'Ordering Information'!C168","v":"MX-REC-V50"},{"$f":"'Ordering Information'!D168","v":"TSWA9275701"},{"$f":"'Ordering Information'!E168","v":"Normal Renewal for CX-REC-V50 within warranty"},{"$f":"IF(MaintOnlyPrint=1,'Contact Center'!J141,0)","v":0},{"$f":"'Ordering Information'!I168","v":0.1},0]
[null,{"$f":"'Ordering Information'!C169","v":"MX-REC-V60"},{"$f":"'Ordering Information'!D169","v":"TSWA9275801"},{"$f":"'Ordering Information'!E169","v":"Normal Renewal for CX-REC-V60 within warranty"},{"$f":"IF(MaintOnlyPrint=1,'Contact Center'!J142,0)","v":0},{"$f":"'Ordering Information'!I169","v":0.1},0]
[null,{"$f":"'Ordering Information'!C170","v":"MX-REC-V90"},{"$f":"'Ordering Information'!D170","v":"TSWA9275901"},{"$f":"'Ordering Information'!E170","v":"Normal Renewal for CX-REC-V90 within warranty"},{"$f":"IF(MaintOnlyPrint=1,'Contact Center'!J143,0)","v":0},{"$f":"'Ordering Information'!I170","v":0.1},0]
[null,{"$f":"'Ordering Information'!C171","v":"MX-REC-V120"},{"$f":"'Ordering Information'!D171","v":"TSWA9276001"},{"$f":"'Ordering Information'!E171","v":"Normal Renewal for CX-REC-V120 within warranty"},{"$f":"IF(MaintOnlyPrint=1,'Contact Center'!J144,0)","v":0},{"$f":"'Ordering Information'!I171","v":0.1},0]
[null,{"$f":"'Ordering Information'!C172","v":"MX-REC-V150"},{"$f":"'Ordering Information'!D172","v":"TSWA9276101"},{"$f":"'Ordering Information'!E172","v":"Normal Renewal for CX-REC-V150 within warranty"},{"$f":"IF(MaintOnlyPrint=1,'Contact Center'!J145,0)","v":0},{"$f":"'Ordering Information'!I172","v":0.1},0]
[null,{"$f":"'Ordering Information'!C173","v":"MX-REC-V180"},{"$f":"'Ordering Information'!D173","v":"TSWA9276201"},{"$f":"'Ordering Information'!E173","v":"Normal Renewal for CX-REC-V180 within warranty"},{"$f":"IF(MaintOnlyPrint=1,'Contact Center'!J146,0)","v":0},{"$f":"'Ordering Information'!I173","v":0.1},0]
[null,{"$f":"'Ordering Information'!C174","v":"MX-REC-V200"},{"$f":"'Ordering Information'!D174","v":"TSWA9276301"},{"$f":"'Ordering Information'!E174","v":"Normal Renewal for CX-REC-V200 within warranty"},{"$f":"IF(MaintOnlyPrint=1,'Contact Center'!J147,0)","v":0},{"$f":"'Ordering Information'!I174","v":0.1},0]
[null,{"$f":"'Ordering Information'!C175","v":"MX-REC-V240"},{"$f":"'Ordering Information'!D175","v":"TSWA9276401"},{"$f":"'Ordering Information'!E175","v":"Normal Renewal for CX-REC-V240 within warranty"},{"$f":"IF(MaintOnlyPrint=1,'Contact Center'!J148,0)","v":0},{"$f":"'Ordering Information'!I175","v":0.1},0]
[null,{"$f":"'Ordering Information'!C176","v":"MX-CODEC-G729"},{"$f":"'Ordering Information'!D176","v":"TSWA9253601"},{"$f":"'Ordering Information'!E176","v":"Normal Renewal for CX-CODEC-G729 within warranty"},{"$f":"IF(MaintOnlyPrint=1,'Contact Center'!J149,0)","v":0},{"$f":"'Ordering Information'!I176","v":0.1},0]
[null,{"$f":"'Ordering Information'!C177","v":"MX-Q-EVF"},{"$f":"'Ordering Information'!D177","v":"TSWA9276901"},{"$f":"'Ordering Information'!E177","v":"Normal Renewal for CX-Q-EVF within warranty"},{"$f":"IF(MaintOnlyPrint=1,'Contact Center'!J150,0)","v":0},{"$f":"'Ordering Information'!I177","v":0.1},0]
[null,{"$f":"'Ordering Information'!C178","v":"MX-Q-SN"},{"$f":"'Ordering Information'!D178","v":"TSWA9277001"},{"$f":"'Ordering Information'!E178","v":"Normal Renewal for CX-Q-SN within warranty"},{"$f":"IF(MaintOnlyPrint=1,'Contact Center'!J151,0)","v":0},{"$f":"'Ordering Information'!I178","v":0.1},0]
[null,{"$f":"'Ordering Information'!C179","v":"MX-Q-MSN"},{"$f":"'Ordering Information'!D179","v":"TSWA9277101"},{"$f":"'Ordering Information'!E179","v":"Normal Renewal for CX-Q-MSN within warranty"},{"$f":"IF(MaintOnlyPrint=1,'Contact Center'!J152,0)","v":0},{"$f":"'Ordering Information'!I179","v":0.1},0]
[null,{"$f":"'Ordering Information'!C180","v":"MX-CHAT-5"},{"$f":"'Ordering Information'!D180","v":"TSWA9277201"},{"$f":"'Ordering Information'!E180","v":"Normal Renewal for CX-CHAT-5 within warranty"},{"$f":"IF(MaintOnlyPrint=1,'Contact Center'!J153,0)","v":0},{"$f":"'Ordering Information'!I180","v":0.1},0]
[null,{"$f":"'Ordering Information'!C181","v":"MX-CALL"},{"$f":"'Ordering Information'!D181","v":"TSWA9277301"},{"$f":"'Ordering Information'!E181","v":"Normal Renewal for CX-CALL within warranty"},{"$f":"IF(MaintOnlyPrint=1,'Contact Center'!J154,0)","v":0},{"$f":"'Ordering Information'!I181","v":0.1},0]
[null,{"$f":"'Ordering Information'!C182","v":"MX-CALL-U"},{"$f":"'Ordering Information'!D182","v":"TSWA9277401"},{"$f":"'Ordering Information'!E182","v":"Normal Renewal for CX-CALL-U within warranty"},{"$f":"IF(MaintOnlyPrint=1,'Contact Center'!J155,0)","v":0},{"$f":"'Ordering Information'!I182","v":0.1},0]
[null,{"$f":"'Ordering Information'!C183","v":"MX-SMS"},{"$f":"'Ordering Information'!D183","v":"TSWA9277501"},{"$f":"'Ordering Information'!E183","v":"Normal Renewal for CX-SMS within warranty"},{"$f":"IF(MaintOnlyPrint=1,'Contact Center'!J156,0)","v":0},{"$f":"'Ordering Information'!I183","v":0.1},0]
[null,{"$f":"'Ordering Information'!C184","v":"MX-IVR"},{"$f":"'Ordering Information'!D184","v":"TSWA9277601"},{"$f":"'Ordering Information'!E184","v":"Normal Renewal for CX-IVR within warranty"},{"$f":"IF(MaintOnlyPrint=1,'Contact Center'!J157,0)","v":0},{"$f":"'Ordering Information'!I184","v":0.1},0]
[null,{"$f":"'Ordering Information'!C185","v":"MX-SURVEY"},{"$f":"'Ordering Information'!D185","v":"TSWA9277701"},{"$f":"'Ordering Information'!E185","v":"Normal Renewal for CX-SURVEY within warranty"},{"$f":"IF(MaintOnlyPrint=1,'Contact Center'!J158,0)","v":0},{"$f":"'Ordering Information'!I185","v":0.1},0]
[null,{"$f":"'Ordering Information'!C186","v":"MX-COACH"},{"$f":"'Ordering Information'!D186","v":"TSWA9277801"},{"$f":"'Ordering Information'!E186","v":"Normal Renewal for CX-COACH within warranty"},{"$f":"IF(MaintOnlyPrint=1,'Contact Center'!J159,0)","v":0},{"$f":"'Ordering Information'!I186","v":0.1},0]
[null,{"$f":"'Ordering Information'!C187","v":"MX-ASSESSOR"},{"$f":"'Ordering Information'!D187","v":"TSWA9253701"},{"$f":"'Ordering Information'!E187","v":"Normal Renewal for CX-ASSESSOR within warranty"},{"$f":"IF(MaintOnlyPrint=1,'Contact Center'!J160,0)","v":0},{"$f":"'Ordering Information'!I187","v":0.1},0]
[null,{"$f":"'Ordering Information'!C188","v":"MX-SCRIPT"},{"$f":"'Ordering Information'!D188","v":"TSWA9277901"},{"$f":"'Ordering Information'!E188","v":"Normal Renewal for CX-SCRIPT within warranty"},{"$f":"IF(MaintOnlyPrint=1,'Contact Center'!J161,0)","v":0},{"$f":"'Ordering Information'!I188","v":0.1},0]
[null,{"$f":"'Ordering Information'!C189","v":"MX-PIDC-MGR"},{"$f":"'Ordering Information'!D189","v":"TSWA9253801"},{"$f":"'Ordering Information'!E189","v":"Normal Renewal for CX-PIDC-MGR within warranty"},{"$f":"IF(MaintOnlyPrint=1,'Contact Center'!J162,0)","v":0},{"$f":"'Ordering Information'!I189","v":0.1},0]
[null,{"$f":"'Ordering Information'!C190","v":"MX-A-REP-D"},{"$f":"'Ordering Information'!D190","v":"TSWA9306901"},{"$f":"'Ordering Information'!E190","v":"Normal Renewal for CX-A-REP-D within warranty"},{"$f":"IF(MaintOnlyPrint=1,'Contact Center'!J163,0)","v":0},{"$f":"'Ordering Information'!I190","v":0.1},0]
[null,{"$f":"'Ordering Information'!C191","v":"MX-A-REP-EH"},{"$f":"'Ordering Information'!D191","v":"TSWA9307101"},{"$f":"'Ordering Information'!E191","v":"Normal Renewal for CX-A-REP-EH within warranty"},{"$f":"IF(MaintOnlyPrint=1,'Contact Center'!J164,0)","v":0},{"$f":"'Ordering Information'!I191","v":0.1},{"$f":"E171*F171","v":0}]
[null,{"$f":"'Ordering Information'!C192","v":"MX-A-REP-ES"},{"$f":"'Ordering Information'!D192","v":"TSWA9307201"},{"$f":"'Ordering Information'!E192","v":"Normal Renewal for CX-A-REP-ES within warranty"},{"$f":"IF(MaintOnlyPrint=1,'Contact Center'!J165,0)","v":0},{"$f":"'Ordering Information'!I192","v":0.1},0]
[null,{"$f":"'Ordering Information'!C193","v":"MX-A-REP-SL"},{"$f":"'Ordering Information'!D193","v":"TSWA9307301"},{"$f":"'Ordering Information'!E193","v":"Normal Renewal for CX-A-REP-SL within warranty"},{"$f":"IF(MaintOnlyPrint=1,'Contact Center'!J166,0)","v":0},{"$f":"'Ordering Information'!I193","v":0.1},0]
[null,{"$f":"'Ordering Information'!C194","v":"MX-IPCR-INT4"},{"$f":"'Ordering Information'!D194","v":"TSWA9271901"},{"$f":"'Ordering Information'!E194","v":"Normal Renewal for CX-IPCR-INT4 within warranty"},{"$f":"IF(MaintOnlyPrint=1,'Contact Center'!J167,0)","v":0},{"$f":"'Ordering Information'!I194","v":0.1},0]
[null,{"$f":"'Ordering Information'!C195","v":"MX-IPCR-INT8"},{"$f":"'Ordering Information'!D195","v":"TSWA9272001"},{"$f":"'Ordering Information'!E195","v":"Normal Renewal for CX-IPCR-INT8 within warranty"},{"$f":"IF(MaintOnlyPrint=1,'Contact Center'!J168,0)","v":0},{"$f":"'Ordering Information'!I195","v":0.1},0]
[null,{"$f":"'Ordering Information'!C196","v":"MX-IPCR-INT12"},{"$f":"'Ordering Information'!D196","v":"TSWA9272101"},{"$f":"'Ordering Information'!E196","v":"Normal Renewal for CX-IPCR-INT12 within warranty"},{"$f":"IF(MaintOnlyPrint=1,'Contact Center'!J169,0)","v":0},{"$f":"'Ordering Information'!I196","v":0.1},0]
[null,{"$f":"'Ordering Information'!C197","v":"MX-IPCR-INT16"},{"$f":"'Ordering Information'!D197","v":"TSWA9272201"},{"$f":"'Ordering Information'!E197","v":"Normal Renewal for CX-IPCR-INT16 within warranty"},{"$f":"IF(MaintOnlyPrint=1,'Contact Center'!J170,0)","v":0},{"$f":"'Ordering Information'!I197","v":0.1},0]
[null,{"$f":"'Ordering Information'!C198","v":"MX-IPCR-INT24"},{"$f":"'Ordering Information'!D198","v":"TSWA9272301"},{"$f":"'Ordering Information'!E198","v":"Normal Renewal for CX-IPCR-INT24 within warranty"},{"$f":"IF(MaintOnlyPrint=1,'Contact Center'!J171,0)","v":0},{"$f":"'Ordering Information'!I198","v":0.1},0]
[null,{"$f":"'Ordering Information'!C199","v":"MX-IPCR-INT30"},{"$f":"'Ordering Information'!D199","v":"TSWA9272401"},{"$f":"'Ordering Information'!E199","v":"Normal Renewal for CX-IPCR-INT30 within warranty"},{"$f":"IF(MaintOnlyPrint=1,'Contact Center'!J172,0)","v":0},{"$f":"'Ordering Information'!I199","v":0.1},0]
[null,{"$f":"'Ordering Information'!C200","v":"MX-IPCR-INT40"},{"$f":"'Ordering Information'!D200","v":"TSWA9272501"},{"$f":"'Ordering Information'!E200","v":"Normal Renewal for CX-IPCR-INT40 within warranty"},{"$f":"IF(MaintOnlyPrint=1,'Contact Center'!J173,0)","v":0},{"$f":"'Ordering Information'!I200","v":0.1},0]
[null,{"$f":"'Ordering Information'!C201","v":"MX-IPCR-INT50"},{"$f":"'Ordering Information'!D201","v":"TSWA9272601"},{"$f":"'Ordering Information'!E201","v":"Normal Renewal for CX-IPCR-INT50 within warranty"},{"$f":"IF(MaintOnlyPrint=1,'Contact Center'!J174,0)","v":0},{"$f":"'Ordering Information'!I201","v":0.1},0]
[null,{"$f":"'Ordering Information'!C202","v":"MX-IPCR-INT60"},{"$f":"'Ordering Information'!D202","v":"TSWA9272701"},{"$f":"'Ordering Information'!E202","v":"Normal Renewal for CX-IPCR-INT60 within warranty"},{"$f":"IF(MaintOnlyPrint=1,'Contact Center'!J175,0)","v":0},{"$f":"'Ordering Information'!I202","v":0.1},0]
[null,{"$f":"'Ordering Information'!C203","v":"MX-IPCR-INT90"},{"$f":"'Ordering Information'!D203","v":"TSWA9272801"},{"$f":"'Ordering Information'!E203","v":"Normal Renewal for CX-IPCR-INT90 within warranty"},{"$f":"IF(MaintOnlyPrint=1,'Contact Center'!J176,0)","v":0},{"$f":"'Ordering Information'!I203","v":0.1},0]
[null,{"$f":"'Ordering Information'!C204","v":"MX-IPCR-INT120"},{"$f":"'Ordering Information'!D204","v":"TSWA9272901"},{"$f":"'Ordering Information'!E204","v":"Normal Renewal for CX-IPCR-INT120 within warranty"},{"$f":"IF(MaintOnlyPrint=1,'Contact Center'!J177,0)","v":0},{"$f":"'Ordering Information'!I204","v":0.1},0]
[null,{"$f":"'Ordering Information'!C205","v":"MX-IPCR-INT150"},{"$f":"'Ordering Information'!D205","v":"TSWA9273001"},{"$f":"'Ordering Information'!E205","v":"Normal Renewal for CX-IPCR-INT150 within warranty"},{"$f":"IF(MaintOnlyPrint=1,'Contact Center'!J178,0)","v":0},{"$f":"'Ordering Information'!I205","v":0.1},0]
[null,{"$f":"'Ordering Information'!C206","v":"MX-IPCR-INT180"},{"$f":"'Ordering Information'!D206","v":"TSWA9273101"},{"$f":"'Ordering Information'!E206","v":"Normal Renewal for CX-IPCR-INT180 within warranty"},{"$f":"IF(MaintOnlyPrint=1,'Contact Center'!J179,0)","v":0},{"$f":"'Ordering Information'!I206","v":0.1},0]
[null,{"$f":"'Ordering Information'!C207","v":"MX-IPCR-INT-ADD"},{"$f":"'Ordering Information'!D207","v":"TSWA9273201"},{"$f":"'Ordering Information'!E207","v":"Normal Renewal for CX-IPCR-INT-ADD within warranty"},{"$f":"IF(MaintOnlyPrint=1,'Contact Center'!J180,0)","v":0},{"$f":"'Ordering Information'!I207","v":0.1},0]
[null,{"$f":"'Ordering Information'!C208","v":"MCX-PAC-5-E"},{"$f":"'Ordering Information'!D208","v":"TSWA9284601"},{"$f":"'Ordering Information'!E208","v":"Renewal for CCX-PAC-5 at the time of the initial purchase"},{"$f":"IF(MaintOnlyPrint=0,'Contact Center'!J110,0)","v":0},{"$f":"'Ordering Information'!I208","v":7.0000000000000007E-2},{"$f":"E188*F188","v":0}]
[null,{"$f":"'Ordering Information'!C209","v":"MCX-PAC-10-E"},{"$f":"'Ordering Information'!D209","v":"TSWA9284701"},{"$f":"'Ordering Information'!E209","v":"Renewal for CCX-PAC-10 at the time of the initial purchase"},{"$f":"IF(MaintOnlyPrint=0,'Contact Center'!J111,0)","v":0},{"$f":"'Ordering Information'!I209","v":7.0000000000000007E-2},{"$f":"E189*F189","v":0}]
[null,{"$f":"'Ordering Information'!C210","v":"MCX-PAC-20-E"},{"$f":"'Ordering Information'!D210","v":"TSWA9284801"},{"$f":"'Ordering Information'!E210","v":"Renewal for CCX-PAC-20 at the time of the initial purchase"},{"$f":"IF(MaintOnlyPrint=0,'Contact Center'!J112,0)","v":0},{"$f":"'Ordering Information'!I210","v":7.0000000000000007E-2},0]
[null,{"$f":"'Ordering Information'!C211","v":"MCX-PAC-30-E"},{"$f":"'Ordering Information'!D211","v":"TSWA9284901"},{"$f":"'Ordering Information'!E211","v":"Renewal for CCX-PAC-30 at the time of the initial purchase"},{"$f":"IF(MaintOnlyPrint=0,'Contact Center'!J113,0)","v":0},{"$f":"'Ordering Information'!I211","v":7.0000000000000007E-2},0]
[null,{"$f":"'Ordering Information'!C212","v":"MCX-PAC-50-E"},{"$f":"'Ordering Information'!D212","v":"TSWA9285001"},{"$f":"'Ordering Information'!E212","v":"Renewal for CCX-PAC-50 at the time of the initial purchase"},{"$f":"IF(MaintOnlyPrint=0,'Contact Center'!J114,0)","v":0},{"$f":"'Ordering Information'!I212","v":7.0000000000000007E-2},0]
[null,{"$f":"'Ordering Information'!C213","v":"MCX-PAC-75-E"},{"$f":"'Ordering Information'!D213","v":"TSWA9285101"},{"$f":"'Ordering Information'!E213","v":"Renewal for CCX-PAC-75 at the time of the initial purchase"},{"$f":"IF(MaintOnlyPrint=0,'Contact Center'!J115,0)","v":0},{"$f":"'Ordering Information'!I213","v":7.0000000000000007E-2},0]
[null,{"$f":"'Ordering Information'!C214","v":"MCX-PAC-100-E"},{"$f":"'Ordering Information'!D214","v":"TSWA9285201"},{"$f":"'Ordering Information'!E214","v":"Renewal for CCX-PAC-100 at the time of the initial purchase"},{"$f":"IF(MaintOnlyPrint=0,'Contact Center'!J116,0)","v":0},{"$f":"'Ordering Information'!I214","v":7.0000000000000007E-2},0]
[null,{"$f":"'Ordering Information'!C215","v":"MCX-PAC-150-E"},{"$f":"'Ordering Information'!D215","v":"TSWA9253901"},{"$f":"'Ordering Information'!E215","v":"Renewal for CCX-PAC-150 at the time of the initial purchase"},{"$f":"IF(MaintOnlyPrint=0,'Contact Center'!J117,0)","v":0},{"$f":"'Ordering Information'!I215","v":7.0000000000000007E-2},0]
[null,{"$f":"'Ordering Information'!C216","v":"MCX-PAC-200-E"},{"$f":"'Ordering Information'!D216","v":"TSWA9254001"},{"$f":"'Ordering Information'!E216","v":"Renewal for CCX-PAC-200 at the time of the initial purchase"},{"$f":"IF(MaintOnlyPrint=0,'Contact Center'!J118,0)","v":0},{"$f":"'Ordering Information'!I216","v":7.0000000000000007E-2},0]
[null,{"$f":"'Ordering Information'!C217","v":"MCX-PAC-250-E"},{"$f":"'Ordering Information'!D217","v":"TSWA9254101"},{"$f":"'Ordering Information'!E217","v":"Renewal for CCX-PAC-250 at the time of the initial purchase"},{"$f":"IF(MaintOnlyPrint=0,'Contact Center'!J119,0)","v":0},{"$f":"'Ordering Information'!I217","v":7.0000000000000007E-2},0]
[null,{"$f":"'Ordering Information'!C218","v":"MX-DSK-ADD-E"},{"$f":"'Ordering Information'!D218","v":"TSWA9285401"},{"$f":"'Ordering Information'!E218","v":"Renewal for CX-DSK-ADD at the time of the initial purchase"},{"$f":"IF(MaintOnlyPrint=0,'Contact Center'!J120,0)","v":0},{"$f":"'Ordering Information'!I218","v":7.0000000000000007E-2},0]
[null,{"$f":"'Ordering Information'!C219","v":"MX-HMP-E"},{"$f":"'Ordering Information'!D219","v":"TSWA9166601"},{"$f":"'Ordering Information'!E219","v":"Renewal for CX-HMP at the time of the initial purchase"},{"$f":"IF(MaintOnlyPrint=0,'Contact Center'!J121,0)","v":0},{"$f":"'Ordering Information'!I219","v":7.0000000000000007E-2},0]
[null,{"$f":"'Ordering Information'!C220","v":"MX-HMP-G729-E"},{"$f":"'Ordering Information'!D220","v":"TSWA9254201"},{"$f":"'Ordering Information'!E220","v":"Renewal for CX-HMP-G729 at the time of the initial purchase"},{"$f":"IF(MaintOnlyPrint=0,'Contact Center'!J122,0)","v":0},{"$f":"'Ordering Information'!I220","v":7.0000000000000007E-2},0]
[null,{"$f":"'Ordering Information'!C221","v":"MX-DB-E"},{"$f":"'Ordering Information'!D221","v":"TSWA9307701"},{"$f":"'Ordering Information'!E221","v":"Renewal for CX-DB at the time of the initial purchase"},{"$f":"IF(MaintOnlyPrint=0,'Contact Center'!J123,0)","v":0},{"$f":"'Ordering Information'!I221","v":7.0000000000000007E-2},{"$f":"E201*F201","v":0}]
[null,{"$f":"'Ordering Information'!C222","v":"MX-CC-LICENSE-E"},{"$f":"'Ordering Information'!D222","v":"TSWA9254301"},{"$f":"'Ordering Information'!E222","v":"Renewal for CX-CC-LICENSE at the time of the initial purchase"},{"$f":"IF(MaintOnlyPrint=0,'Contact Center'!J124,0)","v":0},{"$f":"'Ordering Information'!I222","v":7.0000000000000007E-2},0]
[null,{"$f":"'Ordering Information'!C223","v":"MX-REC-B4-E"},{"$f":"'Ordering Information'!D223","v":"TSWA9287201"},{"$f":"'Ordering Information'!E223","v":"Renewal for CX-REC-B4 at the time of the initial purchase"},{"$f":"IF(MaintOnlyPrint=0,'Contact Center'!J125,0)","v":0},{"$f":"'Ordering Information'!I223","v":7.0000000000000007E-2},0]
[null,{"$f":"'Ordering Information'!C224","v":"MX-REC-B8-E"},{"$f":"'Ordering Information'!D224","v":"TSWA9287301"},{"$f":"'Ordering Information'!E224","v":"Renewal for CX-REC-B8 at the time of the initial purchase"},{"$f":"IF(MaintOnlyPrint=0,'Contact Center'!J126,0)","v":0},{"$f":"'Ordering Information'!I224","v":7.0000000000000007E-2},0]
[null,{"$f":"'Ordering Information'!C225","v":"MX-REC-B12-E"},{"$f":"'Ordering Information'!D225","v":"TSWA9287401"},{"$f":"'Ordering Information'!E225","v":"Renewal for CX-REC-B12 at the time of the initial purchase"},{"$f":"IF(MaintOnlyPrint=0,'Contact Center'!J127,0)","v":0},{"$f":"'Ordering Information'!I225","v":7.0000000000000007E-2},0]
[null,{"$f":"'Ordering Information'!C226","v":"MX-REC-P8-E"},{"$f":"'Ordering Information'!D226","v":"TSWA9294701"},{"$f":"'Ordering Information'!E226","v":"Renewal for CX-REC-P8 at the time of the initial purchase"},{"$f":"IF(MaintOnlyPrint=0,'Contact Center'!J128,0)","v":0},{"$f":"'Ordering Information'!I226","v":7.0000000000000007E-2},0]
[null,{"$f":"'Ordering Information'!C227","v":"MX-REC-P12-E"},{"$f":"'Ordering Information'!D227","v":"TSWA9294801"},{"$f":"'Ordering Information'!E227","v":"Renewal for CX-REC-P12 at the time of the initial purchase"},{"$f":"IF(MaintOnlyPrint=0,'Contact Center'!J129,0)","v":0},{"$f":"'Ordering Information'!I227","v":7.0000000000000007E-2},0]
[null,{"$f":"'Ordering Information'!C228","v":"MX-REC-P16-E"},{"$f":"'Ordering Information'!D228","v":"TSWA9294901"},{"$f":"'Ordering Information'!E228","v":"Renewal for CX-REC-P16 at the time of the initial purchase"},{"$f":"IF(MaintOnlyPrint=0,'Contact Center'!J130,0)","v":0},{"$f":"'Ordering Information'!I228","v":7.0000000000000007E-2},0]
[null,{"$f":"'Ordering Information'!C229","v":"MX-REC-P24-E"},{"$f":"'Ordering Information'!D229","v":"TSWA9295001"},{"$f":"'Ordering Information'!E229","v":"Renewal for CX-REC-P24 at the time of the initial purchase"},{"$f":"IF(MaintOnlyPrint=0,'Contact Center'!J131,0)","v":0},{"$f":"'Ordering Information'!I229","v":7.0000000000000007E-2},0]
[null,{"$f":"'Ordering Information'!C230","v":"MX-REC-P30-E"},{"$f":"'Ordering Information'!D230","v":"TSWA9295101"},{"$f":"'Ordering Information'!E230","v":"Renewal for CX-REC-P30 at the time of the initial purchase"},{"$f":"IF(MaintOnlyPrint=0,'Contact Center'!J132,0)","v":0},{"$f":"'Ordering Information'!I230","v":7.0000000000000007E-2},0]
[null,{"$f":"'Ordering Information'!C240","v":"MX-REC-V4-E"},{"$f":"'Ordering Information'!D240","v":"TSWA9296101"},{"$f":"'Ordering Information'!E240","v":"Renewal for CX-REC-V4 at the time of the initial purchase"},{"$f":"IF(MaintOnlyPrint=0,'Contact Center'!J133,0)","v":0},{"$f":"'Ordering Information'!I240","v":7.0000000000000007E-2},0]
[null,{"$f":"'Ordering Information'!C241","v":"MX-REC-V6-E"},{"$f":"'Ordering Information'!D241","v":"TSWA9256001"},{"$f":"'Ordering Information'!E241","v":"Renewal for CX-REC-V6 at the time of the initial purchase"},{"$f":"IF(MaintOnlyPrint=0,'Contact Center'!J134,0)","v":0},{"$f":"'Ordering Information'!I241","v":7.0000000000000007E-2},0]
[null,{"$f":"'Ordering Information'!C242","v":"MX-REC-V8-E"},{"$f":"'Ordering Information'!D242","v":"TSWA9296201"},{"$f":"'Ordering Information'!E242","v":"Renewal for CX-REC-V8 at the time of the initial purchase"},{"$f":"IF(MaintOnlyPrint=0,'Contact Center'!J135,0)","v":0},{"$f":"'Ordering Information'!I242","v":7.0000000000000007E-2},0]
[null,{"$f":"'Ordering Information'!C243","v":"MX-REC-V12-E"},{"$f":"'Ordering Information'!D243","v":"TSWA9296301"},{"$f":"'Ordering Information'!E243","v":"Renewal for CX-REC-V12 at the time of the initial purchase"},{"$f":"IF(MaintOnlyPrint=0,'Contact Center'!J136,0)","v":0},{"$f":"'Ordering Information'!I243","v":7.0000000000000007E-2},0]
[null,{"$f":"'Ordering Information'!C244","v":"MX-REC-V16-E"},{"$f":"'Ordering Information'!D244","v":"TSWA9296401"},{"$f":"'Ordering Information'!E244","v":"Renewal for CX-REC-V16 at the time of the initial purchase"},{"$f":"IF(MaintOnlyPrint=0,'Contact Center'!J137,0)","v":0},{"$f":"'Ordering Information'!I244","v":7.0000000000000007E-2},0]
[null,{"$f":"'Ordering Information'!C245","v":"MX-REC-V24-E"},{"$f":"'Ordering Information'!D245","v":"TSWA9296501"},{"$f":"'Ordering Information'!E245","v":"Renewal for CX-REC-V24 at the time of the initial purchase"},{"$f":"IF(MaintOnlyPrint=0,'Contact Center'!J138,0)","v":0},{"$f":"'Ordering Information'!I245","v":7.0000000000000007E-2},0]
[null,{"$f":"'Ordering Information'!C246","v":"MX-REC-V30-E"},{"$f":"'Ordering Information'!D246","v":"TSWA9296701"},{"$f":"'Ordering Information'!E246","v":"Renewal for CX-REC-V30 at the time of the initial purchase"},{"$f":"IF(MaintOnlyPrint=0,'Contact Center'!J139,0)","v":0},{"$f":"'Ordering Information'!I246","v":7.0000000000000007E-2},0]
[null,{"$f":"'Ordering Information'!C247","v":"MX-REC-V40-E"},{"$f":"'Ordering Information'!D247","v":"TSWA9296801"},{"$f":"'Ordering Information'!E247","v":"Renewal for CX-REC-V40 at the time of the initial purchase"},{"$f":"IF(MaintOnlyPrint=0,'Contact Center'!J140,0)","v":0},{"$f":"'Ordering Information'!I247","v":7.0000000000000007E-2},0]
[null,{"$f":"'Ordering Information'!C248","v":"MX-REC-V50-E"},{"$f":"'Ordering Information'!D248","v":"TSWA9297101"},{"$f":"'Ordering Information'!E248","v":"Renewal for CX-REC-V50 at the time of the initial purchase"},{"$f":"IF(MaintOnlyPrint=0,'Contact Center'!J141,0)","v":0},{"$f":"'Ordering Information'!I248","v":7.0000000000000007E-2},0]
[null,{"$f":"'Ordering Information'!C249","v":"MX-REC-V60-E"},{"$f":"'Ordering Information'!D249","v":"TSWA9297201"},{"$f":"'Ordering Information'!E249","v":"Renewal for CX-REC-V60 at the time of the initial purchase"},{"$f":"IF(MaintOnlyPrint=0,'Contact Center'!J142,0)","v":0},{"$f":"'Ordering Information'!I249","v":7.0000000000000007E-2},0]
[null,{"$f":"'Ordering Information'!C250","v":"MX-REC-V90-E"},{"$f":"'Ordering Information'!D250","v":"TSWA9297301"},{"$f":"'Ordering Information'!E250","v":"Renewal for CX-REC-V90 at the time of the initial purchase"},{"$f":"IF(MaintOnlyPrint=0,'Contact Center'!J143,0)","v":0},{"$f":"'Ordering Information'!I250","v":7.0000000000000007E-2},0]
[null,{"$f":"'Ordering Information'!C251","v":"MX-REC-V120-E"},{"$f":"'Ordering Information'!D251","v":"TSWA9297401"},{"$f":"'Ordering Information'!E251","v":"Renewal for CX-REC-V120 at the time of the initial purchase"},{"$f":"IF(MaintOnlyPrint=0,'Contact Center'!J144,0)","v":0},{"$f":"'Ordering Information'!I251","v":7.0000000000000007E-2},0]
[null,{"$f":"'Ordering Information'!C252","v":"MX-REC-V150-E"},{"$f":"'Ordering Information'!D252","v":"TSWA9297701"},{"$f":"'Ordering Information'!E252","v":"Renewal for CX-REC-V150 at the time of the initial purchase"},{"$f":"IF(MaintOnlyPrint=0,'Contact Center'!J145,0)","v":0},{"$f":"'Ordering Information'!I252","v":7.0000000000000007E-2},0]
[null,{"$f":"'Ordering Information'!C253","v":"MX-REC-V180-E"},{"$f":"'Ordering Information'!D253","v":"TSWA9297801"},{"$f":"'Ordering Information'!E253","v":"Renewal for CX-REC-V180 at the time of the initial purchase"},{"$f":"IF(MaintOnlyPrint=0,'Contact Center'!J146,0)","v":0},{"$f":"'Ordering Information'!I253","v":7.0000000000000007E-2},0]
[null,{"$f":"'Ordering Information'!C254","v":"MX-REC-V200-E"},{"$f":"'Ordering Information'!D254","v":"TSWA9298101"},{"$f":"'Ordering Information'!E254","v":"Renewal for CX-REC-V200 at the time of the initial purchase"},{"$f":"IF(MaintOnlyPrint=0,'Contact Center'!J147,0)","v":0},{"$f":"'Ordering Information'!I254","v":7.0000000000000007E-2},0]
[null,{"$f":"'Ordering Information'!C255","v":"MX-REC-V240-E"},{"$f":"'Ordering Information'!D255","v":"TSWA9298201"},{"$f":"'Ordering Information'!E255","v":"Renewal for CX-REC-V240 at the time of the initial purchase"},{"$f":"IF(MaintOnlyPrint=0,'Contact Center'!J148,0)","v":0},{"$f":"'Ordering Information'!I255","v":7.0000000000000007E-2},0]
[null,{"$f":"'Ordering Information'!C256","v":"MX-CODEC-G729-E"},{"$f":"'Ordering Information'!D256","v":"TSWA9256101"},{"$f":"'Ordering Information'!E256","v":"Renewal for CX-CODEC-G729 at the time of the initial purchase"},{"$f":"IF(MaintOnlyPrint=0,'Contact Center'!J149,0)","v":0},{"$f":"'Ordering Information'!I256","v":7.0000000000000007E-2},0]
[null,{"$f":"'Ordering Information'!C257","v":"MX-Q-EVF-E"},{"$f":"'Ordering Information'!D257","v":"TSWA9291701"},{"$f":"'Ordering Information'!E257","v":"Renewal for CX-Q-EVF at the time of the initial purchase"},{"$f":"IF(MaintOnlyPrint=0,'Contact Center'!J150,0)","v":0},{"$f":"'Ordering Information'!I257","v":7.0000000000000007E-2},0]
[null,{"$f":"'Ordering Information'!C258","v":"MX-Q-SN-E"},{"$f":"'Ordering Information'!D258","v":"TSWA9293101"},{"$f":"'Ordering Information'!E258","v":"Renewal for CX-Q-SN at the time of the initial purchase"},{"$f":"IF(MaintOnlyPrint=0,'Contact Center'!J151,0)","v":0},{"$f":"'Ordering Information'!I258","v":7.0000000000000007E-2},0]
[null,{"$f":"'Ordering Information'!C259","v":"MX-Q-MSN-E"},{"$f":"'Ordering Information'!D259","v":"TSWA9305501"},{"$f":"'Ordering Information'!E259","v":"Renewal for CX-Q-MSN at the time of the initial purchase"},{"$f":"IF(MaintOnlyPrint=0,'Contact Center'!J152,0)","v":0},{"$f":"'Ordering Information'!I259","v":7.0000000000000007E-2},0]
[null,{"$f":"'Ordering Information'!C260","v":"MX-CHAT-5-E"},{"$f":"'Ordering Information'!D260","v":"TSWA9292101"},{"$f":"'Ordering Information'!E260","v":"Renewal for CX-CHAT-5 at the time of the initial purchase"},{"$f":"IF(MaintOnlyPrint=0,'Contact Center'!J153,0)","v":0},{"$f":"'Ordering Information'!I260","v":7.0000000000000007E-2},0]
[null,{"$f":"'Ordering Information'!C261","v":"MX-CALL-E"},{"$f":"'Ordering Information'!D261","v":"TSWA9305601"},{"$f":"'Ordering Information'!E261","v":"Renewal for CX-CALL at the time of the initial purchase"},{"$f":"IF(MaintOnlyPrint=0,'Contact Center'!J154,0)","v":0},{"$f":"'Ordering Information'!I261","v":7.0000000000000007E-2},0]
[null,{"$f":"'Ordering Information'!C262","v":"MX-CALL-U-E"},{"$f":"'Ordering Information'!D262","v":"TSWA9305701"},{"$f":"'Ordering Information'!E262","v":"Renewal for CX-CALL-U at the time of the initial purchase"},{"$f":"IF(MaintOnlyPrint=0,'Contact Center'!J155,0)","v":0},{"$f":"'Ordering Information'!I262","v":7.0000000000000007E-2},0]
[null,{"$f":"'Ordering Information'!C263","v":"MX-SMS-E"},{"$f":"'Ordering Information'!D263","v":"TSWA9305801"},{"$f":"'Ordering Information'!E263","v":"Renewal for CX-SMS at the time of the initial purchase"},{"$f":"IF(MaintOnlyPrint=0,'Contact Center'!J156,0)","v":0},{"$f":"'Ordering Information'!I263","v":7.0000000000000007E-2},0]
[null,{"$f":"'Ordering Information'!C264","v":"MX-IVR-E"},{"$f":"'Ordering Information'!D264","v":"TSWA9292201"},{"$f":"'Ordering Information'!E264","v":"Renewal for CX-IVR at the time of the initial purchase"},{"$f":"IF(MaintOnlyPrint=0,'Contact Center'!J157,0)","v":0},{"$f":"'Ordering Information'!I264","v":7.0000000000000007E-2},0]
[null,{"$f":"'Ordering Information'!C265","v":"MX-SURVEY-E"},{"$f":"'Ordering Information'!D265","v":"TSWA9292301"},{"$f":"'Ordering Information'!E265","v":"Renewal for CX-SURVEY at the time of the initial purchase"},{"$f":"IF(MaintOnlyPrint=0,'Contact Center'!J158,0)","v":0},{"$f":"'Ordering Information'!I265","v":7.0000000000000007E-2},0]
[null,{"$f":"'Ordering Information'!C266","v":"MX-COACH-E"},{"$f":"'Ordering Information'!D266","v":"TSWA9305901"},{"$f":"'Ordering Information'!E266","v":"Renewal for CX-COACH at the time of the initial purchase"},{"$f":"IF(MaintOnlyPrint=0,'Contact Center'!J159,0)","v":0},{"$f":"'Ordering Information'!I266","v":7.0000000000000007E-2},0]
[null,{"$f":"'Ordering Information'!C267","v":"MX-ASSESSOR-E"},{"$f":"'Ordering Information'!D267","v":"TSWA9256201"},{"$f":"'Ordering Information'!E267","v":"Renewal for CX-ASSESSOR at the time of the initial purchase"},{"$f":"IF(MaintOnlyPrint=0,'Contact Center'!J160,0)","v":0},{"$f":"'Ordering Information'!I267","v":7.0000000000000007E-2},0]
[null,{"$f":"'Ordering Information'!C268","v":"MX-SCRIPT-E"},{"$f":"'Ordering Information'!D268","v":"TSWA9306001"},{"$f":"'Ordering Information'!E268","v":"Renewal for CX-SCRIPT at the time of the initial purchase"},{"$f":"IF(MaintOnlyPrint=0,'Contact Center'!J161,0)","v":0},{"$f":"'Ordering Information'!I268","v":7.0000000000000007E-2},0]
[null,{"$f":"'Ordering Information'!C269","v":"MX-PIDC-MGR-E"},{"$f":"'Ordering Information'!D269","v":"TSWA9256301"},{"$f":"'Ordering Information'!E269","v":"Renewal for CX-PIDC-MGR at the time of the initial purchase"},{"$f":"IF(MaintOnlyPrint=0,'Contact Center'!J162,0)","v":0},{"$f":"'Ordering Information'!I269","v":7.0000000000000007E-2},0]
[null,{"$f":"'Ordering Information'!C270","v":"MX-A-REP-D-E"},{"$f":"'Ordering Information'!D270","v":"TSWA9307601"},{"$f":"'Ordering Information'!E270","v":"Renewal for CX-A-REP-D at the time of the initial purchase"},{"$f":"IF(MaintOnlyPrint=0,'Contact Center'!J163,0)","v":0},{"$f":"'Ordering Information'!I270","v":7.0000000000000007E-2},0]
[null,{"$f":"'Ordering Information'!C271","v":"MX-A-REP-EH-E"},{"$f":"'Ordering Information'!D271","v":"TSWA9307801"},{"$f":"'Ordering Information'!E271","v":"Renewal for CX-A-REP-EH at the time of the initial purchase"},{"$f":"IF(MaintOnlyPrint=0,'Contact Center'!J164,0)","v":0},{"$f":"'Ordering Information'!I271","v":7.0000000000000007E-2},{"$f":"E242*F242","v":0}]
[null,{"$f":"'Ordering Information'!C272","v":"MX-A-REP-ES-E"},{"$f":"'Ordering Information'!D272","v":"TSWA9307901"},{"$f":"'Ordering Information'!E272","v":"Renewal for CX-A-REP-ES at the time of the initial purchase"},{"$f":"IF(MaintOnlyPrint=0,'Contact Center'!J165,0)","v":0},{"$f":"'Ordering Information'!I272","v":7.0000000000000007E-2},0]
[null,{"$f":"'Ordering Information'!C273","v":"MX-A-REP-SL-E"},{"$f":"'Ordering Information'!D273","v":"TSWA9308001"},{"$f":"'Ordering Information'!E273","v":"Renewal for CX-A-REP-SL at the time of the initial purchase"},{"$f":"IF(MaintOnlyPrint=0,'Contact Center'!J166,0)","v":0},{"$f":"'Ordering Information'!I273","v":7.0000000000000007E-2},0]
[null,{"$f":"'Ordering Information'!C274","v":"MX-IPCR-INT4-E"},{"$f":"'Ordering Information'!D274","v":"TSWA9285701"},{"$f":"'Ordering Information'!E274","v":"Renewal for CX-IPCR-INT4 at the time of the initial purchase"},{"$f":"IF(MaintOnlyPrint=0,'Contact Center'!J167,0)","v":0},{"$f":"'Ordering Information'!I274","v":7.0000000000000007E-2},0]
[null,{"$f":"'Ordering Information'!C275","v":"MX-IPCR-INT8-E"},{"$f":"'Ordering Information'!D275","v":"TSWA9285801"},{"$f":"'Ordering Information'!E275","v":"Renewal for CX-IPCR-INT8 at the time of the initial purchase"},{"$f":"IF(MaintOnlyPrint=0,'Contact Center'!J168,0)","v":0},{"$f":"'Ordering Information'!I275","v":7.0000000000000007E-2},0]
[null,{"$f":"'Ordering Information'!C276","v":"MX-IPCR-INT12-E"},{"$f":"'Ordering Information'!D276","v":"TSWA9285901"},{"$f":"'Ordering Information'!E276","v":"Renewal for CX-IPCR-INT12 at the time of the initial purchase"},{"$f":"IF(MaintOnlyPrint=0,'Contact Center'!J169,0)","v":0},{"$f":"'Ordering Information'!I276","v":7.0000000000000007E-2},0]
[null,{"$f":"'Ordering Information'!C277","v":"MX-IPCR-INT16-E"},{"$f":"'Ordering Information'!D277","v":"TSWA9286101"},{"$f":"'Ordering Information'!E277","v":"Renewal for CX-IPCR-INT16 at the time of the initial purchase"},{"$f":"IF(MaintOnlyPrint=0,'Contact Center'!J170,0)","v":0},{"$f":"'Ordering Information'!I277","v":7.0000000000000007E-2},0]
[null,{"$f":"'Ordering Information'!C278","v":"MX-IPCR-INT24-E"},{"$f":"'Ordering Information'!D278","v":"TSWA9286201"},{"$f":"'Ordering Information'!E278","v":"Renewal for CX-IPCR-INT24 at the time of the initial purchase"},{"$f":"IF(MaintOnlyPrint=0,'Contact Center'!J171,0)","v":0},{"$f":"'Ordering Information'!I278","v":7.0000000000000007E-2},0]
[null,{"$f":"'Ordering Information'!C279","v":"MX-IPCR-INT30-E"},{"$f":"'Ordering Information'!D279","v":"TSWA9286301"},{"$f":"'Ordering Information'!E279","v":"Renewal for CX-IPCR-INT30 at the time of the initial purchase"},{"$f":"IF(MaintOnlyPrint=0,'Contact Center'!J172,0)","v":0},{"$f":"'Ordering Information'!I279","v":7.0000000000000007E-2},0]
[null,{"$f":"'Ordering Information'!C280","v":"MX-IPCR-INT40-E"},{"$f":"'Ordering Information'!D280","v":"TSWA9286401"},{"$f":"'Ordering Information'!E280","v":"Renewal for CX-IPCR-INT40 at the time of the initial purchase"},{"$f":"IF(MaintOnlyPrint=0,'Contact Center'!J173,0)","v":0},{"$f":"'Ordering Information'!I280","v":7.0000000000000007E-2},0]
[null,{"$f":"'Ordering Information'!C281","v":"MX-IPCR-INT50-E"},{"$f":"'Ordering Information'!D281","v":"TSWA9286501"},{"$f":"'Ordering Information'!E281","v":"Renewal for CX-IPCR-INT50 at the time of the initial purchase"},{"$f":"IF(MaintOnlyPrint=0,'Contact Center'!J174,0)","v":0},{"$f":"'Ordering Information'!I281","v":7.0000000000000007E-2},0]
[null,{"$f":"'Ordering Information'!C282","v":"MX-IPCR-INT60-E"},{"$f":"'Ordering Information'!D282","v":"TSWA9286601"},{"$f":"'Ordering Information'!E282","v":"Renewal for CX-IPCR-INT60 at the time of the initial purchase"},{"$f":"IF(MaintOnlyPrint=0,'Contact Center'!J175,0)","v":0},{"$f":"'Ordering Information'!I282","v":7.0000000000000007E-2},0]
[null,{"$f":"'Ordering Information'!C283","v":"MX-IPCR-INT90-E"},{"$f":"'Ordering Information'!D283","v":"TSWA9286701"},{"$f":"'Ordering Information'!E283","v":"Renewal for CX-IPCR-INT90 at the time of the initial purchase"},{"$f":"IF(MaintOnlyPrint=0,'Contact Center'!J176,0)","v":0},{"$f":"'Ordering Information'!I283","v":7.0000000000000007E-2},0]
[null,{"$f":"'Ordering Information'!C284","v":"MX-IPCR-INT120-E"},{"$f":"'Ordering Information'!D284","v":"TSWA9286801"},{"$f":"'Ordering Information'!E284","v":"Renewal for CX-IPCR-INT120 at the time of the initial purchase"},{"$f":"IF(MaintOnlyPrint=0,'Contact Center'!J177,0)","v":0},{"$f":"'Ordering Information'!I284","v":7.0000000000000007E-2},0]
[null,{"$f":"'Ordering Information'!C285","v":"MX-IPCR-INT150-E"},{"$f":"'Ordering Information'!D285","v":"TSWA9286901"},{"$f":"'Ordering Information'!E285","v":"Renewal for CX-IPCR-INT150 at the time of the initial purchase"},{"$f":"IF(MaintOnlyPrint=0,'Contact Center'!J178,0)","v":0},{"$f":"'Ordering Information'!I285","v":7.0000000000000007E-2},0]
[null,{"$f":"'Ordering Information'!C286","v":"MX-IPCR-INT180-E"},{"$f":"'Ordering Information'!D286","v":"TSWA9287001"},{"$f":"'Ordering Information'!E286","v":"Renewal for CX-IPCR-INT180 at the time of the initial purchase"},{"$f":"IF(MaintOnlyPrint=0,'Contact Center'!J179,0)","v":0},{"$f":"'Ordering Information'!I286","v":7.0000000000000007E-2},0]
[null,{"$f":"'Ordering Information'!C287","v":"MX-IPCR-INT-ADD-E"},{"$f":"'Ordering Information'!D287","v":"TSWA9287101"},{"$f":"'Ordering Information'!E287","v":"Renewal for CX-IPCR-INT-ADD at the time of the initial purchase"},{"$f":"IF(MaintOnlyPrint=0,'Contact Center'!J180,0)","v":0},{"$f":"'Ordering Information'!I287","v":7.0000000000000007E-2},0]
[null,{"$f":"'Ordering Information'!C288","v":"MCX-PAC-5-L"},{"$f":"'Ordering Information'!D288","v":"TSWA9291001"},{"$f":"'Ordering Information'!E288","v":"Renewal for CCX-PAC-5 out of warranty"},{"$f":"IF(MaintOnlyPrint=2,'Contact Center'!J110,0)","v":0},{"$f":"'Ordering Information'!I288","v":0.3},{"$f":"E259*F259","v":0}]
[null,{"$f":"'Ordering Information'!C289","v":"MCX-PAC-10-L"},{"$f":"'Ordering Information'!D289","v":"TSWA9291101"},{"$f":"'Ordering Information'!E289","v":"Renewal for CCX-PAC-10 out of warranty"},{"$f":"IF(MaintOnlyPrint=2,'Contact Center'!J111,0)","v":0},{"$f":"'Ordering Information'!I289","v":0.3},{"$f":"E260*F260","v":0}]
[null,{"$f":"'Ordering Information'!C290","v":"MCX-PAC-20-L"},{"$f":"'Ordering Information'!D290","v":"TSWA9291201"},{"$f":"'Ordering Information'!E290","v":"Renewal for CCX-PAC-20 out of warranty"},{"$f":"IF(MaintOnlyPrint=2,'Contact Center'!J112,0)","v":0},{"$f":"'Ordering Information'!I290","v":0.3},0]
[null,{"$f":"'Ordering Information'!C291","v":"MCX-PAC-30-L"},{"$f":"'Ordering Information'!D291","v":"TSWA9311101"},{"$f":"'Ordering Information'!E291","v":"Renewal for CCX-PAC-30 out of warranty"},{"$f":"IF(MaintOnlyPrint=2,'Contact Center'!J113,0)","v":0},{"$f":"'Ordering Information'!I291","v":0.3},0]
[null,{"$f":"'Ordering Information'!C292","v":"MCX-PAC-50-L"},{"$f":"'Ordering Information'!D292","v":"TSWA9311201"},{"$f":"'Ordering Information'!E292","v":"Renewal for CCX-PAC-50 out of warranty"},{"$f":"IF(MaintOnlyPrint=2,'Contact Center'!J114,0)","v":0},{"$f":"'Ordering Information'!I292","v":0.3},0]
[null,{"$f":"'Ordering Information'!C293","v":"MCX-PAC-75-L"},{"$f":"'Ordering Information'!D293","v":"TSWA9311301"},{"$f":"'Ordering Information'!E293","v":"Renewal for CCX-PAC-75 out of warranty"},{"$f":"IF(MaintOnlyPrint=2,'Contact Center'!J115,0)","v":0},{"$f":"'Ordering Information'!I293","v":0.3},0]
[null,{"$f":"'Ordering Information'!C294","v":"MCX-PAC-100-L"},{"$f":"'Ordering Information'!D294","v":"TSWA9311401"},{"$f":"'Ordering Information'!E294","v":"Renewal for CCX-PAC-100 out of warranty"},{"$f":"IF(MaintOnlyPrint=2,'Contact Center'!J116,0)","v":0},{"$f":"'Ordering Information'!I294","v":0.3},0]
[null,{"$f":"'Ordering Information'!C295","v":"MCX-PAC-150-L"},{"$f":"'Ordering Information'!D295","v":"TSWA9256401"},{"$f":"'Ordering Information'!E295","v":"Renewal for CCX-PAC-150 out of warranty"},{"$f":"IF(MaintOnlyPrint=2,'Contact Center'!J117,0)","v":0},{"$f":"'Ordering Information'!I295","v":0.3},0]
[null,{"$f":"'Ordering Information'!C296","v":"MCX-PAC-200-L"},{"$f":"'Ordering Information'!D296","v":"TSWA9256501"},{"$f":"'Ordering Information'!E296","v":"Renewal for CCX-PAC-200 out of warranty"},{"$f":"IF(MaintOnlyPrint=2,'Contact Center'!J118,0)","v":0},{"$f":"'Ordering Information'!I296","v":0.3},0]
[null,{"$f":"'Ordering Information'!C297","v":"MCX-PAC-250-L"},{"$f":"'Ordering Information'!D297","v":"TSWA9256601"},{"$f":"'Ordering Information'!E297","v":"Renewal for CCX-PAC-250 out of warranty"},{"$f":"IF(MaintOnlyPrint=2,'Contact Center'!J119,0)","v":0},{"$f":"'Ordering Information'!I297","v":0.3},0]
[null,{"$f":"'Ordering Information'!C298","v":"MX-DSK-ADD-L"},{"$f":"'Ordering Information'!D298","v":"TSWA9311501"},{"$f":"'Ordering Information'!E298","v":"Renewal for CX-DSK-ADD out of warranty"},{"$f":"IF(MaintOnlyPrint=2,'Contact Center'!J120,0)","v":0},{"$f":"'Ordering Information'!I298","v":0.3},0]
[null,{"$f":"'Ordering Information'!C299","v":"MX-HMP-L"},{"$f":"'Ordering Information'!D299","v":"TSWA9291301"},{"$f":"'Ordering Information'!E299","v":"Renewal for CX-HMP out of warranty"},{"$f":"IF(MaintOnlyPrint=2,'Contact Center'!J121,0)","v":0},{"$f":"'Ordering Information'!I299","v":0.3},0]
[null,{"$f":"'Ordering Information'!C300","v":"MX-HMP-G729-L"},{"$f":"'Ordering Information'!D300","v":"TSWA9256701"},{"$f":"'Ordering Information'!E300","v":"Renewal for CX-HMP-G729 out of warranty"},{"$f":"IF(MaintOnlyPrint=2,'Contact Center'!J122,0)","v":0},{"$f":"'Ordering Information'!I300","v":0.3},0]
[null,{"$f":"'Ordering Information'!C301","v":"MX-DB-L"},{"$f":"'Ordering Information'!D301","v":"TSWA9309801"},{"$f":"'Ordering Information'!E301","v":"Renewal for CX-DB out of warranty"},{"$f":"IF(MaintOnlyPrint=2,'Contact Center'!J123,0)","v":0},{"$f":"'Ordering Information'!I301","v":0.3},{"$f":"E272*F272","v":0}]
[null,{"$f":"'Ordering Information'!C302","v":"MX-CC-LICENSE-L"},{"$f":"'Ordering Information'!D302","v":"TSWA9256801"},{"$f":"'Ordering Information'!E302","v":"Renewal for CX-CC-LICENSE out of warranty"},{"$f":"IF(MaintOnlyPrint=2,'Contact Center'!J124,0)","v":0},{"$f":"'Ordering Information'!I302","v":0.3},0]
[null,{"$f":"'Ordering Information'!C303","v":"MX-REC-B4-L"},{"$f":"'Ordering Information'!D303","v":"TSWA9313101"},{"$f":"'Ordering Information'!E303","v":"Renewal for CX-REC-B4 out of warranty"},{"$f":"IF(MaintOnlyPrint=2,'Contact Center'!J125,0)","v":0},{"$f":"'Ordering Information'!I303","v":0.3},0]
[null,{"$f":"'Ordering Information'!C304","v":"MX-REC-B8-L"},{"$f":"'Ordering Information'!D304","v":"TSWA9313201"},{"$f":"'Ordering Information'!E304","v":"Renewal for CX-REC-B8 out of warranty"},{"$f":"IF(MaintOnlyPrint=2,'Contact Center'!J126,0)","v":0},{"$f":"'Ordering Information'!I304","v":0.3},0]
[null,{"$f":"'Ordering Information'!C305","v":"MX-REC-B12-L"},{"$f":"'Ordering Information'!D305","v":"TSWA9313301"},{"$f":"'Ordering Information'!E305","v":"Renewal for CX-REC-B12 out of warranty"},{"$f":"IF(MaintOnlyPrint=2,'Contact Center'!J127,0)","v":0},{"$f":"'Ordering Information'!I305","v":0.3},0]
[null,{"$f":"'Ordering Information'!C306","v":"MX-REC-P8-L"},{"$f":"'Ordering Information'!D306","v":"TSWA9313401"},{"$f":"'Ordering Information'!E306","v":"Renewal for CX-REC-P8 out of warranty"},{"$f":"IF(MaintOnlyPrint=2,'Contact Center'!J128,0)","v":0},{"$f":"'Ordering Information'!I306","v":0.3},0]
[null,{"$f":"'Ordering Information'!C307","v":"MX-REC-P12-L"},{"$f":"'Ordering Information'!D307","v":"TSWA9313501"},{"$f":"'Ordering Information'!E307","v":"Renewal for CX-REC-P12 out of warranty"},{"$f":"IF(MaintOnlyPrint=2,'Contact Center'!J129,0)","v":0},{"$f":"'Ordering Information'!I307","v":0.3},0]
[null,{"$f":"'Ordering Information'!C308","v":"MX-REC-P16-L"},{"$f":"'Ordering Information'!D308","v":"TSWA9313601"},{"$f":"'Ordering Information'!E308","v":"Renewal for CX-REC-P16 out of warranty"},{"$f":"IF(MaintOnlyPrint=2,'Contact Center'!J130,0)","v":0},{"$f":"'Ordering Information'!I308","v":0.3},0]
[null,{"$f":"'Ordering Information'!C309","v":"MX-REC-P24-L"},{"$f":"'Ordering Information'!D309","v":"TSWA9313701"},{"$f":"'Ordering Information'!E309","v":"Renewal for CX-REC-P24 out of warranty"},{"$f":"IF(MaintOnlyPrint=2,'Contact Center'!J131,0)","v":0},{"$f":"'Ordering Information'!I309","v":0.3},0]
[null,{"$f":"'Ordering Information'!C310","v":"MX-REC-P30-L"},{"$f":"'Ordering Information'!D310","v":"TSWA9313801"},{"$f":"'Ordering Information'!E310","v":"Renewal for CX-REC-P30 out of warranty"},{"$f":"IF(MaintOnlyPrint=2,'Contact Center'!J132,0)","v":0},{"$f":"'Ordering Information'!I310","v":0.3},0]
[null,{"$f":"'Ordering Information'!C320","v":"MX-REC-V4-L"},{"$f":"'Ordering Information'!D320","v":"TSWA9314801"},{"$f":"'Ordering Information'!E320","v":"Renewal for CX-REC-V4 out of warranty"},{"$f":"IF(MaintOnlyPrint=2,'Contact Center'!J133,0)","v":0},{"$f":"'Ordering Information'!I320","v":0.3},0]
[null,{"$f":"'Ordering Information'!C321","v":"MX-REC-V6-L"},{"$f":"'Ordering Information'!D321","v":"TSWA9258601"},{"$f":"'Ordering Information'!E321","v":"Renewal for CX-REC-V6 out of warranty"},{"$f":"IF(MaintOnlyPrint=2,'Contact Center'!J134,0)","v":0},{"$f":"'Ordering Information'!I321","v":0.3},0]
[null,{"$f":"'Ordering Information'!C322","v":"MX-REC-V8-L"},{"$f":"'Ordering Information'!D322","v":"TSWA9314901"},{"$f":"'Ordering Information'!E322","v":"Renewal for CX-REC-V8 out of warranty"},{"$f":"IF(MaintOnlyPrint=2,'Contact Center'!J135,0)","v":0},{"$f":"'Ordering Information'!I322","v":0.3},0]
[null,{"$f":"'Ordering Information'!C323","v":"MX-REC-V12-L"},{"$f":"'Ordering Information'!D323","v":"TSWA9315101"},{"$f":"'Ordering Information'!E323","v":"Renewal for CX-REC-V12 out of warranty"},{"$f":"IF(MaintOnlyPrint=2,'Contact Center'!J136,0)","v":0},{"$f":"'Ordering Information'!I323","v":0.3},0]
[null,{"$f":"'Ordering Information'!C324","v":"MX-REC-V16-L"},{"$f":"'Ordering Information'!D324","v":"TSWA9315201"},{"$f":"'Ordering Information'!E324","v":"Renewal for CX-REC-V16 out of warranty"},{"$f":"IF(MaintOnlyPrint=2,'Contact Center'!J137,0)","v":0},{"$f":"'Ordering Information'!I324","v":0.3},0]
[null,{"$f":"'Ordering Information'!C325","v":"MX-REC-V24-L"},{"$f":"'Ordering Information'!D325","v":"TSWA9315401"},{"$f":"'Ordering Information'!E325","v":"Renewal for CX-REC-V24 out of warranty"},{"$f":"IF(MaintOnlyPrint=2,'Contact Center'!J138,0)","v":0},{"$f":"'Ordering Information'!I325","v":0.3},0]
[null,{"$f":"'Ordering Information'!C326","v":"MX-REC-V30-L"},{"$f":"'Ordering Information'!D326","v":"TSWA9315501"},{"$f":"'Ordering Information'!E326","v":"Renewal for CX-REC-V30 out of warranty"},{"$f":"IF(MaintOnlyPrint=2,'Contact Center'!J139,0)","v":0},{"$f":"'Ordering Information'!I326","v":0.3},0]
[null,{"$f":"'Ordering Information'!C327","v":"MX-REC-V40-L"},{"$f":"'Ordering Information'!D327","v":"TSWA9315601"},{"$f":"'Ordering Information'!E327","v":"Renewal for CX-REC-V40 out of warranty"},{"$f":"IF(MaintOnlyPrint=2,'Contact Center'!J140,0)","v":0},{"$f":"'Ordering Information'!I327","v":0.3},0]
[null,{"$f":"'Ordering Information'!C328","v":"MX-REC-V50-L"},{"$f":"'Ordering Information'!D328","v":"TSWA9315701"},{"$f":"'Ordering Information'!E328","v":"Renewal for CX-REC-V50 out of warranty"},{"$f":"IF(MaintOnlyPrint=2,'Contact Center'!J141,0)","v":0},{"$f":"'Ordering Information'!I328","v":0.3},0]
[null,{"$f":"'Ordering Information'!C329","v":"MX-REC-V60-L"},{"$f":"'Ordering Information'!D329","v":"TSWA9315901"},{"$f":"'Ordering Information'!E329","v":"Renewal for CX-REC-V60 out of warranty"},{"$f":"IF(MaintOnlyPrint=2,'Contact Center'!J142,0)","v":0},{"$f":"'Ordering Information'!I329","v":0.3},0]
[null,{"$f":"'Ordering Information'!C330","v":"MX-REC-V90-L"},{"$f":"'Ordering Information'!D330","v":"TSWA9316001"},{"$f":"'Ordering Information'!E330","v":"Renewal for CX-REC-V90 out of warranty"},{"$f":"IF(MaintOnlyPrint=2,'Contact Center'!J143,0)","v":0},{"$f":"'Ordering Information'!I330","v":0.3},0]
[null,{"$f":"'Ordering Information'!C331","v":"MX-REC-V120-L"},{"$f":"'Ordering Information'!D331","v":"TSWA9316101"},{"$f":"'Ordering Information'!E331","v":"Renewal for CX-REC-V120 out of warranty"},{"$f":"IF(MaintOnlyPrint=2,'Contact Center'!J144,0)","v":0},{"$f":"'Ordering Information'!I331","v":0.3},0]
[null,{"$f":"'Ordering Information'!C332","v":"MX-REC-V150-L"},{"$f":"'Ordering Information'!D332","v":"TSWA9316401"},{"$f":"'Ordering Information'!E332","v":"Renewal for CX-REC-V150 out of warranty"},{"$f":"IF(MaintOnlyPrint=2,'Contact Center'!J145,0)","v":0},{"$f":"'Ordering Information'!I332","v":0.3},0]
[null,{"$f":"'Ordering Information'!C333","v":"MX-REC-V180-L"},{"$f":"'Ordering Information'!D333","v":"TSWA9316501"},{"$f":"'Ordering Information'!E333","v":"Renewal for CX-REC-V180 out of warranty"},{"$f":"IF(MaintOnlyPrint=2,'Contact Center'!J146,0)","v":0},{"$f":"'Ordering Information'!I333","v":0.3},0]
[null,{"$f":"'Ordering Information'!C334","v":"MX-REC-V200-L"},{"$f":"'Ordering Information'!D334","v":"TSWA9316601"},{"$f":"'Ordering Information'!E334","v":"Renewal for CX-REC-V200 out of warranty"},{"$f":"IF(MaintOnlyPrint=2,'Contact Center'!J147,0)","v":0},{"$f":"'Ordering Information'!I334","v":0.3},0]
[null,{"$f":"'Ordering Information'!C335","v":"MX-REC-V240-L"},{"$f":"'Ordering Information'!D335","v":"TSWA9316901"},{"$f":"'Ordering Information'!E335","v":"Renewal for CX-REC-V240 out of warranty"},{"$f":"IF(MaintOnlyPrint=2,'Contact Center'!J148,0)","v":0},{"$f":"'Ordering Information'!I335","v":0.3},0]
[null,{"$f":"'Ordering Information'!C336","v":"MX-CODEC-G729-L"},{"$f":"'Ordering Information'!D336","v":"TSWA9258701"},{"$f":"'Ordering Information'!E336","v":"Renewal for CX-CODEC-G729 out of warranty"},{"$f":"IF(MaintOnlyPrint=2,'Contact Center'!J149,0)","v":0},{"$f":"'Ordering Information'!I336","v":0.3},0]
[null,{"$f":"'Ordering Information'!C337","v":"MX-Q-EVF-L"},{"$f":"'Ordering Information'!D337","v":"TSWA9292001"},{"$f":"'Ordering Information'!E337","v":"Renewal for CX-Q-EVF out of warranty"},{"$f":"IF(MaintOnlyPrint=2,'Contact Center'!J150,0)","v":0},{"$f":"'Ordering Information'!I337","v":0.3},0]
[null,{"$f":"'Ordering Information'!C338","v":"MX-Q-SN-L"},{"$f":"'Ordering Information'!D338","v":"TSWA9317201"},{"$f":"'Ordering Information'!E338","v":"Renewal for CX-Q-SN out of warranty"},{"$f":"IF(MaintOnlyPrint=2,'Contact Center'!J151,0)","v":0},{"$f":"'Ordering Information'!I338","v":0.3},0]
[null,{"$f":"'Ordering Information'!C339","v":"MX-Q-MSN-L"},{"$f":"'Ordering Information'!D339","v":"TSWA9317301"},{"$f":"'Ordering Information'!E339","v":"Renewal for CX-Q-MSN out of warranty"},{"$f":"IF(MaintOnlyPrint=2,'Contact Center'!J152,0)","v":0},{"$f":"'Ordering Information'!I339","v":0.3},0]
[null,{"$f":"'Ordering Information'!C340","v":"MX-CHAT-5-L"},{"$f":"'Ordering Information'!D340","v":"TSWA9317401"},{"$f":"'Ordering Information'!E340","v":"Renewal for CX-CHAT-5 out of warranty"},{"$f":"IF(MaintOnlyPrint=2,'Contact Center'!J153,0)","v":0},{"$f":"'Ordering Information'!I340","v":0.3},0]
[null,{"$f":"'Ordering Information'!C341","v":"MX-CALL-L"},{"$f":"'Ordering Information'!D341","v":"TSWA9317501"},{"$f":"'Ordering Information'!E341","v":"Renewal for CX-CALL out of warranty"},{"$f":"IF(MaintOnlyPrint=2,'Contact Center'!J154,0)","v":0},{"$f":"'Ordering Information'!I341","v":0.3},0]
[null,{"$f":"'Ordering Information'!C342","v":"MX-CALL-U-L"},{"$f":"'Ordering Information'!D342","v":"TSWA9317601"},{"$f":"'Ordering Information'!E342","v":"Renewal for CX-CALL-U out of warranty"},{"$f":"IF(MaintOnlyPrint=2,'Contact Center'!J155,0)","v":0},{"$f":"'Ordering Information'!I342","v":0.3},0]
[null,{"$f":"'Ordering Information'!C343","v":"MX-SMS-L"},{"$f":"'Ordering Information'!D343","v":"TSWA9317701"},{"$f":"'Ordering Information'!E343","v":"Renewal for CX-SMS out of warranty"},{"$f":"IF(MaintOnlyPrint=2,'Contact Center'!J156,0)","v":0},{"$f":"'Ordering Information'!I343","v":0.3},0]
[null,{"$f":"'Ordering Information'!C344","v":"MX-IVR-L"},{"$f":"'Ordering Information'!D344","v":"TSWA9317801"},{"$f":"'Ordering Information'!E344","v":"Renewal for CX-IVR out of warranty"},{"$f":"IF(MaintOnlyPrint=2,'Contact Center'!J157,0)","v":0},{"$f":"'Ordering Information'!I344","v":0.3},0]
[null,{"$f":"'Ordering Information'!C345","v":"MX-SURVEY-L"},{"$f":"'Ordering Information'!D345","v":"TSWA9317901"},{"$f":"'Ordering Information'!E345","v":"Renewal for CX-SURVEY out of warranty"},{"$f":"IF(MaintOnlyPrint=2,'Contact Center'!J158,0)","v":0},{"$f":"'Ordering Information'!I345","v":0.3},0]
[null,{"$f":"'Ordering Information'!C346","v":"MX-COACH-L"},{"$f":"'Ordering Information'!D346","v":"TSWA9318001"},{"$f":"'Ordering Information'!E346","v":"Renewal for CX-COACH out of warranty"},{"$f":"IF(MaintOnlyPrint=2,'Contact Center'!J159,0)","v":0},{"$f":"'Ordering Information'!I346","v":0.3},0]
[null,{"$f":"'Ordering Information'!C347","v":"MX-ASSESSOR-L"},{"$f":"'Ordering Information'!D347","v":"TSWA9258801"},{"$f":"'Ordering Information'!E347","v":"Renewal for CX-ASSESSOR out of warranty"},{"$f":"IF(MaintOnlyPrint=2,'Contact Center'!J160,0)","v":0},{"$f":"'Ordering Information'!I347","v":0.3},0]
[null,{"$f":"'Ordering Information'!C348","v":"MX-SCRIPT-L"},{"$f":"'Ordering Information'!D348","v":"TSWA9318101"},{"$f":"'Ordering Information'!E348","v":"Renewal for CX-SCRIPT out of warranty"},{"$f":"IF(MaintOnlyPrint=2,'Contact Center'!J161,0)","v":0},{"$f":"'Ordering Information'!I348","v":0.3},0]
[null,{"$f":"'Ordering Information'!C349","v":"MX-PIDC-MGR-L"},{"$f":"'Ordering Information'!D349","v":"TSWA9258901"},{"$f":"'Ordering Information'!E349","v":"Renewal for CX-PIDC-MGR out of warranty"},{"$f":"IF(MaintOnlyPrint=2,'Contact Center'!J162,0)","v":0},{"$f":"'Ordering Information'!I349","v":0.3},0]
[null,{"$f":"'Ordering Information'!C350","v":"MX-A-REP-D-L"},{"$f":"'Ordering Information'!D350","v":"TSWA9309701"},{"$f":"'Ordering Information'!E350","v":"Renewal for CX-A-REP-D out of warranty"},{"$f":"IF(MaintOnlyPrint=2,'Contact Center'!J163,0)","v":0},{"$f":"'Ordering Information'!I350","v":0.3},0]
[null,{"$f":"'Ordering Information'!C351","v":"MX-A-REP-EH-L"},{"$f":"'Ordering Information'!D351","v":"TSWA9309901"},{"$f":"'Ordering Information'!E351","v":"Renewal for CX-A-REP-EH out of warranty"},{"$f":"IF(MaintOnlyPrint=2,'Contact Center'!J164,0)","v":0},{"$f":"'Ordering Information'!I351","v":0.3},{"$f":"E313*F313","v":0}]
[null,{"$f":"'Ordering Information'!C352","v":"MX-A-REP-ES-L"},{"$f":"'Ordering Information'!D352","v":"TSWA9310001"},{"$f":"'Ordering Information'!E352","v":"Renewal for CX-A-REP-ES out of warranty"},{"$f":"IF(MaintOnlyPrint=2,'Contact Center'!J165,0)","v":0},{"$f":"'Ordering Information'!I352","v":0.3},0]
[null,{"$f":"'Ordering Information'!C353","v":"MX-A-REP-SL-L"},{"$f":"'Ordering Information'!D353","v":"TSWA9310201"},{"$f":"'Ordering Information'!E353","v":"Renewal for CX-A-REP-SL out of warranty"},{"$f":"IF(MaintOnlyPrint=2,'Contact Center'!J166,0)","v":0},{"$f":"'Ordering Information'!I353","v":0.3},0]
[null,{"$f":"'Ordering Information'!C354","v":"MX-IPCR-INT4-L"},{"$f":"'Ordering Information'!D354","v":"TSWA9311701"},{"$f":"'Ordering Information'!E354","v":"Renewal for CX-IPCR-INT4 out of warranty"},{"$f":"IF(MaintOnlyPrint=2,'Contact Center'!J167,0)","v":0},{"$f":"'Ordering Information'!I354","v":0.3},0]
[null,{"$f":"'Ordering Information'!C355","v":"MX-IPCR-INT8-L"},{"$f":"'Ordering Information'!D355","v":"TSWA9311801"},{"$f":"'Ordering Information'!E355","v":"Renewal for CX-IPCR-INT8 out of warranty"},{"$f":"IF(MaintOnlyPrint=2,'Contact Center'!J168,0)","v":0},{"$f":"'Ordering Information'!I355","v":0.3},0]
[null,{"$f":"'Ordering Information'!C356","v":"MX-IPCR-INT12-L"},{"$f":"'Ordering Information'!D356","v":"TSWA9311901"},{"$f":"'Ordering Information'!E356","v":"Renewal for CX-IPCR-INT12 out of warranty"},{"$f":"IF(MaintOnlyPrint=2,'Contact Center'!J169,0)","v":0},{"$f":"'Ordering Information'!I356","v":0.3},0]
[null,{"$f":"'Ordering Information'!C357","v":"MX-IPCR-INT16-L"},{"$f":"'Ordering Information'!D357","v":"TSWA9312001"},{"$f":"'Ordering Information'!E357","v":"Renewal for CX-IPCR-INT16 out of warranty"},{"$f":"IF(MaintOnlyPrint=2,'Contact Center'!J170,0)","v":0},{"$f":"'Ordering Information'!I357","v":0.3},0]
[null,{"$f":"'Ordering Information'!C358","v":"MX-IPCR-INT24-L"},{"$f":"'Ordering Information'!D358","v":"TSWA9312101"},{"$f":"'Ordering Information'!E358","v":"Renewal for CX-IPCR-INT24 out of warranty"},{"$f":"IF(MaintOnlyPrint=2,'Contact Center'!J171,0)","v":0},{"$f":"'Ordering Information'!I358","v":0.3},0]
[null,{"$f":"'Ordering Information'!C359","v":"MX-IPCR-INT30-L"},{"$f":"'Ordering Information'!D359","v":"TSWA9312201"},{"$f":"'Ordering Information'!E359","v":"Renewal for CX-IPCR-INT30 out of warranty"},{"$f":"IF(MaintOnlyPrint=2,'Contact Center'!J172,0)","v":0},{"$f":"'Ordering Information'!I359","v":0.3},0]
[null,{"$f":"'Ordering Information'!C360","v":"MX-IPCR-INT40-L"},{"$f":"'Ordering Information'!D360","v":"TSWA9312301"},{"$f":"'Ordering Information'!E360","v":"Renewal for CX-IPCR-INT40 out of warranty"},{"$f":"IF(MaintOnlyPrint=2,'Contact Center'!J173,0)","v":0},{"$f":"'Ordering Information'!I360","v":0.3},0]
[null,{"$f":"'Ordering Information'!C361","v":"MX-IPCR-INT50-L"},{"$f":"'Ordering Information'!D361","v":"TSWA9312401"},{"$f":"'Ordering Information'!E361","v":"Renewal for CX-IPCR-INT50 out of warranty"},{"$f":"IF(MaintOnlyPrint=2,'Contact Center'!J174,0)","v":0},{"$f":"'Ordering Information'!I361","v":0.3},0]
[null,{"$f":"'Ordering Information'!C362","v":"MX-IPCR-INT60-L"},{"$f":"'Ordering Information'!D362","v":"TSWA9312501"},{"$f":"'Ordering Information'!E362","v":"Renewal for CX-IPCR-INT60 out of warranty"},{"$f":"IF(MaintOnlyPrint=2,'Contact Center'!J175,0)","v":0},{"$f":"'Ordering Information'!I362","v":0.3},0]
[null,{"$f":"'Ordering Information'!C363","v":"MX-IPCR-INT90-L"},{"$f":"'Ordering Information'!D363","v":"TSWA9312601"},{"$f":"'Ordering Information'!E363","v":"Renewal for CX-IPCR-INT90 out of warranty"},{"$f":"IF(MaintOnlyPrint=2,'Contact Center'!J176,0)","v":0},{"$f":"'Ordering Information'!I363","v":0.3},0]
[null,{"$f":"'Ordering Information'!C364","v":"MX-IPCR-INT120-L"},{"$f":"'Ordering Information'!D364","v":"TSWA9312701"},{"$f":"'Ordering Information'!E364","v":"Renewal for CX-IPCR-INT120 out of warranty"},{"$f":"IF(MaintOnlyPrint=2,'Contact Center'!J177,0)","v":0},{"$f":"'Ordering Information'!I364","v":0.3},0]
[null,{"$f":"'Ordering Information'!C365","v":"MX-IPCR-INT150-L"},{"$f":"'Ordering Information'!D365","v":"TSWA9312801"},{"$f":"'Ordering Information'!E365","v":"Renewal for CX-IPCR-INT150 out of warranty"},{"$f":"IF(MaintOnlyPrint=2,'Contact Center'!J178,0)","v":0},{"$f":"'Ordering Information'!I365","v":0.3},0]
[null,{"$f":"'Ordering Information'!C366","v":"MX-IPCR-INT180-L"},{"$f":"'Ordering Information'!D366","v":"TSWA9312901"},{"$f":"'Ordering Information'!E366","v":"Renewal for CX-IPCR-INT180 out of warranty"},{"$f":"IF(MaintOnlyPrint=2,'Contact Center'!J179,0)","v":0},{"$f":"'Ordering Information'!I366","v":0.3},0]
[null,{"$f":"'Ordering Information'!C367","v":"MX-IPCR-INT-ADD-L"},{"$f":"'Ordering Information'!D367","v":"TSWA9313001"},{"$f":"'Ordering Information'!E367","v":"Renewal for CX-IPCR-INT-ADD out of warranty"},{"$f":"IF(MaintOnlyPrint=2,'Contact Center'!J180,0)","v":0},{"$f":"'Ordering Information'!I367","v":0.3},0]
[]
[null,null,null,"Sub Total:",{"$f":"SUM(G14:G329)","v":0},null,{"$f":"IF(Currency=\"\", \"\", Currency)","v":"USD"}]
[null,null,null,"VAT:",{"$f":"SubTotal2*VAT","v":0},null,{"$f":"IF(Currency=\"\", \"\", Currency)","v":"USD"}]
[]
[null,null,null,"Total:",{"$f":"SubTotal2*(1+VAT)","v":0},null,{"$f":"IF(Currency=\"\", \"\", Currency)","v":"USD"}]
[]
[]
[null,"Comment:"]
[null,{"$f":"IF('Contact Center'!B73=Default_CMT1,\"\",'Contact Center'!B73)","v":""}]
[null,{"$f":"IF('Contact Center'!B74=Default_CMT2,\"\",'Contact Center'!B74)","v":""}]
[null,{"$f":"IF('Contact Center'!B75=Default_CMT3,\"\",'Contact Center'!B75)","v":""}]
[null,{"$f":"IF('Contact Center'!B76=Default_CMT4,\"\",'Contact Center'!B76)","v":""}]

{"sheet":"Ordering Information","index":3,"n_rows":367,"n_cols":9,"rows_kept":367,"cut":false,"hidden":false,"merged":[[15,1,18,1],[19,1,22,1],[23,1,26,1],[27,1,30,1],[35,1,38,1],[31,1,34,1],[353,1,366,1],[1,1,2,7],[189,1,192,1],[79,1,94,1],[100,1,101,1],[62,1,64,1],[185,1,187,1],[10,5,10,6],[11,5,11,6],[12,5,12,6],[113,1,126,1],[105,1,107,1],[47,1,56,1],[57,1,61,1],[96,1,98,1],[65,1,78,1],[287,1,296,1],[297,1,301,1],[273,1,286,1],[239,1,254,1],[260,1,261,1],[265,1,267,1],[269,1,272,1],[256,1,258,1],[349,1,352,1],[302,1,304,1],[319,1,334,1],[340,1,341,1],[345,1,347,1],[336,1,338,1],[305,1,318,1],[4,5,4,6],[6,5,6,6],[7,5,7,6],[8,5,8,6],[9,5,9,6],[39,1,42,1],[43,1,46,1],[225,1,238,1],[109,1,112,1],[180,1,181,1],[142,1,144,1],[159,1,174,1],[176,1,178,1],[222,1,224,1],[127,1,136,1],[207,1,216,1],[137,1,141,1],[217,1,221,1],[193,1,206,1],[145,1,158,1]]}
[null,null,null,null,null,null,null,null,"Hide"]
[null,"iPECS CCX Price Table"]
[]
[]
[null,null,null,null,null,"Access Password"]
[]
[null,null,null,null,null,"VAT",null,0]
[null,null,null,null,null,"Base Markup",null,0]
[null,null,null,null,null,"Additional Cost",null,0]
[null,null,null,null,null,"Currency",null,"USD"]
[null,null,null,null,null,"Renewal Rate",null,0.1]
[null,null,null,null,null,"Renewal Discount",null,7.0000000000000007E-2]
[null,null,null,null,null,"Renewal after expiry",null,0.3]
[]
[null,"Category","Model Name","PDM code","Description","Unit Price","Markup Adjust","Amount"]
[null,"System License\n(UCP100)","UCP100-CC-TS4","TSWA9092201","TAPI and 4 SIP Extension license for CCX in UCP100",0,0,{"$f":"I16*(1+VAT)","v":0},{"$f":"F16*(1+AddCost)+(F16*(1+AddCost)*(BaseMarkup+G16))","v":0}]
[null,null,"UCP100-3SIPEXT","TSWA9087501","Additional SIP Extension License for Announcement Channel in UCP100",1,0,1,1]
[null,null,"UCP100-IPCRS","TSWA9091601","IP Call Recording Server License for UCP100 (per IPCR Server)",1,0,{"$f":"I18*(1+VAT)","v":1},{"$f":"F18*(1+AddCost)+(F18*(1+AddCost)*(BaseMarkup+G18))","v":1}]
[null,null,"UCP100-IPCRC","TSWA9091701","IP Call Recording Agent License for UCP100 (per IPCR Agent)",1,0,1,1]
[null,"System License\n(UCP600)","UCP600-CC-TS4","TSWA9097101","TAPI and 4 SIP Extension license for CCX in UCP600",0,0,0,0]
[null,null,"UCP600-3SIPEXT","TSWA9094001","Additional SIP Extension License for Announcement Channel in UCP600",1,0,1,1]
[null,null,"UCP600-IPCRS","TSWA9096801","IP Call Recording Server License for UCP600 (per IPCR Server)",1,0,{"$f":"I22*(1+VAT)","v":1},{"$f":"F22*(1+AddCost)+(F22*(1+AddCost)*(BaseMarkup+G22))","v":1}]
[null,null,"UCP600-IPCRC","TSWA9096802","IP Call Recording Agent License for UCP600 (per IPCR Agent)",1,0,1,1]
[null,"System License\n(UCP2400)","UCP2400-CC-TS4","TSWA9100801","TAPI and 4 SIP Extension license for CCX in UCP2400",0,0,0,0]
[null,null,"UCP2400-3SIPEXT","TSWA9097801","Additional SIP Extension License for Announcement Channel in UCP2400",1,0,1,1]
[null,null,"UCP2400-IPCRS","TSWA9100601","IP Call Recording Server License for UCP2400 (per IPCR Server)",1,0,{"$f":"I26*(1+VAT)","v":1},{"$f":"F26*(1+AddCost)+(F26*(1+AddCost)*(BaseMarkup+G26))","v":1}]
[null,null,"UCP2400-IPCRC","TSWA9100602","IP Call Recording Agent License for UCP2400 (per IPCR Agent)",1,0,1,1]
[null,"System License\n(vUCP)","vUCP-CC-TS4","TSWA9209810","TAPI and 4 SIP Extension license for CCX in vUCP",0,0,{"$f":"I28*(1+VAT)","v":0},{"$f":"F28*(1+AddCost)+(F28*(1+AddCost)*(BaseMarkup+G28))","v":0}]
[null,null,"vUCP-3SIPEXT","TSWA9209704","Additional SIP Extension License for Announcement Channel in vUCP",1,0,1,1]
[null,null,"vUCP-IPCRS","TSWA9210501","IP Call Recording Server License for vUCP (per IPCR Server)",1,0,{"$f":"I30*(1+VAT)","v":1},{"$f":"F30*(1+AddCost)+(F30*(1+AddCost)*(BaseMarkup+G30))","v":1}]
[null,null,"vUCP-IPCRC","TSWA9210502","IP Call Recording Agent License for vUCP (per IPCR Agent)",1,0,1,1]
[null,"System License\n(eMG80)","eMG80N-CC-TS4","TSWA9092202","TAPI and 4 SIP Extension license for CCX in eMG80",0,0,0,0]
[null,null,"eMG80N-3SIPEXT","TSWA9087502","Additional SIP Extension License for Announcement Channel in eMG80",1,0,1,1]
[null,null,"eMG80N-IPCRS","TSWA9074302","IP Call Recording Server License for eMG80 (per IPCR Server)",1,0,{"$f":"I34*(1+VAT)","v":1},{"$f":"F34*(1+AddCost)+(F34*(1+AddCost)*(BaseMarkup+G34))","v":1}]
[null,null,"eMG80N-IPCRC","TSWA9074402","IP Call Recording Agent License for eMG80 (per IPCR Agent)",1,0,1,1]
[null,"System License\n(eMG100)","eMG100-CC-TS4","TSWA9243541","TAPI and 4 SIP Extension license for CCX in eMG100",0,0,{"$f":"I36*(1+VAT)","v":0},0]
[null,null,"eMG100-3SIPEXT","TSWA9243503","Additional SIP Extension License for Announcement Channel in eMG100",1,0,1,1]
[null,null,"eMG100-IPCRS","TSWA9243526","IP Call Recording Server License for eMG100 (per IPCR Server)",1,0,{"$f":"I38*(1+VAT)","v":1},{"$f":"F38*(1+AddCost)+(F38*(1+AddCost)*(BaseMarkup+G38))","v":1}]
[null,null,"eMG100-IPCRC","TSWA9243527","IP Call Recording Agent License for eMG100 (per IPCR Agent)",1,0,1,1]
[null,"System License\n(eMG800)","eMG800-CC-TS4","TSWA9117601","TAPI and 4 SIP Extension license for CCX in eMG800",0,0,0,0]
[null,null,"eMG800-3SIPEXT","TSWA9113501","Additional SIP Extension License for Announcement Channel in eMG800",1,0,1,1]
[null,null,"eMG800-IPCRS","TSWA9117001","IP Call Recording Server License for eMG800 (per IPCR Server)",1,0,{"$f":"I42*(1+VAT)","v":1},{"$f":"F42*(1+AddCost)+(F42*(1+AddCost)*(BaseMarkup+G42))","v":1}]
[null,null,"eMG800-IPCRC","TSWA9117101","IP Call Recording Agent License for eMG800 (per IPCR Agent)",1,0,1,1]
[null,"System License\n(UCM)","UCML-CCS-TS4","TSWA9160901","TAPI and 4 SIP Extension license for CCX in UCM",0,0,{"$f":"I44*(1+VAT)","v":0},{"$f":"F44*(1+AddCost)+(F44*(1+AddCost)*(BaseMarkup+G44))","v":0}]
[null,null,"UCML-IPEXT","TSWA9156401","Additional SIP Extension License for Announcement Channel in UCM",1,0,1,1]
[null,null,"UCML-IPCR-S","TSWA9157201","IP Call Recording Server License for UCM (per IPCR Server)",1,0,{"$f":"I46*(1+VAT)","v":1},{"$f":"F46*(1+AddCost)+(F46*(1+AddCost)*(BaseMarkup+G46))","v":1}]
[null,null,"UCML-IPCR-A","TSWA9156901","IP Call Recording Agent License for UCM (per IPCR Agent)",1,0,1,1]
[null,"CCX Package","CCX-PAC-5","TSWA9262501","5 CCX Call Centre Licenses\n1 CCX Desk Telephony Network Manager\n1 CCX Report Plus (included free with CCX CC Package)\n1 CCX Report Plus - Extensions - 100 (included free with CCX CC Package)\n2 CCX Report Plus - Dashboard & User License (included free with CCX CC Package)\n5 CCX Desk\n4 CCX HMP Audio Channel  - 1 channel\n1 CCX Callback in Queue (included free with CCX CC Package)\n1 CCX Web Call-Back (included free with CCX CC Package)\n1 CCX Chat 3 Licenses (included free with CCX CC Package)\n\nNeed system licnese for TAPI and 4xSIP Extension (UCP100-CC-TS4, UCP600-CC-TS4, UCP2400-CC-TS4, eMG80N-CC-TS4, eMG800-CC-TS4, UCML-CCS-TS4)",1,0,1,1]
[null,null,"CCX-PAC-10","TSWA9262701","10 CCX Call Centre Licenses\n1 CCX Desk Telephony Network Manager\n1 CCX Report Plus (included free with CCX CC Package)\n1 CCX Report Plus - Extensions - 100 (included free with CCX CC Package)\n2 CCX Report Plus - Dashboard & User License (included free with CCX CC Package)\n10 CCX Desk\n4 CCX HMP Audio Channel  - 1 channel\n1 CCX Callback in Queue (included free with CCX CC Package)\n1 CCX Web Call-Back (included free with CCX CC Package)\n1 CCX Chat 3 Licenses (included free with CCX CC Package)\n\nNeed system licnese for TAPI and 4xSIP Extension (UCP100-CC-TS4, UCP600-CC-TS4, UCP2400-CC-TS4, eMG80N-CC-TS4, eMG800-CC-TS4, UCML-CCS-TS4)",1,0,1,1]
[null,null,"CCX-PAC-20","TSWA9262801","20 CCX Call Centre Licenses\n1 CCX Desk Telephony Network Manager\n1 CCX Report Plus (included free with CCX CC Package)\n1 CCX Report Plus - Extensions - 100 (included free with CCX CC Package)\n2 CCX Report Plus - Dashboard & User License (included free with CCX CC Package)\n20 CCX Desk\n4 CCX HMP Audio Channel  - 1 channel\n1 CCX Callback in Queue (included free with CCX CC Package)\n1 CCX Web Call-Back (included free with CCX CC Package)\n1 CCX Chat 3 Licenses (included free with CCX CC Package)\n\nNeed system licnese for TAPI and 4xSIP Extension (UCP100-CC-TS4, UCP600-CC-TS4, UCP2400-CC-TS4, eMG80N-CC-TS4, eMG800-CC-TS4, UCML-CCS-TS4)",1,0,1,1]
[null,null,"CCX-PAC-30","TSWA9262901","30 CCX Call Centre Licenses\n1 CCX Desk Telephony Network Manager\n1 CCX Report Plus (included free with CCX CC Package)\n1 CCX Report Plus - Extensions - 100 (included free with CCX CC Package)\n2 CCX Report Plus - Dashboard & User License (included free with CCX CC Package)\n30 CCX Desk\n4 CCX HMP Audio Channel  - 1 channel\n1 CCX Callback in Queue (included free with CCX CC Package)\n1 CCX Web Call-Back (included free with CCX CC Package)\n1 CCX Chat 3 Licenses (included free with CCX CC Package)\n\nNeed system licnese for TAPI and 4xSIP Extension (UCP100-CC-TS4, UCP600-CC-TS4, UCP2400-CC-TS4, eMG80N-CC-TS4, eMG800-CC-TS4, UCML-CCS-TS4)",1,0,1,1]
[null,null,"CCX-PAC-50","TSWA9263001","50 CCX Call Centre Licenses\n1 CCX Desk Telephony Network Manager\n1 CCX Report Plus (included free with CCX CC Package)\n1 CCX Report Plus - Extensions - 100 (included free with CCX CC Package)\n2 CCX Report Plus - Dashboard & User License (included free with CCX CC Package)\n50 CCX Desk\n4 CCX HMP Audio Channel  - 1 channel\n1 CCX Callback in Queue (included free with CCX CC Package)\n1 CCX Web Call-Back (included free with CCX CC Package)\n1 CCX Chat 3 Licenses (included free with CCX CC Package)\n\nNeed system licnese for TAPI and 4xSIP Extension (UCP100-CC-TS4, UCP600-CC-TS4, UCP2400-CC-TS4, eMG80N-CC-TS4, eMG800-CC-TS4, UCML-CCS-TS4)",1,0,1,1]
[null,null,"CCX-PAC-75","TSWA9263101","75 CCX Call Centre Licenses\n1 CCX Desk Telephony Network Manager\n1 CCX Report Plus (included free with CCX CC Package)\n1 CCX Report Plus - Extensions - 100 (included free with CCX CC Package)\n2 CCX Report Plus - Dashboard & User License (included free with CCX CC Package)\n75 CCX Desk\n4 CCX HMP Audio Channel  - 1 channel\n1 CCX Callback in Queue (included free with CCX CC Package)\n1 CCX Web Call-Back (included free with CCX CC Package)\n1 CCX Chat 3 Licenses (included free with CCX CC Package)\n\nNeed system licnese for TAPI and 4xSIP Extension (UCP100-CC-TS4, UCP600-CC-TS4, UCP2400-CC-TS4, eMG80N-CC-TS4, eMG800-CC-TS4, UCML-CCS-TS4)",1,0,1,1]
[null,null,"CCX-PAC-100","TSWA9263201","100 CCX Call Centre Licenses\n1 CCX Desk Telephony Network Manager\n1 CCX Report Plus (included free with CCX CC Package)\n1 CCX Report Plus - Extensions - 100 (included free with CCX CC Package)\n2 CCX Report Plus - Dashboard & User License (included free with CCX CC Package)\n100 CCX Desk\n4 CCX HMP Audio Channel  - 1 channel\n1 CCX Callback in Queue (included free with CCX CC Package)\n1 CCX Web Call-Back (included free with CCX CC Package)\n1 CCX Chat 3 Licenses (included free with CCX CC Package)\n\nNeed system licnese for TAPI and 4xSIP Extension (UCP100-CC-TS4, UCP600-CC-TS4, UCP2400-CC-TS4, eMG80N-CC-TS4, eMG800-CC-TS4, UCML-CCS-TS4)",1,0,1,1]
[null,null,"CCX-PAC-150","TSWA9248601","150 CCX Call Centre Licenses\n1 CCX Desk Telephony Network Manager\n1 CCX Report Plus (included free with CCX CC Package)\n1 CCX Report Plus - Extensions - 100 (included free with CCX CC Package)\n2 CCX Report Plus - Dashboard & User License (included free with CCX CC Package)\n150 CCX Desk\n4 CCX HMP Audio Channel  - 1 channel\n1 CCX Callback in Queue (included free with CCX CC Package)\n1 CCX Web Call-Back (included free with CCX CC Package)\n1 CCX Chat 3 Licenses (included free with CCX CC Package)\n\nNeed system licnese for TAPI and 4xSIP Extension (UCP100-CC-TS4, UCP600-CC-TS4, UCP2400-CC-TS4, eMG80N-CC-TS4, eMG800-CC-TS4, UCML-CCS-TS4)",1,0,{"$f":"I55*(1+VAT)","v":1},{"$f":"F55*(1+AddCost)+(F55*(1+AddCost)*(BaseMarkup+G55))","v":1}]
[null,null,"CCX-PAC-200","TSWA9248701","200 CCX Call Centre Licenses\n1 CCX Desk Telephony Network Manager\n1 CCX Report Plus (included free with CCX CC Package)\n1 CCX Report Plus - Extensions - 100 (included free with CCX CC Package)\n2 CCX Report Plus - Dashboard & User License (included free with CCX CC Package)\n200 CCX Desk\n4 CCX HMP Audio Channel  - 1 channel\n1 CCX Callback in Queue (included free with CCX CC Package)\n1 CCX Web Call-Back (included free with CCX CC Package)\n1 CCX Chat 3 Licenses (included free with CCX CC Package)\n\nNeed system licnese for TAPI and 4xSIP Extension (UCP100-CC-TS4, UCP600-CC-TS4, UCP2400-CC-TS4, eMG80N-CC-TS4, eMG800-CC-TS4, UCML-CCS-TS4)",1,0,1,1]
[null,null,"CCX-PAC-250","TSWA9248801","250 CCX Call Centre Licenses\n1 CCX Desk Telephony Network Manager\n1 CCX Report Plus (included free with CCX CC Package)\n1 CCX Report Plus - Extensions - 100 (included free with CCX CC Package)\n2 CCX Report Plus - Dashboard & User License (included free with CCX CC Package)\n250 CCX Desk\n4 CCX HMP Audio Channel  - 1 channel\n1 CCX Callback in Queue (included free with CCX CC Package)\n1 CCX Web Call-Back (included free with CCX CC Package)\n1 CCX Chat 3 Licenses (included free with CCX CC Package)\n\nNeed system licnese for TAPI and 4xSIP Extension (UCP100-CC-TS4, UCP600-CC-TS4, UCP2400-CC-TS4, eMG80N-CC-TS4, eMG800-CC-TS4, UCML-CCS-TS4)",1,0,1,1]
[null,"CCX Pac Add-on","CX-DSK-ADD","TSWA9263301","Additional CCX Desk User",1,0,1,1]
[null,null,"CX-HMP","TSWA9263401","Required for queue, call control management and CCX IVR channels\nAdditional SIP license on the iPECS System is required",1,0,1,1]
[null,null,"CX-HMP-G729","TSWA9248901","CCX HMP 1 Audio Channel license upgrade for G729 (DMIPS10E30W)",1,0,{"$f":"I60*(1+VAT)","v":1},{"$f":"F60*(1+AddCost)+(F60*(1+AddCost)*(BaseMarkup+G60))","v":1}]
[null,null,"CX-DB","TSWA9306301","Dashboard license including 1xSupervisor license",1,0,{"$f":"I61*(1+VAT)","v":1},{"$f":"F61*(1+AddCost)+(F61*(1+AddCost)*(BaseMarkup+G61))","v":1}]
[null,null,"CX-CC-LICENSE","TSWA9249001","CCX Call Center license",1,0,1,1]
[null,"CCX Record BRI Trunk","CX-REC-B4","TSWA9278201","CCX Record BRI 4 channel",1,0,{"$f":"I63*(1+VAT)","v":1},1]
[null,null,"CX-REC-B8","TSWA9265001","CCX Record BRI 8 channel",1,0,1,1]
[null,null,"CX-REC-B12","TSWA9265101","CCX Record BRI 12 channel",1,0,1,1]
[null,"CCX Record PRI Trunk","CX-REC-P8","TSWA9265201","CCX Record PRI 8 channel",1,0,1,1]
[null,null,"CX-REC-P12","TSWA9265301","CCX Record PRI 12 channel",1,0,1,1]
[null,null,"CX-REC-P16","TSWA9265401","CCX Record PRI 16 channel",1,0,1,1]
[null,null,"CX-REC-P24","TSWA9265501","CCX Record PRI 24 channel",1,0,1,1]
[null,null,"CX-REC-P30","TSWA9265601","CCX Record PRI 30 channel",1,0,1,1]
[null,null,"CC-REC-P40","TSWA9047201","CCS Record PRI 40 channel",1,0,{"$f":"I71*(1+VAT)","v":1},{"$f":"F71*(1+AddCost)+(F71*(1+AddCost)*(BaseMarkup+G71))","v":1}]
[null,null,"CC-REC-P50","TSWA9047301","CCS Record PRI 50 channel",1,0,1,1]
[null,null,"CC-REC-P60","TSWA9047401","CCS Record PRI 60 channel",1,0,1,1]
[null,null,"CC-REC-P90","TSWA9047501","CCS Record PRI 90 channel",1,0,1,1]
[null,null,"CC-REC-P120","TSWA9047601","CCS Record PRI 120 channel",1,0,1,1]
[null,null,"CC-REC-P150","TSWA9047701","CCS Record PRI 150 channel",1,0,1,1]
[null,null,"CC-REC-P180","TSWA9047801","CCS Record PRI 180 channel",1,0,1,1]
[null,null,"CC-REC-P200","TSWA9047901","CCS Record PRI 200 channel",1,0,1,1]
[null,null,"CC-REC-P240","TSWA9048001","CCS Record PRI 240 channel",1,0,1,1]
[null,"CCX Record VoIP Trunk","CX-REC-V4","TSWA9267001","CCX Record VOIP 4 channel, a switch supporting port mirroring is required",1,0,1,1]
[null,null,"CX-REC-V6","TSWA9250901","CCX Record VOIP 6 channel, a switch supporting port mirroring is required",1,0,{"$f":"I81*(1+VAT)","v":1},{"$f":"F81*(1+AddCost)+(F81*(1+AddCost)*(BaseMarkup+G81))","v":1}]
[null,null,"CX-REC-V8","TSWA9267101","CCX Record VOIP 8 channel, a switch supporting port mirroring is required",1,0,1,1]
[null,null,"CX-REC-V12","TSWA9267201","CCX Record VOIP 12 channel, a switch supporting port mirroring is required",1,0,1,1]
[null,null,"CX-REC-V16","TSWA9267401","CCX Record VOIP 16 channel, a switch supporting port mirroring is required",1,0,1,1]
[null,null,"CX-REC-V24","TSWA9267501","CCX Record VOIP 24 channel, a switch supporting port mirroring is required",1,0,1,1]
[null,null,"CX-REC-V30","TSWA9267601","CCX Record VOIP 30 channel, a switch supporting port mirroring is required",1,0,1,1]
[null,null,"CX-REC-V40","TSWA9267801","CCX Record VOIP 40 channel, a switch supporting port mirroring is required",1,0,1,1]
[null,null,"CX-REC-V50","TSWA9267901","CCX Record VOIP 50 channel, a switch supporting port mirroring is required",1,0,1,1]
[null,null,"CX-REC-V60","TSWA9268101","CCX Record VOIP 60 channel, a switch supporting port mirroring is required",1,0,1,1]
[null,null,"CX-REC-V90","TSWA9268201","CCX Record VOIP 90 channel, a switch supporting port mirroring is required",1,0,1,1]
[null,null,"CX-REC-V120","TSWA9268401","CCX Record VOIP 120 channel, a switch supporting port mirroring is required",1,0,1,1]
[null,null,"CX-REC-V150","TSWA9268601","CCX Record VOIP 150 channel, a switch supporting port mirroring is required",1,0,1,1]
[null,null,"CX-REC-V180","TSWA9268701","CCX Record VOIP 180 channel, a switch supporting port mirroring is required",1,0,1,1]
[null,null,"CX-REC-V200","TSWA9268801","CCX Record VOIP 200 channel, a switch supporting port mirroring is required",1,0,1,1]
[null,null,"CX-REC-V240","TSWA9269001","CCX Record VOIP 240 channel, a switch supporting port mirroring is required",1,0,{"$f":"I95*(1+VAT)","v":1},{"$f":"F95*(1+AddCost)+(F95*(1+AddCost)*(BaseMarkup+G95))","v":1}]
[null,"CCX Record Options","CX-CODEC-G729","TSWA9251001","G.729 Voice Codec for CCX Record (per channel)",1,0,{"$f":"I96*(1+VAT)","v":1},{"$f":"F96*(1+AddCost)+(F96*(1+AddCost)*(BaseMarkup+G96))","v":1}]
[null,"CCX Q Add on","CX-Q-EVF","TSWA9269701","CCX Q Email, Voice and Fax Queuing ",1,0,1,1]
[null,null,"CX-Q-SN","TSWA9269801","CCX Q Social Networking Module",1,0,1,1]
[null,null,"CX-Q-MSN","TSWA9269901","CCX Q Multi Site Networking Module",1,0,{"$f":"I99*(1+VAT)","v":1},1]
[null,"CCX CHAT","CX-CHAT-5","TSWA9270001","Web Chat and Instant Messaging Clients",1,0,1,1]
[null,"CCX Call","CX-CALL","TSWA9270101","Outbound Tele-Marketing module - preview & progressive only",1,0,1,1]
[null,null,"CX-CALL-U","TSWA9270301","Outbound Tele-Marketing module - previewprogressive & pre-emptive & Predictive auto dial modes ",1,0,1,1]
[null,"CCX SMS","CX-SMS","TSWA9270401","CCX SMS module with commercial service provider",1,0,1,1]
[null,"CCX IVR","CX-IVR","TSWA9270501","Full IVR Module  - requires HMP channels",1,0,1,1]
[null,"CCX Survey","CX-SURVEY","TSWA9270601","CCX survey for customer service measurement ",1,0,1,1]
[null,"CCX Coach","CX-COACH","TSWA9270701","CCX Coach for agent training",1,0,1,1]
[null,null,"CX-ASSESSOR","TSWA9251101","CCX Coach for additional asssessor",1,0,{"$f":"I107*(1+VAT)","v":1},{"$f":"F107*(1+AddCost)+(F107*(1+AddCost)*(BaseMarkup+G107))","v":1}]
[null,null,"CX-SCRIPT","TSWA9270801","Verbatim script guiding agents during call in CCX Coach",1,0,{"$f":"I108*(1+VAT)","v":1},1]
[null,"CCX CC Options","CX-PIDC-MGR","TSWA9251201","CCX Personal Information Data Compliance Manager",1,0,{"$f":"I109*(1+VAT)","v":1},{"$f":"F109*(1+AddCost)+(F109*(1+AddCost)*(BaseMarkup+G109))","v":1}]
[null,"CCX Report - Traffic","CX-A-REP-D","TSWA9306201","supervisor license for accessing report web server",1,0,1,1]
[null,null,"CX-A-REP-EH","TSWA9306401","additional Extensions - 100",1,0,1,1]
[null,null,"CX-A-REP-ES","TSWA9306501","additional Extensions - 1000",1,0,1,1]
[null,null,"CX-A-REP-SL","TSWA9306601","Extra Site License to add additional site managed (only for call Traffic)",1,0,1,1]
[null,"CCX Record IPCR Integration","CX-IPCR-INT4","TSWA9263501","CCX Record IPCR integration 4 channels",1,0,{"$f":"I114*(1+VAT)","v":1},{"$f":"F114*(1+AddCost)+(F114*(1+AddCost)*(BaseMarkup+G114))","v":1}]
[null,null,"CX-IPCR-INT8","TSWA9263601","CCX Record IPCR integration 8 channels",1,0,1,1]
[null,null,"CX-IPCR-INT12","TSWA9263701","CCX Record IPCR integration 12 channels",1,0,1,1]
[null,null,"CX-IPCR-INT16","TSWA9263801","CCX Record IPCR integration 16 channels",1,0,1,1]
[null,null,"CX-IPCR-INT24","TSWA9263901","CCX Record IPCR integration 24 channels",1,0,1,1]
[null,null,"CX-IPCR-INT30","TSWA9264001","CCX Record IPCR integration 30 channels",1,0,1,1]
[null,null,"CX-IPCR-INT40","TSWA9264101","CCX Record IPCR integration 40 channels",1,0,1,1]
[null,null,"CX-IPCR-INT50","TSWA9264201","CCX Record IPCR integration 50 channels",1,0,1,1]
[null,null,"CX-IPCR-INT60","TSWA9264301","CCX Record IPCR integration 60 channels",1,0,1,1]
[null,null,"CX-IPCR-INT90","TSWA9264401","CCX Record IPCR integration 90 channels",1,0,1,1]
[null,null,"CX-IPCR-INT120","TSWA9264501","CCX Record IPCR integration 120 channels",1,0,1,1]
[null,null,"CX-IPCR-INT150","TSWA9264601","CCX Record IPCR integration 150 channels",1,0,1,1]
[null,null,"CX-IPCR-INT180","TSWA9264701","CCX Record IPCR integration 180 channels",1,0,1,1]
[null,null,"CX-IPCR-INT-ADD","TSWA9264801","Additional CCX Record IPCR integration 1 channels",1,0,1,1]
[null,{"$f":"_xlfn.CONCAT(\"CCX Pac\n(\",REN_R*100,\"% Renewal)\")","v":"CCX Pac\n(10% Renewal)"},"MCX-PAC-5","TSWA9271001",{"$f":"CONCATENATE(\"Normal Renewal for \",C48,\" within warranty\")","v":"Normal Renewal for CCX-PAC-5 within warranty"},{"$f":"F48*REN_R","v":0.1},0,0.1,0.1]
[null,null,"MCX-PAC-10","TSWA9271101",{"$f":"CONCATENATE(\"Normal Renewal for \",C49,\" within warranty\")","v":"Normal Renewal for CCX-PAC-10 within warranty"},0.1,0,0.1,0.1]
[null,null,"MCX-PAC-20","TSWA9271201",{"$f":"CONCATENATE(\"Normal Renewal for \",C50,\" within warranty\")","v":"Normal Renewal for CCX-PAC-20 within warranty"},0.1,0,0.1,0.1]
[null,null,"MCX-PAC-30","TSWA9271301","Normal Renewal for CCX-PAC-30 within warranty",0.1,0,0.1,0.1]
[null,null,"MCX-PAC-50","TSWA9271401","Normal Renewal for CCX-PAC-50 within warranty",0.1,0,0.1,0.1]
[null,null,"MCX-PAC-75","TSWA9271501","Normal Renewal for CCX-PAC-75 within warranty",0.1,0,0.1,0.1]
[null,null,"MCX-PAC-100","TSWA9271601","Normal Renewal for CCX-PAC-100 within warranty",0.1,0,0.1,0.1]
[null,null,"MCX-PAC-150","TSWA9251301","Normal Renewal for CCX-PAC-150 within warranty",0.1,0,{"$f":"I135*(1+VAT)","v":0.1},{"$f":"F135*(1+AddCost)+(F135*(1+AddCost)*(BaseMarkup+G135))","v":0.1}]
[null,null,"MCX-PAC-200","TSWA9251401","Normal Renewal for CCX-PAC-200 within warranty",0.1,0,0.1,0.1]
[null,null,"MCX-PAC-250","TSWA9251501","Normal Renewal for CCX-PAC-250 within warranty",0.1,0,0.1,0.1]
[null,{"$f":"_xlfn.CONCAT(\"CCX Pac Add-on\n(\",REN_R*100,\"% Renewal)\")","v":"CCX Pac Add-on\n(10% Renewal)"},"MX-DSK-ADD","TSWA9271701","Normal Renewal for CX-DSK-ADD within warranty",0.1,0,0.1,0.1]
[null,null,"MX-HMP","TSWA9271801","Normal Renewal for CX-HMP within warranty",0.1,0,0.1,0.1]
[null,null,"MX-HMP-G729","TSWA9251601","Normal Renewal for CX-HMP-G729 within warranty",0.1,0,{"$f":"I140*(1+VAT)","v":0.1},{"$f":"F140*(1+AddCost)+(F140*(1+AddCost)*(BaseMarkup+G140))","v":0.1}]
[null,null,"MX-DB","TSWA9307001","Normal Renewal for CX-DB within warranty",0.1,0,{"$f":"I141*(1+VAT)","v":0.1},{"$f":"F141*(1+AddCost)+(F141*(1+AddCost)*(BaseMarkup+G141))","v":0.1}]
[null,null,"MX-CC-LICENSE","TSWA9251701","Normal Renewal for CX-CC-LICENSE within warranty",0.1,0,0.1,0.1]
[null,{"$f":"_xlfn.CONCAT(\"CCX Record BRI Trunk\n(\",REN_R*100,\"% Renewal)\")","v":"CCX Record BRI Trunk\n(10% Renewal)"},"MX-REC-B4","TSWA9273301","Normal Renewal for CX-REC-B4 within warranty",0.1,0,0.1,0.1]
[null,null,"MX-REC-B8","TSWA9273401","Normal Renewal for CX-REC-B8 within warranty",0.1,0,0.1,0.1]
[null,null,"MX-REC-B12","TSWA9273501","Normal Renewal for CX-REC-B12 within warranty",0.1,0,0.1,0.1]
[null,{"$f":"_xlfn.CONCAT(\"CCX Record PRI Trunk\n(\",REN_R*100,\"% Renewal)\")","v":"CCX Record PRI Trunk\n(10% Renewal)"},"MX-REC-P8","TSWA9273601","Normal Renewal for CX-REC-P8 within warranty",0.1,0,{"$f":"I146*(1+VAT)","v":0.1},0.1]
[null,null,"MX-REC-P12","TSWA9273701","Normal Renewal for CX-REC-P12 within warranty",0.1,0,0.1,0.1]
[null,null,"MX-REC-P16","TSWA9273801","Normal Renewal for CX-REC-P16 within warranty",0.1,0,0.1,0.1]
[null,null,"MX-REC-P24","TSWA9273901","Normal Renewal for CX-REC-P24 within warranty",0.1,0,0.1,0.1]
[null,null,"MX-REC-P30","TSWA9274001","Normal Renewal for CX-REC-P30 within warranty",0.1,0,0.1,0.1]
[null,null,"MC-REC-P40","TSWA9062601","Normal Renewal for CC-REC-P40 within warranty",0.1,0,{"$f":"I151*(1+VAT)","v":0.1},{"$f":"F151*(1+AddCost)+(F151*(1+AddCost)*(BaseMarkup+G151))","v":0.1}]
[null,null,"MC-REC-P50","TSWA9062701","Normal Renewal for CC-REC-P50 within warranty",0.1,0,0.1,0.1]
[null,null,"MC-REC-P60","TSWA9062801","Normal Renewal for CC-REC-P60 within warranty",0.1,0,0.1,0.1]
[null,null,"MC-REC-P90","TSWA9062901","Normal Renewal for CC-REC-P90 within warranty",0.1,0,0.1,0.1]
[null,null,"MC-REC-P120","TSWA9063001","Normal Renewal for CC-REC-P120 within warranty",0.1,0,0.1,0.1]
[null,null,"MC-REC-P150","TSWA9063101","Normal Renewal for CC-REC-P150 within warranty",0.1,0,0.1,0.1]
[null,null,"MC-REC-P180","TSWA9063201","Normal Renewal for CC-REC-P180 within warranty",0.1,0,0.1,0.1]
[null,null,"MC-REC-P200","TSWA9063301","Normal Renewal for CC-REC-P200 within warranty",0.1,0,0.1,0.1]
[null,null,"MC-REC-P240","TSWA9063401","Normal Renewal for CC-REC-P240 within warranty",0.1,0,0.1,0.1]
[null,{"$f":"_xlfn.CONCAT(\"CCX Record VoIP Trunk\n(\",REN_R*100,\"% Renewal)\")","v":"CCX Record VoIP Trunk\n(10% Renewal)"},"MX-REC-V4","TSWA9275001","Normal Renewal for CX-REC-V4 within warranty",{"$f":"F80*REN_R","v":0.1},0,0.1,0.1]
[null,null,"MX-REC-V6","TSWA9253501","Normal Renewal for CX-REC-V6 within warranty",0.1,0,{"$f":"I161*(1+VAT)","v":0.1},{"$f":"F161*(1+AddCost)+(F161*(1+AddCost)*(BaseMarkup+G161))","v":0.1}]
[null,null,"MX-REC-V8","TSWA9275101","Normal Renewal for CX-REC-V8 within warranty",0.1,0,0.1,0.1]
[null,null,"MX-REC-V12","TSWA9275201","Normal Renewal for CX-REC-V12 within warranty",0.1,0,0.1,0.1]
[null,null,"MX-REC-V16","TSWA9275301","Normal Renewal for CX-REC-V16 within warranty",0.1,0,0.1,0.1]
[null,null,"MX-REC-V24","TSWA9275401","Normal Renewal for CX-REC-V24 within warranty",0.1,0,0.1,0.1]
[null,null,"MX-REC-V30","TSWA9275501","Normal Renewal for CX-REC-V30 within warranty",0.1,0,0.1,0.1]
[null,null,"MX-REC-V40","TSWA9275601","Normal Renewal for CX-REC-V40 within warranty",0.1,0,0.1,0.1]
[null,null,"MX-REC-V50","TSWA9275701","Normal Renewal for CX-REC-V50 within warranty",0.1,0,0.1,0.1]
[null,null,"MX-REC-V60","TSWA9275801","Normal Renewal for CX-REC-V60 within warranty",0.1,0,0.1,0.1]
[null,null,"MX-REC-V90","TSWA9275901","Normal Renewal for CX-REC-V90 within warranty",0.1,0,0.1,0.1]
[null,null,"MX-REC-V120","TSWA9276001","Normal Renewal for CX-REC-V120 within warranty",0.1,0,0.1,0.1]
[null,null,"MX-REC-V150","TSWA9276101","Normal Renewal for CX-REC-V150 within warranty",0.1,0,0.1,0.1]
[null,null,"MX-REC-V180","TSWA9276201","Normal Renewal for CX-REC-V180 within warranty",0.1,0,0.1,0.1]
[null,null,"MX-REC-V200","TSWA9276301","Normal Renewal for CX-REC-V200 within warranty",0.1,0,0.1,0.1]
[null,null,"MX-REC-V240","TSWA9276401","Normal Renewal for CX-REC-V240 within warranty",0.1,0,0.1,0.1]
[null,{"$f":"_xlfn.CONCAT(\"CCX Record Options\n(\",REN_R*100,\"% Renewal)\")","v":"CCX Record Options\n(10% Renewal)"},"MX-CODEC-G729","TSWA9253601","Normal Renewal for CX-CODEC-G729 within warranty",0.1,0,{"$f":"I176*(1+VAT)","v":0.1},{"$f":"F176*(1+AddCost)+(F176*(1+AddCost)*(BaseMarkup+G176))","v":0.1}]
[null,{"$f":"_xlfn.CONCAT(\"CCX Q Add on\n(\",REN_R*100,\"% Renewal)\")","v":"CCX Q Add on\n(10% Renewal)"},"MX-Q-EVF","TSWA9276901","Normal Renewal for CX-Q-EVF within warranty",0.1,0,0.1,{"$f":"F177*(1+AddCost)+(F177*(1+AddCost)*(BaseMarkup+G177))","v":0.1}]
[null,null,"MX-Q-SN","TSWA9277001","Normal Renewal for CX-Q-SN within warranty",0.1,0,{"$f":"I178*(1+VAT)","v":0.1},0.1]
[null,null,"MX-Q-MSN","TSWA9277101","Normal Renewal for CX-Q-MSN within warranty",0.1,0,{"$f":"I179*(1+VAT)","v":0.1},0.1]
[null,{"$f":"_xlfn.CONCAT(\"CCX CHAT\n(\",REN_R*100,\"% Renewal)\")","v":"CCX CHAT\n(10% Renewal)"},"MX-CHAT-5","TSWA9277201","Normal Renewal for CX-CHAT-5 within warranty",0.1,0,0.1,0.1]
[null,{"$f":"_xlfn.CONCAT(\"CCX Call\n(\",REN_R*100,\"% Renewal)\")","v":"CCX Call\n(10% Renewal)"},"MX-CALL","TSWA9277301","Normal Renewal for CX-CALL within warranty",0.1,0,0.1,0.1]
[null,null,"MX-CALL-U","TSWA9277401","Normal Renewal for CX-CALL-U within warranty",0.1,0,0.1,0.1]
[null,{"$f":"_xlfn.CONCAT(\"CCX SMS\n(\",REN_R*100,\"% Renewal)\")","v":"CCX SMS\n(10% Renewal)"},"MX-SMS","TSWA9277501","Normal Renewal for CX-SMS within warranty",0.1,0,0.1,0.1]
[null,{"$f":"_xlfn.CONCAT(\"CCX IVR\n(\",REN_R*100,\"% Renewal)\")","v":"CCX IVR\n(10% Renewal)"},"MX-IVR","TSWA9277601","Normal Renewal for CX-IVR within warranty",0.1,0,0.1,0.1]
[null,{"$f":"_xlfn.CONCAT(\"CCX Survey\n(\",REN_R*100,\"% Renewal)\")","v":"CCX Survey\n(10% Renewal)"},"MX-SURVEY","TSWA9277701","Normal Renewal for CX-SURVEY within warranty",0.1,0,0.1,0.1]
[null,{"$f":"_xlfn.CONCAT(\"CCX Coach\n(\",REN_R*100,\"% Renewal)\")","v":"CCX Coach\n(10% Renewal)"},"MX-COACH","TSWA9277801","Normal Renewal for CX-COACH within warranty",0.1,0,0.1,0.1]
[null,null,"MX-ASSESSOR","TSWA9253701","Normal Renewal for CX-ASSESSOR within warranty",0.1,0,{"$f":"I187*(1+VAT)","v":0.1},{"$f":"F187*(1+AddCost)+(F187*(1+AddCost)*(BaseMarkup+G187))","v":0.1}]
[null,null,"MX-SCRIPT","TSWA9277901","Normal Renewal for CX-SCRIPT within warranty",0.1,0,{"$f":"I188*(1+VAT)","v":0.1},0.1]
[null,{"$f":"_xlfn.CONCAT(\"CCX Desk Options\n(\",REN_R*100,\"% Renewal)\")","v":"CCX Desk Options\n(10% Renewal)"},"MX-PIDC-MGR","TSWA9253801","Normal Renewal for CX-PIDC-MGR within warranty",0.1,0,{"$f":"I189*(1+VAT)","v":0.1},{"$f":"F189*(1+AddCost)+(F189*(1+AddCost)*(BaseMarkup+G189))","v":0.1}]
[null,{"$f":"_xlfn.CONCAT(\"CCX Report - Traffic\n(\",REN_R*100,\"% Renewal)\")","v":"CCX Report - Traffic\n(10% Renewal)"},"MX-A-REP-D","TSWA9306901","Normal Renewal for CX-A-REP-D within warranty",0.1,0,0.1,0.1]
[null,null,"MX-A-REP-EH","TSWA9307101","Normal Renewal for CX-A-REP-EH within warranty",0.1,0,0.1,0.1]
[null,null,"MX-A-REP-ES","TSWA9307201","Normal Renewal for CX-A-REP-ES within warranty",{"$f":"F112*REN_R","v":0.1},0,0.1,0.1]
[null,null,"MX-A-REP-SL","TSWA9307301","Normal Renewal for CX-A-REP-SL within warranty",0.1,0,0.1,0.1]
[null,{"$f":"_xlfn.CONCAT(\"CCX Record IPCR Integration\n(\",REN_R*100,\"% Renewal)\")","v":"CCX Record IPCR Integration\n(10% Renewal)"},"MX-IPCR-INT4","TSWA9271901",{"$f":"CONCATENATE(\"Normal Renewal for \",C114,\" within warranty\")","v":"Normal Renewal for CX-IPCR-INT4 within warranty"},0.1,0,0.1,0.1]
[null,null,"MX-IPCR-INT8","TSWA9272001","Normal Renewal for CX-IPCR-INT8 within warranty",0.1,0,0.1,0.1]
[null,null,"MX-IPCR-INT12","TSWA9272101","Normal Renewal for CX-IPCR-INT12 within warranty",0.1,0,0.1,0.1]
[null,null,"MX-IPCR-INT16","TSWA9272201","Normal Renewal for CX-IPCR-INT16 within warranty",0.1,0,0.1,0.1]
[null,null,"MX-IPCR-INT24","TSWA9272301","Normal Renewal for CX-IPCR-INT24 within warranty",0.1,0,0.1,0.1]
[null,null,"MX-IPCR-INT30","TSWA9272401","Normal Renewal for CX-IPCR-INT30 within warranty",0.1,0,0.1,0.1]
[null,null,"MX-IPCR-INT40","TSWA9272501","Normal Renewal for CX-IPCR-INT40 within warranty",0.1,0,0.1,0.1]
[null,null,"MX-IPCR-INT50","TSWA9272601","Normal Renewal for CX-IPCR-INT50 within warranty",0.1,0,0.1,0.1]
[null,null,"MX-IPCR-INT60","TSWA9272701","Normal Renewal for CX-IPCR-INT60 within warranty",0.1,0,0.1,0.1]
[null,null,"MX-IPCR-INT90","TSWA9272801","Normal Renewal for CX-IPCR-INT90 within warranty",0.1,0,0.1,0.1]
[null,null,"MX-IPCR-INT120","TSWA9272901","Normal Renewal for CX-IPCR-INT120 within warranty",0.1,0,0.1,0.1]
[null,null,"MX-IPCR-INT150","TSWA9273001","Normal Renewal for CX-IPCR-INT150 within warranty",0.1,0,0.1,0.1]
[null,null,"MX-IPCR-INT180","TSWA9273101","Normal Renewal for CX-IPCR-INT180 within warranty",0.1,0,0.1,0.1]
[null,null,"MX-IPCR-INT-ADD","TSWA9273201","Normal Renewal for CX-IPCR-INT-ADD within warranty",0.1,0,0.1,0.1]
[null,{"$f":"_xlfn.CONCAT(\"CCX Pac\n(\",REN_D*100,\"% Renewal discounted)\")","v":"CCX Pac\n(7% Renewal discounted)"},"MCX-PAC-5-E","TSWA9284601",{"$f":"CONCATENATE(\"Renewal for \",C48,\" at the time of the initial purchase\")","v":"Renewal for CCX-PAC-5 at the time of the initial purchase"},{"$f":"F48*REN_D","v":7.0000000000000007E-2},0,7.0000000000000007E-2,7.0000000000000007E-2]
[null,null,"MCX-PAC-10-E","TSWA9284701",{"$f":"CONCATENATE(\"Renewal for \",C49,\" at the time of the initial purchase\")","v":"Renewal for CCX-PAC-10 at the time of the initial purchase"},7.0000000000000007E-2,0,7.0000000000000007E-2,7.0000000000000007E-2]
[null,null,"MCX-PAC-20-E","TSWA9284801",{"$f":"CONCATENATE(\"Renewal for \",C50,\" at the time of the initial purchase\")","v":"Renewal for CCX-PAC-20 at the time of the initial purchase"},7.0000000000000007E-2,0,7.0000000000000007E-2,7.0000000000000007E-2]
[null,null,"MCX-PAC-30-E","TSWA9284901","Renewal for CCX-PAC-30 at the time of the initial purchase",7.0000000000000007E-2,0,7.0000000000000007E-2,7.0000000000000007E-2]
[null,null,"MCX-PAC-50-E","TSWA9285001","Renewal for CCX-PAC-50 at the time of the initial purchase",7.0000000000000007E-2,0,7.0000000000000007E-2,7.0000000000000007E-2]
[null,null,"MCX-PAC-75-E","TSWA9285101","Renewal for CCX-PAC-75 at the time of the initial purchase",7.0000000000000007E-2,0,7.0000000000000007E-2,7.0000000000000007E-2]
[null,null,"MCX-PAC-100-E","TSWA9285201","Renewal for CCX-PAC-100 at the time of the initial purchase",7.0000000000000007E-2,0,7.0000000000000007E-2,7.0000000000000007E-2]
[null,null,"MCX-PAC-150-E","TSWA9253901","Renewal for CCX-PAC-150 at the time of the initial purchase",7.0000000000000007E-2,0,{"$f":"I215*(1+VAT)","v":7.0000000000000007E-2},{"$f":"F215*(1+AddCost)+(F215*(1+AddCost)*(BaseMarkup+G215))","v":7.0000000000000007E-2}]
[null,null,"MCX-PAC-200-E","TSWA9254001","Renewal for CCX-PAC-200 at the time of the initial purchase",7.0000000000000007E-2,0,7.0000000000000007E-2,7.0000000000000007E-2]
[null,null,"MCX-PAC-250-E","TSWA9254101","Renewal for CCX-PAC-250 at the time of the initial purchase",7.0000000000000007E-2,0,7.0000000000000007E-2,7.0000000000000007E-2]
[null,{"$f":"_xlfn.CONCAT(\"CCX Pac Add-on\n(\",REN_D*100,\"% Renewal discounted)\")","v":"CCX Pac Add-on\n(7% Renewal discounted)"},"MX-DSK-ADD-E","TSWA9285401","Renewal for CX-DSK-ADD at the time of the initial purchase",7.0000000000000007E-2,0,7.0000000000000007E-2,7.0000000000000007E-2]
[null,null,"MX-HMP-E","TSWA9166601","Renewal for CX-HMP at the time of the initial purchase",7.0000000000000007E-2,0,7.0000000000000007E-2,7.0000000000000007E-2]
[null,null,"MX-HMP-G729-E","TSWA9254201","Renewal for CX-HMP-G729 at the time of the initial purchase",7.0000000000000007E-2,0,{"$f":"I220*(1+VAT)","v":7.0000000000000007E-2},{"$f":"F220*(1+AddCost)+(F220*(1+AddCost)*(BaseMarkup+G220))","v":7.0000000000000007E-2}]
[null,null,"MX-DB-E","TSWA9307701","Renewal for CX-DB at the time of the initial purchase",7.0000000000000007E-2,0,{"$f":"I221*(1+VAT)","v":7.0000000000000007E-2},{"$f":"F221*(1+AddCost)+(F221*(1+AddCost)*(BaseMarkup+G221))","v":7.0000000000000007E-2}]
[null,null,"MX-CC-LICENSE-E","TSWA9254301","Renewal for CX-CC-LICENSE at the time of the initial purchase",7.0000000000000007E-2,0,7.0000000000000007E-2,7.0000000000000007E-2]
[null,{"$f":"_xlfn.CONCAT(\"CCX Record BRI Trunk\n(\",REN_D*100,\"% Renewal discounted)\")","v":"CCX Record BRI Trunk\n(7% Renewal discounted)"},"MX-REC-B4-E","TSWA9287201","Renewal for CX-REC-B4 at the time of the initial purchase",7.0000000000000007E-2,0,7.0000000000000007E-2,7.0000000000000007E-2]
[null,null,"MX-REC-B8-E","TSWA9287301","Renewal for CX-REC-B8 at the time of the initial purchase",7.0000000000000007E-2,0,7.0000000000000007E-2,7.0000000000000007E-2]
[null,null,"MX-REC-B12-E","TSWA9287401","Renewal for CX-REC-B12 at the time of the initial purchase",7.0000000000000007E-2,0,7.0000000000000007E-2,7.0000000000000007E-2]
[null,{"$f":"_xlfn.CONCAT(\"CCX Record PRI Trunk\n(\",REN_D*100,\"% Renewal discounted)\")","v":"CCX Record PRI Trunk\n(7% Renewal discounted)"},"MX-REC-P8-E","TSWA9294701","Renewal for CX-REC-P8 at the time of the initial purchase",7.0000000000000007E-2,0,7.0000000000000007E-2,7.0000000000000007E-2]
[null,null,"MX-REC-P12-E","TSWA9294801","Renewal for CX-REC-P12 at the time of the initial purchase",7.0000000000000007E-2,0,7.0000000000000007E-2,7.0000000000000007E-2]
[null,null,"MX-REC-P16-E","TSWA9294901","Renewal for CX-REC-P16 at the time of the initial purchase",7.0000000000000007E-2,0,7.0000000000000007E-2,7.0000000000000007E-2]
[null,null,"MX-REC-P24-E","TSWA9295001","Renewal for CX-REC-P24 at the time of the initial purchase",7.0000000000000007E-2,0,7.0000000000000007E-2,7.0000000000000007E-2]
[null,null,"MX-REC-P30-E","TSWA9295101","Renewal for CX-REC-P30 at the time of the initial purchase",7.0000000000000007E-2,0,7.0000000000000007E-2,7.0000000000000007E-2]
[null,null,"MX-REC-P40-E","TSWA9295201","Renewal for CC-REC-P40 at the time of the initial purchase",7.0000000000000007E-2,0,{"$f":"I231*(1+VAT)","v":7.0000000000000007E-2},{"$f":"F231*(1+AddCost)+(F231*(1+AddCost)*(BaseMarkup+G231))","v":7.0000000000000007E-2}]
[null,null,"MX-REC-P50-E","TSWA9295301","Renewal for CC-REC-P50 at the time of the initial purchase",7.0000000000000007E-2,0,7.0000000000000007E-2,7.0000000000000007E-2]
[null,null,"MX-REC-P60-E","TSWA9295401","Renewal for CC-REC-P60 at the time of the initial purchase",7.0000000000000007E-2,0,7.0000000000000007E-2,7.0000000000000007E-2]
[null,null,"MX-REC-P90-E","TSWA9295501","Renewal for CC-REC-P90 at the time of the initial purchase",7.0000000000000007E-2,0,7.0000000000000007E-2,7.0000000000000007E-2]
[null,null,"MX-REC-P120-E","TSWA9295601","Renewal for CC-REC-P120 at the time of the initial purchase",7.0000000000000007E-2,0,7.0000000000000007E-2,7.0000000000000007E-2]
[null,null,"MX-REC-P150-E","TSWA9295701","Renewal for CC-REC-P150 at the time of the initial purchase",7.0000000000000007E-2,0,7.0000000000000007E-2,7.0000000000000007E-2]
[null,null,"MX-REC-P180-E","TSWA9295801","Renewal for CC-REC-P180 at the time of the initial purchase",7.0000000000000007E-2,0,7.0000000000000007E-2,7.0000000000000007E-2]
[null,null,"MX-REC-P200-E","TSWA9295901","Renewal for CC-REC-P200 at the time of the initial purchase",7.0000000000000007E-2,0,7.0000000000000007E-2,7.0000000000000007E-2]
[null,null,"MX-REC-P240-E","TSWA9296001","Renewal for CC-REC-P240 at the time of the initial purchase",7.0000000000000007E-2,0,7.0000000000000007E-2,7.0000000000000007E-2]
[null,{"$f":"_xlfn.CONCAT(\"CCX Record VoIP Trunk\n(\",REN_D*100,\"% Renewal discounted)\")","v":"CCX Record VoIP Trunk\n(7% Renewal discounted)"},"MX-REC-V4-E","TSWA9296101","Renewal for CX-REC-V4 at the time of the initial purchase",{"$f":"F80*REN_D","v":7.0000000000000007E-2},0,7.0000000000000007E-2,7.0000000000000007E-2]
[null,null,"MX-REC-V6-E","TSWA9256001","Renewal for CX-REC-V6 at the time of the initial purchase",7.0000000000000007E-2,0,{"$f":"I241*(1+VAT)","v":7.0000000000000007E-2},{"$f":"F241*(1+AddCost)+(F241*(1+AddCost)*(BaseMarkup+G241))","v":7.0000000000000007E-2}]
[null,null,"MX-REC-V8-E","TSWA9296201","Renewal for CX-REC-V8 at the time of the initial purchase",7.0000000000000007E-2,0,7.0000000000000007E-2,7.0000000000000007E-2]
[null,null,"MX-REC-V12-E","TSWA9296301","Renewal for CX-REC-V12 at the time of the initial purchase",7.0000000000000007E-2,0,7.0000000000000007E-2,7.0000000000000007E-2]
[null,null,"MX-REC-V16-E","TSWA9296401","Renewal for CX-REC-V16 at the time of the initial purchase",7.0000000000000007E-2,0,7.0000000000000007E-2,7.0000000000000007E-2]
[null,null,"MX-REC-V24-E","TSWA9296501","Renewal for CX-REC-V24 at the time of the initial purchase",7.0000000000000007E-2,0,7.0000000000000007E-2,7.0000000000000007E-2]
[null,null,"MX-REC-V30-E","TSWA9296701","Renewal for CX-REC-V30 at the time of the initial purchase",7.0000000000000007E-2,0,7.0000000000000007E-2,7.0000000000000007E-2]
[null,null,"MX-REC-V40-E","TSWA9296801","Renewal for CX-REC-V40 at the time of the initial purchase",7.0000000000000007E-2,0,7.0000000000000007E-2,7.0000000000000007E-2]
[null,null,"MX-REC-V50-E","TSWA9297101","Renewal for CX-REC-V50 at the time of the initial purchase",7.0000000000000007E-2,0,7.0000000000000007E-2,7.0000000000000007E-2]
[null,null,"MX-REC-V60-E","TSWA9297201","Renewal for CX-REC-V60 at the time of the initial purchase",7.0000000000000007E-2,0,7.0000000000000007E-2,7.0000000000000007E-2]
[null,null,"MX-REC-V90-E","TSWA9297301","Renewal for CX-REC-V90 at the time of the initial purchase",7.0000000000000007E-2,0,7.0000000000000007E-2,7.0000000000000007E-2]
[null,null,"MX-REC-V120-E","TSWA9297401","Renewal for CX-REC-V120 at the time of the initial purchase",7.0000000000000007E-2,0,7.0000000000000007E-2,7.0000000000000007E-2]
[null,null,"MX-REC-V150-E","TSWA9297701","Renewal for CX-REC-V150 at the time of the initial purchase",7.0000000000000007E-2,0,7.0000000000000007E-2,7.0000000000000007E-2]
[null,null,"MX-REC-V180-E","TSWA9297801","Renewal for CX-REC-V180 at the time of the initial purchase",7.0000000000000007E-2,0,7.0000000000000007E-2,7.0000000000000007E-2]
[null,null,"MX-REC-V200-E","TSWA9298101","Renewal for CX-REC-V200 at the time of the initial purchase",7.0000000000000007E-2,0,7.0000000000000007E-2,7.0000000000000007E-2]
[null,null,"MX-REC-V240-E","TSWA9298201","Renewal for CX-REC-V240 at the time of the initial purchase",7.0000000000000007E-2,0,7.0000000000000007E-2,7.0000000000000007E-2]
[null,{"$f":"_xlfn.CONCAT(\"CCX Record Options\n(\",REN_D*100,\"% Renewal discounted)\")","v":"CCX Record Options\n(7% Renewal discounted)"},"MX-CODEC-G729-E","TSWA9256101","Renewal for CX-CODEC-G729 at the time of the initial purchase",7.0000000000000007E-2,0,{"$f":"I256*(1+VAT)","v":7.0000000000000007E-2},{"$f":"F256*(1+AddCost)+(F256*(1+AddCost)*(BaseMarkup+G256))","v":7.0000000000000007E-2}]
[null,{"$f":"_xlfn.CONCAT(\"CCX Q Add on\n(\",REN_D*100,\"% Renewal discounted)\")","v":"CCX Q Add on\n(7% Renewal discounted)"},"MX-Q-EVF-E","TSWA9291701","Renewal for CX-Q-EVF at the time of the initial purchase",7.0000000000000007E-2,0,7.0000000000000007E-2,7.0000000000000007E-2]
[null,null,"MX-Q-SN-E","TSWA9293101","Renewal for CX-Q-SN at the time of the initial purchase",7.0000000000000007E-2,0,{"$f":"I258*(1+VAT)","v":7.0000000000000007E-2},{"$f":"F258*(1+AddCost)+(F258*(1+AddCost)*(BaseMarkup+G258))","v":7.0000000000000007E-2}]
[null,null,"MX-Q-MSN-E","TSWA9305501","Renewal for CX-Q-MSN at the time of the initial purchase",7.0000000000000007E-2,0,7.0000000000000007E-2,7.0000000000000007E-2]
[null,{"$f":"_xlfn.CONCAT(\"CCX CHAT\n(\",REN_D*100,\"% Renewal discounted)\")","v":"CCX CHAT\n(7% Renewal discounted)"},"MX-CHAT-5-E","TSWA9292101","Renewal for CX-CHAT-5 at the time of the initial purchase",7.0000000000000007E-2,0,7.0000000000000007E-2,7.0000000000000007E-2]
[null,{"$f":"_xlfn.CONCAT(\"CCX Call\n(\",REN_D*100,\"% Renewal discounted)\")","v":"CCX Call\n(7% Renewal discounted)"},"MX-CALL-E","TSWA9305601","Renewal for CX-CALL at the time of the initial purchase",7.0000000000000007E-2,0,7.0000000000000007E-2,7.0000000000000007E-2]
[null,null,"MX-CALL-U-E","TSWA9305701","Renewal for CX-CALL-U at the time of the initial purchase",7.0000000000000007E-2,0,7.0000000000000007E-2,7.0000000000000007E-2]
[null,{"$f":"_xlfn.CONCAT(\"CCX SMS\n(\",REN_D*100,\"% Renewal discounted)\")","v":"CCX SMS\n(7% Renewal discounted)"},"MX-SMS-E","TSWA9305801","Renewal for CX-SMS at the time of the initial purchase",7.0000000000000007E-2,0,7.0000000000000007E-2,7.0000000000000007E-2]
[null,{"$f":"_xlfn.CONCAT(\"CCX IVR\n(\",REN_D*100,\"% Renewal discounted)\")","v":"CCX IVR\n(7% Renewal discounted)"},"MX-IVR-E","TSWA9292201","Renewal for CX-IVR at the time of the initial purchase",7.0000000000000007E-2,0,7.0000000000000007E-2,7.0000000000000007E-2]
[null,{"$f":"_xlfn.CONCAT(\"CCX Survey\n(\",REN_D*100,\"% Renewal discounted)\")","v":"CCX Survey\n(7% Renewal discounted)"},"MX-SURVEY-E","TSWA9292301","Renewal for CX-SURVEY at the time of the initial purchase",7.0000000000000007E-2,0,7.0000000000000007E-2,7.0000000000000007E-2]
[null,{"$f":"_xlfn.CONCAT(\"CCX Coach\n(\",REN_D*100,\"% Renewal discounted)\")","v":"CCX Coach\n(7% Renewal discounted)"},"MX-COACH-E","TSWA9305901","Renewal for CX-COACH at the time of the initial purchase",7.0000000000000007E-2,0,7.0000000000000007E-2,7.0000000000000007E-2]
[null,null,"MX-ASSESSOR-E","TSWA9256201","Renewal for CX-ASSESSOR at the time of the initial purchase",7.0000000000000007E-2,0,{"$f":"I267*(1+VAT)","v":7.0000000000000007E-2},{"$f":"F267*(1+AddCost)+(F267*(1+AddCost)*(BaseMarkup+G267))","v":7.0000000000000007E-2}]
[null,null,"MX-SCRIPT-E","TSWA9306001","Renewal for CX-SCRIPT at the time of the initial purchase",7.0000000000000007E-2,0,7.0000000000000007E-2,7.0000000000000007E-2]
[null,{"$f":"_xlfn.CONCAT(\"CCX Desk Options\n(\",REN_D*100,\"% Renewal discounted)\")","v":"CCX Desk Options\n(7% Renewal discounted)"},"MX-PIDC-MGR-E","TSWA9256301","Renewal for CX-PIDC-MGR at the time of the initial purchase",7.0000000000000007E-2,0,{"$f":"I269*(1+VAT)","v":7.0000000000000007E-2},{"$f":"F269*(1+AddCost)+(F269*(1+AddCost)*(BaseMarkup+G269))","v":7.0000000000000007E-2}]
[null,{"$f":"_xlfn.CONCAT(\"CCX Report - Traffic\n(\",REN_D*100,\"% Renewal discounted)\")","v":"CCX Report - Traffic\n(7% Renewal discounted)"},"MX-A-REP-D-E","TSWA9307601","Renewal for CX-A-REP-D at the time of the initial purchase",7.0000000000000007E-2,0,7.0000000000000007E-2,7.0000000000000007E-2]
[null,null,"MX-A-REP-EH-E","TSWA9307801","Renewal for CX-A-REP-EH at the time of the initial purchase",7.0000000000000007E-2,0,7.0000000000000007E-2,7.0000000000000007E-2]
[null,null,"MX-A-REP-ES-E","TSWA9307901","Renewal for CX-A-REP-ES at the time of the initial purchase",{"$f":"F112*REN_D","v":7.0000000000000007E-2},0,7.0000000000000007E-2,7.0000000000000007E-2]
[null,null,"MX-A-REP-SL-E","TSWA9308001","Renewal for CX-A-REP-SL at the time of the initial purchase",7.0000000000000007E-2,0,7.0000000000000007E-2,7.0000000000000007E-2]
[null,{"$f":"_xlfn.CONCAT(\"CCX Record IPCR Integration\n(\",REN_D*100,\"% Renewal discounted)\")","v":"CCX Record IPCR Integration\n(7% Renewal discounted)"},"MX-IPCR-INT4-E","TSWA9285701",{"$f":"CONCATENATE(\"Renewal for \",C114,\" at the time of the initial purchase\")","v":"Renewal for CX-IPCR-INT4 at the time of the initial purchase"},7.0000000000000007E-2,0,7.0000000000000007E-2,7.0000000000000007E-2]
[null,null,"MX-IPCR-INT8-E","TSWA9285801","Renewal for CX-IPCR-INT8 at the time of the initial purchase",7.0000000000000007E-2,0,7.0000000000000007E-2,7.0000000000000007E-2]
[null,null,"MX-IPCR-INT12-E","TSWA9285901","Renewal for CX-IPCR-INT12 at the time of the initial purchase",7.0000000000000007E-2,0,7.0000000000000007E-2,7.0000000000000007E-2]
[null,null,"MX-IPCR-INT16-E","TSWA9286101","Renewal for CX-IPCR-INT16 at the time of the initial purchase",7.0000000000000007E-2,0,7.0000000000000007E-2,7.0000000000000007E-2]
[null,null,"MX-IPCR-INT24-E","TSWA9286201","Renewal for CX-IPCR-INT24 at the time of the initial purchase",7.0000000000000007E-2,0,7.0000000000000007E-2,7.0000000000000007E-2]
[null,null,"MX-IPCR-INT30-E","TSWA9286301","Renewal for CX-IPCR-INT30 at the time of the initial purchase",7.0000000000000007E-2,0,7.0000000000000007E-2,7.0000000000000007E-2]
[null,null,"MX-IPCR-INT40-E","TSWA9286401","Renewal for CX-IPCR-INT40 at the time of the initial purchase",7.0000000000000007E-2,0,7.0000000000000007E-2,7.0000000000000007E-2]
[null,null,"MX-IPCR-INT50-E","TSWA9286501","Renewal for CX-IPCR-INT50 at the time of the initial purchase",7.0000000000000007E-2,0,7.0000000000000007E-2,7.0000000000000007E-2]
[null,null,"MX-IPCR-INT60-E","TSWA9286601","Renewal for CX-IPCR-INT60 at the time of the initial purchase",7.0000000000000007E-2,0,7.0000000000000007E-2,7.0000000000000007E-2]
[null,null,"MX-IPCR-INT90-E","TSWA9286701","Renewal for CX-IPCR-INT90 at the time of the initial purchase",7.0000000000000007E-2,0,7.0000000000000007E-2,7.0000000000000007E-2]
[null,null,"MX-IPCR-INT120-E","TSWA9286801","Renewal for CX-IPCR-INT120 at the time of the initial purchase",7.0000000000000007E-2,0,7.0000000000000007E-2,7.0000000000000007E-2]
[null,null,"MX-IPCR-INT150-E","TSWA9286901","Renewal for CX-IPCR-INT150 at the time of the initial purchase",7.0000000000000007E-2,0,7.0000000000000007E-2,7.0000000000000007E-2]
[null,null,"MX-IPCR-INT180-E","TSWA9287001","Renewal for CX-IPCR-INT180 at the time of the initial purchase",7.0000000000000007E-2,0,7.0000000000000007E-2,7.0000000000000007E-2]
[null,null,"MX-IPCR-INT-ADD-E","TSWA9287101","Renewal for CX-IPCR-INT-ADD at the time of the initial purchase",7.0000000000000007E-2,0,7.0000000000000007E-2,7.0000000000000007E-2]
[null,{"$f":"_xlfn.CONCAT(\"CCX Pac\n(\",REN_E*100,\"% Renewal after expiry)\")","v":"CCX Pac\n(30% Renewal after expiry)"},"MCX-PAC-5-L","TSWA9291001",{"$f":"CONCATENATE(\"Renewal for \",C48,\" out of warranty\")","v":"Renewal for CCX-PAC-5 out of warranty"},{"$f":"F48*REN_E","v":0.3},0,0.3,0.3]
[null,null,"MCX-PAC-10-L","TSWA9291101",{"$f":"CONCATENATE(\"Renewal for \",C49,\" out of warranty\")","v":"Renewal for CCX-PAC-10 out of warranty"},0.3,0,0.3,0.3]
[null,null,"MCX-PAC-20-L","TSWA9291201",{"$f":"CONCATENATE(\"Renewal for \",C50,\" out of warranty\")","v":"Renewal for CCX-PAC-20 out of warranty"},0.3,0,0.3,0.3]
[null,null,"MCX-PAC-30-L","TSWA9311101","Renewal for CCX-PAC-30 out of warranty",0.3,0,0.3,0.3]
[null,null,"MCX-PAC-50-L","TSWA9311201","Renewal for CCX-PAC-50 out of warranty",0.3,0,0.3,0.3]
[null,null,"MCX-PAC-75-L","TSWA9311301","Renewal for CCX-PAC-75 out of warranty",0.3,0,0.3,0.3]
[null,null,"MCX-PAC-100-L","TSWA9311401","Renewal for CCX-PAC-100 out of warranty",0.3,0,0.3,0.3]
[null,null,"MCX-PAC-150-L","TSWA9256401","Renewal for CCX-PAC-150 out of warranty",0.3,0,{"$f":"I295*(1+VAT)","v":0.3},{"$f":"F295*(1+AddCost)+(F295*(1+AddCost)*(BaseMarkup+G295))","v":0.3}]
[null,null,"MCX-PAC-200-L","TSWA9256501","Renewal for CCX-PAC-200 out of warranty",0.3,0,0.3,0.3]
[null,null,"MCX-PAC-250-L","TSWA9256601","Renewal for CCX-PAC-250 out of warranty",0.3,0,0.3,0.3]
[null,{"$f":"_xlfn.CONCAT(\"CCX Pac Add-on\n(\",REN_E*100,\"% Renewal after expiry)\")","v":"CCX Pac Add-on\n(30% Renewal after expiry)"},"MX-DSK-ADD-L","TSWA9311501","Renewal for CX-DSK-ADD out of warranty",0.3,0,0.3,0.3]
[null,null,"MX-HMP-L","TSWA9291301","Renewal for CX-HMP out of warranty",0.3,0,0.3,0.3]
[null,null,"MX-HMP-G729-L","TSWA9256701","Renewal for CX-HMP-G729 out of warranty",0.3,0,{"$f":"I300*(1+VAT)","v":0.3},{"$f":"F300*(1+AddCost)+(F300*(1+AddCost)*(BaseMarkup+G300))","v":0.3}]
[null,null,"MX-DB-L","TSWA9309801","Renewal for CX-DB out of warranty",0.3,0,{"$f":"I301*(1+VAT)","v":0.3},{"$f":"F301*(1+AddCost)+(F301*(1+AddCost)*(BaseMarkup+G301))","v":0.3}]
[null,null,"MX-CC-LICENSE-L","TSWA9256801","Renewal for CX-CC-LICENSE out of warranty",0.3,0,0.3,0.3]
[null,{"$f":"_xlfn.CONCAT(\"CCX Record BRI Trunk\n(\",REN_E*100,\"% Renewal after expiry)\")","v":"CCX Record BRI Trunk\n(30% Renewal after expiry)"},"MX-REC-B4-L","TSWA9313101","Renewal for CX-REC-B4 out of warranty",0.3,0,0.3,0.3]
[null,null,"MX-REC-B8-L","TSWA9313201","Renewal for CX-REC-B8 out of warranty",0.3,0,0.3,0.3]
[null,null,"MX-REC-B12-L","TSWA9313301","Renewal for CX-REC-B12 out of warranty",0.3,0,0.3,0.3]
[null,{"$f":"_xlfn.CONCAT(\"CCX Record PRI Trunk\n(\",REN_E*100,\"% Renewal after expiry)\")","v":"CCX Record PRI Trunk\n(30% Renewal after expiry)"},"MX-REC-P8-L","TSWA9313401","Renewal for CX-REC-P8 out of warranty",0.3,0,0.3,0.3]
[null,null,"MX-REC-P12-L","TSWA9313501","Renewal for CX-REC-P12 out of warranty",0.3,0,0.3,0.3]
[null,null,"MX-REC-P16-L","TSWA9313601","Renewal for CX-REC-P16 out of warranty",0.3,0,0.3,0.3]
[null,null,"MX-REC-P24-L","TSWA9313701","Renewal for CX-REC-P24 out of warranty",0.3,0,0.3,0.3]
[null,null,"MX-REC-P30-L","TSWA9313801","Renewal for CX-REC-P30 out of warranty",0.3,0,0.3,0.3]
[null,null,"MX-REC-P40-L","TSWA9313901","Renewal for CC-REC-P40 out of warranty",0.3,0,{"$f":"I311*(1+VAT)","v":0.3},{"$f":"F311*(1+AddCost)+(F311*(1+AddCost)*(BaseMarkup+G311))","v":0.3}]
[null,null,"MX-REC-P50-L","TSWA9314001","Renewal for CC-REC-P50 out of warranty",0.3,0,0.3,0.3]
[null,null,"MX-REC-P60-L","TSWA9314101","Renewal for CC-REC-P60 out of warranty",0.3,0,0.3,0.3]
[null,null,"MX-REC-P90-L","TSWA9314201","Renewal for CC-REC-P90 out of warranty",0.3,0,0.3,0.3]
[null,null,"MX-REC-P120-L","TSWA9314301","Renewal for CC-REC-P120 out of warranty",0.3,0,0.3,0.3]
[null,null,"MX-REC-P150-L","TSWA9314401","Renewal for CC-REC-P150 out of warranty",0.3,0,0.3,0.3]
[null,null,"MX-REC-P180-L","TSWA9314501","Renewal for CC-REC-P180 out of warranty",0.3,0,0.3,0.3]
[null,null,"MX-REC-P200-L","TSWA9314601","Renewal for CC-REC-P200 out of warranty",0.3,0,0.3,0.3]
[null,null,"MX-REC-P240-L","TSWA9314701","Renewal for CC-REC-P240 out of warranty",0.3,0,0.3,0.3]
[null,{"$f":"_xlfn.CONCAT(\"CCX Record VoIP Trunk\n(\",REN_E*100,\"% Renewal after expiry)\")","v":"CCX Record VoIP Trunk\n(30% Renewal after expiry)"},"MX-REC-V4-L","TSWA9314801","Renewal for CX-REC-V4 out of warranty",{"$f":"F80*REN_E","v":0.3},0,0.3,0.3]
[null,null,"MX-REC-V6-L","TSWA9258601","Renewal for CX-REC-V6 out of warranty",0.3,0,{"$f":"I321*(1+VAT)","v":0.3},{"$f":"F321*(1+AddCost)+(F321*(1+AddCost)*(BaseMarkup+G321))","v":0.3}]
[null,null,"MX-REC-V8-L","TSWA9314901","Renewal for CX-REC-V8 out of warranty",0.3,0,0.3,0.3]
[null,null,"MX-REC-V12-L","TSWA9315101","Renewal for CX-REC-V12 out of warranty",0.3,0,0.3,0.3]
[null,null,"MX-REC-V16-L","TSWA9315201","Renewal for CX-REC-V16 out of warranty",0.3,0,0.3,0.3]
[null,null,"MX-REC-V24-L","TSWA9315401","Renewal for CX-REC-V24 out of warranty",0.3,0,0.3,0.3]
[null,null,"MX-REC-V30-L","TSWA9315501","Renewal for CX-REC-V30 out of warranty",0.3,0,0.3,0.3]
[null,null,"MX-REC-V40-L","TSWA9315601","Renewal for CX-REC-V40 out of warranty",0.3,0,0.3,0.3]
[null,null,"MX-REC-V50-L","TSWA9315701","Renewal for CX-REC-V50 out of warranty",0.3,0,0.3,0.3]
[null,null,"MX-REC-V60-L","TSWA9315901","Renewal for CX-REC-V60 out of warranty",0.3,0,0.3,0.3]
[null,null,"MX-REC-V90-L","TSWA9316001","Renewal for CX-REC-V90 out of warranty",0.3,0,0.3,0.3]
[null,null,"MX-REC-V120-L","TSWA9316101","Renewal for CX-REC-V120 out of warranty",0.3,0,0.3,0.3]
[null,null,"MX-REC-V150-L","TSWA9316401","Renewal for CX-REC-V150 out of warranty",0.3,0,0.3,0.3]
[null,null,"MX-REC-V180-L","TSWA9316501","Renewal for CX-REC-V180 out of warranty",0.3,0,0.3,0.3]
[null,null,"MX-REC-V200-L","TSWA9316601","Renewal for CX-REC-V200 out of warranty",0.3,0,0.3,0.3]
[null,null,"MX-REC-V240-L","TSWA9316901","Renewal for CX-REC-V240 out of warranty",0.3,0,0.3,0.3]
[null,{"$f":"_xlfn.CONCAT(\"CCX Record Options\n(\",REN_E*100,\"% Renewal after expiry)\")","v":"CCX Record Options\n(30% Renewal after expiry)"},"MX-CODEC-G729-L","TSWA9258701","Renewal for CX-CODEC-G729 out of warranty",0.3,0,{"$f":"I336*(1+VAT)","v":0.3},{"$f":"F336*(1+AddCost)+(F336*(1+AddCost)*(BaseMarkup+G336))","v":0.3}]
[null,{"$f":"_xlfn.CONCAT(\"CCX Q Add on\n(\",REN_E*100,\"% Renewal after expiry)\")","v":"CCX Q Add on\n(30% Renewal after expiry)"},"MX-Q-EVF-L","TSWA9292001","Renewal for CX-Q-EVF out of warranty",0.3,0,0.3,0.3]
[null,null,"MX-Q-SN-L","TSWA9317201","Renewal for CX-Q-SN out of warranty",0.3,0,{"$f":"I338*(1+VAT)","v":0.3},0.3]
[null,null,"MX-Q-MSN-L","TSWA9317301","Renewal for CX-Q-MSN out of warranty",0.3,0,0.3,0.3]
[null,{"$f":"_xlfn.CONCAT(\"CCX CHAT\n(\",REN_E*100,\"% Renewal after expiry)\")","v":"CCX CHAT\n(30% Renewal after expiry)"},"MX-CHAT-5-L","TSWA9317401","Renewal for CX-CHAT-5 out of warranty",0.3,0,0.3,{"$f":"F340*(1+AddCost)+(F340*(1+AddCost)*(BaseMarkup+G340))","v":0.3}]
[null,{"$f":"_xlfn.CONCAT(\"CCX Call\n(\",REN_E*100,\"% Renewal after expiry)\")","v":"CCX Call\n(30% Renewal after expiry)"},"MX-CALL-L","TSWA9317501","Renewal for CX-CALL out of warranty",0.3,0,0.3,0.3]
[null,null,"MX-CALL-U-L","TSWA9317601","Renewal for CX-CALL-U out of warranty",0.3,0,0.3,0.3]
[null,{"$f":"_xlfn.CONCAT(\"CCX SMS\n(\",REN_E*100,\"% Renewal after expiry)\")","v":"CCX SMS\n(30% Renewal after expiry)"},"MX-SMS-L","TSWA9317701","Renewal for CX-SMS out of warranty",0.3,0,0.3,0.3]
[null,{"$f":"_xlfn.CONCAT(\"CCX IVR\n(\",REN_E*100,\"% Renewal after expiry)\")","v":"CCX IVR\n(30% Renewal after expiry)"},"MX-IVR-L","TSWA9317801","Renewal for CX-IVR out of warranty",0.3,0,0.3,0.3]
[null,{"$f":"_xlfn.CONCAT(\"CCX Survey\n(\",REN_E*100,\"% Renewal after expiry)\")","v":"CCX Survey\n(30% Renewal after expiry)"},"MX-SURVEY-L","TSWA9317901","Renewal for CX-SURVEY out of warranty",0.3,0,0.3,0.3]
[null,{"$f":"_xlfn.CONCAT(\"CCX Coach\n(\",REN_E*100,\"% Renewal after expiry)\")","v":"CCX Coach\n(30% Renewal after expiry)"},"MX-COACH-L","TSWA9318001","Renewal for CX-COACH out of warranty",0.3,0,0.3,0.3]
[null,null,"MX-ASSESSOR-L","TSWA9258801","Renewal for CX-ASSESSOR out of warranty",0.3,0,{"$f":"I347*(1+VAT)","v":0.3},{"$f":"F347*(1+AddCost)+(F347*(1+AddCost)*(BaseMarkup+G347))","v":0.3}]
[null,null,"MX-SCRIPT-L","TSWA9318101","Renewal for CX-SCRIPT out of warranty",0.3,0,0.3,0.3]
[null,{"$f":"_xlfn.CONCAT(\"CCX Desk Options\n(\",REN_E*100,\"% Renewal after expiry)\")","v":"CCX Desk Options\n(30% Renewal after expiry)"},"MX-PIDC-MGR-L","TSWA9258901","Renewal for CX-PIDC-MGR out of warranty",0.3,0,{"$f":"I349*(1+VAT)","v":0.3},{"$f":"F349*(1+AddCost)+(F349*(1+AddCost)*(BaseMarkup+G349))","v":0.3}]
[null,{"$f":"_xlfn.CONCAT(\"CCX Report - Traffic\n(\",REN_E*100,\"% Renewal after expiry)\")","v":"CCX Report - Traffic\n(30% Renewal after expiry)"},"MX-A-REP-D-L","TSWA9309701","Renewal for CX-A-REP-D out of warranty",0.3,0,0.3,0.3]
[null,null,"MX-A-REP-EH-L","TSWA9309901","Renewal for CX-A-REP-EH out of warranty",0.3,0,0.3,0.3]
[null,null,"MX-A-REP-ES-L","TSWA9310001","Renewal for CX-A-REP-ES out of warranty",{"$f":"F112*REN_E","v":0.3},0,0.3,0.3]
[null,null,"MX-A-REP-SL-L","TSWA9310201","Renewal for CX-A-REP-SL out of warranty",0.3,0,0.3,0.3]
[null,{"$f":"_xlfn.CONCAT(\"CCX Record IPCR Integration\n(\",REN_E*100,\"% Renewal after expiry)\")","v":"CCX Record IPCR Integration\n(30% Renewal after expiry)"},"MX-IPCR-INT4-L","TSWA9311701",{"$f":"CONCATENATE(\"Renewal for \",C114,\" out of warranty\")","v":"Renewal for CX-IPCR-INT4 out of warranty"},0.3,0,0.3,0.3]
[null,null,"MX-IPCR-INT8-L","TSWA9311801","Renewal for CX-IPCR-INT8 out of warranty",{"$f":"F115*REN_E","v":0.3},0,0.3,0.3]
[null,null,"MX-IPCR-INT12-L","TSWA9311901","Renewal for CX-IPCR-INT12 out of warranty",0.3,0,0.3,0.3]
[null,null,"MX-IPCR-INT16-L","TSWA9312001","Renewal for CX-IPCR-INT16 out of warranty",0.3,0,0.3,0.3]
[null,null,"MX-IPCR-INT24-L","TSWA9312101","Renewal for CX-IPCR-INT24 out of warranty",0.3,0,0.3,0.3]
[null,null,"MX-IPCR-INT30-L","TSWA9312201","Renewal for CX-IPCR-INT30 out of warranty",0.3,0,0.3,0.3]
[null,null,"MX-IPCR-INT40-L","TSWA9312301","Renewal for CX-IPCR-INT40 out of warranty",0.3,0,0.3,0.3]
[null,null,"MX-IPCR-INT50-L","TSWA9312401","Renewal for CX-IPCR-INT50 out of warranty",0.3,0,0.3,0.3]
[null,null,"MX-IPCR-INT60-L","TSWA9312501","Renewal for CX-IPCR-INT60 out of warranty",0.3,0,0.3,0.3]
[null,null,"MX-IPCR-INT90-L","TSWA9312601","Renewal for CX-IPCR-INT90 out of warranty",0.3,0,0.3,0.3]
[null,null,"MX-IPCR-INT120-L","TSWA9312701","Renewal for CX-IPCR-INT120 out of warranty",0.3,0,0.3,0.3]
[null,null,"MX-IPCR-INT150-L","TSWA9312801","Renewal for CX-IPCR-INT150 out of warranty",0.3,0,0.3,0.3]
[null,null,"MX-IPCR-INT180-L","TSWA9312901","Renewal for CX-IPCR-INT180 out of warranty",0.3,0,0.3,0.3]
[null,null,"MX-IPCR-INT-ADD-L","TSWA9313001","Renewal for CX-IPCR-INT-ADD out of warranty",0.3,0,0.3,0.3]

{"sheet":"Reference for Server Selection","index":4,"n_rows":23,"n_cols":5,"rows_kept":23,"cut":false,"hidden":false,"merged":[[18,2,18,3],[21,2,21,3],[20,2,20,3],[22,1,22,4],[1,1,1,4],[10,2,11,4],[15,1,15,3],[6,2,6,3],[7,2,7,4],[12,2,12,4]]}
[]
[null,"Reference Hardware Specification for CCX Server"]
[null,"Install Scope","Up to 30 CCX Agents\nwith 500 Calls Maximum\nPer Day","Up to 50 CCX Agents\nwith 1000 Calls Maximum\nPer Day","More than 50 CCX Agents\nwith more than 1000 Calls\nPer Day"]
[null,"Dedicated Server Required","Yes","Yes","Yes"]
[null,"SQL Express / Full Version","SQL Express","Full Version","Full Version"]
[null,"Virtual Server Possible","Yes","Yes","Yes"]
[null,"Operating System","Windows Server 2012 R2\nWindows Server 2016\nWindows Server 2019\nWindows 10 Professional",null,"Windows Server 2012 R2\nWindows Server 2016\nWindows Server 2019"]
[null,"CPU","I5 3.3GHz 64bit"]
[null,"RAM ","4 GB","6 GB","8 GB"]
[null,"Available Disk Space\n(with CCX Record)","1 TB","1 TB","3 TB"]
[null,"USB Slot","Depends on CCX Record license.\nStatic IP and MAC Address on Network card required for Licensing and\nPBX Connection. Wifi not recommended"]
[null,"Network Card"]
[null,"Additional Requirements","PBX TAPI driver must be installed.\nCaller ID must be enabled on the trunk lines."]
[null,"* NOTE : If you need to install CCX Record server separately, you should contact CCX Care for the recommended hardware specification for CCX Record server."]
[]
[null,"Reference Hardware Specification for CCX Client"]
[null,"Install Scope","Client","Client and Manager"]
[null,"Operating System","Windows 10 Professional\nWindows 8.1\nWindows 7","Windows 10 Professional\nWindows 8.1\nWindows 7"]
[null,"CPU","I3 3.3GHz"]
[null,"RAM ","2 GB","4 GB"]
[null,"Available Disk Space","10 GB"]
[null,"Browser","Google Chrome"]
[null,"* NOTE : Non-windows OS is supported for Client only when using CCX Desk Web-based interface without CCX Desk Web Tools. Google Chrome and Apple Safari browsers are recommended. Click to Dial is supported with CCX Desk Web Dialer - Chrome plug-in."]

{"sheet":"Revision History","index":5,"n_rows":15,"n_cols":4,"rows_kept":15,"cut":false,"hidden":false,"merged":[]}
[]
[null,"Revision History"]
[]
[null,"Date","Version","Note"]
[null,"2019-06-30","1.0",". Initial Release"]
[null,"2019-12-05","1.1",". Official Release"]
[null,"2019-12-05","1.2",". Price items desription correction\n. Call Server option added - eMG100 & UCM\n. Twitter removed from SNS query"]
[null,"2020-01-21","1.3",". Official Release"]
[null,"2020-02-11","1.4",". CCX-PAC description fixed : 2 CCX Report Plus - Dashboard & User License"]
[null,"2020-02-11","1.5",". CCX-PAC description fixed : 2 CCX Report Plus - Dashboard & User License"]
[null,"2020-10-14","1.6",". PDM code updated"]
[null,"2021-01-12","1.7",". UCM supports only IPCR for call recording, not CCX Record.\n. System configuration for IPCR is added, just for your reference. IPCR must be configured in system configuration separately."]
[null,"2021-01-18","1.8",". CX-IPCR-INT-ADD model name fixed"]
[null,"2021-03-15","1.9",". CCX-PAC maintenance required 4 HMP maintenance separately."]
[null,"2021-03-29","1.10",". Description for UCP100-IPCRC & UCP600-IPCRC fixed."]